Workbook

Sheet Start
A1: START | F1: Excel Toolkit for Mitigation Analysis for Low-Carbon Development Planning | R1: XLMT-Liquid Wastes v17.1
B11: Disclaimer
B12: Data used has been obtained from reliable sources. The Ministry of Social Security, National Solidarity, and Environment and Sustainable Development (Environment and Sustainable Development Division) assumes no responsibility for errors and omissions in the data provided. Users are, however, kindly asked to report any errors or deficiencies in this product to the Ministry. The choices of calculation made in this tool are derived from TNC Report (2016).
B14: ©2017 Government of Mauritius and United Nations Environment Programme
B15: All rights reserved. No part of this Guideline and/or Toolkit may be produced, stored in a retrieval system or transmitted, in any form or by any means, electronic, mechanical, photocopying, recording or otherwise without prior permission from the Ministry of Social Security, National Solidarity, and Environment and Sustainable Development (Environment and Sustainable Development Division) and the United Nations Environment Programme. Results based on the use of the Toolkit must be duly acknowledged and referenced; the copyright holder’s endorsement of Users' views, products or services shall not be implied in any way.

Sheet 1. Sector
A1: SECTOR | C1: Excel Toolkit for Mitigation Analysis for Low-Carbon Development Planning | H1: XLMT-Liquid Wastes v17.1
C3: STAKEHOLDERS | E3: Contact Details for Registered Users:
E4: Name | F4: Email | G4: Phone Number | H4: Address
B5: Co-Chair: | C5: Ministry of Energy and Public Utilities (MEPU) | E5: Mr D Bekaroo | H5: Sicom Tower, Ebene
B6: Co-Chair: | C6: Wastewater Management Authority (WMA) | E6: Mr H Kinoo | F6: h.kinoo@wma.intnet.mu | G6: 206 3024 | H6: The Celicourt, Celicourt Antelme St., Port Louis
B7: Members: | C7: Wastewater Management Authority (WMA) | E7: Mrs R Joysury | G7: 466 7131 | H7: The Celicourt, Celicourt Antelme St., Port Louis
C8: Wastewater Management Authority (WMA) | E8: Mr T Dusoruth | G8: 206 3027 | H8: The Celicourt, Celicourt Antelme St., Port Louis

Sheet 2. Description
A1: DESCRIPTION | E1: Excel Toolkit for Mitigation Analysis for Low-Carbon Development Planning | R1: XLMT-Liquid Wastes v17.1
B4: Mitigation actions to reduce GHG emissions for the Liquid Waste sector (source: TNC, 2016)
B5: Scenarios | F5: TNC Assumptions | M5: Expected GHG emissions (GgCO2e) | Q5: TNC Remarks
B6: BAU | C6: Business-As-Usual | F6: BAU scenario assumes that connection to the sewer system up to 2017 proceeds at the same rate as in 2013, thereafter decreasing by a factor of 4. | M6: ~166 Gg CO2e in 2020; ~172 Gg CO2e in 2050; | Q6: GHG emissions comprising both emissions of CH4 and indirect N2O (from protein intake) increase gradually over time.
B7: SC1 | C7: Enhancing the capture of LFG for either flaring or electricity generation | F7: Implementation of the Wastewater Master Plan II to increase household connectivity to the sewer system up to 80% by 2033. An additional 5% of households are assumed to be connected to the sewer system between 2035 and 2050. In this scenario, the utilization of centralized aerobic wastewater treatment system increases from 0.25 in 2015 to 0.75 in 2030, and to 0.85 in 2050 with corresponding decreases in the use of septic systems. The protein intake has been kept constant at 27.32 kg/cap/yr (which is the highest value reached in 2013). | M7: Relative to BAU, GHG Emissions reductions of: 53.95 GgCO2e in 2020; 108.53 GgCO2e in 2030; 121.78 GgCO2e in 2040; 130.56 GgCO2e in 2050; | Q7: GHG emissions comprising both emissions of CH4 and indirect N2O (from protein intake) increase gradually over time.

Sheet 3. Query
A1: QUERY | E1: Excel Toolkit for Mitigation Analysis for Low-Carbon Development Planning | P1: XLMT-Liquid Wastes v17.1
B4: Users can analyze their results after inputting their parameters (if required) and new assumptions. The number of cases of User-defined scenarios that can be made, in addition to the TNC scenarios (labelled TNC), has been limited to two (labelled UD1 and UD2) for practical reasons. Users can visualize the impact of their assumptions and/or parameter changes made on a number of variables relevant to individual sectors including the Total CO2e emission. Full list of the variables relevant to individual sectors appear in in the individual user manuals. Results can be compared graphically or through tabular representations. Radar dashboards are provided to assess the extent of departure from the targeted annual values estimated by the original TNC studies. The Toolkit has a pdf reporting system, which provides details of the project and the results of the investigations.

Sheet 4. Data
A1: DATA | E1: Excel Toolkit for Mitigation Analysis for Low-Carbon Development Planning | P1: XLMT-Liquid Wastes v17.1
C3: Year | D3: Sewered Plaines Wilhems | E3: Absorption Pit | F3: Septic Tank | G3: Pit Latrine | H3: Sewered PL and Pte aux Sables | I3: 5 CHA estates | J3: Grand baie | K3: Total | L3: Yearly % Increase or Decrease
B4: Population connected to different systems - Business as Usual (Dom. BAU) scenario | C4: 2006 | D4: 124590 | E4: 859783 | F4: 84036 | G4: 44281 | H4: 176920 | I4: 7110 | J4: 6960 | K4: =SUM(D4:J4) -> 1303680 | M4: '- assumes that the rates are dropped to 1/4
C5: 2007 | D5: 130435 | E5: 865071 | F5: 84552 | G5: 44553 | H5: 181949 | I5: 8313 | J5: 2630 | K5: =SUM(D5:J5) -> 1317503 | L5: 1.06030621 | M5: 4 | N5: as from 2018
C6: 2008 | D6: 134990 | E6: 870673 | F6: 85100 | G6: 44841 | H6: 188303 | I6: 8604 | J6: 2722 | K6: =SUM(D6:J6) -> 1335233 | L6: 1.345727486
C7: 2009 | D7: 139411 | E7: 875111 | F7: 85533 | G7: 45070 | H7: 194470 | I7: 8886 | J7: 2811 | K7: 1351292 | L7: 1.202711437
C8: 2010 | D8: 143813 | E8: 879156 | F8: 85929 | G8: 45278 | H8: 200611 | I8: 9166 | J8: 2900 | K8: 1366853 | L8: 1.151564577
C9: 2011 | D9: 143868 | E9: 865071 | F9: 84552 | G9: 44553 | H9: 200688 | I9: 9170 | J9: 2901 | K9: 1350803 | L9: -1.174230148
C10: 2012 | D10: 147890 | E10: 865071 | F10: 84552 | G10: 44553 | H10: 206298 | I10: 9426 | J10: 2982 | K10: 1360772 | L10: 0.7380054679
C11: 2013 | D11: 151848 | E11: 861968 | F11: 84249 | G11: 44393 | H11: 211819 | I11: 9678 | J11: 3062 | K11: 1367017 | L11: 0.4589306658
C12: 2015 | D12: 159975.857 | E12: 855784.2609 | F12: 83645.17166 | G12: 44074.14919 | H12: 223156.5088 | I12: 10195.47422 | J12: 3226.292421 | K12: 1380057.714
C13: 2016 | D13: 164257.3124 | E13: 852714.5723 | F13: 83345.42136 | G13: 43915.86886 | H13: 229128.6806 | I13: 10468.04578 | J13: 3312.846208 | K13: 1387142.747
C14: 2017 | D14: 168653.353 | E14: 849655.8947 | F14: 83046.74525 | G14: 43758.15694 | H14: 235260.6811 | I14: 10747.90442 | J14: 3401.722029 | K14: 1394524.457
C15: 2018 | D15: 169781.7761 | E15: 848893.9681 | F15: 82972.3438 | G15: 43718.87055 | H15: 236834.7078 | I15: 10819.73955 | J15: 3424.537066 | K15: 1396445.943
C16: 2020 | D16: 172053.7224 | E16: 847371.4815 | F16: 82823.67423 | G16: 43640.36833 | H16: 240003.8234 | I16: 10964.37006 | J16: 3470.473177 | K16: 1400327.913
C17: 2025 | D17: 177809.5936 | E17: 843572.0915 | F17: 82675.27104 | G17: 43444.46517 | H17: 248032.6283 | I17: 11330.77963 | J17: 3586.8539 | K17: 1410451.683
C18: 2030 | D18: 183758.0212 | E18: 839789.7369 | F18: 82527.13375 | G18: 43249.44142 | H18: 256330.0193 | I18: 11709.43394 | J18: 3707.137398 | K18: 1421070.924
C19: 2035 | D19: 189905.4471 | E19: 836024.3414 | F19: 82379.2619 | G19: 43055.29314 | H19: 264904.9815 | I19: 12100.74221 | J19: 3831.454548 | K19: 1432201.522
C20: 2040 | D20: 196258.5284 | E20: 832275.829 | F20: 82231.65501 | G20: 42862.0164 | H20: 273766.8003 | I20: 12505.12729 | J20: 3959.940616 | K20: 1443859.897
C21: 2045 | D21: 202824.1452 | E21: 828544.1239 | F21: 82084.31259 | G21: 42669.60728 | H21: 282925.072 | I21: 12923.0262 | J21: 4092.735405 | K21: 1456063.023
C22: 2050 | D22: 209609.4076 | E22: 824829.1507 | F22: 81937.23419 | G22: 42478.0619 | H22: 292389.7137 | I22: 13354.89054 | J22: 4229.983406 | K22: 1468828.442
C26: Year | D26: Sewered Plaines Wilhems | E26: Absorption Pit | F26: Septic Tank | G26: Pit Latrine | H26: Sewered PL and Pte aux Sables | I26: 5 CHA estates | J26: Grand baie | K26: Total | L26: Yearly % Increase or Decrease
B27: Population connected to different systems - Domestic Scenario 1 | C27: 2006 | D27: 124590 | E27: 859783 | F27: 84036 | G27: 44281 | H27: 176920 | I27: 7110 | J27: 6960 | K27: =SUM(D27:J27) -> 1303680
C28: 2007 | D28: 130435 | E28: 865071 | F28: 84552 | G28: 44553 | H28: 181949 | I28: 8313 | J28: 2630 | K28: =SUM(D28:J28) -> 1317503 | L28: 1.06030621
C29: 2008 | D29: 134990 | E29: 870673 | F29: 85100 | G29: 44841 | H29: 188303 | I29: 8604 | J29: 2722 | K29: =SUM(D29:J29) -> 1335233 | L29: 1.345727486
C30: 2009 | D30: 139411 | E30: 875111 | F30: 85533 | G30: 45070 | H30: 194470 | I30: 8886 | J30: 2811 | K30: 1351292 | L30: 1.202711437
C31: 2010 | D31: 143813 | E31: 879156 | F31: 85929 | G31: 45278 | H31: 200611 | I31: 9166 | J31: 2900 | K31: 1366853 | L31: 1.151564577
C32: 2011 | D32: 143868 | E32: 865071 | F32: 84552 | G32: 44553 | H32: 200688 | I32: 9170 | J32: 2901 | K32: 1350803 | L32: -1.174230148
C33: 2012 | D33: 147890 | E33: 865071 | F33: 84552 | G33: 44553 | H33: 206298 | I33: 9426 | J33: 2982 | K33: 1360772 | L33: 0.7380054679
C34: 2013 | D34: 151848 | E34: 861968 | F34: 84249 | G34: 44393 | H34: 211819 | I34: 9678 | J34: 3062 | K34: 1367017 | L34: 0.4589306658
C35: 2015 | D35: 159975.857 | E35: 855784.2609 | F35: 83645.17166 | G35: 44074.14919 | H35: 223156.5088 | I35: 10195.47422 | J35: 3226.292421 | K35: 1380057.714
C36: 2016 | D36: 164257.3124 | E36: 852714.5723 | F36: 83345.42136 | G36: 43915.86886 | H36: 229128.6806 | I36: 10468.04578 | J36: 3312.846208 | K36: 1387142.747
C37: 2017 | D37: 168653.353 | E37: 849655.8947 | F37: 83046.74525 | G37: 43758.15694 | H37: 235260.6811 | I37: 10747.90442 | J37: 3401.722029 | K37: 1394524.457
C38: 2018 | D38: 169781.7761 | E38: 848893.9681 | F38: 82972.3438 | G38: 43718.87055 | H38: 236834.7078 | I38: 10819.73955 | J38: 3424.537066 | K38: 1396445.943
C39: 2020 | D39: 172053.7224 | E39: 847371.4815 | F39: 82823.67423 | G39: 43640.36833 | H39: 240003.8234 | I39: 10964.37006 | J39: 3470.473177 | K39: 1400327.913
C40: 2025 | D40: 177809.5936 | E40: 843572.0915 | F40: 82675.27104 | G40: 43444.46517 | H40: 248032.6283 | I40: 11330.77963 | J40: 3586.8539 | K40: 1410451.683
C41: 2030 | D41: 183758.0212 | E41: 839789.7369 | F41: 82527.13375 | G41: 43249.44142 | H41: 256330.0193 | I41: 11709.43394 | J41: 3707.137398 | K41: 1421070.924
C42: 2035 | D42: 189905.4471 | E42: 836024.3414 | F42: 82379.2619 | G42: 43055.29314 | H42: 264904.9815 | I42: 12100.74221 | J42: 3831.454548 | K42: 1432201.522
C43: 2040 | D43: 196258.5284 | E43: 832275.829 | F43: 82231.65501 | G43: 42862.0164 | H43: 273766.8003 | I43: 12505.12729 | J43: 3959.940616 | K43: 1443859.897
C44: 2045 | D44: 202824.1452 | E44: 828544.1239 | F44: 82084.31259 | G44: 42669.60728 | H44: 282925.072 | I44: 12923.0262 | J44: 4092.735405 | K44: 1456063.023
C45: 2050 | D45: 209609.4076 | E45: 824829.1507 | F45: 81937.23419 | G45: 42478.0619 | H45: 292389.7137 | I45: 13354.89054 | J45: 4229.983406 | K45: 1468828.442

Sheet ... (hidden)

Sheet 5. TNC Parameters
A1: TNC PARAMETERS | E1: Excel Toolkit for Mitigation Analysis for Low-Carbon Development Planning | P1: XLMT-Liquid Wastes v17.1
A2: This page contain values used for the Liquid Wastes Toolkit for key parameters. Parameters are values that do not often change in time; the latter are in 'User Defined - UD Assumptions'.
A3: The TNC values have been used as default in this Toolkit. The Chair of the Waste:Liquid Waste Group can change these parameters against a password - provided it is justified and accepted by all parties concerned.
B5: PART I: CH4 EMISSIONS CALCULATION PARAMETERS | J5: THE USER DEFINED COLUMN CAN BE UPDATED TO OBTAIN UPDATED TREND
C6: BAU | E6: A. PARAMETERS USED TO CALCULATE ORGANICALLY DEGRADABLE MATERIAL IN WASTEWATER (TOW) [TOW = Pop x BOD x 0.001 x I x 365] | U6: C. PARAMETERS USED TO CALCULATE THE DEGREE OF UTILISATION OF THE DIFFERENT TREATMENT SYSTEMS BELOW, Tij | AF6: D. SLUDGE REMOVED AND METHANE RECOVERED
E7: Sewered Plaines Wilhems | G7: Absorption pit | I7: Septic tank | K7: Pit latrine | M7: Sewered PL and Pte aux Sables | O7: 5 CHA estates | Q7: Grand Baie | U7: Anaerobic digester for sludge | W7: Septic system | Y7: latrine | AA7: centralized aerobic treatment | AC7: TOTAL | AF7: Sludge removed | AH7: Methane recovered
E8: TNC | F8: User Defined | G8: TNC | H8: User Defined | I8: TNC | J8: User Defined | K8: TNC | L8: User Defined | M8: TNC | N8: User Defined | O8: TNC | P8: User Defined | Q8: TNC | R8: User Defined | U8: TNC | V8: User Defined | W8: TNC | X8: User Defined | Y8: TNC | Z8: User Defined | AA8: TNC | AB8: User Defined | AC8: TNC | AD8: User Defined | AF8: TNC | AG8: User Defined | AH8: TNC | AI8: User Defined
C9: Industrial BOD in sewer (I in eqn)) | E9: =F9 -> 1.25 | F9: 1.25 | G9: =H9 -> 1 | H9: 1 | I9: =J9 -> 1 | J9: 1 | K9: =L9 -> 1 | L9: 1 | M9: =N9 -> 1.25 | N9: 1.25 | O9: =P9 -> 1.25 | P9: 1.25 | Q9: =R9 -> 1 | R9: 1
B10: 2006 | C10: BOD, kgBOD/Cap/yr (source TNC - WMA) | E10: =F10 -> 8.2 | F10: 8.2 | G10: =H10 -> 13.505 | H10: 13.505 | I10: =J10 -> 13.505 | J10: 13.505 | K10: =L10 -> 13.505 | L10: 13.505 | M10: =N10 -> 14 | N10: 14 | O10: =P10 -> 13.7 | P10: 13.7 | Q10: =R10 -> 8.1 | R10: 8.1 | T10: 2006 | U10: =V10 -> 0.02 | V10: 0.02 | W10: =X10 -> 0.9 | X10: 0.9 | Y10: =Z10 -> 0.05 | Z10: 0.05 | AA10: =AB10 -> 0.03 | AB10: 0.03 | AC10: =AD10 -> 1 | AD10: =V10+X10+Z10+AB10 -> 1 | AF10: 171397 | AG10: 171397
B11: 2007 | E11: 9.5 | F11: 9.5 | G11: 13.505 | H11: 13.505 | I11: 13.505 | J11: 13.505 | K11: 13.505 | L11: 13.505 | M11: 15.3 | N11: 15.3 | O11: 6.9 | P11: 6.9 | Q11: 11.5 | R11: 11.5 | T11: 2007 | U11: =V11 -> 0.02 | V11: 0.02 | W11: =X11 -> 0.9 | X11: 0.9 | Y11: =Z11 -> 0.05 | Z11: 0.05 | AA11: =AB11 -> 0.03 | AB11: 0.03 | AC11: =AD11 -> 1 | AD11: =V11+X11+Z11+AB11 -> 1 | AF11: 193707 | AG11: 193707
B12: 2008 | E12: 13.3 | F12: 13.3 | G12: 13.505 | H12: 13.505 | I12: 13.505 | J12: 13.505 | K12: 13.505 | L12: 13.505 | M12: 22.55 | N12: 22.55 | O12: 4.85 | P12: 4.85 | Q12: 12.7 | R12: 12.7 | T12: 2008 | U12: 0.01 | V12: 0.01 | W12: 0.9 | X12: 0.9 | Y12: 0.01 | Z12: 0.01 | AA12: 0.01 | AB12: 0.01 | AC12: 0.93 | AD12: 0.93 | AF12: 7144734 | AG12: 7144734 | AH12: 535 | AI12: 535
B13: 2009 | E13: 15.3 | F13: 15.3 | G13: 13.505 | H13: 13.505 | I13: 13.505 | J13: 13.505 | K13: 13.505 | L13: 13.505 | M13: 36.2 | N13: 36.2 | O13: 21.505 | P13: 21.505 | Q13: 19.5 | R13: 19.5 | T13: 2009 | U13: 0.01 | V13: 0.01 | W13: 0.9 | X13: 0.9 | Y13: 0.01 | Z13: 0.01 | AA13: 0.01 | AB13: 0.01 | AC13: 0.93 | AD13: 0.93 | AF13: 7144734 | AG13: 7144734 | AH13: 535 | AI13: 535
B14: 2010 | E14: 15.7 | F14: 15.7 | G14: 13.505 | H14: 13.505 | I14: 13.505 | J14: 13.505 | K14: 13.505 | L14: 13.505 | M14: 16.5 | N14: 16.5 | O14: 16.5 | P14: 16.5 | Q14: 17 | R14: 17 | T14: 2010 | U14: 0.01 | V14: 0.01 | W14: 0.9 | X14: 0.9 | Y14: 0.01 | Z14: 0.01 | AA14: 0.01 | AB14: 0.01 | AC14: 0.93 | AD14: 0.93 | AF14: 7144734 | AG14: 7144734 | AH14: 535 | AI14: 535
B15: 2011 | E15: 15.5 | F15: 15.5 | G15: 13.505 | H15: 13.505 | I15: 13.505 | J15: 13.505 | K15: 13.505 | L15: 13.505 | M15: 15.1 | N15: 15.1 | O15: 16.2 | P15: 16.2 | Q15: 15.1 | R15: 15.1 | T15: 2011 | U15: 0.01 | V15: 0.01 | W15: 0.9 | X15: 0.9 | Y15: 0.01 | Z15: 0.01 | AA15: 0.01 | AB15: 0.01 | AC15: 0.93 | AD15: 0.93 | AF15: 7144734 | AG15: 7144734 | AH15: 535 | AI15: 535
B16: 2012 | E16: 15.9 | F16: 15.9 | G16: 13.505 | H16: 13.505 | I16: 13.505 | J16: 13.505 | K16: 13.505 | L16: 13.505 | M16: 13.9 | N16: 13.9 | O16: 21.505 | P16: 21.505 | Q16: 13 | R16: 13 | T16: 2012 | U16: 0.01 | V16: 0.01 | W16: 0.9 | X16: 0.9 | Y16: 0.01 | Z16: 0.01 | AA16: 0.01 | AB16: 0.01 | AC16: 0.93 | AD16: 0.93 | AF16: 7144734 | AG16: 7144734 | AH16: 535 | AI16: 535
B17: 2013 | E17: 14.9 | F17: 14.9 | G17: 13.505 | H17: 13.505 | I17: 13.505 | J17: 13.505 | K17: 13.505 | L17: 13.505 | M17: 14.7 | N17: 14.7 | O17: 19.7 | P17: 19.7 | Q17: 14.1 | R17: 14.1 | T17: 2013 | U17: 0.01 | V17: 0.01 | W17: 0.9 | X17: 0.9 | Y17: 0.01 | Z17: 0.01 | AA17: 0.01 | AB17: 0.01 | AC17: 0.93 | AD17: 0.93 | AF17: 7144734 | AG17: 7144734 | AH17: 535 | AI17: 535
B18: 2015 | E18: 14.9 | F18: 14.9 | G18: 13.505 | H18: 13.505 | I18: 13.505 | J18: 13.505 | K18: 13.505 | L18: 13.505 | M18: 14.7 | N18: 14.7 | O18: 19.7 | P18: 19.7 | Q18: 14.1 | R18: 14.1 | T18: 2015 | U18: 0.01 | V18: 0.01 | W18: 0.9 | X18: 0.9 | Y18: 0.01 | Z18: 0.01 | AA18: 0.01 | AB18: 0.01 | AC18: 0.93 | AD18: 0.93 | AF18: 7144734 | AG18: 7144734 | AH18: 535 | AI18: 535
B19: 2016 | E19: 14.9 | F19: 14.9 | G19: 13.505 | H19: 13.505 | I19: 13.505 | J19: 13.505 | K19: 13.505 | L19: 13.505 | M19: 14.7 | N19: 14.7 | O19: 19.7 | P19: 19.7 | Q19: 14.1 | R19: 14.1 | T19: 2016 | U19: 0.01 | V19: 0.01 | W19: 0.9 | X19: 0.9 | Y19: 0.01 | Z19: 0.01 | AA19: 0.01 | AB19: 0.01 | AC19: 0.93 | AD19: 0.93 | AF19: 7144734 | AG19: 7144734 | AH19: 535 | AI19: 535
B20: 2017 | E20: 14.9 | F20: 14.9 | G20: 13.505 | H20: 13.505 | I20: 13.505 | J20: 13.505 | K20: 13.505 | L20: 13.505 | M20: 14.7 | N20: 14.7 | O20: 19.7 | P20: 19.7 | Q20: 14.1 | R20: 14.1 | T20: 2017 | U20: 0.01 | V20: 0.01 | W20: 0.9 | X20: 0.9 | Y20: 0.01 | Z20: 0.01 | AA20: 0.01 | AB20: 0.01 | AC20: 0.93 | AD20: 0.93 | AF20: 7144734 | AG20: 7144734 | AH20: 535 | AI20: 535
B21: 2018 | E21: 14.9 | F21: 14.9 | G21: 13.505 | H21: 13.505 | I21: 13.505 | J21: 13.505 | K21: 13.505 | L21: 13.505 | M21: 14.7 | N21: 14.7 | O21: 19.7 | P21: 19.7 | Q21: 14.1 | R21: 14.1 | T21: 2018 | U21: 0.01 | V21: 0.01 | W21: 0.9 | X21: 0.9 | Y21: 0.01 | Z21: 0.01 | AA21: 0.01 | AB21: 0.01 | AC21: 0.93 | AD21: 0.93 | AF21: 7144734 | AG21: 7144734 | AH21: 535 | AI21: 535
B22: 2020 | E22: 14.9 | F22: 14.9 | G22: 13.505 | H22: 13.505 | I22: 13.505 | J22: 13.505 | K22: 13.505 | L22: 13.505 | M22: 14.7 | N22: 14.7 | O22: 19.7 | P22: 19.7 | Q22: 14.1 | R22: 14.1 | T22: 2020 | U22: 0.01 | V22: 0.01 | W22: 0.9 | X22: 0.9 | Y22: 0.01 | Z22: 0.01 | AA22: 0.01 | AB22: 0.01 | AC22: 0.93 | AD22: 0.93 | AF22: 7144734 | AG22: 7144734 | AH22: 535 | AI22: 535
B23: 2025 | E23: 14.9 | F23: 14.9 | G23: 13.505 | H23: 13.505 | I23: 13.505 | J23: 13.505 | K23: 13.505 | L23: 13.505 | M23: 14.7 | N23: 14.7 | O23: 19.7 | P23: 19.7 | Q23: 14.1 | R23: 14.1 | T23: 2025 | U23: 0.01 | V23: 0.01 | W23: 0.9 | X23: 0.9 | Y23: 0.01 | Z23: 0.01 | AA23: 0.01 | AB23: 0.01 | AC23: 0.93 | AD23: 0.93 | AF23: 7144734 | AG23: 7144734 | AH23: 535 | AI23: 535
B24: 2030 | E24: 14.9 | F24: 14.9 | G24: 13.505 | H24: 13.505 | I24: 13.505 | J24: 13.505 | K24: 13.505 | L24: 13.505 | M24: 14.7 | N24: 14.7 | O24: 19.7 | P24: 19.7 | Q24: 14.1 | R24: 14.1 | T24: 2030 | U24: 0.01 | V24: 0.01 | W24: 0.9 | X24: 0.9 | Y24: 0.01 | Z24: 0.01 | AA24: 0.01 | AB24: 0.01 | AC24: 0.93 | AD24: 0.93 | AF24: 7144734 | AG24: 7144734 | AH24: 535 | AI24: 535
B25: 2035 | E25: 14.9 | F25: 14.9 | G25: 13.505 | H25: 13.505 | I25: 13.505 | J25: 13.505 | K25: 13.505 | L25: 13.505 | M25: 14.7 | N25: 14.7 | O25: 19.7 | P25: 19.7 | Q25: 14.1 | R25: 14.1 | T25: 2035 | U25: 0.01 | V25: 0.01 | W25: 0.9 | X25: 0.9 | Y25: 0.01 | Z25: 0.01 | AA25: 0.01 | AB25: 0.01 | AC25: 0.93 | AD25: 0.93 | AF25: 7144734 | AG25: 7144734 | AH25: 535 | AI25: 535
B26: 2040 | E26: 14.9 | F26: 14.9 | G26: 13.505 | H26: 13.505 | I26: 13.505 | J26: 13.505 | K26: 13.505 | L26: 13.505 | M26: 14.7 | N26: 14.7 | O26: 19.7 | P26: 19.7 | Q26: 14.1 | R26: 14.1 | T26: 2040 | U26: 0.01 | V26: 0.01 | W26: 0.9 | X26: 0.9 | Y26: 0.01 | Z26: 0.01 | AA26: 0.01 | AB26: 0.01 | AC26: 0.93 | AD26: 0.93 | AF26: 7144734 | AG26: 7144734 | AH26: 535 | AI26: 535
B27: 2045 | E27: 14.9 | F27: 14.9 | G27: 13.505 | H27: 13.505 | I27: 13.505 | J27: 13.505 | K27: 13.505 | L27: 13.505 | M27: 14.7 | N27: 14.7 | O27: 19.7 | P27: 19.7 | Q27: 14.1 | R27: 14.1 | T27: 2045 | U27: 0.01 | V27: 0.01 | W27: 0.9 | X27: 0.9 | Y27: 0.01 | Z27: 0.01 | AA27: 0.01 | AB27: 0.01 | AC27: 0.93 | AD27: 0.93 | AF27: 7144734 | AG27: 7144734 | AH27: 535 | AI27: 535
B28: 2050 | E28: 14.9 | F28: 14.9 | G28: 13.505 | H28: 13.505 | I28: 13.505 | J28: 13.505 | K28: 13.505 | L28: 13.505 | M28: 14.7 | N28: 14.7 | O28: 19.7 | P28: 19.7 | Q28: 14.1 | R28: 14.1 | T28: 2050 | U28: 0.01 | V28: 0.01 | W28: 0.9 | X28: 0.9 | Y28: 0.01 | Z28: 0.01 | AA28: 0.01 | AB28: 0.01 | AC28: 0.93 | AD28: 0.93 | AF28: 7144734 | AG28: 7144734 | AH28: 535 | AI28: 535
B31: B. PARAMETERS USED TO CALCULATE EMISSION FACTORS
F32: Maximum methane producing capacity, kgCH4/kgBOD | H32: Methan correction factor for each teatment system, MCF | J32: Emission Factor, EF, kgCH4/kgBOD | Q32: GWP
F33: TNC | G33: User Defined | H33: TNC | I33: User Defined | J33: TNC | K33: User Defined | Q33: TNC | R33: User defined
B34: Anaerobic digester for sludge | F34: 0.6 | G34: 0.6 | H34: 0.8 | I34: 0.8 | J34: 0.48 | K34: =G34*I34 -> 0.48 | P34: CH4 | Q34: =R34 -> 25 | R34: 25
B35: Septic system | F35: 0.6 | G35: 0.6 | H35: 0.5 | I35: 0.5 | J35: 0.3 | K35: =G35*I35 -> 0.3 | P35: N2O | Q35: =R35 -> 298 | R35: 298
B36: Latrine | F36: 0.6 | G36: 0.6 | H36: 0.1 | I36: 0.1 | J36: 0.06 | K36: 0.06
B37: Centralised aerobic system | F37: 0.6 | G37: 0.6 | H37: 0 | I37: 0 | J37: 0 | K37: 0
B40: PARAMETERS FOR SCENARIO 1
E41: A. PARAMETERS USED TO CALCULATE ORGANICALLY DEGRADABLE MATERIAL IN WASTEWATER (TOW) | U41: C. PARAMETERS USED TO CALCULATE THE DEGREE OF UTILISATION OF THE DIFFERENT TREATMENT SYSTEMS BELOW, Tij | AF41: D. SLUDGE REMOVED AND METHANE RECOVERED
E42: Sewered Plaines Wilhems | G42: Absorption pit | I42: Septic tank | K42: Pit latrine | M42: Sewered PL and Pte aux Sables | O42: 5 CHA estates | Q42: Grand Baie | U42: Anaerobic digester for sludge | W42: Septic system | Y42: latrine | AA42: centralized aerobic treatment | AC42: TOTAL | AF42: Sludge removed | AH42: Methane recovered
E43: TNC | F43: User Defined | G43: TNC | H43: User Defined | I43: TNC | J43: User Defined | K43: TNC | L43: User Defined | M43: TNC | N43: User Defined | O43: TNC | P43: User Defined | Q43: TNC | R43: User Defined | U43: TNC | V43: User Defined | W43: TNC | X43: User Defined | Y43: TNC | Z43: User Defined | AA43: TNC | AB43: User Defined | AC43: TNC | AD43: User Defined | AF43: TNC | AG43: User Defined | AH43: TNC | AI43: User Defined
C44: Industrial BOD in sewer | E44: =F44 -> 1.25 | F44: 1.25 | G44: 1 | H44: 1 | I44: 1 | J44: 1 | K44: 1 | L44: 1 | M44: 1.25 | N44: 1.25 | O44: 1.25 | P44: 1.25 | Q44: 1 | R44: 1
B45: 2006 | C45: BOD, kgBOD/Cap/yr | E45: =F45 -> 8.2 | F45: 8.2 | G45: 13.505 | H45: 13.505 | I45: 13.505 | J45: 13.505 | K45: 13.505 | L45: 13.505 | M45: 14 | N45: 14 | O45: 13.7 | P45: 13.7 | Q45: 8.1 | R45: 8.1 | T45: 2006 | U45: 0.02 | V45: 0.02 | W45: 0.9 | X45: 0.9 | Y45: 0.05 | Z45: 0.05 | AA45: 0.03 | AB45: 0.03 | AC45: =U45+W45+Y45+AA45 -> 1 | AD45: =V45+X45+Z45+AB45 -> 1 | AF45: 171397 | AG45: 171397
B46: 2007 | E46: 9.5 | F46: 9.5 | G46: 13.505 | H46: 13.505 | I46: 13.505 | J46: 13.505 | K46: 13.505 | L46: 13.505 | M46: 15.3 | N46: 15.3 | O46: 6.9 | P46: 6.9 | Q46: 11.5 | R46: 11.5 | T46: 2007 | U46: 0.02 | V46: 0.02 | W46: 0.9 | X46: 0.9 | Y46: 0.05 | Z46: 0.05 | AA46: 0.03 | AB46: 0.03 | AC46: =U46+W46+Y46+AA46 -> 1 | AD46: 1 | AF46: 193707 | AG46: 193707
B47: 2008 | E47: 13.3 | F47: 13.3 | G47: 13.505 | H47: 13.505 | I47: 13.505 | J47: 13.505 | K47: 13.505 | L47: 13.505 | M47: 22.55 | N47: 22.55 | O47: 4.85 | P47: 4.85 | Q47: 12.7 | R47: 12.7 | T47: 2008 | U47: 0.01 | V47: 0.01 | W47: 0.9 | X47: 0.9 | Y47: 0.01 | Z47: 0.01 | AA47: 0.01 | AB47: 0.01 | AC47: 0.93 | AD47: 0.93 | AF47: 7144734 | AG47: 7144734 | AH47: 535 | AI47: 535
B48: 2009 | E48: 15.3 | F48: 15.3 | G48: 13.505 | H48: 13.505 | I48: 13.505 | J48: 13.505 | K48: 13.505 | L48: 13.505 | M48: 36.2 | N48: 36.2 | O48: 21.505 | P48: 21.505 | Q48: 19.5 | R48: 19.5 | T48: 2009 | U48: 0.01 | V48: 0.01 | W48: 0.9 | X48: 0.9 | Y48: 0.01 | Z48: 0.01 | AA48: 0.01 | AB48: 0.01 | AC48: 0.93 | AD48: 0.93 | AF48: 7144734 | AG48: 7144734 | AH48: 535 | AI48: 535
B49: 2010 | E49: 15.7 | F49: 15.7 | G49: 13.505 | H49: 13.505 | I49: 13.505 | J49: 13.505 | K49: 13.505 | L49: 13.505 | M49: 16.5 | N49: 16.5 | O49: 16.5 | P49: 16.5 | Q49: 17 | R49: 17 | T49: 2010 | U49: 0.01 | V49: 0.01 | W49: 0.9 | X49: 0.9 | Y49: 0.01 | Z49: 0.01 | AA49: 0.01 | AB49: 0.01 | AC49: 0.93 | AD49: 0.93 | AF49: 7144734 | AG49: 7144734 | AH49: 535 | AI49: 535
B50: 2011 | E50: 15.5 | F50: 15.5 | G50: 13.505 | H50: 13.505 | I50: 13.505 | J50: 13.505 | K50: 13.505 | L50: 13.505 | M50: 15.1 | N50: 15.1 | O50: 16.2 | P50: 16.2 | Q50: 15.1 | R50: 15.1 | T50: 2011 | U50: 0.01 | V50: 0.01 | W50: 0.9 | X50: 0.9 | Y50: 0.01 | Z50: 0.01 | AA50: 0.01 | AB50: 0.01 | AC50: 0.93 | AD50: 0.93 | AF50: 7144734 | AG50: 7144734 | AH50: 535 | AI50: 535
B51: 2012 | E51: 15.9 | F51: 15.9 | G51: 13.505 | H51: 13.505 | I51: 13.505 | J51: 13.505 | K51: 13.505 | L51: 13.505 | M51: 13.9 | N51: 13.9 | O51: 21.505 | P51: 21.505 | Q51: 13 | R51: 13 | T51: 2012 | U51: 0.01 | V51: 0.01 | W51: 0.9 | X51: 0.9 | Y51: 0.01 | Z51: 0.01 | AA51: 0.01 | AB51: 0.01 | AC51: 0.93 | AD51: 0.93 | AF51: 7144734 | AG51: 7144734 | AH51: 535 | AI51: 535
B52: 2013 | E52: 14.9 | F52: 14.9 | G52: 13.505 | H52: 13.505 | I52: 13.505 | J52: 13.505 | K52: 13.505 | L52: 13.505 | M52: 14.7 | N52: 14.7 | O52: 19.7 | P52: 19.7 | Q52: 14.1 | R52: 14.1 | T52: 2013 | U52: 0.01 | V52: 0.01 | W52: 0.9 | X52: 0.9 | Y52: 0.01 | Z52: 0.01 | AA52: 0.01 | AB52: 0.01 | AC52: 0.93 | AD52: 0.93 | AF52: 7144734 | AG52: 7144734 | AH52: 535 | AI52: 535
B53: 2015 | E53: 14.9 | F53: 14.9 | G53: 13.505 | H53: 13.505 | I53: 13.505 | J53: 13.505 | K53: 13.505 | L53: 13.505 | M53: 14.7 | N53: 14.7 | O53: 19.7 | P53: 19.7 | Q53: 14.1 | R53: 14.1 | T53: 2015 | U53: 0.01 | V53: 0.01 | W53: 0.73 | X53: 0.73 | Y53: 0.01 | Z53: 0.01 | AA53: 0.25 | AB53: 0.25 | AC53: 1 | AD53: 1 | AF53: 8825847.882 | AG53: 8825847.882 | AH53: 535 | AI53: 535
B54: 2016 | E54: 14.9 | F54: 14.9 | G54: 13.505 | H54: 13.505 | I54: 13.505 | J54: 13.505 | K54: 13.505 | L54: 13.505 | M54: 14.7 | N54: 14.7 | O54: 19.7 | P54: 19.7 | Q54: 14.1 | R54: 14.1 | T54: 2016 | U54: 0.01 | V54: 0.01 | W54: 0.6967 | X54: 0.6967 | Y54: 0.01 | Z54: 0.01 | AA54: 0.2833 | AB54: 0.2833 | AC54: 1 | AD54: 1 | AF54: 9666404.824 | AG54: 9666404.824 | AH54: 535 | AI54: 535
B55: 2017 | E55: 14.9 | F55: 14.9 | G55: 13.505 | H55: 13.505 | I55: 13.505 | J55: 13.505 | K55: 13.505 | L55: 13.505 | M55: 14.7 | N55: 14.7 | O55: 19.7 | P55: 19.7 | Q55: 14.1 | R55: 14.1 | T55: 2017 | U55: 0.01 | V55: 0.01 | W55: 0.6633 | X55: 0.6633 | Y55: 0.01 | Z55: 0.01 | AA55: 0.3167 | AB55: 0.3167 | AC55: 1 | AD55: 1 | AF55: 10506961.76 | AG55: 10506961.76 | AH55: 535 | AI55: 535
B56: 2018 | E56: 14.9 | F56: 14.9 | G56: 13.505 | H56: 13.505 | I56: 13.505 | J56: 13.505 | K56: 13.505 | L56: 13.505 | M56: 14.7 | N56: 14.7 | O56: 19.7 | P56: 19.7 | Q56: 14.1 | R56: 14.1 | T56: 2018 | U56: 0.01 | V56: 0.01 | W56: 0.63 | X56: 0.63 | Y56: 0.01 | Z56: 0.01 | AA56: 0.35 | AB56: 0.35 | AC56: 1 | AD56: 1 | AF56: 11347518.71 | AG56: 11347518.71 | AH56: 535 | AI56: 535
B57: 2020 | E57: 14.9 | F57: 14.9 | G57: 13.505 | H57: 13.505 | I57: 13.505 | J57: 13.505 | K57: 13.505 | L57: 13.505 | M57: 14.7 | N57: 14.7 | O57: 19.7 | P57: 19.7 | Q57: 14.1 | R57: 14.1 | T57: 2020 | U57: 0.01 | V57: 0.01 | W57: 0.5633 | X57: 0.5633 | Y57: 0.01 | Z57: 0.01 | AA57: 0.4167 | AB57: 0.4167 | AC57: 1 | AD57: 1 | AF57: 13028632.59 | AG57: 13028632.59 | AH57: 535 | AI57: 535
B58: 2025 | E58: 14.9 | F58: 14.9 | G58: 13.505 | H58: 13.505 | I58: 13.505 | J58: 13.505 | K58: 13.505 | L58: 13.505 | M58: 14.7 | N58: 14.7 | O58: 19.7 | P58: 19.7 | Q58: 14.1 | R58: 14.1 | T58: 2025 | U58: 0.01 | V58: 0.01 | W58: 0.4067 | X58: 0.4067 | Y58: 0 | Z58: 0 | AA58: 0.5833 | AB58: 0.5833 | AC58: 1 | AD58: 1 | AF58: 17231417.29 | AG58: 17231417.29 | AH58: 535 | AI58: 535
B59: 2030 | E59: 14.9 | F59: 14.9 | G59: 13.505 | H59: 13.505 | I59: 13.505 | J59: 13.505 | K59: 13.505 | L59: 13.505 | M59: 14.7 | N59: 14.7 | O59: 19.7 | P59: 19.7 | Q59: 14.1 | R59: 14.1 | T59: 2030 | U59: 0.01 | V59: 0.01 | W59: 0.24 | X59: 0.24 | Y59: 0 | Z59: 0 | AA59: 0.75 | AB59: 0.75 | AC59: 1 | AD59: 1 | AF59: 21434202 | AG59: 21434202 | AH59: 535 | AI59: 535
B60: 2035 | E60: 14.9 | F60: 14.9 | G60: 13.505 | H60: 13.505 | I60: 13.505 | J60: 13.505 | K60: 13.505 | L60: 13.505 | M60: 14.7 | N60: 14.7 | O60: 19.7 | P60: 19.7 | Q60: 14.1 | R60: 14.1 | T60: 2035 | U60: 0.01 | V60: 0.01 | W60: 0.19 | X60: 0.19 | Y60: 0 | Z60: 0 | AA60: 0.8 | AB60: 0.8 | AC60: 1 | AD60: 1 | AF60: 22863148.8 | AG60: 22863148.8 | AH60: 535 | AI60: 535
B61: 2040 | E61: 14.9 | F61: 14.9 | G61: 13.505 | H61: 13.505 | I61: 13.505 | J61: 13.505 | K61: 13.505 | L61: 13.505 | M61: 14.7 | N61: 14.7 | O61: 19.7 | P61: 19.7 | Q61: 14.1 | R61: 14.1 | T61: 2040 | U61: 0.01 | V61: 0.01 | W61: 0.175 | X61: 0.175 | Y61: 0 | Z61: 0 | AA61: 0.815 | AB61: 0.815 | AC61: 1 | AD61: 1 | AF61: 23339464.4 | AG61: 23339464.4 | AH61: 535 | AI61: 535
B62: 2045 | E62: 14.9 | F62: 14.9 | G62: 13.505 | H62: 13.505 | I62: 13.505 | J62: 13.505 | K62: 13.505 | L62: 13.505 | M62: 14.7 | N62: 14.7 | O62: 19.7 | P62: 19.7 | Q62: 14.1 | R62: 14.1 | T62: 2045 | U62: 0.01 | V62: 0.01 | W62: 0.16 | X62: 0.16 | Y62: 0 | Z62: 0 | AA62: 0.83 | AB62: 0.83 | AC62: 1 | AD62: 1 | AF62: 23815780 | AG62: 23815780 | AH62: 535 | AI62: 535
B63: 2050 | E63: 14.9 | F63: 14.9 | G63: 13.505 | H63: 13.505 | I63: 13.505 | J63: 13.505 | K63: 13.505 | L63: 13.505 | M63: 14.7 | N63: 14.7 | O63: 19.7 | P63: 19.7 | Q63: 14.1 | R63: 14.1 | T63: 2050 | U63: 0.01 | V63: 0.01 | W63: 0.14 | X63: 0.14 | Y63: 0 | Z63: 0 | AA63: 0.85 | AB63: 0.85 | AC63: 1 | AD63: 1 | AF63: 24292095.6 | AG63: 24292095.6 | AH63: 535 | AI63: 535
B66: B. PARAMETERS USED TO CALCULATE EMISSION FACTORS
F67: Maximum methane producing capacity, kgCH4/kgBOD | H67: Methan correction factor for each teatment system, MCF | J67: Emission Factor, EF, kgCH4/kgBOD | O67: GWP
F68: TNC | G68: User Defined | H68: TNC | I68: User Defined | J68: TNC | K68: User Defined | O68: TNC | P68: USER DEFINED
B69: Anaerobic digester for sludge | F69: 0.6 | G69: 0.6 | H69: 0.8 | I69: 0.8 | J69: 0.48 | K69: =G69*I69 -> 0.48 | N69: CH4 | O69: =Q34 -> 25 | P69: =Q34 -> 25
B70: Septic system | F70: 0.6 | G70: 0.6 | H70: 0.5 | I70: 0.5 | J70: 0.3 | K70: =G70*I70 -> 0.3 | N70: N2O | O70: =Q35 -> 298 | P70: =Q35 -> 298
B71: Latrine | F71: 0.6 | G71: 0.6 | H71: 0.1 | I71: 0.1 | J71: 0.06 | K71: 0.06
B72: Centralised aerobic system | F72: 0.6 | G72: 0.6 | H72: 0 | I72: 0 | J72: 0 | K72: 0
B79: PART II: N20 CALCULATION PARAMETERS
D82: BAU | F82: Constants
D84: Fnpr, kgN/kgprot | F84: Fnon-con protein | H84: Frac, industrial+commer | J84: Nremoved sludge, kg | L84: EF, kgN2O-N/kgN | N84: Emission Wwplant, KgN2O/yr | P84: N2 to N2O
D85: User defined | E85: TNC | F85: User defined | G85: TNC | H85: User defined | I85: TNC | J85: User defined | K85: TNC | L85: User defined | M85: TNC | N85: User defined | O85: TNC | P85: User defined | Q85: TNC
D86: 0.16 | E86: 0.16 | F86: 1.4 | G86: 1.4 | H86: 1.25 | I86: 1.25 | J86: 0 | K86: 0 | L86: 0.005 | M86: 0.005 | N86: 0 | O86: 0 | P86: =44/28 -> 1.571428571 | Q86: =44/28 -> 1.571428571
D88: Protein intake per capita, kg/cap/yr
E89: User defined | F89: TNC
D90: average | E90: =AVERAGE('TNC BAU'!D54:D61) -> 26.48125 | F90: 26.48125
D91: median | E91: =MEDIAN('TNC BAU'!D54:D61) -> 26.685 | F91: 26.685
D92: highest | E92: =MAX('TNC BAU'!D54:D61) -> 27.32 | F92: 27.32
D93: used | E93: =E92 -> 27.32 | F93: 27.32
D96: SC1 | F96: Constants
D98: Fnpr, kgN/kgprot | F98: Fnon-con protein | H98: Frac, industrial+commer | J98: Nremoved sludge, kg | L98: EF, kgN2O-N/kgN | N98: Emission Wwplant, KgN2O/yr | P98: N2 to N2O
D99: User defined | E99: TNC | F99: User defined | G99: TNC | H99: User defined | I99: TNC | J99: User defined | K99: TNC | L99: User defined | M99: TNC | N99: User defined | O99: TNC | P99: User defined | Q99: TNC
D100: 0.16 | E100: 0.16 | F100: 1.4 | G100: 1.4 | H100: 1.25 | I100: 1.25 | J100: 0 | K100: 0 | L100: 0.005 | M100: 0.005 | N100: 0 | O100: 0 | P100: =44/28 -> 1.571428571 | Q100: =44/28 -> 1.571428571
D102: Protein intake per capita, kg/cap/yr
E103: User defined | F103: TNC
D104: average | E104: =AVERAGE('TNC BAU'!K54:K61) -> 26.48125 | F104: 26.48125
D105: median | E105: =MEDIAN('TNC BAU'!K54:K61) -> 26.685 | F105: 26.685
D106: highest | E106: =MAX('TNC BAU'!K54:K61) -> 27.32 | F106: 27.32
D107: used | E107: =E93 -> 27.32 | F107: 27.32
N145: Kg BOD DoMBAU/yr
B146: Year | C146: Tij, utilization fraction (Domestic BAU) | G146: Sludge removed, kg BOD/yr | H146: Methane captured, kgCH4/yr | M146: Year | N146: Sewered Plaines Wilhems | O146: Absorption Pit | P146: Septic Tank | Q146: Pit Latrine | R146: Sewered PL and Pte aux Sables | T146: 5 CHA estates | U146: Grand baie | V146: Total
B147: 2006 | C147: 0.02 | D147: 0.9 | E147: 0.05 | F147: 0.03 | G147: 171397 | M147: 2006 | N147: 1277047.5 | O147: 11611369.42 | P147: 1134906.18 | Q147: 598014.905 | R147: 3096100 | T147: 121758.75 | U147: 56376 | V147: =SUM(N147:U147) -> 17895572.75
B148: 2007 | C148: 0.02 | D148: 0.9 | E148: 0.05 | F148: 0.03 | G148: 193707 | M148: 2007 | N148: 1548915.625 | O148: 11682783.86 | P148: 1141874.76 | Q148: 601688.265 | R148: 3479774.625 | T148: 71699.625 | U148: 30245 | V148: =SUM(N148:U148) -> 18556981.76
B149: 2008 | C149: 0.01 | D149: 0.9 | E149: 0.01 | F149: 0.01 | G149: 7144734 | H149: 535 | M149: 2008 | N149: 2244208.75 | O149: 11758438.87 | P149: 1149275.5 | Q149: 605577.705 | R149: 5307790.812 | T149: 52161.75 | U149: 34569.4 | V149: =SUM(N149:U149) -> 21152022.78
B150: 2009 | C150: 0.01 | D150: 0.9 | E150: 0.01 | F150: 0.01 | G150: 7144734 | H150: 535 | M150: 2009 | N150: 2666235.375 | O150: 11818374.06 | P150: 1155123.165 | Q150: 608670.35 | R150: 8799767.5 | T150: 238866.7875 | U150: 54814.5 | V150: =SUM(N150:U150) -> 25341851.73
B151: 2010 | C151: 0.01 | D151: 0.9 | E151: 0.01 | F151: 0.01 | G151: 7144734 | H151: 535 | M151: 2010 | N151: 2822330.125 | O151: 11873001.78 | P151: 1160471.145 | Q151: 611479.39 | R151: 4137601.875 | T151: 189048.75 | U151: 49300 | V151: 20843233.07
B152: 2011 | C152: 0.01 | D152: 0.9 | E152: 0.01 | F152: 0.01 | G152: 7144734 | H152: 535 | M152: 2011 | N152: 2787442.5 | O152: 11682783.86 | P152: 1141874.76 | Q152: 601688.265 | R152: 3787986 | T152: 185692.5 | U152: 43805.1 | V152: 20231272.98
B153: 2012 | C153: 0.01 | D153: 0.9 | E153: 0.01 | F153: 0.01 | G153: 7144734 | H153: 535 | M153: 2012 | N153: 2939313.75 | O153: 11682783.86 | P153: 1141874.76 | Q153: 601688.265 | R153: 3584427.75 | T153: 253382.6625 | U153: 38766 | V153: 20242237.04
B154: 2013 | C154: 0.01 | D154: 0.9 | E154: 0.01 | F154: 0.01 | G154: 7144734 | H154: 535 | M154: 2013 | N154: 2828169 | O154: 11640877.84 | P154: 1137782.745 | Q154: 599527.465 | R154: 3892174.125 | T154: 238320.75 | U154: 43174.2 | V154: 20380026.12
B155: 2015 | C155: 0.01 | D155: 0.9 | E155: 0.01 | F155: 0.01 | G155: 7144734 | H155: 535 | M155: 2015 | N155: 2979550.336 | O155: 11557366.44 | P155: 1129628.043 | Q155: 595221.3849 | R155: 4100500.85 | T155: 251063.5527 | U155: 45490.72314 | V155: 20658821.33
B156: 2016 | C156: 0.01 | D156: 0.9 | E156: 0.01 | F156: 0.01 | G156: 7144734 | H156: 535 | M156: 2016 | N156: 3059292.443 | O156: 11515910.3 | P156: 1125579.915 | Q156: 593083.8089 | R156: 4210239.506 | T156: 257775.6273 | U156: 46711.13154 | V156: 20808592.73
B157: 2017 | C157: 0.01 | D157: 0.9 | E157: 0.01 | F157: 0.01 | G157: 7144734 | H157: 535 | M157: 2017 | N157: 3141168.699 | O157: 11474602.86 | P157: 1121546.295 | Q157: 590953.9095 | R157: 4322915.015 | T157: 264667.1463 | U157: 47964.28061 | V157: 20963818.2
B158: 2018 | C158: 0.01 | D158: 0.9 | E158: 0.01 | F158: 0.01 | G158: 7144734 | H158: 535 | M158: 2018 | N158: 3162185.58 | O158: 11464313.04 | P158: 1120541.503 | Q158: 590423.3468 | R158: 4351837.755 | T158: 266436.0865 | U158: 48285.97263 | V158: 21004023.28
B159: 2020 | C159: 0.01 | D159: 0.9 | E159: 0.01 | F159: 0.01 | G159: 7144734 | H159: 535 | M159: 2020 | N159: 3204500.579 | O159: 11443751.86 | P159: 1118533.72 | Q159: 589363.1743 | R159: 4410070.255 | T159: 269997.6128 | U159: 48933.67179 | V159: 21085150.87
B160: 2025 | C160: 0.01 | D160: 0.9 | E160: 0.01 | F160: 0.01 | G160: 7144734 | H160: 535 | M160: 2025 | N160: 3311703.68 | O160: 11392441.1 | P160: 1116529.535 | Q160: 586717.5021 | R160: 4557599.544 | T160: 279020.4483 | U160: 50574.64 | V160: 21294586.45
B161: 2030 | C161: 0.01 | D161: 0.9 | E161: 0.01 | F161: 0.01 | G161: 7144734 | H161: 535 | M161: 2030 | N161: 3422493.145 | O161: 11341360.4 | P161: 1114528.941 | Q161: 584083.7063 | R161: 4710064.104 | T161: 288344.8109 | U161: 52270.63731 | V161: 21513145.74
B162: 2035 | C162: 0.01 | D162: 0.9 | E162: 0.01 | F162: 0.01 | G162: 7144734 | H162: 535 | M162: 2035 | N162: 3536988.951 | O162: 11290508.73 | P162: 1112531.932 | Q162: 581461.7338 | R162: 4867629.034 | T162: 297980.7769 | U162: 54023.50912 | V162: 21741124.67
B163: 2040 | C163: 0.01 | D163: 0.9 | E163: 0.01 | F163: 0.01 | G163: 7144734 | H163: 535 | M163: 2040 | N163: 3655315.091 | O163: 11239885.07 | P163: 1110538.501 | Q163: 578851.5315 | R163: 5030464.955 | T163: 307938.7595 | U163: 55835.16268 | V163: 21978829.07
B164: 2045 | C164: 0.01 | D164: 0.9 | E164: 0.01 | F164: 0.01 | G164: 7144734 | H164: 535 | M164: 2045 | N164: 3777599.704 | O164: 11189488.39 | P164: 1108548.642 | Q164: 576253.0464 | R164: 5198748.198 | T164: 318229.5201 | U164: 57707.56921 | V164: 22226575.07
B165: 2050 | C165: 0.01 | D165: 0.9 | E165: 0.01 | F165: 0.01 | G165: 7144734 | H165: 535 | M165: 2050 | N165: 3903975.217 | O165: 11139317.68 | P165: 1106562.348 | Q165: 573666.226 | R165: 5372660.989 | T165: 328864.1794 | U165: 59642.76603 | V165: 22484689.41
AF168: Constants
N169: Kg BOD DoMScenario 1/yr | AF169: Fnpr, kgN/kgprot | AG169: Fnon-con protein | AH169: Frac, industrial+commer | AI169: Nremoved sludge, kg | AJ169: EF, kgN2O-N/kgN | AK169: Emission Wwplant, KgN2O/yr | AL169: N2 to N2O
B170: Year | D170: Tij, utilization fraction (Domestic Scenario 1) | I170: Sludge removed, kg BOD/yr | J170: Methane captured, kgCH4/yr | M170: Year | N170: Sewered Plaines Wilhems | O170: Absorption Pit | P170: Septic Tank | Q170: Pit Latrine | R170: Sewered PL and Pte aux Sables | T170: 5 CHA estates | U170: Grand baie | V170: Total
B171: 2006 | D171: 0.02 | E171: 0.9 | F171: 0.05 | G171: 0.03 | I171: 171397 | M171: 2006 | N171: 1277047.5 | O171: 11611369.42 | P171: 1134906.18 | Q171: 598014.905 | R171: 3096100 | T171: 121758.75 | U171: 56376 | V171: =SUM(N171:U171) -> 17895572.75 | AF171: 0.16 | AG171: 1.4 | AH171: 1.25 | AI171: 0 | AJ171: 0.005 | AK171: 0 | AL171: =44/28 -> 1.571428571
B172: 2007 | C172: 1 | D172: 0.02 | E172: 0.9 | F172: 0.05 | G172: 0.03 | I172: 193707 | M172: 2007 | N172: 1548915.625 | O172: 11682783.86 | P172: 1141874.76 | Q172: 601688.265 | R172: 3479774.625 | T172: 71699.625 | U172: 30245 | V172: =SUM(N172:U172) -> 18556981.76
B173: 2008 | C173: 0.93 | D173: 0.01 | E173: 0.9 | F173: 0.01 | G173: 0.01 | I173: 7144734 | J173: 535 | M173: 2008 | N173: 2244208.75 | O173: 11758438.87 | P173: 1149275.5 | Q173: 605577.705 | R173: 5307790.812 | T173: 52161.75 | U173: 34569.4 | V173: 21152022.78 | AF173: Protein intake per capita, kg/cap/yr
B174: 2009 | C174: 0.93 | D174: 0.01 | E174: 0.9 | F174: 0.01 | G174: 0.01 | I174: 7144734 | J174: 535 | M174: 2009 | N174: 2666235.375 | O174: 11818374.06 | P174: 1155123.165 | Q174: 608670.35 | R174: 8799767.5 | T174: 238866.7875 | U174: 54814.5 | V174: 25341851.73 | AF174: average | AG174: =AVERAGE('TNC BAU'!D132:D139) -> 26.48125
B175: 2010 | C175: 0.93 | D175: 0.01 | E175: 0.9 | F175: 0.01 | G175: 0.01 | I175: 7144734 | J175: 535 | M175: 2010 | N175: 2822330.125 | O175: 11873001.78 | P175: 1160471.145 | Q175: 611479.39 | R175: 4137601.875 | T175: 189048.75 | U175: 49300 | V175: 20843233.07 | AF175: median | AG175: =MEDIAN('TNC BAU'!D132:D139) -> 26.685
B176: 2011 | C176: 0.93 | D176: 0.01 | E176: 0.9 | F176: 0.01 | G176: 0.01 | I176: 7144734 | J176: 535 | M176: 2011 | N176: 2787442.5 | O176: 11682783.86 | P176: 1141874.76 | Q176: 601688.265 | R176: 3787986 | T176: 185692.5 | U176: 43805.1 | V176: 20231272.98 | AF176: highest | AG176: =MAX('TNC BAU'!D132:D139) -> 27.32
B177: 2012 | C177: 0.93 | D177: 0.01 | E177: 0.9 | F177: 0.01 | G177: 0.01 | I177: 7144734 | J177: 535 | M177: 2012 | N177: 2939313.75 | O177: 11682783.86 | P177: 1141874.76 | Q177: 601688.265 | R177: 3584427.75 | T177: 253382.6625 | U177: 38766 | V177: 20242237.04 | AF177: used | AG177: =AG176 -> 27.32
B178: 2013 | C178: 0.93 | D178: 0.01 | E178: 0.9 | F178: 0.01 | G178: 0.01 | I178: 7144734 | J178: 535 | M178: 2013 | N178: 2828169 | O178: 11640877.84 | P178: 1137782.745 | Q178: 599527.465 | R178: 3892174.125 | T178: 238320.75 | U178: 43174.2 | V178: 20380026.12
B179: 2015 | C179: 1 | D179: 0.01 | E179: 0.73 | F179: 0.01 | G179: 0.25 | H179: 840556.9412 | I179: 8825847.882 | J179: 535 | M179: 2015 | N179: 2979550.336 | O179: 11557366.44 | P179: 1129628.043 | Q179: 595221.3849 | R179: 4100500.85 | T179: 251063.5527 | U179: 45490.72314 | V179: 20658821.33
B180: 2016 | C180: 1 | D180: 0.01 | E180: 0.6967 | F180: 0.01 | G180: 0.2833 | I180: 9666404.824 | J180: 535 | M180: 2016 | N180: 3059292.443 | O180: 11515910.3 | P180: 1125579.915 | Q180: 593083.8089 | R180: 4210239.506 | T180: 257775.6273 | U180: 46711.13154 | V180: 20808592.73
B181: 2017 | C181: 1 | D181: 0.01 | E181: 0.6633 | F181: 0.01 | G181: 0.3167 | I181: 10506961.76 | J181: 535 | M181: 2017 | N181: 3141168.699 | O181: 11474602.86 | P181: 1121546.295 | Q181: 590953.9095 | R181: 4322915.015 | T181: 264667.1463 | U181: 47964.28061 | V181: 20963818.2
B182: 2018 | C182: 1 | D182: 0.01 | E182: 0.63 | F182: 0.01 | G182: 0.35 | I182: 11347518.71 | J182: 535 | M182: 2018 | N182: 3162185.58 | O182: 11464313.04 | P182: 1120541.503 | Q182: 590423.3468 | R182: 4351837.755 | T182: 266436.0865 | U182: 48285.97263 | V182: 21004023.28
B183: 2020 | C183: 1 | D183: 0.01 | E183: 0.5633 | F183: 0.01 | G183: 0.4167 | I183: 13028632.59 | J183: 535 | M183: 2020 | N183: 3204500.579 | O183: 11443751.86 | P183: 1118533.72 | Q183: 589363.1743 | R183: 4410070.255 | T183: 269997.6128 | U183: 48933.67179 | V183: 21085150.87
B184: 2025 | C184: 1 | D184: 0.01 | E184: 0.4067 | F184: 0 | G184: 0.5833 | I184: 17231417.29 | J184: 535 | M184: 2025 | N184: 3311703.68 | O184: 11392441.1 | P184: 1116529.535 | Q184: 586717.5021 | R184: 4557599.544 | T184: 279020.4483 | U184: 50574.64 | V184: 21294586.45
B185: 2030 | C185: 1 | D185: 0.01 | E185: 0.24 | F185: 0 | G185: 0.75 | I185: 21434202 | J185: 535 | M185: 2030 | N185: 3422493.145 | O185: 11341360.4 | P185: 1114528.941 | Q185: 584083.7063 | R185: 4710064.104 | T185: 288344.8109 | U185: 52270.63731 | V185: 21513145.74
B186: 2035 | C186: 1 | D186: 0.01 | E186: 0.19 | F186: 0 | G186: 0.8 | H186: 1428946.8 | I186: 22863148.8 | J186: 535 | M186: 2035 | N186: 3536988.951 | O186: 11290508.73 | P186: 1112531.932 | Q186: 581461.7338 | R186: 4867629.034 | T186: 297980.7769 | U186: 54023.50912 | V186: 21741124.67
B187: 2040 | C187: 1 | D187: 0.01 | E187: 0.175 | F187: 0 | G187: 0.815 | I187: 23339464.4 | J187: 535 | M187: 2040 | N187: 3655315.091 | O187: 11239885.07 | P187: 1110538.501 | Q187: 578851.5315 | R187: 5030464.955 | T187: 307938.7595 | U187: 55835.16268 | V187: 21978829.07
B188: 2045 | C188: 1 | D188: 0.01 | E188: 0.16 | F188: 0 | G188: 0.83 | I188: 23815780 | J188: 535 | M188: 2045 | N188: 3777599.704 | O188: 11189488.39 | P188: 1108548.642 | Q188: 576253.0464 | R188: 5198748.198 | T188: 318229.5201 | U188: 57707.56921 | V188: 22226575.07
B189: 2050 | C189: 1 | D189: 0.01 | E189: 0.14 | F189: 0 | G189: 0.85 | H189: 95263.12 | I189: 24292095.6 | J189: 535 | M189: 2050 | N189: 3903975.217 | O189: 11139317.68 | P189: 1106562.348 | Q189: 573666.226 | R189: 5372660.989 | T189: 328864.1794 | U189: 59642.76603 | V189: 22484689.41

Sheet 5. UD1 Parameters
A1: UD1 PARAMETERS | E1: Excel Toolkit for Mitigation Analysis for Low-Carbon Development Planning | P1: XLMT-Liquid Wastes v17.1
A2: This page contain values used for the Liquid Wastes Toolkit for key parameters. Parameters are values that do not change in time; the latter are in 'User Defined - UD Assumptions'.
A3: The TNC values have been used as default in this Toolkit. The Chair of the Waste:Liquid Waste Group can change these parameters against a password - provided it is justified and accepted by all parties concerned.
B5: PART I: CH4 EMISSIONS CALCULATION PARAMETERS
E6: A. PARAMETERS USED TO CALCULATE ORGANICALLY DEGRADABLE MATERIAL IN WASTEWATER (TOW) | U6: C. PARAMETERS USED TO CALCULATE THE DEGREE OF UTILISATION OF THE DIFFERENT TREATMENT SYSTEMS BELOW, Tij | AF6: D. SLUDGE REMOVED AND METHANE RECOVERED
E7: Sewered Plaines Wilhems | G7: Absorption pit | I7: Septic tank | K7: Pit latrine | M7: Sewered PL and Pte aux Sables | O7: 5 CHA estates | Q7: Grand Baie | U7: Anaerobic digester for sludge | W7: Septic system | Y7: latrine | AA7: centralized aerobic treatment | AC7: TOTAL | AF7: Sludge removed | AH7: Methane recovered
C8: BAU | E8: User Defined | F8: TNC | G8: User Defined | H8: TNC | I8: User Defined | J8: TNC | K8: User Defined | L8: TNC | M8: User Defined | N8: TNC | O8: User Defined | P8: TNC | Q8: User Defined | R8: TNC | U8: TNC | V8: User Defined | W8: TNC | X8: User Defined | Y8: TNC | Z8: User Defined | AA8: TNC | AB8: User Defined | AC8: TNC | AD8: User Defined | AF8: TNC | AG8: User Defined | AH8: TNC | AI8: User Defined
C9: Industrial BOD in sewer | E9: 1.25 | F9: 1.25 | G9: 1 | H9: 1 | I9: 1 | J9: 1 | K9: 1 | L9: 1 | M9: 1.25 | N9: 1.25 | O9: 1.25 | P9: 1.25 | Q9: 1 | R9: 1
B10: 2006 | C10: BOD, kgBOD/Cap/yr | E10: 8.2 | F10: 8.2 | G10: 13.505 | H10: 13.505 | I10: 13.505 | J10: 13.505 | K10: 13.505 | L10: 13.505 | M10: 14 | N10: 14 | O10: 13.7 | P10: 13.7 | Q10: 8.1 | R10: 8.1 | T10: 2006 | U10: 0.02 | V10: 0.02 | W10: 0.9 | X10: 0.9 | Y10: 0.05 | Z10: 0.05 | AA10: 0.03 | AB10: 0.03 | AC10: =U10+W10+Y10+AA10 -> 1 | AD10: =V10+X10+Z10+AB10 -> 1 | AF10: 171397 | AG10: 171397
B11: 2007 | E11: 9.5 | F11: 9.5 | G11: 13.505 | H11: 13.505 | I11: 13.505 | J11: 13.505 | K11: 13.505 | L11: 13.505 | M11: 15.3 | N11: 15.3 | O11: 6.9 | P11: 6.9 | Q11: 11.5 | R11: 11.5 | T11: 2007 | U11: 0.02 | V11: 0.02 | W11: 0.9 | X11: 0.9 | Y11: 0.05 | Z11: 0.05 | AA11: 0.03 | AB11: 0.03 | AC11: =U11+W11+Y11+AA11 -> 1 | AD11: 1 | AF11: 193707 | AG11: 193707
B12: 2008 | E12: 13.3 | F12: 13.3 | G12: 13.505 | H12: 13.505 | I12: 13.505 | J12: 13.505 | K12: 13.505 | L12: 13.505 | M12: 22.55 | N12: 22.55 | O12: 4.85 | P12: 4.85 | Q12: 12.7 | R12: 12.7 | T12: 2008 | U12: 0.01 | V12: 0.01 | W12: 0.9 | X12: 0.9 | Y12: 0.01 | Z12: 0.01 | AA12: 0.01 | AB12: 0.01 | AC12: 0.93 | AD12: 0.93 | AF12: 7144734 | AG12: 7144734 | AH12: 535 | AI12: 535
B13: 2009 | E13: 15.3 | F13: 15.3 | G13: 13.505 | H13: 13.505 | I13: 13.505 | J13: 13.505 | K13: 13.505 | L13: 13.505 | M13: 36.2 | N13: 36.2 | O13: 21.505 | P13: 21.505 | Q13: 19.5 | R13: 19.5 | T13: 2009 | U13: 0.01 | V13: 0.01 | W13: 0.9 | X13: 0.9 | Y13: 0.01 | Z13: 0.01 | AA13: 0.01 | AB13: 0.01 | AC13: 0.93 | AD13: 0.93 | AF13: 7144734 | AG13: 7144734 | AH13: 535 | AI13: 535
B14: 2010 | E14: 15.7 | F14: 15.7 | G14: 13.505 | H14: 13.505 | I14: 13.505 | J14: 13.505 | K14: 13.505 | L14: 13.505 | M14: 16.5 | N14: 16.5 | O14: 16.5 | P14: 16.5 | Q14: 17 | R14: 17 | T14: 2010 | U14: 0.01 | V14: 0.01 | W14: 0.9 | X14: 0.9 | Y14: 0.01 | Z14: 0.01 | AA14: 0.01 | AB14: 0.01 | AC14: 0.93 | AD14: 0.93 | AF14: 7144734 | AG14: 7144734 | AH14: 535 | AI14: 535
B15: 2011 | E15: 15.5 | F15: 15.5 | G15: 13.505 | H15: 13.505 | I15: 13.505 | J15: 13.505 | K15: 13.505 | L15: 13.505 | M15: 15.1 | N15: 15.1 | O15: 16.2 | P15: 16.2 | Q15: 15.1 | R15: 15.1 | T15: 2011 | U15: 0.01 | V15: 0.01 | W15: 0.9 | X15: 0.9 | Y15: 0.01 | Z15: 0.01 | AA15: 0.01 | AB15: 0.01 | AC15: 0.93 | AD15: 0.93 | AF15: 7144734 | AG15: 7144734 | AH15: 535 | AI15: 535
B16: 2012 | E16: 15.9 | F16: 15.9 | G16: 13.505 | H16: 13.505 | I16: 13.505 | J16: 13.505 | K16: 13.505 | L16: 13.505 | M16: 13.9 | N16: 13.9 | O16: 21.505 | P16: 21.505 | Q16: 13 | R16: 13 | T16: 2012 | U16: 0.01 | V16: 0.01 | W16: 0.9 | X16: 0.9 | Y16: 0.01 | Z16: 0.01 | AA16: 0.01 | AB16: 0.01 | AC16: 0.93 | AD16: 0.93 | AF16: 7144734 | AG16: 7144734 | AH16: 535 | AI16: 535
B17: 2013 | E17: 14.9 | F17: 14.9 | G17: 13.505 | H17: 13.505 | I17: 13.505 | J17: 13.505 | K17: 13.505 | L17: 13.505 | M17: 14.7 | N17: 14.7 | O17: 19.7 | P17: 19.7 | Q17: 14.1 | R17: 14.1 | T17: 2013 | U17: 0.01 | V17: 0.01 | W17: 0.9 | X17: 0.9 | Y17: 0.01 | Z17: 0.01 | AA17: 0.01 | AB17: 0.01 | AC17: 0.93 | AD17: 0.93 | AF17: 7144734 | AG17: 7144734 | AH17: 535 | AI17: 535
B18: 2015 | E18: 14.9 | F18: 14.9 | G18: 13.505 | H18: 13.505 | I18: 13.505 | J18: 13.505 | K18: 13.505 | L18: 13.505 | M18: 14.7 | N18: 14.7 | O18: 19.7 | P18: 19.7 | Q18: 14.1 | R18: 14.1 | T18: 2015 | U18: 0.01 | V18: 0.01 | W18: 0.9 | X18: 0.9 | Y18: 0.01 | Z18: 0.01 | AA18: 0.01 | AB18: 0.01 | AC18: 0.93 | AD18: 0.93 | AF18: 7144734 | AG18: 7144734 | AH18: 535 | AI18: 535
B19: 2016 | E19: 14.9 | F19: 14.9 | G19: 13.505 | H19: 13.505 | I19: 13.505 | J19: 13.505 | K19: 13.505 | L19: 13.505 | M19: 14.7 | N19: 14.7 | O19: 19.7 | P19: 19.7 | Q19: 14.1 | R19: 14.1 | T19: 2016 | U19: 0.01 | V19: 0.01 | W19: 0.9 | X19: 0.9 | Y19: 0.01 | Z19: 0.01 | AA19: 0.01 | AB19: 0.01 | AC19: 0.93 | AD19: 0.93 | AF19: 7144734 | AG19: 7144734 | AH19: 535 | AI19: 535
B20: 2017 | E20: 14.9 | F20: 14.9 | G20: 13.505 | H20: 13.505 | I20: 13.505 | J20: 13.505 | K20: 13.505 | L20: 13.505 | M20: 14.7 | N20: 14.7 | O20: 19.7 | P20: 19.7 | Q20: 14.1 | R20: 14.1 | T20: 2017 | U20: 0.01 | V20: 0.01 | W20: 0.9 | X20: 0.9 | Y20: 0.01 | Z20: 0.01 | AA20: 0.01 | AB20: 0.01 | AC20: 0.93 | AD20: 0.93 | AF20: 7144734 | AG20: 7144734 | AH20: 535 | AI20: 535
B21: 2018 | E21: 14.9 | F21: 14.9 | G21: 13.505 | H21: 13.505 | I21: 13.505 | J21: 13.505 | K21: 13.505 | L21: 13.505 | M21: 14.7 | N21: 14.7 | O21: 19.7 | P21: 19.7 | Q21: 14.1 | R21: 14.1 | T21: 2018 | U21: 0.01 | V21: 0.01 | W21: 0.9 | X21: 0.9 | Y21: 0.01 | Z21: 0.01 | AA21: 0.01 | AB21: 0.01 | AC21: 0.93 | AD21: 0.93 | AF21: 7144734 | AG21: 7144734 | AH21: 535 | AI21: 535
B22: Scenario-wise analysis | E22: 14.9 | F22: 14.9 | G22: 13.505 | H22: 13.505 | I22: 13.505 | J22: 13.505 | K22: 13.505 | L22: 13.505 | M22: 14.7 | N22: 14.7 | O22: 19.7 | P22: 19.7 | Q22: 14.1 | R22: 14.1 | T22: 2020 | U22: 0.01 | V22: 0.01 | W22: 0.9 | X22: 0.9 | Y22: 0.01 | Z22: 0.01 | AA22: 0.01 | AB22: 0.01 | AC22: 0.93 | AD22: 0.93 | AF22: 7144734 | AG22: 7144734 | AH22: 535 | AI22: 535
B23: 2025 | E23: 14.9 | F23: 14.9 | G23: 13.505 | H23: 13.505 | I23: 13.505 | J23: 13.505 | K23: 13.505 | L23: 13.505 | M23: 14.7 | N23: 14.7 | O23: 19.7 | P23: 19.7 | Q23: 14.1 | R23: 14.1 | T23: 2025 | U23: 0.01 | V23: 0.01 | W23: 0.9 | X23: 0.9 | Y23: 0.01 | Z23: 0.01 | AA23: 0.01 | AB23: 0.01 | AC23: 0.93 | AD23: 0.93 | AF23: 7144734 | AG23: 7144734 | AH23: 535 | AI23: 535
B24: 2030 | E24: 14.9 | F24: 14.9 | G24: 13.505 | H24: 13.505 | I24: 13.505 | J24: 13.505 | K24: 13.505 | L24: 13.505 | M24: 14.7 | N24: 14.7 | O24: 19.7 | P24: 19.7 | Q24: 14.1 | R24: 14.1 | T24: 2030 | U24: 0.01 | V24: 0.01 | W24: 0.9 | X24: 0.9 | Y24: 0.01 | Z24: 0.01 | AA24: 0.01 | AB24: 0.01 | AC24: 0.93 | AD24: 0.93 | AF24: 7144734 | AG24: 7144734 | AH24: 535 | AI24: 535
B25: 2035 | E25: 14.9 | F25: 14.9 | G25: 13.505 | H25: 13.505 | I25: 13.505 | J25: 13.505 | K25: 13.505 | L25: 13.505 | M25: 14.7 | N25: 14.7 | O25: 19.7 | P25: 19.7 | Q25: 14.1 | R25: 14.1 | T25: 2035 | U25: 0.01 | V25: 0.01 | W25: 0.9 | X25: 0.9 | Y25: 0.01 | Z25: 0.01 | AA25: 0.01 | AB25: 0.01 | AC25: 0.93 | AD25: 0.93 | AF25: 7144734 | AG25: 7144734 | AH25: 535 | AI25: 535
A26: 5 | B26: 2040 | E26: 14.9 | F26: 14.9 | G26: 13.505 | H26: 13.505 | I26: 13.505 | J26: 13.505 | K26: 13.505 | L26: 13.505 | M26: 14.7 | N26: 14.7 | O26: 19.7 | P26: 19.7 | Q26: 14.1 | R26: 14.1 | T26: 2040 | U26: 0.01 | V26: 0.01 | W26: 0.9 | X26: 0.9 | Y26: 0.01 | Z26: 0.01 | AA26: 0.01 | AB26: 0.01 | AC26: 0.93 | AD26: 0.93 | AF26: 7144734 | AG26: 7144734 | AH26: 535 | AI26: 535
B27: 2045 | E27: 14.9 | F27: 14.9 | G27: 13.505 | H27: 13.505 | I27: 13.505 | J27: 13.505 | K27: 13.505 | L27: 13.505 | M27: 14.7 | N27: 14.7 | O27: 19.7 | P27: 19.7 | Q27: 14.1 | R27: 14.1 | T27: 2045 | U27: 0.01 | V27: 0.01 | W27: 0.9 | X27: 0.9 | Y27: 0.01 | Z27: 0.01 | AA27: 0.01 | AB27: 0.01 | AC27: 0.93 | AD27: 0.93 | AF27: 7144734 | AG27: 7144734 | AH27: 535 | AI27: 535
B28: 2050 | E28: 14.9 | F28: 14.9 | G28: 13.505 | H28: 13.505 | I28: 13.505 | J28: 13.505 | K28: 13.505 | L28: 13.505 | M28: 14.7 | N28: 14.7 | O28: 19.7 | P28: 19.7 | Q28: 14.1 | R28: 14.1 | T28: 2050 | U28: 0.01 | V28: 0.01 | W28: 0.9 | X28: 0.9 | Y28: 0.01 | Z28: 0.01 | AA28: 0.01 | AB28: 0.01 | AC28: 0.93 | AD28: 0.93 | AF28: 7144734 | AG28: 7144734 | AH28: 535 | AI28: 535
B31: B. PARAMETERS USED TO CALCULATE EMISSION FACTORS
F32: Maximum methane producing capacity, kgCH4/kgBOD | H32: Methan correction factor for each teatment system, MCF | J32: Emission Factor, EF, kgCH4/kgBOD | O32: GWP
F33: TNC | G33: User Defined | H33: TNC | I33: User Defined | J33: TNC | K33: User Defined | O33: TNC | P33: USER
B34: Anaerobic digester for sludge | F34: 0.6 | G34: 0.6 | H34: 0.8 | I34: 0.8 | J34: 0.48 | K34: =G34*I34 -> 0.48 | N34: CH4 | O34: 25 | P34: 25
B35: Septic system | F35: 0.6 | G35: 0.6 | H35: 0.5 | I35: 0.5 | J35: 0.3 | K35: =G35*I35 -> 0.3 | N35: N2O | O35: 298 | P35: 298
B36: Latrine | F36: 0.6 | G36: 0.6 | H36: 0.1 | I36: 0.1 | J36: 0.06 | K36: 0.06
B37: Centralised aerobic system | F37: 0.6 | G37: 0.6 | H37: 0 | I37: 0 | J37: 0 | K37: 0
B40: PARAMETERS FOR SCENARIO 1
E41: A. PARAMETERS USED TO CALCULATE ORGANICALLY DEGRADABLE MATERIAL IN WASTEWATER (TOW) | U41: C. PARAMETERS USED TO CALCULATE THE DEGREE OF UTILISATION OF THE DIFFERENT TREATMENT SYSTEMS BELOW, Tij | AF41: D. SLUDGE REMOVED AND METHANE RECOVERED
E42: Sewered Plaines Wilhems | G42: Absorption pit | I42: Septic tank | K42: Pit latrine | M42: Sewered PL and Pte aux Sables | O42: 5 CHA estates | Q42: Grand Baie | U42: Anaerobic digester for sludge | W42: Septic system | Y42: latrine | AA42: centralized aerobic treatment | AC42: TOTAL | AF42: Sludge removed | AH42: Methane recovered
E43: TNC | F43: User Defined | G43: TNC | H43: User Defined | I43: TNC | J43: User Defined | K43: TNC | L43: User Defined | M43: TNC | N43: User Defined | O43: TNC | P43: User Defined | Q43: TNC | R43: User Defined | U43: TNC | V43: User Defined | W43: TNC | X43: User Defined | Y43: TNC | Z43: User Defined | AA43: TNC | AB43: User Defined | AC43: TNC | AD43: User Defined | AF43: TNC | AG43: User Defined | AH43: TNC | AI43: User Defined
C44: Industrial BOD in sewer | E44: 1.25 | F44: 1.25 | G44: 1 | H44: 1 | I44: 1 | J44: 1 | K44: 1 | L44: 1 | M44: 1.25 | N44: 1.25 | O44: 1.25 | P44: 1.25 | Q44: 1 | R44: 1
B45: 2006 | C45: BOD, kgBOD/Cap/yr | E45: 8.2 | F45: 8.2 | G45: 13.505 | H45: 13.505 | I45: 13.505 | J45: 13.505 | K45: 13.505 | L45: 13.505 | M45: 14 | N45: 14 | O45: 13.7 | P45: 13.7 | Q45: 8.1 | R45: 8.1 | T45: 2006 | U45: 0.02 | V45: 0.02 | W45: 0.9 | X45: 0.9 | Y45: 0.05 | Z45: 0.05 | AA45: 0.03 | AB45: 0.03 | AC45: =U45+W45+Y45+AA45 -> 1 | AD45: =V45+X45+Z45+AB45 -> 1 | AF45: 171397 | AG45: 171397
B46: 2007 | E46: 9.5 | F46: 9.5 | G46: 13.505 | H46: 13.505 | I46: 13.505 | J46: 13.505 | K46: 13.505 | L46: 13.505 | M46: 15.3 | N46: 15.3 | O46: 6.9 | P46: 6.9 | Q46: 11.5 | R46: 11.5 | T46: 2007 | U46: 0.02 | V46: 0.02 | W46: 0.9 | X46: 0.9 | Y46: 0.05 | Z46: 0.05 | AA46: 0.03 | AB46: 0.03 | AC46: =U46+W46+Y46+AA46 -> 1 | AD46: 1 | AF46: 193707 | AG46: 193707
B47: 2008 | E47: 13.3 | F47: 13.3 | G47: 13.505 | H47: 13.505 | I47: 13.505 | J47: 13.505 | K47: 13.505 | L47: 13.505 | M47: 22.55 | N47: 22.55 | O47: 4.85 | P47: 4.85 | Q47: 12.7 | R47: 12.7 | T47: 2008 | U47: 0.01 | V47: 0.01 | W47: 0.9 | X47: 0.9 | Y47: 0.01 | Z47: 0.01 | AA47: 0.01 | AB47: 0.01 | AC47: 0.93 | AD47: 0.93 | AF47: 7144734 | AG47: 7144734 | AH47: 535 | AI47: 535
B48: 2009 | E48: 15.3 | F48: 15.3 | G48: 13.505 | H48: 13.505 | I48: 13.505 | J48: 13.505 | K48: 13.505 | L48: 13.505 | M48: 36.2 | N48: 36.2 | O48: 21.505 | P48: 21.505 | Q48: 19.5 | R48: 19.5 | T48: 2009 | U48: 0.01 | V48: 0.01 | W48: 0.9 | X48: 0.9 | Y48: 0.01 | Z48: 0.01 | AA48: 0.01 | AB48: 0.01 | AC48: 0.93 | AD48: 0.93 | AF48: 7144734 | AG48: 7144734 | AH48: 535 | AI48: 535
B49: 2010 | E49: 15.7 | F49: 15.7 | G49: 13.505 | H49: 13.505 | I49: 13.505 | J49: 13.505 | K49: 13.505 | L49: 13.505 | M49: 16.5 | N49: 16.5 | O49: 16.5 | P49: 16.5 | Q49: 17 | R49: 17 | T49: 2010 | U49: 0.01 | V49: 0.01 | W49: 0.9 | X49: 0.9 | Y49: 0.01 | Z49: 0.01 | AA49: 0.01 | AB49: 0.01 | AC49: 0.93 | AD49: 0.93 | AF49: 7144734 | AG49: 7144734 | AH49: 535 | AI49: 535
B50: 2011 | E50: 15.5 | F50: 15.5 | G50: 13.505 | H50: 13.505 | I50: 13.505 | J50: 13.505 | K50: 13.505 | L50: 13.505 | M50: 15.1 | N50: 15.1 | O50: 16.2 | P50: 16.2 | Q50: 15.1 | R50: 15.1 | T50: 2011 | U50: 0.01 | V50: 0.01 | W50: 0.9 | X50: 0.9 | Y50: 0.01 | Z50: 0.01 | AA50: 0.01 | AB50: 0.01 | AC50: 0.93 | AD50: 0.93 | AF50: 7144734 | AG50: 7144734 | AH50: 535 | AI50: 535
B51: 2012 | E51: 15.9 | F51: 15.9 | G51: 13.505 | H51: 13.505 | I51: 13.505 | J51: 13.505 | K51: 13.505 | L51: 13.505 | M51: 13.9 | N51: 13.9 | O51: 21.505 | P51: 21.505 | Q51: 13 | R51: 13 | T51: 2012 | U51: 0.01 | V51: 0.01 | W51: 0.9 | X51: 0.9 | Y51: 0.01 | Z51: 0.01 | AA51: 0.01 | AB51: 0.01 | AC51: 0.93 | AD51: 0.93 | AF51: 7144734 | AG51: 7144734 | AH51: 535 | AI51: 535
B52: 2013 | E52: 14.9 | F52: 14.9 | G52: 13.505 | H52: 13.505 | I52: 13.505 | J52: 13.505 | K52: 13.505 | L52: 13.505 | M52: 14.7 | N52: 14.7 | O52: 19.7 | P52: 19.7 | Q52: 14.1 | R52: 14.1 | T52: 2013 | U52: 0.01 | V52: 0.01 | W52: 0.9 | X52: 0.9 | Y52: 0.01 | Z52: 0.01 | AA52: 0.01 | AB52: 0.01 | AC52: 0.93 | AD52: 0.93 | AF52: 7144734 | AG52: 7144734 | AH52: 535 | AI52: 535
B53: 2015 | E53: 14.9 | F53: 14.9 | G53: 13.505 | H53: 13.505 | I53: 13.505 | J53: 13.505 | K53: 13.505 | L53: 13.505 | M53: 14.7 | N53: 14.7 | O53: 19.7 | P53: 19.7 | Q53: 14.1 | R53: 14.1 | T53: 2015 | U53: 0.01 | V53: 0.01 | W53: 0.73 | X53: 0.73 | Y53: 0.01 | Z53: 0.01 | AA53: 0.25 | AB53: 0.25 | AC53: 1 | AD53: 1 | AF53: 8825847.882 | AG53: 8825847.882 | AH53: 535 | AI53: 535
B54: 2016 | E54: 14.9 | F54: 14.9 | G54: 13.505 | H54: 13.505 | I54: 13.505 | J54: 13.505 | K54: 13.505 | L54: 13.505 | M54: 14.7 | N54: 14.7 | O54: 19.7 | P54: 19.7 | Q54: 14.1 | R54: 14.1 | T54: 2016 | U54: 0.01 | V54: 0.01 | W54: 0.6967 | X54: 0.6967 | Y54: 0.01 | Z54: 0.01 | AA54: 0.2833 | AB54: 0.2833 | AC54: 1 | AD54: 1 | AF54: 9666404.824 | AG54: 9666404.824 | AH54: 535 | AI54: 535
B55: 2017 | E55: 14.9 | F55: 14.9 | G55: 13.505 | H55: 13.505 | I55: 13.505 | J55: 13.505 | K55: 13.505 | L55: 13.505 | M55: 14.7 | N55: 14.7 | O55: 19.7 | P55: 19.7 | Q55: 14.1 | R55: 14.1 | T55: 2017 | U55: 0.01 | V55: 0.01 | W55: 0.6633 | X55: 0.6633 | Y55: 0.01 | Z55: 0.01 | AA55: 0.3167 | AB55: 0.3167 | AC55: 1 | AD55: 1 | AF55: 10506961.76 | AG55: 10506961.76 | AH55: 535 | AI55: 535
B56: 2018 | E56: 14.9 | F56: 14.9 | G56: 13.505 | H56: 13.505 | I56: 13.505 | J56: 13.505 | K56: 13.505 | L56: 13.505 | M56: 14.7 | N56: 14.7 | O56: 19.7 | P56: 19.7 | Q56: 14.1 | R56: 14.1 | T56: 2018 | U56: 0.01 | V56: 0.01 | W56: 0.63 | X56: 0.63 | Y56: 0.01 | Z56: 0.01 | AA56: 0.35 | AB56: 0.35 | AC56: 1 | AD56: 1 | AF56: 11347518.71 | AG56: 11347518.71 | AH56: 535 | AI56: 535
B57: 2020 | E57: 14.9 | F57: 14.9 | G57: 13.505 | H57: 13.505 | I57: 13.505 | J57: 13.505 | K57: 13.505 | L57: 13.505 | M57: 14.7 | N57: 14.7 | O57: 19.7 | P57: 19.7 | Q57: 14.1 | R57: 14.1 | T57: 2020 | U57: 0.01 | V57: 0.01 | W57: 0.5633 | X57: 0.5633 | Y57: 0.01 | Z57: 0.01 | AA57: 0.4167 | AB57: 0.4167 | AC57: 1 | AD57: 1 | AF57: 13028632.59 | AG57: 13028632.59 | AH57: 535 | AI57: 535
B58: 2025 | E58: 14.9 | F58: 14.9 | G58: 13.505 | H58: 13.505 | I58: 13.505 | J58: 13.505 | K58: 13.505 | L58: 13.505 | M58: 14.7 | N58: 14.7 | O58: 19.7 | P58: 19.7 | Q58: 14.1 | R58: 14.1 | T58: 2025 | U58: 0.01 | V58: 0.01 | W58: 0.4067 | X58: 0.4067 | Y58: 0 | Z58: 0 | AA58: 0.5833 | AB58: 0.5833 | AC58: 1 | AD58: 1 | AF58: 17231417.29 | AG58: 17231417.29 | AH58: 535 | AI58: 535
B59: 2030 | E59: 14.9 | F59: 14.9 | G59: 13.505 | H59: 13.505 | I59: 13.505 | J59: 13.505 | K59: 13.505 | L59: 13.505 | M59: 14.7 | N59: 14.7 | O59: 19.7 | P59: 19.7 | Q59: 14.1 | R59: 14.1 | T59: 2030 | U59: 0.01 | V59: 0.01 | W59: 0.24 | X59: 0.24 | Y59: 0 | Z59: 0 | AA59: 0.75 | AB59: 0.75 | AC59: 1 | AD59: 1 | AF59: 21434202 | AG59: 21434202 | AH59: 535 | AI59: 535
B60: 2035 | E60: 14.9 | F60: 14.9 | G60: 13.505 | H60: 13.505 | I60: 13.505 | J60: 13.505 | K60: 13.505 | L60: 13.505 | M60: 14.7 | N60: 14.7 | O60: 19.7 | P60: 19.7 | Q60: 14.1 | R60: 14.1 | T60: 2035 | U60: 0.01 | V60: 0.01 | W60: 0.19 | X60: 0.19 | Y60: 0 | Z60: 0 | AA60: 0.8 | AB60: 0.8 | AC60: 1 | AD60: 1 | AF60: 22863148.8 | AG60: 22863148.8 | AH60: 535 | AI60: 535
B61: 2040 | E61: 14.9 | F61: 14.9 | G61: 13.505 | H61: 13.505 | I61: 13.505 | J61: 13.505 | K61: 13.505 | L61: 13.505 | M61: 14.7 | N61: 14.7 | O61: 19.7 | P61: 19.7 | Q61: 14.1 | R61: 14.1 | T61: 2040 | U61: 0.01 | V61: 0.01 | W61: 0.175 | X61: 0.175 | Y61: 0 | Z61: 0 | AA61: 0.815 | AB61: 0.815 | AC61: 1 | AD61: 1 | AF61: 23339464.4 | AG61: 23339464.4 | AH61: 535 | AI61: 535
B62: 2045 | E62: 14.9 | F62: 14.9 | G62: 13.505 | H62: 13.505 | I62: 13.505 | J62: 13.505 | K62: 13.505 | L62: 13.505 | M62: 14.7 | N62: 14.7 | O62: 19.7 | P62: 19.7 | Q62: 14.1 | R62: 14.1 | T62: 2045 | U62: 0.01 | V62: 0.01 | W62: 0.16 | X62: 0.16 | Y62: 0 | Z62: 0 | AA62: 0.83 | AB62: 0.83 | AC62: 1 | AD62: 1 | AF62: 23815780 | AG62: 23815780 | AH62: 535 | AI62: 535
B63: 2050 | E63: 14.9 | F63: 14.9 | G63: 13.505 | H63: 13.505 | I63: 13.505 | J63: 13.505 | K63: 13.505 | L63: 13.505 | M63: 14.7 | N63: 14.7 | O63: 19.7 | P63: 19.7 | Q63: 14.1 | R63: 14.1 | T63: 2050 | U63: 0.01 | V63: 0.01 | W63: 0.14 | X63: 0.14 | Y63: 0 | Z63: 0 | AA63: 0.85 | AB63: 0.85 | AC63: 1 | AD63: 1 | AF63: 24292095.6 | AG63: 24292095.6 | AH63: 535 | AI63: 535
B66: B. PARAMETERS USED TO CALCULATE EMISSION FACTORS
F67: Maximum methane producing capacity, kgCH4/kgBOD | H67: Methan correction factor for each teatment system, MCF | J67: Emission Factor, EF, kgCH4/kgBOD | O67: GWP
F68: TNC | G68: User Defined | H68: TNC | I68: User Defined | J68: TNC | K68: User Defined | O68: TNC | P68: User
B69: Anaerobic digester for sludge | F69: 0.6 | G69: 0.6 | H69: 0.8 | I69: 0.8 | J69: 0.48 | K69: =G69*I69 -> 0.48 | N69: CH4 | O69: 25 | P69: =P34 -> 25
B70: Septic system | F70: 0.6 | G70: 0.6 | H70: 0.5 | I70: 0.5 | J70: 0.3 | K70: =G70*I70 -> 0.3 | N70: N2O | O70: 298 | P70: =P35 -> 298
B71: Latrine | F71: 0.6 | G71: 0.6 | H71: 0.1 | I71: 0.1 | J71: 0.06 | K71: 0.06
B72: Centralised aerobic system | F72: 0.6 | G72: 0.6 | H72: 0 | I72: 0 | J72: 0 | K72: 0
B79: PART II: N20 CALCULATION PARAMETERS
D82: BAU | F82: Constants
D84: Fnpr, kgN/kgprot | F84: Fnon-con protein | H84: Frac, industrial+commer | J84: Nremoved sludge, kg | L84: EF, kgN2O-N/kgN | N84: Emission Wwplant, KgN2O/yr | P84: N2 to N2O
D85: User defined | E85: TNC | F85: User defined | G85: TNC | H85: User defined | I85: TNC | J85: User defined | K85: TNC | L85: User defined | M85: TNC | N85: User defined | O85: TNC | P85: User defined | Q85: TNC
D86: 0.16 | E86: 0.16 | F86: 1.4 | G86: 1.4 | H86: 1.25 | I86: 1.25 | J86: 0 | K86: 0 | L86: 0.005 | M86: 0.005 | N86: 0 | O86: 0 | P86: =44/28 -> 1.571428571 | Q86: =44/28 -> 1.571428571
D88: Protein intake per capita, kg/cap/yr
E89: User defined | F89: TNC
D90: average | E90: =AVERAGE('TNC BAU'!D54:D61) -> 26.48125 | F90: 26.48125
D91: median | E91: =MEDIAN('TNC BAU'!D54:D61) -> 26.685 | F91: 26.685
D92: highest | E92: =MAX('TNC BAU'!D54:D61) -> 27.32 | F92: 27.32
D93: used | E93: =E92 -> 27.32 | F93: 27.32
D97: SC1 | F97: Constants
D98: Fnpr, kgN/kgprot | F98: Fnon-con protein | H98: Frac, industrial+commer | J98: Nremoved sludge, kg | L98: EF, kgN2O-N/kgN | N98: Emission Wwplant, KgN2O/yr | P98: N2 to N2O
D99: User defined | E99: TNC | F99: User defined | G99: TNC | H99: User defined | I99: TNC | J99: User defined | K99: TNC | L99: User defined | M99: TNC | N99: User defined | O99: TNC | P99: User defined | Q99: TNC
D100: 0.16 | E100: 0.16 | F100: 1.4 | G100: 1.4 | H100: 1.25 | I100: 1.25 | J100: 0 | K100: 0 | L100: 0.005 | M100: 0.005 | N100: 0 | O100: 0 | P100: =44/28 -> 1.571428571 | Q100: =44/28 -> 1.571428571
D102: Protein intake per capita, kg/cap/yr
E103: User defined | F103: TNC
D104: average | E104: =AVERAGE('TNC BAU'!K53:K60) -> 26.36142857 | F104: 26.48125
D105: median | E105: =MEDIAN('TNC BAU'!K53:K60) -> 26.56 | F105: 26.685
D106: highest | E106: =MAX('TNC BAU'!K53:K60) -> 27.32 | F106: 27.32
D107: used | E107: =E106 -> 27.32 | F107: 27.32
N145: Kg BOD DoMBAU/yr
B146: Year | C146: Tij, utilization fraction (Domestic BAU) | G146: Sludge removed, kg BOD/yr | H146: Methane captured, kgCH4/yr | M146: Year | N146: Sewered Plaines Wilhems | O146: Absorption Pit | P146: Septic Tank | Q146: Pit Latrine | R146: Sewered PL and Pte aux Sables | T146: 5 CHA estates | U146: Grand baie | V146: Total
B147: 2006 | C147: 0.02 | D147: 0.9 | E147: 0.05 | F147: 0.03 | G147: 171397 | M147: 2006 | N147: 1277047.5 | O147: 11611369.42 | P147: 1134906.18 | Q147: 598014.905 | R147: 3096100 | T147: 121758.75 | U147: 56376 | V147: =SUM(N147:U147) -> 17895572.75
B148: 2007 | C148: 0.02 | D148: 0.9 | E148: 0.05 | F148: 0.03 | G148: 193707 | M148: 2007 | N148: 1548915.625 | O148: 11682783.86 | P148: 1141874.76 | Q148: 601688.265 | R148: 3479774.625 | T148: 71699.625 | U148: 30245 | V148: =SUM(N148:U148) -> 18556981.76
B149: 2008 | C149: 0.01 | D149: 0.9 | E149: 0.01 | F149: 0.01 | G149: 7144734 | H149: 535 | M149: 2008 | N149: 2244208.75 | O149: 11758438.87 | P149: 1149275.5 | Q149: 605577.705 | R149: 5307790.812 | T149: 52161.75 | U149: 34569.4 | V149: =SUM(N149:U149) -> 21152022.78
B150: 2009 | C150: 0.01 | D150: 0.9 | E150: 0.01 | F150: 0.01 | G150: 7144734 | H150: 535 | M150: 2009 | N150: 2666235.375 | O150: 11818374.06 | P150: 1155123.165 | Q150: 608670.35 | R150: 8799767.5 | T150: 238866.7875 | U150: 54814.5 | V150: =SUM(N150:U150) -> 25341851.73
B151: 2010 | C151: 0.01 | D151: 0.9 | E151: 0.01 | F151: 0.01 | G151: 7144734 | H151: 535 | M151: 2010 | N151: 2822330.125 | O151: 11873001.78 | P151: 1160471.145 | Q151: 611479.39 | R151: 4137601.875 | T151: 189048.75 | U151: 49300 | V151: 20843233.07
B152: 2011 | C152: 0.01 | D152: 0.9 | E152: 0.01 | F152: 0.01 | G152: 7144734 | H152: 535 | M152: 2011 | N152: 2787442.5 | O152: 11682783.86 | P152: 1141874.76 | Q152: 601688.265 | R152: 3787986 | T152: 185692.5 | U152: 43805.1 | V152: 20231272.98
B153: 2012 | C153: 0.01 | D153: 0.9 | E153: 0.01 | F153: 0.01 | G153: 7144734 | H153: 535 | M153: 2012 | N153: 2939313.75 | O153: 11682783.86 | P153: 1141874.76 | Q153: 601688.265 | R153: 3584427.75 | T153: 253382.6625 | U153: 38766 | V153: 20242237.04
B154: 2013 | C154: 0.01 | D154: 0.9 | E154: 0.01 | F154: 0.01 | G154: 7144734 | H154: 535 | M154: 2013 | N154: 2828169 | O154: 11640877.84 | P154: 1137782.745 | Q154: 599527.465 | R154: 3892174.125 | T154: 238320.75 | U154: 43174.2 | V154: 20380026.12
B155: 2015 | C155: 0.01 | D155: 0.9 | E155: 0.01 | F155: 0.01 | G155: 7144734 | H155: 535 | M155: 2015 | N155: 2979550.336 | O155: 11557366.44 | P155: 1129628.043 | Q155: 595221.3849 | R155: 4100500.85 | T155: 251063.5527 | U155: 45490.72314 | V155: 20658821.33
B156: 2016 | C156: 0.01 | D156: 0.9 | E156: 0.01 | F156: 0.01 | G156: 7144734 | H156: 535 | M156: 2016 | N156: 3059292.443 | O156: 11515910.3 | P156: 1125579.915 | Q156: 593083.8089 | R156: 4210239.506 | T156: 257775.6273 | U156: 46711.13154 | V156: 20808592.73
B157: 2017 | C157: 0.01 | D157: 0.9 | E157: 0.01 | F157: 0.01 | G157: 7144734 | H157: 535 | M157: 2017 | N157: 3141168.699 | O157: 11474602.86 | P157: 1121546.295 | Q157: 590953.9095 | R157: 4322915.015 | T157: 264667.1463 | U157: 47964.28061 | V157: 20963818.2
B158: 2018 | C158: 0.01 | D158: 0.9 | E158: 0.01 | F158: 0.01 | G158: 7144734 | H158: 535 | M158: 2018 | N158: 3162185.58 | O158: 11464313.04 | P158: 1120541.503 | Q158: 590423.3468 | R158: 4351837.755 | T158: 266436.0865 | U158: 48285.97263 | V158: 21004023.28
B159: 2020 | C159: 0.01 | D159: 0.9 | E159: 0.01 | F159: 0.01 | G159: 7144734 | H159: 535 | M159: 2020 | N159: 3204500.579 | O159: 11443751.86 | P159: 1118533.72 | Q159: 589363.1743 | R159: 4410070.255 | T159: 269997.6128 | U159: 48933.67179 | V159: 21085150.87
B160: 2025 | C160: 0.01 | D160: 0.9 | E160: 0.01 | F160: 0.01 | G160: 7144734 | H160: 535 | M160: 2025 | N160: 3311703.68 | O160: 11392441.1 | P160: 1116529.535 | Q160: 586717.5021 | R160: 4557599.544 | T160: 279020.4483 | U160: 50574.64 | V160: 21294586.45
B161: 2030 | C161: 0.01 | D161: 0.9 | E161: 0.01 | F161: 0.01 | G161: 7144734 | H161: 535 | M161: 2030 | N161: 3422493.145 | O161: 11341360.4 | P161: 1114528.941 | Q161: 584083.7063 | R161: 4710064.104 | T161: 288344.8109 | U161: 52270.63731 | V161: 21513145.74
B162: 2035 | C162: 0.01 | D162: 0.9 | E162: 0.01 | F162: 0.01 | G162: 7144734 | H162: 535 | M162: 2035 | N162: 3536988.951 | O162: 11290508.73 | P162: 1112531.932 | Q162: 581461.7338 | R162: 4867629.034 | T162: 297980.7769 | U162: 54023.50912 | V162: 21741124.67
B163: 2040 | C163: 0.01 | D163: 0.9 | E163: 0.01 | F163: 0.01 | G163: 7144734 | H163: 535 | M163: 2040 | N163: 3655315.091 | O163: 11239885.07 | P163: 1110538.501 | Q163: 578851.5315 | R163: 5030464.955 | T163: 307938.7595 | U163: 55835.16268 | V163: 21978829.07
B164: 2045 | C164: 0.01 | D164: 0.9 | E164: 0.01 | F164: 0.01 | G164: 7144734 | H164: 535 | M164: 2045 | N164: 3777599.704 | O164: 11189488.39 | P164: 1108548.642 | Q164: 576253.0464 | R164: 5198748.198 | T164: 318229.5201 | U164: 57707.56921 | V164: 22226575.07
B165: 2050 | C165: 0.01 | D165: 0.9 | E165: 0.01 | F165: 0.01 | G165: 7144734 | H165: 535 | M165: 2050 | N165: 3903975.217 | O165: 11139317.68 | P165: 1106562.348 | Q165: 573666.226 | R165: 5372660.989 | T165: 328864.1794 | U165: 59642.76603 | V165: 22484689.41
AF168: Constants
N169: Kg BOD DoMScenario 1/yr | AF169: Fnpr, kgN/kgprot | AG169: Fnon-con protein | AH169: Frac, industrial+commer | AI169: Nremoved sludge, kg | AJ169: EF, kgN2O-N/kgN | AK169: Emission Wwplant, KgN2O/yr | AL169: N2 to N2O
B170: Year | D170: Tij, utilization fraction (Domestic Scenario 1) | I170: Sludge removed, kg BOD/yr | J170: Methane captured, kgCH4/yr | M170: Year | N170: Sewered Plaines Wilhems | O170: Absorption Pit | P170: Septic Tank | Q170: Pit Latrine | R170: Sewered PL and Pte aux Sables | T170: 5 CHA estates | U170: Grand baie | V170: Total
B171: 2006 | D171: 0.02 | E171: 0.9 | F171: 0.05 | G171: 0.03 | I171: 171397 | M171: 2006 | N171: 1277047.5 | O171: 11611369.42 | P171: 1134906.18 | Q171: 598014.905 | R171: 3096100 | T171: 121758.75 | U171: 56376 | V171: =SUM(N171:U171) -> 17895572.75 | AF171: 0.16 | AG171: 1.4 | AH171: 1.25 | AI171: 0 | AJ171: 0.005 | AK171: 0 | AL171: =44/28 -> 1.571428571
B172: 2007 | C172: 1 | D172: 0.02 | E172: 0.9 | F172: 0.05 | G172: 0.03 | I172: 193707 | M172: 2007 | N172: 1548915.625 | O172: 11682783.86 | P172: 1141874.76 | Q172: 601688.265 | R172: 3479774.625 | T172: 71699.625 | U172: 30245 | V172: =SUM(N172:U172) -> 18556981.76
B173: 2008 | C173: 0.93 | D173: 0.01 | E173: 0.9 | F173: 0.01 | G173: 0.01 | I173: 7144734 | J173: 535 | M173: 2008 | N173: 2244208.75 | O173: 11758438.87 | P173: 1149275.5 | Q173: 605577.705 | R173: 5307790.812 | T173: 52161.75 | U173: 34569.4 | V173: 21152022.78 | AF173: Protein intake per capita, kg/cap/yr
B174: 2009 | C174: 0.93 | D174: 0.01 | E174: 0.9 | F174: 0.01 | G174: 0.01 | I174: 7144734 | J174: 535 | M174: 2009 | N174: 2666235.375 | O174: 11818374.06 | P174: 1155123.165 | Q174: 608670.35 | R174: 8799767.5 | T174: 238866.7875 | U174: 54814.5 | V174: 25341851.73 | AF174: average | AG174: =AVERAGE('TNC BAU'!D132:D139) -> 26.48125
B175: 2010 | C175: 0.93 | D175: 0.01 | E175: 0.9 | F175: 0.01 | G175: 0.01 | I175: 7144734 | J175: 535 | M175: 2010 | N175: 2822330.125 | O175: 11873001.78 | P175: 1160471.145 | Q175: 611479.39 | R175: 4137601.875 | T175: 189048.75 | U175: 49300 | V175: 20843233.07 | AF175: median | AG175: =MEDIAN('TNC BAU'!D132:D139) -> 26.685
B176: 2011 | C176: 0.93 | D176: 0.01 | E176: 0.9 | F176: 0.01 | G176: 0.01 | I176: 7144734 | J176: 535 | M176: 2011 | N176: 2787442.5 | O176: 11682783.86 | P176: 1141874.76 | Q176: 601688.265 | R176: 3787986 | T176: 185692.5 | U176: 43805.1 | V176: 20231272.98 | AF176: highest | AG176: =MAX('TNC BAU'!D132:D139) -> 27.32
B177: 2012 | C177: 0.93 | D177: 0.01 | E177: 0.9 | F177: 0.01 | G177: 0.01 | I177: 7144734 | J177: 535 | M177: 2012 | N177: 2939313.75 | O177: 11682783.86 | P177: 1141874.76 | Q177: 601688.265 | R177: 3584427.75 | T177: 253382.6625 | U177: 38766 | V177: 20242237.04 | AF177: used | AG177: =AG176 -> 27.32
B178: 2013 | C178: 0.93 | D178: 0.01 | E178: 0.9 | F178: 0.01 | G178: 0.01 | I178: 7144734 | J178: 535 | M178: 2013 | N178: 2828169 | O178: 11640877.84 | P178: 1137782.745 | Q178: 599527.465 | R178: 3892174.125 | T178: 238320.75 | U178: 43174.2 | V178: 20380026.12
B179: 2015 | C179: 1 | D179: 0.01 | E179: 0.73 | F179: 0.01 | G179: 0.25 | H179: 840556.9412 | I179: 8825847.882 | J179: 535 | M179: 2015 | N179: 2979550.336 | O179: 11557366.44 | P179: 1129628.043 | Q179: 595221.3849 | R179: 4100500.85 | T179: 251063.5527 | U179: 45490.72314 | V179: 20658821.33
B180: 2016 | C180: 1 | D180: 0.01 | E180: 0.6967 | F180: 0.01 | G180: 0.2833 | I180: 9666404.824 | J180: 535 | M180: 2016 | N180: 3059292.443 | O180: 11515910.3 | P180: 1125579.915 | Q180: 593083.8089 | R180: 4210239.506 | T180: 257775.6273 | U180: 46711.13154 | V180: 20808592.73
B181: 2017 | C181: 1 | D181: 0.01 | E181: 0.6633 | F181: 0.01 | G181: 0.3167 | I181: 10506961.76 | J181: 535 | M181: 2017 | N181: 3141168.699 | O181: 11474602.86 | P181: 1121546.295 | Q181: 590953.9095 | R181: 4322915.015 | T181: 264667.1463 | U181: 47964.28061 | V181: 20963818.2
B182: 2018 | C182: 1 | D182: 0.01 | E182: 0.63 | F182: 0.01 | G182: 0.35 | I182: 11347518.71 | J182: 535 | M182: 2018 | N182: 3162185.58 | O182: 11464313.04 | P182: 1120541.503 | Q182: 590423.3468 | R182: 4351837.755 | T182: 266436.0865 | U182: 48285.97263 | V182: 21004023.28
B183: 2020 | C183: 1 | D183: 0.01 | E183: 0.5633 | F183: 0.01 | G183: 0.4167 | I183: 13028632.59 | J183: 535 | M183: 2020 | N183: 3204500.579 | O183: 11443751.86 | P183: 1118533.72 | Q183: 589363.1743 | R183: 4410070.255 | T183: 269997.6128 | U183: 48933.67179 | V183: 21085150.87
B184: 2025 | C184: 1 | D184: 0.01 | E184: 0.4067 | F184: 0 | G184: 0.5833 | I184: 17231417.29 | J184: 535 | M184: 2025 | N184: 3311703.68 | O184: 11392441.1 | P184: 1116529.535 | Q184: 586717.5021 | R184: 4557599.544 | T184: 279020.4483 | U184: 50574.64 | V184: 21294586.45
B185: 2030 | C185: 1 | D185: 0.01 | E185: 0.24 | F185: 0 | G185: 0.75 | I185: 21434202 | J185: 535 | M185: 2030 | N185: 3422493.145 | O185: 11341360.4 | P185: 1114528.941 | Q185: 584083.7063 | R185: 4710064.104 | T185: 288344.8109 | U185: 52270.63731 | V185: 21513145.74
B186: 2035 | C186: 1 | D186: 0.01 | E186: 0.19 | F186: 0 | G186: 0.8 | H186: 1428946.8 | I186: 22863148.8 | J186: 535 | M186: 2035 | N186: 3536988.951 | O186: 11290508.73 | P186: 1112531.932 | Q186: 581461.7338 | R186: 4867629.034 | T186: 297980.7769 | U186: 54023.50912 | V186: 21741124.67
B187: 2040 | C187: 1 | D187: 0.01 | E187: 0.175 | F187: 0 | G187: 0.815 | I187: 23339464.4 | J187: 535 | M187: 2040 | N187: 3655315.091 | O187: 11239885.07 | P187: 1110538.501 | Q187: 578851.5315 | R187: 5030464.955 | T187: 307938.7595 | U187: 55835.16268 | V187: 21978829.07
B188: 2045 | C188: 1 | D188: 0.01 | E188: 0.16 | F188: 0 | G188: 0.83 | I188: 23815780 | J188: 535 | M188: 2045 | N188: 3777599.704 | O188: 11189488.39 | P188: 1108548.642 | Q188: 576253.0464 | R188: 5198748.198 | T188: 318229.5201 | U188: 57707.56921 | V188: 22226575.07
B189: 2050 | C189: 1 | D189: 0.01 | E189: 0.14 | F189: 0 | G189: 0.85 | H189: 95263.12 | I189: 24292095.6 | J189: 535 | M189: 2050 | N189: 3903975.217 | O189: 11139317.68 | P189: 1106562.348 | Q189: 573666.226 | R189: 5372660.989 | T189: 328864.1794 | U189: 59642.76603 | V189: 22484689.41

Sheet 5. UD2 Parameters
A1: UD2 PARAMETERS | E1: Excel Toolkit for Mitigation Analysis for Low-Carbon Development Planning | P1: XLMT-Liquid Wastes v17.1
A2: This page contain values used for the Liquid Wastes Toolkit for key parameters. Parameters are values that do not change in time; the latter are in 'User Defined - UD Assumptions'.
A3: The TNC values have been used as default in this Toolkit. The Chair of the Waste:Liquid Waste Group can change these parameters against a password - provided it is justified and accepted by all parties concerned.
B5: PART I: CH4 EMISSIONS CALCULATION PARAMETERS
E6: A. PARAMETERS USED TO CALCULATE ORGANICALLY DEGRADABLE MATERIAL IN WASTEWATER (TOW) | U6: C. PARAMETERS USED TO CALCULATE THE DEGREE OF UTILISATION OF THE DIFFERENT TREATMENT SYSTEMS BELOW, Tij | AF6: D. SLUDGE REMOVED AND METHANE RECOVERED
E7: Sewered Plaines Wilhems | G7: Absorption pit | I7: Septic tank | K7: Pit latrine | M7: Sewered PL and Pte aux Sables | O7: 5 CHA estates | Q7: Grand Baie | U7: Anaerobic digester for sludge | W7: Septic system | Y7: latrine | AA7: centralized aerobic treatment | AC7: TOTAL | AF7: Sludge removed | AH7: Methane recovered
C8: BAU | E8: TNC | F8: User Defined | G8: TNC | H8: User Defined | I8: TNC | J8: User Defined | K8: TNC | L8: User Defined | M8: TNC | N8: User Defined | O8: TNC | P8: User Defined | Q8: TNC | R8: User Defined | U8: TNC | V8: User Defined | W8: TNC | X8: User Defined | Y8: TNC | Z8: User Defined | AA8: TNC | AB8: User Defined | AC8: TNC | AD8: User Defined | AF8: TNC | AG8: User Defined | AH8: TNC | AI8: User Defined
C9: Industrial BOD in sewer | E9: 1.25 | F9: 1.25 | G9: 1 | H9: 1 | I9: 1 | J9: 1 | K9: 1 | L9: 1 | M9: 1.25 | N9: 1.25 | O9: 1.25 | P9: 1.25 | Q9: 1 | R9: 1
B10: 2006 | C10: BOD, kgBOD/Cap/yr | E10: 8.2 | F10: 8.2 | G10: 13.505 | H10: 13.505 | I10: 13.505 | J10: 13.505 | K10: 13.505 | L10: 13.505 | M10: 14 | N10: 14 | O10: 13.7 | P10: 13.7 | Q10: 8.1 | R10: 8.1 | T10: 2006 | U10: 0.02 | V10: 0.02 | W10: 0.9 | X10: 0.9 | Y10: 0.05 | Z10: 0.05 | AA10: 0.03 | AB10: 0.03 | AC10: =U10+W10+Y10+AA10 -> 1 | AD10: =V10+X10+Z10+AB10 -> 1 | AF10: 171397 | AG10: 171397
B11: 2007 | E11: 9.5 | F11: 9.5 | G11: 13.505 | H11: 13.505 | I11: 13.505 | J11: 13.505 | K11: 13.505 | L11: 13.505 | M11: 15.3 | N11: 15.3 | O11: 6.9 | P11: 6.9 | Q11: 11.5 | R11: 11.5 | T11: 2007 | U11: 0.02 | V11: 0.02 | W11: 0.9 | X11: 0.9 | Y11: 0.05 | Z11: 0.05 | AA11: 0.03 | AB11: 0.03 | AC11: =U11+W11+Y11+AA11 -> 1 | AD11: 1 | AF11: 193707 | AG11: 193707
B12: 2008 | E12: 13.3 | F12: 13.3 | G12: 13.505 | H12: 13.505 | I12: 13.505 | J12: 13.505 | K12: 13.505 | L12: 13.505 | M12: 22.55 | N12: 22.55 | O12: 4.85 | P12: 4.85 | Q12: 12.7 | R12: 12.7 | T12: 2008 | U12: 0.01 | V12: 0.01 | W12: 0.9 | X12: 0.9 | Y12: 0.01 | Z12: 0.01 | AA12: 0.01 | AB12: 0.01 | AC12: 0.93 | AD12: 0.93 | AF12: 7144734 | AG12: 7144734 | AH12: 535 | AI12: 535
B13: 2009 | E13: 15.3 | F13: 15.3 | G13: 13.505 | H13: 13.505 | I13: 13.505 | J13: 13.505 | K13: 13.505 | L13: 13.505 | M13: 36.2 | N13: 36.2 | O13: 21.505 | P13: 21.505 | Q13: 19.5 | R13: 19.5 | T13: 2009 | U13: 0.01 | V13: 0.01 | W13: 0.9 | X13: 0.9 | Y13: 0.01 | Z13: 0.01 | AA13: 0.01 | AB13: 0.01 | AC13: 0.93 | AD13: 0.93 | AF13: 7144734 | AG13: 7144734 | AH13: 535 | AI13: 535
B14: 2010 | E14: 15.7 | F14: 15.7 | G14: 13.505 | H14: 13.505 | I14: 13.505 | J14: 13.505 | K14: 13.505 | L14: 13.505 | M14: 16.5 | N14: 16.5 | O14: 16.5 | P14: 16.5 | Q14: 17 | R14: 17 | T14: 2010 | U14: 0.01 | V14: 0.01 | W14: 0.9 | X14: 0.9 | Y14: 0.01 | Z14: 0.01 | AA14: 0.01 | AB14: 0.01 | AC14: 0.93 | AD14: 0.93 | AF14: 7144734 | AG14: 7144734 | AH14: 535 | AI14: 535
B15: 2011 | E15: 15.5 | F15: 15.5 | G15: 13.505 | H15: 13.505 | I15: 13.505 | J15: 13.505 | K15: 13.505 | L15: 13.505 | M15: 15.1 | N15: 15.1 | O15: 16.2 | P15: 16.2 | Q15: 15.1 | R15: 15.1 | T15: 2011 | U15: 0.01 | V15: 0.01 | W15: 0.9 | X15: 0.9 | Y15: 0.01 | Z15: 0.01 | AA15: 0.01 | AB15: 0.01 | AC15: 0.93 | AD15: 0.93 | AF15: 7144734 | AG15: 7144734 | AH15: 535 | AI15: 535
B16: 2012 | E16: 15.9 | F16: 15.9 | G16: 13.505 | H16: 13.505 | I16: 13.505 | J16: 13.505 | K16: 13.505 | L16: 13.505 | M16: 13.9 | N16: 13.9 | O16: 21.505 | P16: 21.505 | Q16: 13 | R16: 13 | T16: 2012 | U16: 0.01 | V16: 0.01 | W16: 0.9 | X16: 0.9 | Y16: 0.01 | Z16: 0.01 | AA16: 0.01 | AB16: 0.01 | AC16: 0.93 | AD16: 0.93 | AF16: 7144734 | AG16: 7144734 | AH16: 535 | AI16: 535
B17: 2013 | E17: 14.9 | F17: 14.9 | G17: 13.505 | H17: 13.505 | I17: 13.505 | J17: 13.505 | K17: 13.505 | L17: 13.505 | M17: 14.7 | N17: 14.7 | O17: 19.7 | P17: 19.7 | Q17: 14.1 | R17: 14.1 | T17: 2013 | U17: 0.01 | V17: 0.01 | W17: 0.9 | X17: 0.9 | Y17: 0.01 | Z17: 0.01 | AA17: 0.01 | AB17: 0.01 | AC17: 0.93 | AD17: 0.93 | AF17: 7144734 | AG17: 7144734 | AH17: 535 | AI17: 535
B18: 2015 | E18: 14.9 | F18: 14.9 | G18: 13.505 | H18: 13.505 | I18: 13.505 | J18: 13.505 | K18: 13.505 | L18: 13.505 | M18: 14.7 | N18: 14.7 | O18: 19.7 | P18: 19.7 | Q18: 14.1 | R18: 14.1 | T18: 2015 | U18: 0.01 | V18: 0.01 | W18: 0.9 | X18: 0.9 | Y18: 0.01 | Z18: 0.01 | AA18: 0.01 | AB18: 0.01 | AC18: 0.93 | AD18: 0.93 | AF18: 7144734 | AG18: 7144734 | AH18: 535 | AI18: 535
B19: 2016 | E19: 14.9 | F19: 14.9 | G19: 13.505 | H19: 13.505 | I19: 13.505 | J19: 13.505 | K19: 13.505 | L19: 13.505 | M19: 14.7 | N19: 14.7 | O19: 19.7 | P19: 19.7 | Q19: 14.1 | R19: 14.1 | T19: 2016 | U19: 0.01 | V19: 0.01 | W19: 0.9 | X19: 0.9 | Y19: 0.01 | Z19: 0.01 | AA19: 0.01 | AB19: 0.01 | AC19: 0.93 | AD19: 0.93 | AF19: 7144734 | AG19: 7144734 | AH19: 535 | AI19: 535
B20: 2017 | E20: 14.9 | F20: 14.9 | G20: 13.505 | H20: 13.505 | I20: 13.505 | J20: 13.505 | K20: 13.505 | L20: 13.505 | M20: 14.7 | N20: 14.7 | O20: 19.7 | P20: 19.7 | Q20: 14.1 | R20: 14.1 | T20: 2017 | U20: 0.01 | V20: 0.01 | W20: 0.9 | X20: 0.9 | Y20: 0.01 | Z20: 0.01 | AA20: 0.01 | AB20: 0.01 | AC20: 0.93 | AD20: 0.93 | AF20: 7144734 | AG20: 7144734 | AH20: 535 | AI20: 535
B21: 2018 | E21: 14.9 | F21: 14.9 | G21: 13.505 | H21: 13.505 | I21: 13.505 | J21: 13.505 | K21: 13.505 | L21: 13.505 | M21: 14.7 | N21: 14.7 | O21: 19.7 | P21: 19.7 | Q21: 14.1 | R21: 14.1 | T21: 2018 | U21: 0.01 | V21: 0.01 | W21: 0.9 | X21: 0.9 | Y21: 0.01 | Z21: 0.01 | AA21: 0.01 | AB21: 0.01 | AC21: 0.93 | AD21: 0.93 | AF21: 7144734 | AG21: 7144734 | AH21: 535 | AI21: 535
B22: Scenario-wise analysis | E22: 14.9 | F22: 14.9 | G22: 13.505 | H22: 13.505 | I22: 13.505 | J22: 13.505 | K22: 13.505 | L22: 13.505 | M22: 14.7 | N22: 14.7 | O22: 19.7 | P22: 19.7 | Q22: 14.1 | R22: 14.1 | T22: 2020 | U22: 0.01 | V22: 0.01 | W22: 0.9 | X22: 0.9 | Y22: 0.01 | Z22: 0.01 | AA22: 0.01 | AB22: 0.01 | AC22: 0.93 | AD22: 0.93 | AF22: 7144734 | AG22: 7144734 | AH22: 535 | AI22: 535
B23: 2025 | E23: 14.9 | F23: 14.9 | G23: 13.505 | H23: 13.505 | I23: 13.505 | J23: 13.505 | K23: 13.505 | L23: 13.505 | M23: 14.7 | N23: 14.7 | O23: 19.7 | P23: 19.7 | Q23: 14.1 | R23: 14.1 | T23: 2025 | U23: 0.01 | V23: 0.01 | W23: 0.9 | X23: 0.9 | Y23: 0.01 | Z23: 0.01 | AA23: 0.01 | AB23: 0.01 | AC23: 0.93 | AD23: 0.93 | AF23: 7144734 | AG23: 7144734 | AH23: 535 | AI23: 535
B24: 2030 | E24: 14.9 | F24: 14.9 | G24: 13.505 | H24: 13.505 | I24: 13.505 | J24: 13.505 | K24: 13.505 | L24: 13.505 | M24: 14.7 | N24: 14.7 | O24: 19.7 | P24: 19.7 | Q24: 14.1 | R24: 14.1 | T24: 2030 | U24: 0.01 | V24: 0.01 | W24: 0.9 | X24: 0.9 | Y24: 0.01 | Z24: 0.01 | AA24: 0.01 | AB24: 0.01 | AC24: 0.93 | AD24: 0.93 | AF24: 7144734 | AG24: 7144734 | AH24: 535 | AI24: 535
B25: 2035 | E25: 14.9 | F25: 14.9 | G25: 13.505 | H25: 13.505 | I25: 13.505 | J25: 13.505 | K25: 13.505 | L25: 13.505 | M25: 14.7 | N25: 14.7 | O25: 19.7 | P25: 19.7 | Q25: 14.1 | R25: 14.1 | T25: 2035 | U25: 0.01 | V25: 0.01 | W25: 0.9 | X25: 0.9 | Y25: 0.01 | Z25: 0.01 | AA25: 0.01 | AB25: 0.01 | AC25: 0.93 | AD25: 0.93 | AF25: 7144734 | AG25: 7144734 | AH25: 535 | AI25: 535
A26: 5 | B26: 2040 | E26: 14.9 | F26: 14.9 | G26: 13.505 | H26: 13.505 | I26: 13.505 | J26: 13.505 | K26: 13.505 | L26: 13.505 | M26: 14.7 | N26: 14.7 | O26: 19.7 | P26: 19.7 | Q26: 14.1 | R26: 14.1 | T26: 2040 | U26: 0.01 | V26: 0.01 | W26: 0.9 | X26: 0.9 | Y26: 0.01 | Z26: 0.01 | AA26: 0.01 | AB26: 0.01 | AC26: 0.93 | AD26: 0.93 | AF26: 7144734 | AG26: 7144734 | AH26: 535 | AI26: 535
B27: 2045 | E27: 14.9 | F27: 14.9 | G27: 13.505 | H27: 13.505 | I27: 13.505 | J27: 13.505 | K27: 13.505 | L27: 13.505 | M27: 14.7 | N27: 14.7 | O27: 19.7 | P27: 19.7 | Q27: 14.1 | R27: 14.1 | T27: 2045 | U27: 0.01 | V27: 0.01 | W27: 0.9 | X27: 0.9 | Y27: 0.01 | Z27: 0.01 | AA27: 0.01 | AB27: 0.01 | AC27: 0.93 | AD27: 0.93 | AF27: 7144734 | AG27: 7144734 | AH27: 535 | AI27: 535
B28: 2050 | E28: 14.9 | F28: 14.9 | G28: 13.505 | H28: 13.505 | I28: 13.505 | J28: 13.505 | K28: 13.505 | L28: 13.505 | M28: 14.7 | N28: 14.7 | O28: 19.7 | P28: 19.7 | Q28: 14.1 | R28: 14.1 | T28: 2050 | U28: 0.01 | V28: 0.01 | W28: 0.9 | X28: 0.9 | Y28: 0.01 | Z28: 0.01 | AA28: 0.01 | AB28: 0.01 | AC28: 0.93 | AD28: 0.93 | AF28: 7144734 | AG28: 7144734 | AH28: 535 | AI28: 535
B31: B. PARAMETERS USED TO CALCULATE EMISSION FACTORS
F32: Maximum methane producing capacity, kgCH4/kgBOD | H32: Methan correction factor for each teatment system, MCF | J32: Emission Factor, EF, kgCH4/kgBOD | O32: GWP
F33: TNC | G33: User Defined | H33: TNC | I33: User Defined | J33: TNC | K33: User Defined | O33: TNC | P33: USER
B34: Anaerobic digester for sludge | F34: 0.6 | G34: 0.6 | H34: 0.8 | I34: 0.8 | J34: 0.48 | K34: =G34*I34 -> 0.48 | N34: CH4 | O34: 25 | P34: 25
B35: Septic system | F35: 0.6 | G35: 0.6 | H35: 0.5 | I35: 0.5 | J35: 0.3 | K35: =G35*I35 -> 0.3 | N35: N2O | O35: 298 | P35: 298
B36: Latrine | F36: 0.6 | G36: 0.6 | H36: 0.1 | I36: 0.1 | J36: 0.06 | K36: 0.06
B37: Centralised aerobic system | F37: 0.6 | G37: 0.6 | H37: 0 | I37: 0 | J37: 0 | K37: 0
B40: PARAMETERS FOR SCENARIO 1
E41: A. PARAMETERS USED TO CALCULATE ORGANICALLY DEGRADABLE MATERIAL IN WASTEWATER (TOW) | U41: C. PARAMETERS USED TO CALCULATE THE DEGREE OF UTILISATION OF THE DIFFERENT TREATMENT SYSTEMS BELOW, Tij | AF41: D. SLUDGE REMOVED AND METHANE RECOVERED
E42: Sewered Plaines Wilhems | G42: Absorption pit | I42: Septic tank | K42: Pit latrine | M42: Sewered PL and Pte aux Sables | O42: 5 CHA estates | Q42: Grand Baie | U42: Anaerobic digester for sludge | W42: Septic system | Y42: latrine | AA42: centralized aerobic treatment | AC42: TOTAL | AF42: Sludge removed | AH42: Methane recovered
E43: TNC | F43: User Defined | G43: TNC | H43: User Defined | I43: TNC | J43: User Defined | K43: TNC | L43: User Defined | M43: TNC | N43: User Defined | O43: TNC | P43: User Defined | Q43: TNC | R43: User Defined | U43: TNC | V43: User Defined | W43: TNC | X43: User Defined | Y43: TNC | Z43: User Defined | AA43: TNC | AB43: User Defined | AC43: TNC | AD43: User Defined | AF43: TNC | AG43: User Defined | AH43: TNC | AI43: User Defined
C44: Industrial BOD in sewer | E44: 1.25 | F44: 1.25 | G44: 1 | H44: 1 | I44: 1 | J44: 1 | K44: 1 | L44: 1 | M44: 1.25 | N44: 1.25 | O44: 1.25 | P44: 1.25 | Q44: 1 | R44: 1
B45: 2006 | C45: BOD, kgBOD/Cap/yr | E45: 8.2 | F45: 8.2 | G45: 13.505 | H45: 13.505 | I45: 13.505 | J45: 13.505 | K45: 13.505 | L45: 13.505 | M45: 14 | N45: 14 | O45: 13.7 | P45: 13.7 | Q45: 8.1 | R45: 8.1 | T45: 2006 | U45: 0.02 | V45: 0.02 | W45: 0.9 | X45: 0.9 | Y45: 0.05 | Z45: 0.05 | AA45: 0.03 | AB45: 0.03 | AC45: =U45+W45+Y45+AA45 -> 1 | AD45: =V45+X45+Z45+AB45 -> 1 | AF45: 171397 | AG45: 171397
B46: 2007 | E46: 9.5 | F46: 9.5 | G46: 13.505 | H46: 13.505 | I46: 13.505 | J46: 13.505 | K46: 13.505 | L46: 13.505 | M46: 15.3 | N46: 15.3 | O46: 6.9 | P46: 6.9 | Q46: 11.5 | R46: 11.5 | T46: 2007 | U46: 0.02 | V46: 0.02 | W46: 0.9 | X46: 0.9 | Y46: 0.05 | Z46: 0.05 | AA46: 0.03 | AB46: 0.03 | AC46: =U46+W46+Y46+AA46 -> 1 | AD46: =V46+X46+Z46+AB46 -> 1 | AF46: 193707 | AG46: 193707
B47: 2008 | E47: 13.3 | F47: 13.3 | G47: 13.505 | H47: 13.505 | I47: 13.505 | J47: 13.505 | K47: 13.505 | L47: 13.505 | M47: 22.55 | N47: 22.55 | O47: 4.85 | P47: 4.85 | Q47: 12.7 | R47: 12.7 | T47: 2008 | U47: 0.01 | V47: 0.01 | W47: 0.9 | X47: 0.9 | Y47: 0.01 | Z47: 0.01 | AA47: 0.01 | AB47: 0.01 | AC47: 0.93 | AD47: 0.93 | AF47: 7144734 | AG47: 7144734 | AH47: 535 | AI47: 535
B48: 2009 | E48: 15.3 | F48: 15.3 | G48: 13.505 | H48: 13.505 | I48: 13.505 | J48: 13.505 | K48: 13.505 | L48: 13.505 | M48: 36.2 | N48: 36.2 | O48: 21.505 | P48: 21.505 | Q48: 19.5 | R48: 19.5 | T48: 2009 | U48: 0.01 | V48: 0.01 | W48: 0.9 | X48: 0.9 | Y48: 0.01 | Z48: 0.01 | AA48: 0.01 | AB48: 0.01 | AC48: 0.93 | AD48: 0.93 | AF48: 7144734 | AG48: 7144734 | AH48: 535 | AI48: 535
B49: 2010 | E49: 15.7 | F49: 15.7 | G49: 13.505 | H49: 13.505 | I49: 13.505 | J49: 13.505 | K49: 13.505 | L49: 13.505 | M49: 16.5 | N49: 16.5 | O49: 16.5 | P49: 16.5 | Q49: 17 | R49: 17 | T49: 2010 | U49: 0.01 | V49: 0.01 | W49: 0.9 | X49: 0.9 | Y49: 0.01 | Z49: 0.01 | AA49: 0.01 | AB49: 0.01 | AC49: 0.93 | AD49: 0.93 | AF49: 7144734 | AG49: 7144734 | AH49: 535 | AI49: 535
B50: 2011 | E50: 15.5 | F50: 15.5 | G50: 13.505 | H50: 13.505 | I50: 13.505 | J50: 13.505 | K50: 13.505 | L50: 13.505 | M50: 15.1 | N50: 15.1 | O50: 16.2 | P50: 16.2 | Q50: 15.1 | R50: 15.1 | T50: 2011 | U50: 0.01 | V50: 0.01 | W50: 0.9 | X50: 0.9 | Y50: 0.01 | Z50: 0.01 | AA50: 0.01 | AB50: 0.01 | AC50: 0.93 | AD50: 0.93 | AF50: 7144734 | AG50: 7144734 | AH50: 535 | AI50: 535
B51: 2012 | E51: 15.9 | F51: 15.9 | G51: 13.505 | H51: 13.505 | I51: 13.505 | J51: 13.505 | K51: 13.505 | L51: 13.505 | M51: 13.9 | N51: 13.9 | O51: 21.505 | P51: 21.505 | Q51: 13 | R51: 13 | T51: 2012 | U51: 0.01 | V51: 0.01 | W51: 0.9 | X51: 0.9 | Y51: 0.01 | Z51: 0.01 | AA51: 0.01 | AB51: 0.01 | AC51: 0.93 | AD51: 0.93 | AF51: 7144734 | AG51: 7144734 | AH51: 535 | AI51: 535
B52: 2013 | E52: 14.9 | F52: 14.9 | G52: 13.505 | H52: 13.505 | I52: 13.505 | J52: 13.505 | K52: 13.505 | L52: 13.505 | M52: 14.7 | N52: 14.7 | O52: 19.7 | P52: 19.7 | Q52: 14.1 | R52: 14.1 | T52: 2013 | U52: 0.01 | V52: 0.01 | W52: 0.9 | X52: 0.9 | Y52: 0.01 | Z52: 0.01 | AA52: 0.01 | AB52: 0.01 | AC52: 0.93 | AD52: 0.93 | AF52: 7144734 | AG52: 7144734 | AH52: 535 | AI52: 535
B53: 2015 | E53: 14.9 | F53: 14.9 | G53: 13.505 | H53: 13.505 | I53: 13.505 | J53: 13.505 | K53: 13.505 | L53: 13.505 | M53: 14.7 | N53: 14.7 | O53: 19.7 | P53: 19.7 | Q53: 14.1 | R53: 14.1 | T53: 2015 | U53: 0.01 | V53: 0.01 | W53: 0.73 | X53: 0.73 | Y53: 0.01 | Z53: 0.01 | AA53: 0.25 | AB53: 0.25 | AC53: 1 | AD53: 1 | AF53: 8825847.882 | AG53: 8825847.882 | AH53: 535 | AI53: 535
B54: 2016 | E54: 14.9 | F54: 14.9 | G54: 13.505 | H54: 13.505 | I54: 13.505 | J54: 13.505 | K54: 13.505 | L54: 13.505 | M54: 14.7 | N54: 14.7 | O54: 19.7 | P54: 19.7 | Q54: 14.1 | R54: 14.1 | T54: 2016 | U54: 0.01 | V54: 0.01 | W54: 0.6967 | X54: 0.6967 | Y54: 0.01 | Z54: 0.01 | AA54: 0.2833 | AB54: 0.2833 | AC54: 1 | AD54: 1 | AF54: 9666404.824 | AG54: 9666404.824 | AH54: 535 | AI54: 535
B55: 2017 | E55: 14.9 | F55: 14.9 | G55: 13.505 | H55: 13.505 | I55: 13.505 | J55: 13.505 | K55: 13.505 | L55: 13.505 | M55: 14.7 | N55: 14.7 | O55: 19.7 | P55: 19.7 | Q55: 14.1 | R55: 14.1 | T55: 2017 | U55: 0.01 | V55: 0.01 | W55: 0.6633 | X55: 0.6633 | Y55: 0.01 | Z55: 0.01 | AA55: 0.3167 | AB55: 0.3167 | AC55: 1 | AD55: 1 | AF55: 10506961.76 | AG55: 10506961.76 | AH55: 535 | AI55: 535
B56: 2018 | E56: 14.9 | F56: 14.9 | G56: 13.505 | H56: 13.505 | I56: 13.505 | J56: 13.505 | K56: 13.505 | L56: 13.505 | M56: 14.7 | N56: 14.7 | O56: 19.7 | P56: 19.7 | Q56: 14.1 | R56: 14.1 | T56: 2018 | U56: 0.01 | V56: 0.01 | W56: 0.63 | X56: 0.63 | Y56: 0.01 | Z56: 0.01 | AA56: 0.35 | AB56: 0.35 | AC56: 1 | AD56: 1 | AF56: 11347518.71 | AG56: 11347518.71 | AH56: 535 | AI56: 535
B57: 2020 | E57: 14.9 | F57: 14.9 | G57: 13.505 | H57: 13.505 | I57: 13.505 | J57: 13.505 | K57: 13.505 | L57: 13.505 | M57: 14.7 | N57: 14.7 | O57: 19.7 | P57: 19.7 | Q57: 14.1 | R57: 14.1 | T57: 2020 | U57: 0.01 | V57: 0.01 | W57: 0.5633 | X57: 0.5633 | Y57: 0.01 | Z57: 0.01 | AA57: 0.4167 | AB57: 0.4167 | AC57: 1 | AD57: 1 | AF57: 13028632.59 | AG57: 13028632.59 | AH57: 535 | AI57: 535
B58: 2025 | E58: 14.9 | F58: 14.9 | G58: 13.505 | H58: 13.505 | I58: 13.505 | J58: 13.505 | K58: 13.505 | L58: 13.505 | M58: 14.7 | N58: 14.7 | O58: 19.7 | P58: 19.7 | Q58: 14.1 | R58: 14.1 | T58: 2025 | U58: 0.01 | V58: 0.01 | W58: 0.4067 | X58: 0.4067 | Y58: 0 | Z58: 0 | AA58: 0.5833 | AB58: 0.5833 | AC58: 1 | AD58: 1 | AF58: 17231417.29 | AG58: 17231417.29 | AH58: 535 | AI58: 535
B59: 2030 | E59: 14.9 | F59: 14.9 | G59: 13.505 | H59: 13.505 | I59: 13.505 | J59: 13.505 | K59: 13.505 | L59: 13.505 | M59: 14.7 | N59: 14.7 | O59: 19.7 | P59: 19.7 | Q59: 14.1 | R59: 14.1 | T59: 2030 | U59: 0.01 | V59: 0.01 | W59: 0.24 | X59: 0.24 | Y59: 0 | Z59: 0 | AA59: 0.75 | AB59: 0.75 | AC59: 1 | AD59: 1 | AF59: 21434202 | AG59: 21434202 | AH59: 535 | AI59: 535
B60: 2035 | E60: 14.9 | F60: 14.9 | G60: 13.505 | H60: 13.505 | I60: 13.505 | J60: 13.505 | K60: 13.505 | L60: 13.505 | M60: 14.7 | N60: 14.7 | O60: 19.7 | P60: 19.7 | Q60: 14.1 | R60: 14.1 | T60: 2035 | U60: 0.01 | V60: 0.01 | W60: 0.19 | X60: 0.19 | Y60: 0 | Z60: 0 | AA60: 0.8 | AB60: 0.8 | AC60: 1 | AD60: 1 | AF60: 22863148.8 | AG60: 22863148.8 | AH60: 535 | AI60: 535
B61: 2040 | E61: 14.9 | F61: 14.9 | G61: 13.505 | H61: 13.505 | I61: 13.505 | J61: 13.505 | K61: 13.505 | L61: 13.505 | M61: 14.7 | N61: 14.7 | O61: 19.7 | P61: 19.7 | Q61: 14.1 | R61: 14.1 | T61: 2040 | U61: 0.01 | V61: 0.01 | W61: 0.175 | X61: 0.175 | Y61: 0 | Z61: 0 | AA61: 0.815 | AB61: 0.815 | AC61: 1 | AD61: 1 | AF61: 23339464.4 | AG61: 23339464.4 | AH61: 535 | AI61: 535
B62: 2045 | E62: 14.9 | F62: 14.9 | G62: 13.505 | H62: 13.505 | I62: 13.505 | J62: 13.505 | K62: 13.505 | L62: 13.505 | M62: 14.7 | N62: 14.7 | O62: 19.7 | P62: 19.7 | Q62: 14.1 | R62: 14.1 | T62: 2045 | U62: 0.01 | V62: 0.01 | W62: 0.16 | X62: 0.16 | Y62: 0 | Z62: 0 | AA62: 0.83 | AB62: 0.83 | AC62: 1 | AD62: 1 | AF62: 23815780 | AG62: 23815780 | AH62: 535 | AI62: 535
B63: 2050 | E63: 14.9 | F63: 14.9 | G63: 13.505 | H63: 13.505 | I63: 13.505 | J63: 13.505 | K63: 13.505 | L63: 13.505 | M63: 14.7 | N63: 14.7 | O63: 19.7 | P63: 19.7 | Q63: 14.1 | R63: 14.1 | T63: 2050 | U63: 0.01 | V63: 0.01 | W63: 0.14 | X63: 0.14 | Y63: 0 | Z63: 0 | AA63: 0.85 | AB63: 0.85 | AC63: 1 | AD63: 1 | AF63: 24292095.6 | AG63: 24292095.6 | AH63: 535 | AI63: 535
B66: B. PARAMETERS USED TO CALCULATE EMISSION FACTORS
F67: Maximum methane producing capacity, kgCH4/kgBOD | H67: Methan correction factor for each teatment system, MCF | J67: Emission Factor, EF, kgCH4/kgBOD | O67: GWP
F68: TNC | G68: User Defined | H68: TNC | I68: User Defined | J68: TNC | K68: User Defined | O68: TNC | P68: USER
B69: Anaerobic digester for sludge | F69: 0.6 | G69: 0.6 | H69: 0.8 | I69: 0.8 | J69: 0.48 | K69: =G69*I69 -> 0.48 | N69: CH4 | O69: 25 | P69: 25
B70: Septic system | F70: 0.6 | G70: 0.6 | H70: 0.5 | I70: 0.5 | J70: 0.3 | K70: =G70*I70 -> 0.3 | N70: N2O | O70: 298 | P70: 298
B71: Latrine | F71: 0.6 | G71: 0.6 | H71: 0.1 | I71: 0.1 | J71: 0.06 | K71: 0.06
B72: Centralised aerobic system | F72: 0.6 | G72: 0.6 | H72: 0 | I72: 0 | J72: 0 | K72: 0
B77: PART II: N20 CALCULATION PARAMETERS
C82: 1 | D82: BAU | F82: Constants
D84: Fnpr, kgN/kgprot | F84: Fnon-con protein | H84: Frac, industrial+commer | J84: Nremoved sludge, kg | L84: EF, kgN2O-N/kgN | N84: Emission Wwplant, KgN2O/yr | P84: N2 to N2O
D85: User defined | E85: TNC | F85: User defined | G85: TNC | H85: User defined | I85: TNC | J85: User defined | K85: TNC | L85: User defined | M85: TNC | N85: User defined | O85: TNC | P85: User defined | Q85: TNC
D86: 0.16 | E86: 0.16 | F86: 1.4 | G86: 1.4 | H86: 1.25 | I86: 1.25 | J86: 0 | K86: 0 | L86: 0.005 | M86: 0.005 | N86: 0 | O86: 0 | P86: =44/28 -> 1.571428571 | Q86: =44/28 -> 1.571428571
D88: Protein intake per capita, kg/cap/yr
E89: User defined | F89: TNC
D90: average | E90: =AVERAGE('TNC BAU'!D54:D61) -> 26.48125 | F90: 26.48125
D91: median | E91: =MEDIAN('TNC BAU'!D54:D61) -> 26.685 | F91: 26.685
D92: highest | E92: =MAX('TNC BAU'!D54:D61) -> 27.32 | F92: 27.32
D93: used | E93: =E92 -> 27.32 | F93: 27.32
C97: 2 | D97: SC1 | F97: Constants
D98: Fnpr, kgN/kgprot | F98: Fnon-con protein | H98: Frac, industrial+commer | J98: Nremoved sludge, kg | L98: EF, kgN2O-N/kgN | N98: Emission Wwplant, KgN2O/yr | P98: N2 to N2O
D99: User defined | E99: TNC | F99: User defined | G99: TNC | H99: User defined | I99: TNC | J99: User defined | K99: TNC | L99: User defined | M99: TNC | N99: User defined | O99: TNC | P99: User defined | Q99: TNC
D100: 0.16 | E100: 0.16 | F100: 1.4 | G100: 1.4 | H100: 1.25 | I100: 1.25 | J100: 0 | K100: 0 | L100: 0.005 | M100: 0.005 | N100: 0 | O100: 0 | P100: =44/28 -> 1.571428571 | Q100: =44/28 -> 1.571428571
D102: Protein intake per capita, kg/cap/yr
E103: User defined | F103: TNC
D104: average | E104: =AVERAGE('TNC BAU'!D67:D74) -> 27.32 | F104: 26.48125
D105: median | E105: =MEDIAN('TNC BAU'!D67:D74) -> 27.32 | F105: 26.685
D106: highest | E106: =MAX('TNC BAU'!D67:D74) -> 27.32 | F106: 27.32
D107: used | E107: =E106 -> 27.32 | F107: 27.32
N145: Kg BOD DoMBAU/yr
B146: Year | C146: Tij, utilization fraction (Domestic BAU) | G146: Sludge removed, kg BOD/yr | H146: Methane captured, kgCH4/yr | M146: Year | N146: Sewered Plaines Wilhems | O146: Absorption Pit | P146: Septic Tank | Q146: Pit Latrine | R146: Sewered PL and Pte aux Sables | T146: 5 CHA estates | U146: Grand baie | V146: Total
B147: 2006 | C147: 0.02 | D147: 0.9 | E147: 0.05 | F147: 0.03 | G147: 171397 | M147: 2006 | N147: 1277047.5 | O147: 11611369.42 | P147: 1134906.18 | Q147: 598014.905 | R147: 3096100 | T147: 121758.75 | U147: 56376 | V147: =SUM(N147:U147) -> 17895572.75
B148: 2007 | C148: 0.02 | D148: 0.9 | E148: 0.05 | F148: 0.03 | G148: 193707 | M148: 2007 | N148: 1548915.625 | O148: 11682783.86 | P148: 1141874.76 | Q148: 601688.265 | R148: 3479774.625 | T148: 71699.625 | U148: 30245 | V148: =SUM(N148:U148) -> 18556981.76
B149: 2008 | C149: 0.01 | D149: 0.9 | E149: 0.01 | F149: 0.01 | G149: 7144734 | H149: 535 | M149: 2008 | N149: 2244208.75 | O149: 11758438.87 | P149: 1149275.5 | Q149: 605577.705 | R149: 5307790.812 | T149: 52161.75 | U149: 34569.4 | V149: =SUM(N149:U149) -> 21152022.78
B150: 2009 | C150: 0.01 | D150: 0.9 | E150: 0.01 | F150: 0.01 | G150: 7144734 | H150: 535 | M150: 2009 | N150: 2666235.375 | O150: 11818374.06 | P150: 1155123.165 | Q150: 608670.35 | R150: 8799767.5 | T150: 238866.7875 | U150: 54814.5 | V150: =SUM(N150:U150) -> 25341851.73
B151: 2010 | C151: 0.01 | D151: 0.9 | E151: 0.01 | F151: 0.01 | G151: 7144734 | H151: 535 | M151: 2010 | N151: 2822330.125 | O151: 11873001.78 | P151: 1160471.145 | Q151: 611479.39 | R151: 4137601.875 | T151: 189048.75 | U151: 49300 | V151: 20843233.07
B152: 2011 | C152: 0.01 | D152: 0.9 | E152: 0.01 | F152: 0.01 | G152: 7144734 | H152: 535 | M152: 2011 | N152: 2787442.5 | O152: 11682783.86 | P152: 1141874.76 | Q152: 601688.265 | R152: 3787986 | T152: 185692.5 | U152: 43805.1 | V152: 20231272.98
B153: 2012 | C153: 0.01 | D153: 0.9 | E153: 0.01 | F153: 0.01 | G153: 7144734 | H153: 535 | M153: 2012 | N153: 2939313.75 | O153: 11682783.86 | P153: 1141874.76 | Q153: 601688.265 | R153: 3584427.75 | T153: 253382.6625 | U153: 38766 | V153: 20242237.04
B154: 2013 | C154: 0.01 | D154: 0.9 | E154: 0.01 | F154: 0.01 | G154: 7144734 | H154: 535 | M154: 2013 | N154: 2828169 | O154: 11640877.84 | P154: 1137782.745 | Q154: 599527.465 | R154: 3892174.125 | T154: 238320.75 | U154: 43174.2 | V154: 20380026.12
B155: 2015 | C155: 0.01 | D155: 0.9 | E155: 0.01 | F155: 0.01 | G155: 7144734 | H155: 535 | M155: 2015 | N155: 2979550.336 | O155: 11557366.44 | P155: 1129628.043 | Q155: 595221.3849 | R155: 4100500.85 | T155: 251063.5527 | U155: 45490.72314 | V155: 20658821.33
B156: 2016 | C156: 0.01 | D156: 0.9 | E156: 0.01 | F156: 0.01 | G156: 7144734 | H156: 535 | M156: 2016 | N156: 3059292.443 | O156: 11515910.3 | P156: 1125579.915 | Q156: 593083.8089 | R156: 4210239.506 | T156: 257775.6273 | U156: 46711.13154 | V156: 20808592.73
B157: 2017 | C157: 0.01 | D157: 0.9 | E157: 0.01 | F157: 0.01 | G157: 7144734 | H157: 535 | M157: 2017 | N157: 3141168.699 | O157: 11474602.86 | P157: 1121546.295 | Q157: 590953.9095 | R157: 4322915.015 | T157: 264667.1463 | U157: 47964.28061 | V157: 20963818.2
B158: 2018 | C158: 0.01 | D158: 0.9 | E158: 0.01 | F158: 0.01 | G158: 7144734 | H158: 535 | M158: 2018 | N158: 3162185.58 | O158: 11464313.04 | P158: 1120541.503 | Q158: 590423.3468 | R158: 4351837.755 | T158: 266436.0865 | U158: 48285.97263 | V158: 21004023.28
B159: 2020 | C159: 0.01 | D159: 0.9 | E159: 0.01 | F159: 0.01 | G159: 7144734 | H159: 535 | M159: 2020 | N159: 3204500.579 | O159: 11443751.86 | P159: 1118533.72 | Q159: 589363.1743 | R159: 4410070.255 | T159: 269997.6128 | U159: 48933.67179 | V159: 21085150.87
B160: 2025 | C160: 0.01 | D160: 0.9 | E160: 0.01 | F160: 0.01 | G160: 7144734 | H160: 535 | M160: 2025 | N160: 3311703.68 | O160: 11392441.1 | P160: 1116529.535 | Q160: 586717.5021 | R160: 4557599.544 | T160: 279020.4483 | U160: 50574.64 | V160: 21294586.45
B161: 2030 | C161: 0.01 | D161: 0.9 | E161: 0.01 | F161: 0.01 | G161: 7144734 | H161: 535 | M161: 2030 | N161: 3422493.145 | O161: 11341360.4 | P161: 1114528.941 | Q161: 584083.7063 | R161: 4710064.104 | T161: 288344.8109 | U161: 52270.63731 | V161: 21513145.74
B162: 2035 | C162: 0.01 | D162: 0.9 | E162: 0.01 | F162: 0.01 | G162: 7144734 | H162: 535 | M162: 2035 | N162: 3536988.951 | O162: 11290508.73 | P162: 1112531.932 | Q162: 581461.7338 | R162: 4867629.034 | T162: 297980.7769 | U162: 54023.50912 | V162: 21741124.67
B163: 2040 | C163: 0.01 | D163: 0.9 | E163: 0.01 | F163: 0.01 | G163: 7144734 | H163: 535 | M163: 2040 | N163: 3655315.091 | O163: 11239885.07 | P163: 1110538.501 | Q163: 578851.5315 | R163: 5030464.955 | T163: 307938.7595 | U163: 55835.16268 | V163: 21978829.07
B164: 2045 | C164: 0.01 | D164: 0.9 | E164: 0.01 | F164: 0.01 | G164: 7144734 | H164: 535 | M164: 2045 | N164: 3777599.704 | O164: 11189488.39 | P164: 1108548.642 | Q164: 576253.0464 | R164: 5198748.198 | T164: 318229.5201 | U164: 57707.56921 | V164: 22226575.07
B165: 2050 | C165: 0.01 | D165: 0.9 | E165: 0.01 | F165: 0.01 | G165: 7144734 | H165: 535 | M165: 2050 | N165: 3903975.217 | O165: 11139317.68 | P165: 1106562.348 | Q165: 573666.226 | R165: 5372660.989 | T165: 328864.1794 | U165: 59642.76603 | V165: 22484689.41
AF168: Constants
N169: Kg BOD DoMScenario 1/yr | AF169: Fnpr, kgN/kgprot | AG169: Fnon-con protein | AH169: Frac, industrial+commer | AI169: Nremoved sludge, kg | AJ169: EF, kgN2O-N/kgN | AK169: Emission Wwplant, KgN2O/yr | AL169: N2 to N2O
B170: Year | D170: Tij, utilization fraction (Domestic Scenario 1) | I170: Sludge removed, kg BOD/yr | J170: Methane captured, kgCH4/yr | M170: Year | N170: Sewered Plaines Wilhems | O170: Absorption Pit | P170: Septic Tank | Q170: Pit Latrine | R170: Sewered PL and Pte aux Sables | T170: 5 CHA estates | U170: Grand baie | V170: Total
B171: 2006 | D171: 0.02 | E171: 0.9 | F171: 0.05 | G171: 0.03 | I171: 171397 | M171: 2006 | N171: 1277047.5 | O171: 11611369.42 | P171: 1134906.18 | Q171: 598014.905 | R171: 3096100 | T171: 121758.75 | U171: 56376 | V171: =SUM(N171:U171) -> 17895572.75 | AF171: 0.16 | AG171: 1.4 | AH171: 1.25 | AI171: 0 | AJ171: 0.005 | AK171: 0 | AL171: =44/28 -> 1.571428571
B172: 2007 | C172: 1 | D172: 0.02 | E172: 0.9 | F172: 0.05 | G172: 0.03 | I172: 193707 | M172: 2007 | N172: 1548915.625 | O172: 11682783.86 | P172: 1141874.76 | Q172: 601688.265 | R172: 3479774.625 | T172: 71699.625 | U172: 30245 | V172: =SUM(N172:U172) -> 18556981.76
B173: 2008 | C173: 0.93 | D173: 0.01 | E173: 0.9 | F173: 0.01 | G173: 0.01 | I173: 7144734 | J173: 535 | M173: 2008 | N173: 2244208.75 | O173: 11758438.87 | P173: 1149275.5 | Q173: 605577.705 | R173: 5307790.812 | T173: 52161.75 | U173: 34569.4 | V173: 21152022.78 | AF173: Protein intake per capita, kg/cap/yr
B174: 2009 | C174: 0.93 | D174: 0.01 | E174: 0.9 | F174: 0.01 | G174: 0.01 | I174: 7144734 | J174: 535 | M174: 2009 | N174: 2666235.375 | O174: 11818374.06 | P174: 1155123.165 | Q174: 608670.35 | R174: 8799767.5 | T174: 238866.7875 | U174: 54814.5 | V174: 25341851.73 | AF174: average | AG174: =AVERAGE('TNC BAU'!D132:D139) -> 26.48125
B175: 2010 | C175: 0.93 | D175: 0.01 | E175: 0.9 | F175: 0.01 | G175: 0.01 | I175: 7144734 | J175: 535 | M175: 2010 | N175: 2822330.125 | O175: 11873001.78 | P175: 1160471.145 | Q175: 611479.39 | R175: 4137601.875 | T175: 189048.75 | U175: 49300 | V175: 20843233.07 | AF175: median | AG175: =MEDIAN('TNC BAU'!D132:D139) -> 26.685
B176: 2011 | C176: 0.93 | D176: 0.01 | E176: 0.9 | F176: 0.01 | G176: 0.01 | I176: 7144734 | J176: 535 | M176: 2011 | N176: 2787442.5 | O176: 11682783.86 | P176: 1141874.76 | Q176: 601688.265 | R176: 3787986 | T176: 185692.5 | U176: 43805.1 | V176: 20231272.98 | AF176: highest | AG176: =MAX('TNC BAU'!D132:D139) -> 27.32
B177: 2012 | C177: 0.93 | D177: 0.01 | E177: 0.9 | F177: 0.01 | G177: 0.01 | I177: 7144734 | J177: 535 | M177: 2012 | N177: 2939313.75 | O177: 11682783.86 | P177: 1141874.76 | Q177: 601688.265 | R177: 3584427.75 | T177: 253382.6625 | U177: 38766 | V177: 20242237.04 | AF177: used | AG177: =AG176 -> 27.32
B178: 2013 | C178: 0.93 | D178: 0.01 | E178: 0.9 | F178: 0.01 | G178: 0.01 | I178: 7144734 | J178: 535 | M178: 2013 | N178: 2828169 | O178: 11640877.84 | P178: 1137782.745 | Q178: 599527.465 | R178: 3892174.125 | T178: 238320.75 | U178: 43174.2 | V178: 20380026.12
B179: 2015 | C179: 1 | D179: 0.01 | E179: 0.73 | F179: 0.01 | G179: 0.25 | H179: 840556.9412 | I179: 8825847.882 | J179: 535 | M179: 2015 | N179: 2979550.336 | O179: 11557366.44 | P179: 1129628.043 | Q179: 595221.3849 | R179: 4100500.85 | T179: 251063.5527 | U179: 45490.72314 | V179: 20658821.33
B180: 2016 | C180: 1 | D180: 0.01 | E180: 0.6967 | F180: 0.01 | G180: 0.2833 | I180: 9666404.824 | J180: 535 | M180: 2016 | N180: 3059292.443 | O180: 11515910.3 | P180: 1125579.915 | Q180: 593083.8089 | R180: 4210239.506 | T180: 257775.6273 | U180: 46711.13154 | V180: 20808592.73
B181: 2017 | C181: 1 | D181: 0.01 | E181: 0.6633 | F181: 0.01 | G181: 0.3167 | I181: 10506961.76 | J181: 535 | M181: 2017 | N181: 3141168.699 | O181: 11474602.86 | P181: 1121546.295 | Q181: 590953.9095 | R181: 4322915.015 | T181: 264667.1463 | U181: 47964.28061 | V181: 20963818.2
B182: 2018 | C182: 1 | D182: 0.01 | E182: 0.63 | F182: 0.01 | G182: 0.35 | I182: 11347518.71 | J182: 535 | M182: 2018 | N182: 3162185.58 | O182: 11464313.04 | P182: 1120541.503 | Q182: 590423.3468 | R182: 4351837.755 | T182: 266436.0865 | U182: 48285.97263 | V182: 21004023.28
B183: 2020 | C183: 1 | D183: 0.01 | E183: 0.5633 | F183: 0.01 | G183: 0.4167 | I183: 13028632.59 | J183: 535 | M183: 2020 | N183: 3204500.579 | O183: 11443751.86 | P183: 1118533.72 | Q183: 589363.1743 | R183: 4410070.255 | T183: 269997.6128 | U183: 48933.67179 | V183: 21085150.87
B184: 2025 | C184: 1 | D184: 0.01 | E184: 0.4067 | F184: 0 | G184: 0.5833 | I184: 17231417.29 | J184: 535 | M184: 2025 | N184: 3311703.68 | O184: 11392441.1 | P184: 1116529.535 | Q184: 586717.5021 | R184: 4557599.544 | T184: 279020.4483 | U184: 50574.64 | V184: 21294586.45
B185: 2030 | C185: 1 | D185: 0.01 | E185: 0.24 | F185: 0 | G185: 0.75 | I185: 21434202 | J185: 535 | M185: 2030 | N185: 3422493.145 | O185: 11341360.4 | P185: 1114528.941 | Q185: 584083.7063 | R185: 4710064.104 | T185: 288344.8109 | U185: 52270.63731 | V185: 21513145.74
B186: 2035 | C186: 1 | D186: 0.01 | E186: 0.19 | F186: 0 | G186: 0.8 | H186: 1428946.8 | I186: 22863148.8 | J186: 535 | M186: 2035 | N186: 3536988.951 | O186: 11290508.73 | P186: 1112531.932 | Q186: 581461.7338 | R186: 4867629.034 | T186: 297980.7769 | U186: 54023.50912 | V186: 21741124.67
B187: 2040 | C187: 1 | D187: 0.01 | E187: 0.175 | F187: 0 | G187: 0.815 | I187: 23339464.4 | J187: 535 | M187: 2040 | N187: 3655315.091 | O187: 11239885.07 | P187: 1110538.501 | Q187: 578851.5315 | R187: 5030464.955 | T187: 307938.7595 | U187: 55835.16268 | V187: 21978829.07
B188: 2045 | C188: 1 | D188: 0.01 | E188: 0.16 | F188: 0 | G188: 0.83 | I188: 23815780 | J188: 535 | M188: 2045 | N188: 3777599.704 | O188: 11189488.39 | P188: 1108548.642 | Q188: 576253.0464 | R188: 5198748.198 | T188: 318229.5201 | U188: 57707.56921 | V188: 22226575.07
B189: 2050 | C189: 1 | D189: 0.01 | E189: 0.14 | F189: 0 | G189: 0.85 | H189: 95263.12 | I189: 24292095.6 | J189: 535 | M189: 2050 | N189: 3903975.217 | O189: 11139317.68 | P189: 1106562.348 | Q189: 573666.226 | R189: 5372660.989 | T189: 328864.1794 | U189: 59642.76603 | V189: 22484689.41

Sheet 6. TNC Assumptions
A1: TNC ASSUMPTIONS | E1: Excel Toolkit for Mitigation Analysis for Low-Carbon Development Planning | P1: XLMT-Liquid Wastes v17.1
A2: Users can input values in the 'User-specified' columns for different scenarios. Then, proceed to 'Query' for results.
E4: BAU | T4: SCENARIO 1 - INCREASED SEWER CONNECTIONS
B5: Population | E5: % POPULATION CONNEECTED TO SANITATION SYSTEMS BELOW | T5: % POPULATION CONNEECTED TO SANITATION SYSTEMS BELOW
E6: Sewered Plaines Wilhems | G6: Absorption pit | I6: Septic tank | K6: Pit latrine | M6: Sewered PL and Pte aux Sables | O6: 5 CHA estates | Q6: Grand Baie | T6: Sewered Plaines Wilhems | V6: Absorption pit | X6: Septic tank | Z6: Pit latrine | AB6: Sewered PL and Pte aux Sables | AD6: 5 CHA estates | AF6: Grand Baie
B7: Default | C7: Users-specified | E7: Default | F7: User-specified | G7: Default | H7: User-specified | I7: Default | J7: User-specified | K7: Default | L7: User-specified | M7: Default | N7: User-specified | O7: Default | P7: User-specified | Q7: Default | R7: User-specified | T7: Default | U7: User-specified | V7: Default | W7: User-specified | X7: Default | Y7: User-specified | Z7: Default | AA7: User-specified | AB7: Default | AC7: User-specified | AD7: Default | AE7: User-specified | AF7: Default | AG7: User-specified
B8: Population | C8: Population
A9: YEAR | D9: YEAR | E9: x% | F9: x% | G9: x% | H9: x% | I9: x% | J9: x% | K9: x% | L9: x% | M9: x% | N9: x% | O9: x% | P9: x% | Q9: x% | R9: x% | S9: YEAR | T9: x% | U9: x% | V9: x% | W9: x% | X9: x% | Y9: x% | Z9: x% | AA9: x% | AB9: x% | AC9: x% | AD9: x% | AE9: x% | AF9: x% | AG9: x%
A10: 2006 | B10: =E34+G34+I34+K34+M34+O34+Q34 -> 1303680 | C10: =F34+H34+J34+L34+N34+P34+R34 -> 1303680 | D10: 2006 | S10: 2006
A11: 2007 | B11: =E35+G35+I35+K35+M35+O35+Q35 -> 1317503 | C11: =B11 -> 1317503 | D11: 2007 | E11: =('4. Data'!D5-'4. Data'!D4)/'4. Data'!D4 -> 0.04691387752 | F11: 0.04691387752 | G11: =('4. Data'!E5-'4. Data'!E4)/'4. Data'!E4 -> 0.00615038911 | H11: 0.00615038911 | I11: =('4. Data'!F5-'4. Data'!F4)/'4. Data'!F4 -> 0.006140225618 | J11: 0.006140225618 | K11: =('4. Data'!G5-'4. Data'!G4)/'4. Data'!G4 -> 0.006142589372 | L11: 0.006142589372 | M11: =('4. Data'!H5-'4. Data'!H4)/'4. Data'!H4 -> 0.02842527696 | N11: 0.02842527696 | O11: =('4. Data'!I5-'4. Data'!I4)/'4. Data'!I4 -> 0.1691983122 | P11: 0.1691983122 | Q11: =('4. Data'!J5-'4. Data'!J4)/'4. Data'!J4 -> -0.6221264368 | R11: -0.6221264368 | S11: 2007 | T11: 0.04691387752 | U11: =('4. Data'!D5-'4. Data'!D4)/'4. Data'!D4 -> 0.04691387752 | V11: 0.00615038911 | W11: =('4. Data'!E5-'4. Data'!E4)/'4. Data'!E4 -> 0.00615038911 | X11: 0.006140225618 | Y11: =('4. Data'!F5-'4. Data'!F4)/'4. Data'!F4 -> 0.006140225618 | Z11: 0.006142589372 | AA11: =('4. Data'!G5-'4. Data'!G4)/'4. Data'!G4 -> 0.006142589372 | AB11: 0.02842527696 | AC11: =('4. Data'!H5-'4. Data'!H4)/'4. Data'!H4 -> 0.02842527696 | AD11: 0.1691983122 | AE11: =('4. Data'!I5-'4. Data'!I4)/'4. Data'!I4 -> 0.1691983122 | AF11: -0.6221264368 | AG11: =('4. Data'!J5-'4. Data'!J4)/'4. Data'!J4 -> -0.6221264368
A12: 2008 | B12: =E36+G36+I36+K36+M36+O36+Q36 -> 1335233 | C12: =B12 -> 1335233 | D12: 2008 | E12: =('4. Data'!D6-'4. Data'!D5)/'4. Data'!D5 -> 0.03492160846 | F12: 0.03492160846 | G12: =('4. Data'!E6-'4. Data'!E5)/'4. Data'!E5 -> 0.006475769041 | H12: 0.006475769041 | I12: =('4. Data'!F6-'4. Data'!F5)/'4. Data'!F5 -> 0.006481218658 | J12: 0.006481218658 | K12: =('4. Data'!G6-'4. Data'!G5)/'4. Data'!G5 -> 0.006464211164 | L12: 0.006464211164 | M12: =('4. Data'!H6-'4. Data'!H5)/'4. Data'!H5 -> 0.03492187371 | N12: 0.03492187371 | O12: =('4. Data'!I6-'4. Data'!I5)/'4. Data'!I5 -> 0.03500541321 | P12: 0.03500541321 | Q12: =('4. Data'!J6-'4. Data'!J5)/'4. Data'!J5 -> 0.03498098859 | R12: 0.03498098859 | S12: 2008 | T12: 0.03492160846 | U12: =('4. Data'!D6-'4. Data'!D5)/'4. Data'!D5 -> 0.03492160846 | V12: 0.006475769041 | W12: =('4. Data'!E6-'4. Data'!E5)/'4. Data'!E5 -> 0.006475769041 | X12: 0.006481218658 | Y12: =('4. Data'!F6-'4. Data'!F5)/'4. Data'!F5 -> 0.006481218658 | Z12: 0.006464211164 | AA12: =('4. Data'!G6-'4. Data'!G5)/'4. Data'!G5 -> 0.006464211164 | AB12: 0.03492187371 | AC12: =('4. Data'!H6-'4. Data'!H5)/'4. Data'!H5 -> 0.03492187371 | AD12: 0.03500541321 | AE12: =('4. Data'!I6-'4. Data'!I5)/'4. Data'!I5 -> 0.03500541321 | AF12: 0.03498098859 | AG12: =('4. Data'!J6-'4. Data'!J5)/'4. Data'!J5 -> 0.03498098859
A13: 2009 | B13: =E37+G37+I37+K37+M37+O37+Q37 -> 1351292 | C13: 1351292 | D13: 2009 | E13: =('4. Data'!D7-'4. Data'!D6)/'4. Data'!D6 -> 0.03275057412 | F13: 0.03275057412 | G13: =('4. Data'!E7-'4. Data'!E6)/'4. Data'!E6 -> 0.005097206414 | H13: 0.005097206414 | I13: =('4. Data'!F7-'4. Data'!F6)/'4. Data'!F6 -> 0.00508813161 | J13: 0.00508813161 | K13: =('4. Data'!G7-'4. Data'!G6)/'4. Data'!G6 -> 0.005106933387 | L13: 0.005106933387 | M13: =('4. Data'!H7-'4. Data'!H6)/'4. Data'!H6 -> 0.03275040759 | N13: 0.03275040759 | O13: =('4. Data'!I7-'4. Data'!I6)/'4. Data'!I6 -> 0.03277545328 | P13: 0.03277545328 | Q13: =('4. Data'!J7-'4. Data'!J6)/'4. Data'!J6 -> 0.03269654666 | R13: 0.03269654666 | S13: 2009 | T13: 0.03275057412 | U13: =('4. Data'!D7-'4. Data'!D6)/'4. Data'!D6 -> 0.03275057412 | V13: 0.005097206414 | W13: =('4. Data'!E7-'4. Data'!E6)/'4. Data'!E6 -> 0.005097206414 | X13: 0.00508813161 | Y13: =('4. Data'!F7-'4. Data'!F6)/'4. Data'!F6 -> 0.00508813161 | Z13: 0.005106933387 | AA13: =('4. Data'!G7-'4. Data'!G6)/'4. Data'!G6 -> 0.005106933387 | AB13: 0.03275040759 | AC13: =('4. Data'!H7-'4. Data'!H6)/'4. Data'!H6 -> 0.03275040759 | AD13: 0.03277545328 | AE13: =('4. Data'!I7-'4. Data'!I6)/'4. Data'!I6 -> 0.03277545328 | AF13: 0.03269654666 | AG13: =('4. Data'!J7-'4. Data'!J6)/'4. Data'!J6 -> 0.03269654666
A14: 2010 | B14: =E38+G38+I38+K38+M38+O38+Q38 -> 1366853 | C14: 1366853 | D14: 2010 | E14: =('4. Data'!D8-'4. Data'!D7)/'4. Data'!D7 -> 0.03157570063 | F14: 0.03157570063 | G14: =('4. Data'!E8-'4. Data'!E7)/'4. Data'!E7 -> 0.004622270775 | H14: 0.004622270775 | I14: =('4. Data'!F8-'4. Data'!F7)/'4. Data'!F7 -> 0.00462979201 | J14: 0.00462979201 | K14: =('4. Data'!G8-'4. Data'!G7)/'4. Data'!G7 -> 0.004615043266 | L14: 0.004615043266 | M14: =('4. Data'!H8-'4. Data'!H7)/'4. Data'!H7 -> 0.03157813545 | N14: 0.03157813545 | O14: =('4. Data'!I8-'4. Data'!I7)/'4. Data'!I7 -> 0.03151024083 | P14: 0.03151024083 | Q14: =('4. Data'!J8-'4. Data'!J7)/'4. Data'!J7 -> 0.03166133049 | R14: 0.03166133049 | S14: 2010 | T14: 0.03157570063 | U14: =('4. Data'!D8-'4. Data'!D7)/'4. Data'!D7 -> 0.03157570063 | V14: 0.004622270775 | W14: =('4. Data'!E8-'4. Data'!E7)/'4. Data'!E7 -> 0.004622270775 | X14: 0.00462979201 | Y14: =('4. Data'!F8-'4. Data'!F7)/'4. Data'!F7 -> 0.00462979201 | Z14: 0.004615043266 | AA14: =('4. Data'!G8-'4. Data'!G7)/'4. Data'!G7 -> 0.004615043266 | AB14: 0.03157813545 | AC14: =('4. Data'!H8-'4. Data'!H7)/'4. Data'!H7 -> 0.03157813545 | AD14: 0.03151024083 | AE14: =('4. Data'!I8-'4. Data'!I7)/'4. Data'!I7 -> 0.03151024083 | AF14: 0.03166133049 | AG14: =('4. Data'!J8-'4. Data'!J7)/'4. Data'!J7 -> 0.03166133049
A15: 2011 | B15: =E39+G39+I39+K39+M39+O39+Q39 -> 1350803 | C15: 1350803 | D15: 2011 | E15: =('4. Data'!D9-'4. Data'!D8)/'4. Data'!D8 -> 0.0003824410867 | F15: 0.0003824410867 | G15: =('4. Data'!E9-'4. Data'!E8)/'4. Data'!E8 -> -0.01602104746 | H15: -0.01602104746 | I15: =('4. Data'!F9-'4. Data'!F8)/'4. Data'!F8 -> -0.01602485773 | J15: -0.01602485773 | K15: =('4. Data'!G9-'4. Data'!G8)/'4. Data'!G8 -> -0.01601219135 | L15: -0.01601219135 | M15: =('4. Data'!H9-'4. Data'!H8)/'4. Data'!H8 -> 0.0003838274073 | N15: 0.0003838274073 | O15: =('4. Data'!I9-'4. Data'!I8)/'4. Data'!I8 -> 0.0004363953742 | P15: 0.0004363953742 | Q15: =('4. Data'!J9-'4. Data'!J8)/'4. Data'!J8 -> 0.0003448275862 | R15: 0.0003448275862 | S15: 2011 | T15: 0.0003824410867 | U15: =('4. Data'!D9-'4. Data'!D8)/'4. Data'!D8 -> 0.0003824410867 | V15: -0.01602104746 | W15: =('4. Data'!E9-'4. Data'!E8)/'4. Data'!E8 -> -0.01602104746 | X15: -0.01602485773 | Y15: =('4. Data'!F9-'4. Data'!F8)/'4. Data'!F8 -> -0.01602485773 | Z15: -0.01601219135 | AA15: =('4. Data'!G9-'4. Data'!G8)/'4. Data'!G8 -> -0.01601219135 | AB15: 0.0003838274073 | AC15: =('4. Data'!H9-'4. Data'!H8)/'4. Data'!H8 -> 0.0003838274073 | AD15: 0.0004363953742 | AE15: =('4. Data'!I9-'4. Data'!I8)/'4. Data'!I8 -> 0.0004363953742 | AF15: 0.0003448275862 | AG15: =('4. Data'!J9-'4. Data'!J8)/'4. Data'!J8 -> 0.0003448275862
A16: 2012 | B16: =E40+G40+I40+K40+M40+O40+Q40 -> 1360772 | C16: 1360772 | D16: 2012 | E16: =('4. Data'!D10-'4. Data'!D9)/'4. Data'!D9 -> 0.02795618206 | F16: 0.02795618206 | G16: =('4. Data'!E10-'4. Data'!E9)/'4. Data'!E9 -> 0 | H16: 0 | I16: =('4. Data'!F10-'4. Data'!F9)/'4. Data'!F9 -> 0 | J16: 0 | K16: =('4. Data'!G10-'4. Data'!G9)/'4. Data'!G9 -> 0 | L16: 0 | M16: =('4. Data'!H10-'4. Data'!H9)/'4. Data'!H9 -> 0.02795383879 | N16: 0.02795383879 | O16: =('4. Data'!I10-'4. Data'!I9)/'4. Data'!I9 -> 0.02791712105 | P16: 0.02791712105 | Q16: =('4. Data'!J10-'4. Data'!J9)/'4. Data'!J9 -> 0.02792140641 | R16: 0.02792140641 | S16: 2012 | T16: 0.02795618206 | U16: =('4. Data'!D10-'4. Data'!D9)/'4. Data'!D9 -> 0.02795618206 | V16: 0 | W16: =('4. Data'!E10-'4. Data'!E9)/'4. Data'!E9 -> 0 | X16: 0 | Y16: =('4. Data'!F10-'4. Data'!F9)/'4. Data'!F9 -> 0 | Z16: 0 | AA16: =('4. Data'!G10-'4. Data'!G9)/'4. Data'!G9 -> 0 | AB16: 0.02795383879 | AC16: =('4. Data'!H10-'4. Data'!H9)/'4. Data'!H9 -> 0.02795383879 | AD16: 0.02791712105 | AE16: =('4. Data'!I10-'4. Data'!I9)/'4. Data'!I9 -> 0.02791712105 | AF16: 0.02792140641 | AG16: =('4. Data'!J10-'4. Data'!J9)/'4. Data'!J9 -> 0.02792140641
A17: 2013 | B17: =E41+G41+I41+K41+M41+O41+Q41 -> 1367017 | C17: 1367017 | D17: 2013 | E17: =('4. Data'!D11-'4. Data'!D10)/'4. Data'!D10 -> 0.02676313476 | F17: 0.02676313476 | G17: =('4. Data'!E11-'4. Data'!E10)/'4. Data'!E10 -> -0.003586988814 | H17: -0.003586988814 | I17: =('4. Data'!F11-'4. Data'!F10)/'4. Data'!F10 -> -0.003583593528 | J17: -0.003583593528 | K17: =('4. Data'!G11-'4. Data'!G10)/'4. Data'!G10 -> -0.003591228425 | L17: -0.003591228425 | M17: =('4. Data'!H11-'4. Data'!H10)/'4. Data'!H10 -> 0.02676225654 | N17: 0.02676225654 | O17: =('4. Data'!I11-'4. Data'!I10)/'4. Data'!I10 -> 0.02673456397 | P17: 0.02673456397 | Q17: =('4. Data'!J11-'4. Data'!J10)/'4. Data'!J10 -> 0.02682763246 | R17: 0.02682763246 | S17: 2013 | T17: 0.02676313476 | U17: =('4. Data'!D11-'4. Data'!D10)/'4. Data'!D10 -> 0.02676313476 | V17: -0.003586988814 | W17: =('4. Data'!E11-'4. Data'!E10)/'4. Data'!E10 -> -0.003586988814 | X17: -0.003583593528 | Y17: =('4. Data'!F11-'4. Data'!F10)/'4. Data'!F10 -> -0.003583593528 | Z17: -0.003591228425 | AA17: =('4. Data'!G11-'4. Data'!G10)/'4. Data'!G10 -> -0.003591228425 | AB17: 0.02676225654 | AC17: =('4. Data'!H11-'4. Data'!H10)/'4. Data'!H10 -> 0.02676225654 | AD17: 0.02673456397 | AE17: =('4. Data'!I11-'4. Data'!I10)/'4. Data'!I10 -> 0.02673456397 | AF17: 0.02682763246 | AG17: =('4. Data'!J11-'4. Data'!J10)/'4. Data'!J10 -> 0.02682763246
A18: 2015 | B18: =E42+G42+I42+K42+M42+O42+Q42 -> 1380057.714 | C18: 1380057.714 | D18: 2015 | E18: =('4. Data'!D12-'4. Data'!D11)/'4. Data'!D11/2 -> 0.02676313476 | F18: 0.02676313476 | G18: =('4. Data'!E12-'4. Data'!E11)/'4. Data'!E11/2 -> -0.003586988814 | H18: -0.003586988814 | I18: =('4. Data'!F12-'4. Data'!F11)/'4. Data'!F11/2 -> -0.003583593528 | J18: -0.003583593528 | K18: =('4. Data'!G12-'4. Data'!G11)/'4. Data'!G11/2 -> -0.003591228425 | L18: -0.003591228425 | M18: =('4. Data'!H12-'4. Data'!H11)/'4. Data'!H11/2 -> 0.02676225654 | N18: 0.02676225654 | O18: =('4. Data'!I12-'4. Data'!I11)/'4. Data'!I11/2 -> 0.02673456397 | P18: 0.02673456397 | Q18: =('4. Data'!J12-'4. Data'!J11)/'4. Data'!J11/2 -> 0.02682763246 | R18: 0.02682763246 | S18: 2015 | T18: 0.02676313476 | U18: =('4. Data'!D12-'4. Data'!D11)/'4. Data'!D11/2 -> 0.02676313476 | V18: -0.003586988814 | W18: =('4. Data'!E12-'4. Data'!E11)/'4. Data'!E11/2 -> -0.003586988814 | X18: -0.003583593528 | Y18: =('4. Data'!F12-'4. Data'!F11)/'4. Data'!F11/2 -> -0.003583593528 | Z18: -0.003591228425 | AA18: =('4. Data'!G12-'4. Data'!G11)/'4. Data'!G11/2 -> -0.003591228425 | AB18: 0.02676225654 | AC18: =('4. Data'!H12-'4. Data'!H11)/'4. Data'!H11/2 -> 0.02676225654 | AD18: 0.02673456397 | AE18: =('4. Data'!I12-'4. Data'!I11)/'4. Data'!I11/2 -> 0.02673456397 | AF18: 0.02682763246 | AG18: =('4. Data'!J12-'4. Data'!J11)/'4. Data'!J11/2 -> 0.02682763246
A19: 2016 | B19: =E43+G43+I43+K43+M43+O43+Q43 -> 1387142.747 | C19: 1387142.747 | D19: 2016 | E19: =('4. Data'!D13-'4. Data'!D12)/'4. Data'!D12 -> 0.02676313476 | F19: 0.02676313476 | G19: =('4. Data'!E13-'4. Data'!E12)/'4. Data'!E12 -> -0.003586988814 | H19: -0.003586988814 | I19: =('4. Data'!F13-'4. Data'!F12)/'4. Data'!F12 -> -0.003583593528 | J19: -0.003583593528 | K19: =('4. Data'!G13-'4. Data'!G12)/'4. Data'!G12 -> -0.003591228425 | L19: -0.003591228425 | M19: =('4. Data'!H13-'4. Data'!H12)/'4. Data'!H12 -> 0.02676225654 | N19: 0.02676225654 | O19: =('4. Data'!I13-'4. Data'!I12)/'4. Data'!I12 -> 0.02673456397 | P19: 0.02673456397 | Q19: =('4. Data'!J13-'4. Data'!J12)/'4. Data'!J12 -> 0.02682763246 | R19: 0.02682763246 | S19: 2016 | T19: 0.02676313476 | U19: =('4. Data'!D13-'4. Data'!D12)/'4. Data'!D12 -> 0.02676313476 | V19: -0.003586988814 | W19: =('4. Data'!E13-'4. Data'!E12)/'4. Data'!E12 -> -0.003586988814 | X19: -0.003583593528 | Y19: =('4. Data'!F13-'4. Data'!F12)/'4. Data'!F12 -> -0.003583593528 | Z19: -0.003591228425 | AA19: =('4. Data'!G13-'4. Data'!G12)/'4. Data'!G12 -> -0.003591228425 | AB19: 0.02676225654 | AC19: =('4. Data'!H13-'4. Data'!H12)/'4. Data'!H12 -> 0.02676225654 | AD19: 0.02673456397 | AE19: =('4. Data'!I13-'4. Data'!I12)/'4. Data'!I12 -> 0.02673456397 | AF19: 0.02682763246 | AG19: =('4. Data'!J13-'4. Data'!J12)/'4. Data'!J12 -> 0.02682763246
A20: 2017 | B20: =E44+G44+I44+K44+M44+O44+Q44 -> 1394524.457 | C20: 1394524.457 | D20: 2017 | E20: =('4. Data'!D14-'4. Data'!D13)/'4. Data'!D13 -> 0.02676313476 | F20: 0.02676313476 | G20: =('4. Data'!E14-'4. Data'!E13)/'4. Data'!E13 -> -0.003586988814 | H20: -0.003586988814 | I20: =('4. Data'!F14-'4. Data'!F13)/'4. Data'!F13 -> -0.003583593528 | J20: -0.003583593528 | K20: =('4. Data'!G14-'4. Data'!G13)/'4. Data'!G13 -> -0.003591228425 | L20: -0.003591228425 | M20: =('4. Data'!H14-'4. Data'!H13)/'4. Data'!H13 -> 0.02676225654 | N20: 0.02676225654 | O20: =('4. Data'!I14-'4. Data'!I13)/'4. Data'!I13 -> 0.02673456397 | P20: 0.02673456397 | Q20: =('4. Data'!J14-'4. Data'!J13)/'4. Data'!J13 -> 0.02682763246 | R20: 0.02682763246 | S20: 2017 | T20: 0.02676313476 | U20: =('4. Data'!D14-'4. Data'!D13)/'4. Data'!D13 -> 0.02676313476 | V20: -0.003586988814 | W20: =('4. Data'!E14-'4. Data'!E13)/'4. Data'!E13 -> -0.003586988814 | X20: -0.003583593528 | Y20: =('4. Data'!F14-'4. Data'!F13)/'4. Data'!F13 -> -0.003583593528 | Z20: -0.003591228425 | AA20: =('4. Data'!G14-'4. Data'!G13)/'4. Data'!G13 -> -0.003591228425 | AB20: 0.02676225654 | AC20: =('4. Data'!H14-'4. Data'!H13)/'4. Data'!H13 -> 0.02676225654 | AD20: 0.02673456397 | AE20: =('4. Data'!I14-'4. Data'!I13)/'4. Data'!I13 -> 0.02673456397 | AF20: 0.02682763246 | AG20: =('4. Data'!J14-'4. Data'!J13)/'4. Data'!J13 -> 0.02682763246
A21: 2018 | B21: =E45+G45+I45+K45+M45+O45+Q45 -> 1396445.943 | C21: 1396445.943 | D21: 2018 | E21: =('4. Data'!D15-'4. Data'!D14)/'4. Data'!D14 -> 0.006690783691 | F21: 0.006690783691 | G21: =('4. Data'!E15-'4. Data'!E14)/'4. Data'!E14 -> -0.0008967472034 | H21: -0.0008967472034 | I21: =('4. Data'!F15-'4. Data'!F14)/'4. Data'!F14 -> -0.0008958983821 | J21: -0.0008958983821 | K21: =('4. Data'!G15-'4. Data'!G14)/'4. Data'!G14 -> -0.0008978071061 | L21: -0.0008978071061 | M21: =('4. Data'!H15-'4. Data'!H14)/'4. Data'!H14 -> 0.006690564135 | N21: 0.006690564135 | O21: =('4. Data'!I15-'4. Data'!I14)/'4. Data'!I14 -> 0.006683640993 | P21: 0.006683640993 | Q21: =('4. Data'!J15-'4. Data'!J14)/'4. Data'!J14 -> 0.006706908115 | R21: 0.006706908115 | S21: 2018 | T21: 0.006690783691 | U21: =('4. Data'!D15-'4. Data'!D14)/'4. Data'!D14 -> 0.006690783691 | V21: -0.0008967472034 | W21: =('4. Data'!E15-'4. Data'!E14)/'4. Data'!E14 -> -0.0008967472034 | X21: -0.0008958983821 | Y21: =('4. Data'!F15-'4. Data'!F14)/'4. Data'!F14 -> -0.0008958983821 | Z21: -0.0008978071061 | AA21: =('4. Data'!G15-'4. Data'!G14)/'4. Data'!G14 -> -0.0008978071061 | AB21: 0.006690564135 | AC21: =('4. Data'!H15-'4. Data'!H14)/'4. Data'!H14 -> 0.006690564135 | AD21: 0.006683640993 | AE21: =('4. Data'!I15-'4. Data'!I14)/'4. Data'!I14 -> 0.006683640993 | AF21: 0.006706908115 | AG21: =('4. Data'!J15-'4. Data'!J14)/'4. Data'!J14 -> 0.006706908115
A22: 2020 | B22: 1400328 | C22: 1400328 | D22: 2020 | E22: =('4. Data'!D16-'4. Data'!D15)/'4. Data'!D15/2 -> 0.006690783691 | F22: 0.006690783691 | G22: =('4. Data'!E16-'4. Data'!E15)/'4. Data'!E15/2 -> -0.0008967472034 | H22: -0.0008967472034 | I22: =('4. Data'!F16-'4. Data'!F15)/'4. Data'!F15/2 -> -0.0008958983821 | J22: -0.0008958983821 | K22: =('4. Data'!G16-'4. Data'!G15)/'4. Data'!G15/2 -> -0.0008978071061 | L22: -0.0008978071061 | M22: =('4. Data'!H16-'4. Data'!H15)/'4. Data'!H15/2 -> 0.006690564135 | N22: 0.006690564135 | O22: =('4. Data'!I16-'4. Data'!I15)/'4. Data'!I15/2 -> 0.006683640993 | P22: 0.006683640993 | Q22: =('4. Data'!J16-'4. Data'!J15)/'4. Data'!J15/2 -> 0.006706908115 | R22: 0.006706908115 | S22: 2020 | T22: 0.006690783691 | U22: =('4. Data'!D16-'4. Data'!D15)/'4. Data'!D15/2 -> 0.006690783691 | V22: -0.0008967472034 | W22: =('4. Data'!E16-'4. Data'!E15)/'4. Data'!E15/2 -> -0.0008967472034 | X22: -0.0008958983821 | Y22: =('4. Data'!F16-'4. Data'!F15)/'4. Data'!F15/2 -> -0.0008958983821 | Z22: -0.0008978071061 | AA22: =('4. Data'!G16-'4. Data'!G15)/'4. Data'!G15/2 -> -0.0008978071061 | AB22: 0.006690564135 | AC22: =('4. Data'!H16-'4. Data'!H15)/'4. Data'!H15/2 -> 0.006690564135 | AD22: 0.006683640993 | AE22: =('4. Data'!I16-'4. Data'!I15)/'4. Data'!I15/2 -> 0.006683640993 | AF22: 0.006706908115 | AG22: =('4. Data'!J16-'4. Data'!J15)/'4. Data'!J15/2 -> 0.006706908115
A23: 2025 | B23: =E47+G47+I47+K47+M47+O47+Q47 -> 1410451.683 | C23: 1410451.683 | D23: 2025 | E23: =('4. Data'!D17-'4. Data'!D16)/'4. Data'!D16/5 -> 0.006690783691 | F23: 0.006690783691 | G23: =('4. Data'!E17-'4. Data'!E16)/'4. Data'!E16/5 -> -0.0008967472034 | H23: -0.0008967472034 | I23: =('4. Data'!F17-'4. Data'!F16)/'4. Data'!F16/5 -> -0.0003583593528 | J23: -0.0003583593528 | K23: =('4. Data'!G17-'4. Data'!G16)/'4. Data'!G16/5 -> -0.0008978071061 | L23: -0.0008978071061 | M23: =('4. Data'!H17-'4. Data'!H16)/'4. Data'!H16/5 -> 0.006690564135 | N23: 0.006690564135 | O23: =('4. Data'!I17-'4. Data'!I16)/'4. Data'!I16/5 -> 0.006683640993 | P23: 0.006683640993 | Q23: =('4. Data'!J17-'4. Data'!J16)/'4. Data'!J16/5 -> 0.006706908115 | R23: 0.006706908115 | S23: 2025 | T23: 0.006690783691 | U23: =('4. Data'!D17-'4. Data'!D16)/'4. Data'!D16/5 -> 0.006690783691 | V23: -0.0008967472034 | W23: =('4. Data'!E17-'4. Data'!E16)/'4. Data'!E16/5 -> -0.0008967472034 | X23: -0.0003583593528 | Y23: =('4. Data'!F17-'4. Data'!F16)/'4. Data'!F16/5 -> -0.0003583593528 | Z23: -0.0008978071061 | AA23: =('4. Data'!G17-'4. Data'!G16)/'4. Data'!G16/5 -> -0.0008978071061 | AB23: 0.006690564135 | AC23: =('4. Data'!H17-'4. Data'!H16)/'4. Data'!H16/5 -> 0.006690564135 | AD23: 0.006683640993 | AE23: =('4. Data'!I17-'4. Data'!I16)/'4. Data'!I16/5 -> 0.006683640993 | AF23: 0.006706908115 | AG23: =('4. Data'!J17-'4. Data'!J16)/'4. Data'!J16/5 -> 0.006706908115
A24: 2030 | B24: =E48+G48+I48+K48+M48+O48+Q48 -> 1421070.924 | C24: 1421070.924 | D24: 2030 | E24: =('4. Data'!D18-'4. Data'!D17)/'4. Data'!D17/5 -> 0.006690783691 | F24: 0.006690783691 | G24: =('4. Data'!E18-'4. Data'!E17)/'4. Data'!E17/5 -> -0.0008967472034 | H24: -0.0008967472034 | I24: =('4. Data'!F18-'4. Data'!F17)/'4. Data'!F17/5 -> -0.0003583593528 | J24: -0.0003583593528 | K24: =('4. Data'!G18-'4. Data'!G17)/'4. Data'!G17/5 -> -0.0008978071061 | L24: -0.0008978071061 | M24: =('4. Data'!H18-'4. Data'!H17)/'4. Data'!H17/5 -> 0.006690564135 | N24: 0.006690564135 | O24: =('4. Data'!I18-'4. Data'!I17)/'4. Data'!I17/5 -> 0.006683640993 | P24: 0.006683640993 | Q24: =('4. Data'!J18-'4. Data'!J17)/'4. Data'!J17/5 -> 0.006706908115 | R24: 0.006706908115 | S24: 2030 | T24: 0.006690783691 | U24: =('4. Data'!D18-'4. Data'!D17)/'4. Data'!D17/5 -> 0.006690783691 | V24: -0.0008967472034 | W24: =('4. Data'!E18-'4. Data'!E17)/'4. Data'!E17/5 -> -0.0008967472034 | X24: -0.0003583593528 | Y24: =('4. Data'!F18-'4. Data'!F17)/'4. Data'!F17/5 -> -0.0003583593528 | Z24: -0.0008978071061 | AA24: =('4. Data'!G18-'4. Data'!G17)/'4. Data'!G17/5 -> -0.0008978071061 | AB24: 0.006690564135 | AC24: =('4. Data'!H18-'4. Data'!H17)/'4. Data'!H17/5 -> 0.006690564135 | AD24: 0.006683640993 | AE24: =('4. Data'!I18-'4. Data'!I17)/'4. Data'!I17/5 -> 0.006683640993 | AF24: 0.006706908115 | AG24: =('4. Data'!J18-'4. Data'!J17)/'4. Data'!J17/5 -> 0.006706908115
A25: 2035 | B25: =E49+G49+I49+K49+M49+O49+Q49 -> 1432201.522 | C25: 1432201.522 | D25: 2035 | E25: =('4. Data'!D19-'4. Data'!D18)/'4. Data'!D18/5 -> 0.006690783691 | F25: 0.006690783691 | G25: =('4. Data'!E19-'4. Data'!E18)/'4. Data'!E18/5 -> -0.0008967472034 | H25: -0.0008967472034 | I25: =('4. Data'!F19-'4. Data'!F18)/'4. Data'!F18/5 -> -0.0003583593528 | J25: -0.0003583593528 | K25: =('4. Data'!G19-'4. Data'!G18)/'4. Data'!G18/5 -> -0.0008978071061 | L25: -0.0008978071061 | M25: =('4. Data'!H19-'4. Data'!H18)/'4. Data'!H18/5 -> 0.006690564135 | N25: 0.006690564135 | O25: =('4. Data'!I19-'4. Data'!I18)/'4. Data'!I18/5 -> 0.006683640993 | P25: 0.006683640993 | Q25: =('4. Data'!J19-'4. Data'!J18)/'4. Data'!J18/5 -> 0.006706908115 | R25: 0.006706908115 | S25: 2035 | T25: 0.006690783691 | U25: =('4. Data'!D19-'4. Data'!D18)/'4. Data'!D18/5 -> 0.006690783691 | V25: -0.0008967472034 | W25: =('4. Data'!E19-'4. Data'!E18)/'4. Data'!E18/5 -> -0.0008967472034 | X25: -0.0003583593528 | Y25: =('4. Data'!F19-'4. Data'!F18)/'4. Data'!F18/5 -> -0.0003583593528 | Z25: -0.0008978071061 | AA25: =('4. Data'!G19-'4. Data'!G18)/'4. Data'!G18/5 -> -0.0008978071061 | AB25: 0.006690564135 | AC25: =('4. Data'!H19-'4. Data'!H18)/'4. Data'!H18/5 -> 0.006690564135 | AD25: 0.006683640993 | AE25: =('4. Data'!I19-'4. Data'!I18)/'4. Data'!I18/5 -> 0.006683640993 | AF25: 0.006706908115 | AG25: =('4. Data'!J19-'4. Data'!J18)/'4. Data'!J18/5 -> 0.006706908115
A26: 2040 | B26: =E50+G50+I50+K50+M50+O50+Q50 -> 1443859.897 | C26: 1443859.897 | D26: 2040 | E26: =('4. Data'!D20-'4. Data'!D19)/'4. Data'!D19/5 -> 0.006690783691 | F26: 0.006690783691 | G26: =('4. Data'!E20-'4. Data'!E19)/'4. Data'!E19/5 -> -0.0008967472034 | H26: -0.0008967472034 | I26: =('4. Data'!F20-'4. Data'!F19)/'4. Data'!F19/5 -> -0.0003583593528 | J26: -0.0003583593528 | K26: =('4. Data'!G20-'4. Data'!G19)/'4. Data'!G19/5 -> -0.0008978071061 | L26: -0.0008978071061 | M26: =('4. Data'!H20-'4. Data'!H19)/'4. Data'!H19/5 -> 0.006690564135 | N26: 0.006690564135 | O26: =('4. Data'!I20-'4. Data'!I19)/'4. Data'!I19/5 -> 0.006683640993 | P26: 0.006683640993 | Q26: =('4. Data'!J20-'4. Data'!J19)/'4. Data'!J19/5 -> 0.006706908115 | R26: 0.006706908115 | S26: 2040 | T26: 0.006690783691 | U26: =('4. Data'!D20-'4. Data'!D19)/'4. Data'!D19/5 -> 0.006690783691 | V26: -0.0008967472034 | W26: =('4. Data'!E20-'4. Data'!E19)/'4. Data'!E19/5 -> -0.0008967472034 | X26: -0.0003583593528 | Y26: =('4. Data'!F20-'4. Data'!F19)/'4. Data'!F19/5 -> -0.0003583593528 | Z26: -0.0008978071061 | AA26: =('4. Data'!G20-'4. Data'!G19)/'4. Data'!G19/5 -> -0.0008978071061 | AB26: 0.006690564135 | AC26: =('4. Data'!H20-'4. Data'!H19)/'4. Data'!H19/5 -> 0.006690564135 | AD26: 0.006683640993 | AE26: =('4. Data'!I20-'4. Data'!I19)/'4. Data'!I19/5 -> 0.006683640993 | AF26: 0.006706908115 | AG26: =('4. Data'!J20-'4. Data'!J19)/'4. Data'!J19/5 -> 0.006706908115
A27: 2045 | B27: =E51+G51+I51+K51+M51+O51+Q51 -> 1456063.023 | C27: 1456063.023 | D27: 2045 | E27: =('4. Data'!D21-'4. Data'!D20)/'4. Data'!D20/5 -> 0.006690783691 | F27: 0.006690783691 | G27: =('4. Data'!E21-'4. Data'!E20)/'4. Data'!E20/5 -> -0.0008967472034 | H27: -0.0008967472034 | I27: =('4. Data'!F21-'4. Data'!F20)/'4. Data'!F20/5 -> -0.0003583593528 | J27: -0.0003583593528 | K27: =('4. Data'!G21-'4. Data'!G20)/'4. Data'!G20/5 -> -0.0008978071061 | L27: -0.0008978071061 | M27: =('4. Data'!H21-'4. Data'!H20)/'4. Data'!H20/5 -> 0.006690564135 | N27: 0.006690564135 | O27: =('4. Data'!I21-'4. Data'!I20)/'4. Data'!I20/5 -> 0.006683640993 | P27: 0.006683640993 | Q27: =('4. Data'!J21-'4. Data'!J20)/'4. Data'!J20/5 -> 0.006706908115 | R27: 0.006706908115 | S27: 2045 | T27: 0.006690783691 | U27: =('4. Data'!D21-'4. Data'!D20)/'4. Data'!D20/5 -> 0.006690783691 | V27: -0.0008967472034 | W27: =('4. Data'!E21-'4. Data'!E20)/'4. Data'!E20/5 -> -0.0008967472034 | X27: -0.0003583593528 | Y27: =('4. Data'!F21-'4. Data'!F20)/'4. Data'!F20/5 -> -0.0003583593528 | Z27: -0.0008978071061 | AA27: =('4. Data'!G21-'4. Data'!G20)/'4. Data'!G20/5 -> -0.0008978071061 | AB27: 0.006690564135 | AC27: =('4. Data'!H21-'4. Data'!H20)/'4. Data'!H20/5 -> 0.006690564135 | AD27: 0.006683640993 | AE27: =('4. Data'!I21-'4. Data'!I20)/'4. Data'!I20/5 -> 0.006683640993 | AF27: 0.006706908115 | AG27: =('4. Data'!J21-'4. Data'!J20)/'4. Data'!J20/5 -> 0.006706908115
A28: 2050 | B28: =E52+G52+I52+K52+M52+O52+Q52 -> 1468828.442 | C28: 1468828.442 | D28: 2050 | E28: =('4. Data'!D22-'4. Data'!D21)/'4. Data'!D21/5 -> 0.006690783691 | F28: 0.006690783691 | G28: =('4. Data'!E22-'4. Data'!E21)/'4. Data'!E21/5 -> -0.0008967472034 | H28: -0.0008967472034 | I28: =('4. Data'!F22-'4. Data'!F21)/'4. Data'!F21/5 -> -0.0003583593528 | J28: -0.0003583593528 | K28: =('4. Data'!G22-'4. Data'!G21)/'4. Data'!G21/5 -> -0.0008978071061 | L28: -0.0008978071061 | M28: =('4. Data'!H22-'4. Data'!H21)/'4. Data'!H21/5 -> 0.006690564135 | N28: 0.006690564135 | O28: =('4. Data'!I22-'4. Data'!I21)/'4. Data'!I21/5 -> 0.006683640993 | P28: 0.006683640993 | Q28: =('4. Data'!J22-'4. Data'!J21)/'4. Data'!J21/5 -> 0.006706908115 | R28: 0.006706908115 | S28: 2050 | T28: 0.006690783691 | U28: =('4. Data'!D22-'4. Data'!D21)/'4. Data'!D21/5 -> 0.006690783691 | V28: -0.0008967472034 | W28: =('4. Data'!E22-'4. Data'!E21)/'4. Data'!E21/5 -> -0.0008967472034 | X28: -0.0003583593528 | Y28: =('4. Data'!F22-'4. Data'!F21)/'4. Data'!F21/5 -> -0.0003583593528 | Z28: -0.0008978071061 | AA28: =('4. Data'!G22-'4. Data'!G21)/'4. Data'!G21/5 -> -0.0008978071061 | AB28: 0.006690564135 | AC28: =('4. Data'!H22-'4. Data'!H21)/'4. Data'!H21/5 -> 0.006690564135 | AD28: 0.006683640993 | AE28: =('4. Data'!I22-'4. Data'!I21)/'4. Data'!I21/5 -> 0.006683640993 | AF28: 0.006706908115 | AG28: =('4. Data'!J22-'4. Data'!J21)/'4. Data'!J21/5 -> 0.006706908115
B31: Population | D31: POPULATION CONNECTED TO SANITATION SYSTEM | K31: BAU | W31: SC1
E32: Sewered Plaines Wilhems | G32: Absorption pit | I32: Septic tank | K32: Pit latrine | M32: Sewered PL and Pte aux Sables | O32: 5 CHA estates | Q32: Grand Baie | T32: Sewered Plaines Wilhems | V32: Absorption pit | X32: Septic tank | Z32: Pit latrine | AB32: Sewered PL and Pte aux Sables | AD32: 5 CHA estates | AF32: Grand Baie
A33: Year | B33: Default | C33: Users-specified | D33: Year | E33: Default | F33: User-specified | G33: Default | H33: User-specified | I33: Default | J33: User-specified | K33: Default | L33: User-specified | M33: Default | N33: User-specified | O33: Default | P33: User-specified | Q33: Default | R33: User-specified | S33: Year | T33: Default | U33: User-specified | V33: Default | W33: User-specified | X33: Default | Y33: User-specified | Z33: Default | AA33: User-specified | AB33: Default | AC33: User-specified | AD33: Default | AE33: User-specified | AF33: Default | AG33: User-specified
A34: 2006 | B34: =E34+G34+I34+K34+M34+O34+Q34 -> 1303680 | C34: =F34+H34+J34+L34+N34+P34+R34 -> 1303680 | D34: 2006 | E34: ='4. Data'!D4 -> 124590 | F34: ='4. Data'!$D$4 -> 124590 | G34: 859783 | H34: ='4. Data'!$E$4 -> 859783 | I34: 84036 | J34: ='4. Data'!$F$4 -> 84036 | K34: 44281 | L34: ='4. Data'!$G$4 -> 44281 | M34: 176920 | N34: ='4. Data'!$H$4 -> 176920 | O34: 7110 | P34: ='4. Data'!$I$4 -> 7110 | Q34: 6960 | R34: ='4. Data'!$J$4 -> 6960 | S34: 2006 | T34: 124590 | U34: ='4. Data'!$D$4 -> 124590 | V34: 859783 | W34: ='4. Data'!$E$4 -> 859783 | X34: 84036 | Y34: ='4. Data'!$F$4 -> 84036 | Z34: 44281 | AA34: ='4. Data'!$G$4 -> 44281 | AB34: 176920 | AC34: ='4. Data'!$H$4 -> 176920 | AD34: 7110 | AE34: ='4. Data'!$I$4 -> 7110 | AF34: 6960 | AG34: ='4. Data'!$J$4 -> 6960
A35: 2007 | B35: =E35+G35+I35+K35+M35+O35+Q35 -> 1317503 | C35: =F35+H35+J35+L35+N35+P35+R35 -> 1317503 | D35: 2007 | E35: ='4. Data'!D5 -> 130435 | F35: =F34*(1+F11) -> 130435 | G35: 865071 | H35: 865071 | I35: 84552 | J35: 84552 | K35: 44553 | L35: 44553 | M35: 181949 | N35: 181949 | O35: 8313 | P35: 8313 | Q35: 2630 | R35: 2630 | S35: 2007 | T35: =T34*(1+T11) -> 130435 | U35: 130435 | V35: =V34*(1+V11) -> 865071 | W35: 865071 | X35: 84552 | Y35: 84552 | Z35: 44553 | AA35: 44553 | AB35: 181949 | AC35: 181949 | AD35: 8313 | AE35: 8313 | AF35: 2630 | AG35: 2630
A36: 2008 | B36: 1335233 | C36: 1335233 | D36: 2008 | E36: ='4. Data'!D6 -> 134990 | F36: =F35*(1+F12) -> 134990 | G36: 870673 | H36: 870673 | I36: 85100 | J36: 85100 | K36: 44841 | L36: 44841 | M36: 188303 | N36: 188303 | O36: 8604 | P36: 8604 | Q36: 2722 | R36: 2722 | S36: 2008 | T36: 134990 | U36: 134990 | V36: =V35*(1+V12) -> 870673 | W36: 870673 | X36: 85100 | Y36: 85100 | Z36: 44841 | AA36: 44841 | AB36: 188303 | AC36: 188303 | AD36: 8604 | AE36: 8604 | AF36: 2722 | AG36: 2722
A37: 2009 | B37: 1351292 | C37: 1351292 | D37: 2009 | E37: ='4. Data'!D7 -> 139411 | F37: =F36*(1+F13) -> 139411 | G37: 875111 | H37: 875111 | I37: 85533 | J37: 85533 | K37: 45070 | L37: 45070 | M37: 194470 | N37: 194470 | O37: 8886 | P37: 8886 | Q37: 2811 | R37: 2811 | S37: 2009 | T37: 139411 | U37: 139411 | V37: =V36*(1+V13) -> 875111 | W37: 875111 | X37: 85533 | Y37: 85533 | Z37: 45070 | AA37: 45070 | AB37: 194470 | AC37: 194470 | AD37: 8886 | AE37: 8886 | AF37: 2811 | AG37: 2811
A38: 2010 | B38: 1366853 | C38: 1366853 | D38: 2010 | E38: ='4. Data'!D8 -> 143813 | F38: =F37*(1+F14) -> 143813 | G38: 879156 | H38: 879156 | I38: 85929 | J38: 85929 | K38: 45278 | L38: 45278 | M38: 200611 | N38: 200611 | O38: 9166 | P38: 9166 | Q38: 2900 | R38: 2900 | S38: 2010 | T38: 143813 | U38: 143813 | V38: =V37*(1+V14) -> 879156 | W38: 879156 | X38: 85929 | Y38: 85929 | Z38: 45278 | AA38: 45278 | AB38: 200611 | AC38: 200611 | AD38: 9166 | AE38: 9166 | AF38: 2900 | AG38: 2900
A39: 2011 | B39: 1350803 | C39: 1350803 | D39: 2011 | E39: ='4. Data'!D9 -> 143868 | F39: =F38*(1+F15) -> 143868 | G39: 865071 | H39: 865071 | I39: 84552 | J39: 84552 | K39: 44553 | L39: 44553 | M39: 200688 | N39: 200688 | O39: 9170 | P39: 9170 | Q39: 2901 | R39: 2901 | S39: 2011 | T39: 143868 | U39: 143868 | V39: =V38*(1+V15) -> 865071 | W39: 865071 | X39: 84552 | Y39: 84552 | Z39: 44553 | AA39: 44553 | AB39: 200688 | AC39: 200688 | AD39: 9170 | AE39: 9170 | AF39: 2901 | AG39: 2901
A40: 2012 | B40: 1360772 | C40: 1360772 | D40: 2012 | E40: ='4. Data'!D10 -> 147890 | F40: =F39*(1+F16) -> 147890 | G40: 865071 | H40: 865071 | I40: 84552 | J40: 84552 | K40: 44553 | L40: 44553 | M40: 206298 | N40: 206298 | O40: 9426 | P40: 9426 | Q40: 2982 | R40: 2982 | S40: 2012 | T40: 147890 | U40: 147890 | V40: =V39*(1+V16) -> 865071 | W40: 865071 | X40: 84552 | Y40: 84552 | Z40: 44553 | AA40: 44553 | AB40: 206298 | AC40: 206298 | AD40: 9426 | AE40: 9426 | AF40: 2982 | AG40: 2982
A41: 2013 | B41: 1367017 | C41: 1367017 | D41: 2013 | E41: ='4. Data'!D11 -> 151848 | F41: =F40*(1+F17) -> 151848 | G41: 861968 | H41: 861968 | I41: 84249 | J41: 84249 | K41: 44393 | L41: 44393 | M41: 211819 | N41: 211819 | O41: 9678 | P41: 9678 | Q41: 3062 | R41: 3062 | S41: 2013 | T41: 151848 | U41: 151848 | V41: =V40*(1+V17) -> 861968 | W41: 861968 | X41: 84249 | Y41: 84249 | Z41: 44393 | AA41: 44393 | AB41: 211819 | AC41: 211819 | AD41: 9678 | AE41: 9678 | AF41: 3062 | AG41: 3062
A42: 2015 | B42: 1380057.714 | C42: 1380057.714 | D42: 2015 | E42: ='4. Data'!D12 -> 159975.857 | F42: =F41*(1+2*F18) -> 159975.857 | G42: 855784.2609 | H42: 855784.2609 | I42: 83645.17166 | J42: 83645.17166 | K42: 44074.14919 | L42: 44074.14919 | M42: 223156.5088 | N42: 223156.5088 | O42: 10195.47422 | P42: 10195.47422 | Q42: 3226.292421 | R42: 3226.292421 | S42: 2015 | T42: =T41*(1+2*T18) -> 159975.857 | U42: =U41*(1+2*U18) -> 159975.857 | V42: =V41*(1+2*V18) -> 855784.2609 | W42: 855784.2609 | X42: 83645.17166 | Y42: 83645.17166 | Z42: 44074.14919 | AA42: 44074.14919 | AB42: 223156.5088 | AC42: 223156.5088 | AD42: 10195.47422 | AE42: 10195.47422 | AF42: 3226.292421 | AG42: 3226.292421
A43: 2016 | B43: 1387142.747 | C43: 1387142.747 | D43: 2016 | E43: ='4. Data'!D13 -> 164257.3124 | F43: =F42*(1+F19) -> 164257.3124 | G43: 852714.5723 | H43: 852714.5723 | I43: 83345.42136 | J43: 83345.42136 | K43: 43915.86886 | L43: 43915.86886 | M43: 229128.6806 | N43: 229128.6806 | O43: 10468.04578 | P43: 10468.04578 | Q43: 3312.846208 | R43: 3312.846208 | S43: 2016 | T43: =T42*(1+T19) -> 164257.3124 | U43: 164257.3124 | V43: =V42*(1+V19) -> 852714.5723 | W43: 852714.5723 | X43: 83345.42136 | Y43: 83345.42136 | Z43: 43915.86886 | AA43: 43915.86886 | AB43: 229128.6806 | AC43: 229128.6806 | AD43: 10468.04578 | AE43: 10468.04578 | AF43: 3312.846208 | AG43: 3312.846208
A44: 2017 | B44: 1394524.457 | C44: 1394524.457 | D44: 2017 | E44: ='4. Data'!D14 -> 168653.353 | F44: =F43*(1+F20) -> 168653.353 | G44: 849655.8947 | H44: 849655.8947 | I44: 83046.74525 | J44: 83046.74525 | K44: 43758.15694 | L44: 43758.15694 | M44: 235260.6811 | N44: 235260.6811 | O44: 10747.90442 | P44: 10747.90442 | Q44: 3401.722029 | R44: 3401.722029 | S44: 2017 | T44: 168653.353 | U44: 168653.353 | V44: =V43*(1+V20) -> 849655.8947 | W44: 849655.8947 | X44: 83046.74525 | Y44: 83046.74525 | Z44: 43758.15694 | AA44: 43758.15694 | AB44: 235260.6811 | AC44: 235260.6811 | AD44: 10747.90442 | AE44: 10747.90442 | AF44: 3401.722029 | AG44: 3401.722029
A45: 2018 | B45: 1396445.943 | C45: 1396445.943 | D45: 2018 | E45: ='4. Data'!D15 -> 169781.7761 | F45: =F44*(1+F21) -> 169781.7761 | G45: 848893.9681 | H45: 848893.9681 | I45: 82972.3438 | J45: 82972.3438 | K45: 43718.87055 | L45: 43718.87055 | M45: 236834.7078 | N45: 236834.7078 | O45: 10819.73955 | P45: 10819.73955 | Q45: 3424.537066 | R45: 3424.537066 | S45: 2018 | T45: 169781.7761 | U45: 169781.7761 | V45: =V44*(1+V21) -> 848893.9681 | W45: 848893.9681 | X45: 82972.3438 | Y45: 82972.3438 | Z45: 43718.87055 | AA45: 43718.87055 | AB45: 236834.7078 | AC45: 236834.7078 | AD45: 10819.73955 | AE45: 10819.73955 | AF45: 3424.537066 | AG45: 3424.537066
A46: 2020 | B46: 1400327.913 | C46: 1400327.913 | D46: 2020 | E46: ='4. Data'!D16 -> 172053.7224 | F46: =F45*(1+2*F22) -> 172053.7224 | G46: 847371.4815 | H46: 847371.4815 | I46: 82823.67423 | J46: 82823.67423 | K46: 43640.36833 | L46: 43640.36833 | M46: 240003.8234 | N46: 240003.8234 | O46: 10964.37006 | P46: 10964.37006 | Q46: 3470.473177 | R46: 3470.473177 | S46: 2020 | T46: =T45*(1+2*T22) -> 172053.7224 | U46: =U45*(1+2*U22) -> 172053.7224 | V46: =V45*(1+2*V22) -> 847371.4815 | W46: 847371.4815 | X46: 82823.67423 | Y46: 82823.67423 | Z46: 43640.36833 | AA46: 43640.36833 | AB46: 240003.8234 | AC46: 240003.8234 | AD46: 10964.37006 | AE46: 10964.37006 | AF46: 3470.473177 | AG46: 3470.473177
A47: 2025 | B47: 1410451.683 | C47: 1410451.683 | D47: 2025 | E47: ='4. Data'!D17 -> 177809.5936 | F47: =F46*(1+5*F23) -> 177809.5936 | G47: 843572.0915 | H47: 843572.0915 | I47: 82675.27104 | J47: 82675.27104 | K47: 43444.46517 | L47: 43444.46517 | M47: 248032.6283 | N47: 248032.6283 | O47: 11330.77963 | P47: 11330.77963 | Q47: 3586.8539 | R47: 3586.8539 | S47: 2025 | T47: =T46*(1+5*T23) -> 177809.5936 | U47: 177809.5936 | V47: =V46*(1+5*V23) -> 843572.0915 | W47: 843572.0915 | X47: 82675.27104 | Y47: 82675.27104 | Z47: 43444.46517 | AA47: 43444.46517 | AB47: 248032.6283 | AC47: 248032.6283 | AD47: 11330.77963 | AE47: 11330.77963 | AF47: 3586.8539 | AG47: 3586.8539
A48: 2030 | B48: 1421070.924 | C48: 1421070.924 | D48: 2030 | E48: ='4. Data'!D18 -> 183758.0212 | F48: =F47*(1+5*F24) -> 183758.0212 | G48: 839789.7369 | H48: 839789.7369 | I48: 82527.13375 | J48: 82527.13375 | K48: 43249.44142 | L48: 43249.44142 | M48: 256330.0193 | N48: 256330.0193 | O48: 11709.43394 | P48: 11709.43394 | Q48: 3707.137398 | R48: 3707.137398 | S48: 2030 | T48: 183758.0212 | U48: 183758.0212 | V48: =V47*(1+5*V24) -> 839789.7369 | W48: 839789.7369 | X48: 82527.13375 | Y48: 82527.13375 | Z48: 43249.44142 | AA48: 43249.44142 | AB48: 256330.0193 | AC48: 256330.0193 | AD48: 11709.43394 | AE48: 11709.43394 | AF48: 3707.137398 | AG48: 3707.137398
A49: 2035 | B49: 1432201.522 | C49: 1432201.522 | D49: 2035 | E49: ='4. Data'!D19 -> 189905.4471 | F49: =F48*(1+5*F25) -> 189905.4471 | G49: 836024.3414 | H49: 836024.3414 | I49: 82379.2619 | J49: 82379.2619 | K49: 43055.29314 | L49: 43055.29314 | M49: 264904.9815 | N49: 264904.9815 | O49: 12100.74221 | P49: 12100.74221 | Q49: 3831.454548 | R49: 3831.454548 | S49: 2035 | T49: 189905.4471 | U49: 189905.4471 | V49: =V48*(1+5*V25) -> 836024.3414 | W49: 836024.3414 | X49: 82379.2619 | Y49: 82379.2619 | Z49: 43055.29314 | AA49: 43055.29314 | AB49: 264904.9815 | AC49: 264904.9815 | AD49: 12100.74221 | AE49: 12100.74221 | AF49: 3831.454548 | AG49: 3831.454548
A50: 2040 | B50: 1443859.897 | C50: 1443859.897 | D50: 2040 | E50: ='4. Data'!D20 -> 196258.5284 | F50: =F49*(1+5*F26) -> 196258.5284 | G50: 832275.829 | H50: 832275.829 | I50: 82231.65501 | J50: 82231.65501 | K50: 42862.0164 | L50: 42862.0164 | M50: 273766.8003 | N50: 273766.8003 | O50: 12505.12729 | P50: 12505.12729 | Q50: 3959.940616 | R50: 3959.940616 | S50: 2040 | T50: 196258.5284 | U50: 196258.5284 | V50: =V49*(1+5*V26) -> 832275.829 | W50: 832275.829 | X50: 82231.65501 | Y50: 82231.65501 | Z50: 42862.0164 | AA50: 42862.0164 | AB50: 273766.8003 | AC50: 273766.8003 | AD50: 12505.12729 | AE50: 12505.12729 | AF50: 3959.940616 | AG50: 3959.940616
A51: 2045 | B51: 1456063.023 | C51: 1456063.023 | D51: 2045 | E51: ='4. Data'!D21 -> 202824.1452 | F51: =F50*(1+5*F27) -> 202824.1452 | G51: 828544.1239 | H51: 828544.1239 | I51: 82084.31259 | J51: 82084.31259 | K51: 42669.60728 | L51: 42669.60728 | M51: 282925.072 | N51: 282925.072 | O51: 12923.0262 | P51: 12923.0262 | Q51: 4092.735405 | R51: 4092.735405 | S51: 2045 | T51: 202824.1452 | U51: 202824.1452 | V51: =V50*(1+5*V27) -> 828544.1239 | W51: 828544.1239 | X51: 82084.31259 | Y51: 82084.31259 | Z51: 42669.60728 | AA51: 42669.60728 | AB51: 282925.072 | AC51: 282925.072 | AD51: 12923.0262 | AE51: 12923.0262 | AF51: 4092.735405 | AG51: 4092.735405
A52: 2050 | B52: 1468828.442 | C52: 1468828.442 | D52: 2050 | E52: ='4. Data'!D22 -> 209609.4076 | F52: =F51*(1+5*F28) -> 209609.4076 | G52: 824829.1507 | H52: 824829.1507 | I52: 81937.23419 | J52: 81937.23419 | K52: 42478.0619 | L52: 42478.0619 | M52: 292389.7137 | N52: 292389.7137 | O52: 13354.89054 | P52: 13354.89054 | Q52: 4229.983406 | R52: 4229.983406 | S52: 2050 | T52: 209609.4076 | U52: 209609.4076 | V52: =V51*(1+5*V28) -> 824829.1507 | W52: 824829.1507 | X52: 81937.23419 | Y52: 81937.23419 | Z52: 42478.0619 | AA52: 42478.0619 | AB52: 292389.7137 | AC52: 292389.7137 | AD52: 13354.89054 | AE52: 13354.89054 | AF52: 4229.983406 | AG52: 4229.983406
C55: checks | E55: 124590 | F55: 124590 | G55: 859783 | H55: 859783 | I55: 84036 | J55: 84036 | K55: 44281 | L55: 44281 | M55: 176920 | N55: 176920 | O55: 7110 | P55: 7110 | Q55: 6960 | R55: 6960 | T55: 124590 | U55: 124590 | V55: 859783 | W55: 859783 | X55: 84036 | Y55: 84036 | Z55: 44281 | AA55: 44281 | AB55: 176920 | AC55: 176920 | AD55: 7110 | AE55: 7110 | AF55: 6960 | AG55: 6960
E56: 130435 | F56: 130435 | G56: 865071 | H56: 865071 | I56: 84552 | J56: 84552 | K56: 44553 | L56: 44553 | M56: 181949 | N56: 181949 | O56: 8313 | P56: 8313 | Q56: 2630 | R56: 2630 | T56: 130435 | U56: 130435 | V56: 865071 | W56: 865071 | X56: 84552 | Y56: 84552 | Z56: 44553 | AA56: 44553 | AB56: 181949 | AC56: 181949 | AD56: 8313 | AE56: 8313 | AF56: 2630 | AG56: 2630
E57: 134990 | F57: 134990 | G57: 870673 | H57: 870673 | I57: 85100 | J57: 85100 | K57: 44841 | L57: 44841 | M57: 188303 | N57: 188303 | O57: 8604 | P57: 8604 | Q57: 2722 | R57: 2722 | T57: 134990 | U57: 134990 | V57: 870673 | W57: 870673 | X57: 85100 | Y57: 85100 | Z57: 44841 | AA57: 44841 | AB57: 188303 | AC57: 188303 | AD57: 8604 | AE57: 8604 | AF57: 2722 | AG57: 2722
E58: 139411 | F58: 139411 | G58: 875111 | H58: 875111 | I58: 85533 | J58: 85533 | K58: 45070 | L58: 45070 | M58: 194470 | N58: 194470 | O58: 8886 | P58: 8886 | Q58: 2811 | R58: 2811 | T58: 139411 | U58: 139411 | V58: 875111 | W58: 875111 | X58: 85533 | Y58: 85533 | Z58: 45070 | AA58: 45070 | AB58: 194470 | AC58: 194470 | AD58: 8886 | AE58: 8886 | AF58: 2811 | AG58: 2811
E59: 143813 | F59: 143813 | G59: 879156 | H59: 879156 | I59: 85929 | J59: 85929 | K59: 45278 | L59: 45278 | M59: 200611 | N59: 200611 | O59: 9166 | P59: 9166 | Q59: 2900 | R59: 2900 | T59: 143813 | U59: 143813 | V59: 879156 | W59: 879156 | X59: 85929 | Y59: 85929 | Z59: 45278 | AA59: 45278 | AB59: 200611 | AC59: 200611 | AD59: 9166 | AE59: 9166 | AF59: 2900 | AG59: 2900
E60: 143868 | F60: 143868 | G60: 865071 | H60: 865071 | I60: 84552 | J60: 84552 | K60: 44553 | L60: 44553 | M60: 200688 | N60: 200688 | O60: 9170 | P60: 9170 | Q60: 2901 | R60: 2901 | T60: 143868 | U60: 143868 | V60: 865071 | W60: 865071 | X60: 84552 | Y60: 84552 | Z60: 44553 | AA60: 44553 | AB60: 200688 | AC60: 200688 | AD60: 9170 | AE60: 9170 | AF60: 2901 | AG60: 2901
E61: 147890 | F61: 147890 | G61: 865071 | H61: 865071 | I61: 84552 | J61: 84552 | K61: 44553 | L61: 44553 | M61: 206298 | N61: 206298 | O61: 9426 | P61: 9426 | Q61: 2982 | R61: 2982 | T61: 147890 | U61: 147890 | V61: 865071 | W61: 865071 | X61: 84552 | Y61: 84552 | Z61: 44553 | AA61: 44553 | AB61: 206298 | AC61: 206298 | AD61: 9426 | AE61: 9426 | AF61: 2982 | AG61: 2982
E62: 151848 | F62: 151848 | G62: 861968 | H62: 861968 | I62: 84249 | J62: 84249 | K62: 44393 | L62: 44393 | M62: 211819 | N62: 211819 | O62: 9678 | P62: 9678 | Q62: 3062 | R62: 3062 | T62: 151848 | U62: 151848 | V62: 861968 | W62: 861968 | X62: 84249 | Y62: 84249 | Z62: 44393 | AA62: 44393 | AB62: 211819 | AC62: 211819 | AD62: 9678 | AE62: 9678 | AF62: 3062 | AG62: 3062
E63: 159975.857 | F63: 159975.857 | G63: 855784.2609 | H63: 855784.2609 | I63: 83645.17166 | J63: 83645.17166 | K63: 44074.14919 | L63: 44074.14919 | M63: 223156.5088 | N63: 223156.5088 | O63: 10195.47422 | P63: 10195.47422 | Q63: 3226.292421 | R63: 3226.292421 | T63: 159975.857 | U63: 159975.857 | V63: 855784.2609 | W63: 855784.2609 | X63: 83645.17166 | Y63: 83645.17166 | Z63: 44074.14919 | AA63: 44074.14919 | AB63: 223156.5088 | AC63: 223156.5088 | AD63: 10195.47422 | AE63: 10195.47422 | AF63: 3226.292421 | AG63: 3226.292421
E64: 164257.3124 | F64: 164257.3124 | G64: 852714.5723 | H64: 852714.5723 | I64: 83345.42136 | J64: 83345.42136 | K64: 43915.86886 | L64: 43915.86886 | M64: 229128.6806 | N64: 229128.6806 | O64: 10468.04578 | P64: 10468.04578 | Q64: 3312.846208 | R64: 3312.846208 | T64: 164257.3124 | U64: 164257.3124 | V64: 852714.5723 | W64: 852714.5723 | X64: 83345.42136 | Y64: 83345.42136 | Z64: 43915.86886 | AA64: 43915.86886 | AB64: 229128.6806 | AC64: 229128.6806 | AD64: 10468.04578 | AE64: 10468.04578 | AF64: 3312.846208 | AG64: 3312.846208
E65: 168653.353 | F65: 168653.353 | G65: 849655.8947 | H65: 849655.8947 | I65: 83046.74525 | J65: 83046.74525 | K65: 43758.15694 | L65: 43758.15694 | M65: 235260.6811 | N65: 235260.6811 | O65: 10747.90442 | P65: 10747.90442 | Q65: 3401.722029 | R65: 3401.722029 | T65: 168653.353 | U65: 168653.353 | V65: 849655.8947 | W65: 849655.8947 | X65: 83046.74525 | Y65: 83046.74525 | Z65: 43758.15694 | AA65: 43758.15694 | AB65: 235260.6811 | AC65: 235260.6811 | AD65: 10747.90442 | AE65: 10747.90442 | AF65: 3401.722029 | AG65: 3401.722029
E66: 169781.7761 | F66: 169781.7761 | G66: 848893.9681 | H66: 848893.9681 | I66: 82972.3438 | J66: 82972.3438 | K66: 43718.87055 | L66: 43718.87055 | M66: 236834.7078 | N66: 236834.7078 | O66: 10819.73955 | P66: 10819.73955 | Q66: 3424.537066 | R66: 3424.537066 | T66: 169781.7761 | U66: 169781.7761 | V66: 848893.9681 | W66: 848893.9681 | X66: 82972.3438 | Y66: 82972.3438 | Z66: 43718.87055 | AA66: 43718.87055 | AB66: 236834.7078 | AC66: 236834.7078 | AD66: 10819.73955 | AE66: 10819.73955 | AF66: 3424.537066 | AG66: 3424.537066
E67: 172053.7224 | F67: 172053.7224 | G67: 847371.4815 | H67: 847371.4815 | I67: 82823.67423 | J67: 82823.67423 | K67: 43640.36833 | L67: 43640.36833 | M67: 240003.8234 | N67: 240003.8234 | O67: 10964.37006 | P67: 10964.37006 | Q67: 3470.473177 | R67: 3470.473177 | T67: 172053.7224 | U67: 172053.7224 | V67: 847371.4815 | W67: 847371.4815 | X67: 82823.67423 | Y67: 82823.67423 | Z67: 43640.36833 | AA67: 43640.36833 | AB67: 240003.8234 | AC67: 240003.8234 | AD67: 10964.37006 | AE67: 10964.37006 | AF67: 3470.473177 | AG67: 3470.473177
E68: 177809.5936 | F68: 177809.5936 | G68: 843572.0915 | H68: 843572.0915 | I68: 82675.27104 | J68: 82675.27104 | K68: 43444.46517 | L68: 43444.46517 | M68: 248032.6283 | N68: 248032.6283 | O68: 11330.77963 | P68: 11330.77963 | Q68: 3586.8539 | R68: 3586.8539 | T68: 177809.5936 | U68: 177809.5936 | V68: 843572.0915 | W68: 843572.0915 | X68: 82675.27104 | Y68: 82675.27104 | Z68: 43444.46517 | AA68: 43444.46517 | AB68: 248032.6283 | AC68: 248032.6283 | AD68: 11330.77963 | AE68: 11330.77963 | AF68: 3586.8539 | AG68: 3586.8539
E69: 183758.0212 | F69: 183758.0212 | G69: 839789.7369 | H69: 839789.7369 | I69: 82527.13375 | J69: 82527.13375 | K69: 43249.44142 | L69: 43249.44142 | M69: 256330.0193 | N69: 256330.0193 | O69: 11709.43394 | P69: 11709.43394 | Q69: 3707.137398 | R69: 3707.137398 | T69: 183758.0212 | U69: 183758.0212 | V69: 839789.7369 | W69: 839789.7369 | X69: 82527.13375 | Y69: 82527.13375 | Z69: 43249.44142 | AA69: 43249.44142 | AB69: 256330.0193 | AC69: 256330.0193 | AD69: 11709.43394 | AE69: 11709.43394 | AF69: 3707.137398 | AG69: 3707.137398
E70: 189905.4471 | F70: 189905.4471 | G70: 836024.3414 | H70: 836024.3414 | I70: 82379.2619 | J70: 82379.2619 | K70: 43055.29314 | L70: 43055.29314 | M70: 264904.9815 | N70: 264904.9815 | O70: 12100.74221 | P70: 12100.74221 | Q70: 3831.454548 | R70: 3831.454548 | T70: 189905.4471 | U70: 189905.4471 | V70: 836024.3414 | W70: 836024.3414 | X70: 82379.2619 | Y70: 82379.2619 | Z70: 43055.29314 | AA70: 43055.29314 | AB70: 264904.9815 | AC70: 264904.9815 | AD70: 12100.74221 | AE70: 12100.74221 | AF70: 3831.454548 | AG70: 3831.454548
E71: 196258.5284 | F71: 196258.5284 | G71: 832275.829 | H71: 832275.829 | I71: 82231.65501 | J71: 82231.65501 | K71: 42862.0164 | L71: 42862.0164 | M71: 273766.8003 | N71: 273766.8003 | O71: 12505.12729 | P71: 12505.12729 | Q71: 3959.940616 | R71: 3959.940616 | T71: 196258.5284 | U71: 196258.5284 | V71: 832275.829 | W71: 832275.829 | X71: 82231.65501 | Y71: 82231.65501 | Z71: 42862.0164 | AA71: 42862.0164 | AB71: 273766.8003 | AC71: 273766.8003 | AD71: 12505.12729 | AE71: 12505.12729 | AF71: 3959.940616 | AG71: 3959.940616
E72: 202824.1452 | F72: 202824.1452 | G72: 828544.1239 | H72: 828544.1239 | I72: 82084.31259 | J72: 82084.31259 | K72: 42669.60728 | L72: 42669.60728 | M72: 282925.072 | N72: 282925.072 | O72: 12923.0262 | P72: 12923.0262 | Q72: 4092.735405 | R72: 4092.735405 | T72: 202824.1452 | U72: 202824.1452 | V72: 828544.1239 | W72: 828544.1239 | X72: 82084.31259 | Y72: 82084.31259 | Z72: 42669.60728 | AA72: 42669.60728 | AB72: 282925.072 | AC72: 282925.072 | AD72: 12923.0262 | AE72: 12923.0262 | AF72: 4092.735405 | AG72: 4092.735405
E73: 209609.4076 | F73: 209609.4076 | G73: 824829.1507 | H73: 824829.1507 | I73: 81937.23419 | J73: 81937.23419 | K73: 42478.0619 | L73: 42478.0619 | M73: 292389.7137 | N73: 292389.7137 | O73: 13354.89054 | P73: 13354.89054 | Q73: 4229.983406 | R73: 4229.983406 | T73: 209609.4076 | U73: 209609.4076 | V73: 824829.1507 | W73: 824829.1507 | X73: 81937.23419 | Y73: 81937.23419 | Z73: 42478.0619 | AA73: 42478.0619 | AB73: 292389.7137 | AC73: 292389.7137 | AD73: 13354.89054 | AE73: 13354.89054 | AF73: 4229.983406 | AG73: 4229.983406
D75: 2006 | E75: =E34-E55 -> 0 | F75: =F34-F55 -> 0 | G75: 0 | H75: 0 | I75: 0 | J75: 0 | K75: 0 | L75: 0 | M75: 0 | N75: 0 | O75: 0 | P75: 0 | Q75: 0 | R75: 0 | S75: =S34-S55 -> 2006 | T75: 0 | U75: 0 | V75: 0 | W75: 0 | X75: 0 | Y75: 0 | Z75: 0 | AA75: 0 | AB75: 0 | AC75: 0 | AD75: 0 | AE75: 0 | AF75: 0 | AG75: =AG34-AG55 -> 0
D76: 2007 | E76: 0 | F76: =F35-F56 -> 0 | G76: 0 | H76: 0 | I76: 0 | J76: 0 | K76: 0 | L76: 0 | M76: 0 | N76: 0 | O76: 0 | P76: 0 | Q76: 0 | R76: 0 | S76: =S35-S56 -> 2007 | T76: 0 | U76: 0 | V76: 0 | W76: 0 | X76: 0 | Y76: 0 | Z76: 0 | AA76: 0 | AB76: 0 | AC76: 0 | AD76: 0 | AE76: 0 | AF76: 0 | AG76: =AG35-AG56 -> 0
D77: 2008 | E77: 0 | F77: =F36-F57 -> 0 | G77: 0 | H77: 0 | I77: 0 | J77: 0 | K77: 0 | L77: 0 | M77: 0 | N77: 0 | O77: 0 | P77: 0 | Q77: 0 | R77: 0 | S77: =S36-S57 -> 2008 | T77: 0 | U77: 0 | V77: 0 | W77: 0 | X77: 0 | Y77: 0 | Z77: 0 | AA77: 0 | AB77: 0 | AC77: 0 | AD77: 0 | AE77: 0 | AF77: 0 | AG77: =AG36-AG57 -> 0
D78: 2009 | E78: 0 | F78: =F37-F58 -> 0 | G78: 0 | H78: 0 | I78: 0 | J78: 0 | K78: 0 | L78: 0 | M78: 0 | N78: 0 | O78: 0 | P78: 0 | Q78: 0 | R78: 0 | S78: =S37-S58 -> 2009 | T78: 0 | U78: 0 | V78: 0 | W78: 0 | X78: 0 | Y78: 0 | Z78: 0 | AA78: 0 | AB78: 0 | AC78: 0 | AD78: 0 | AE78: 0 | AF78: 0 | AG78: =AG37-AG58 -> 0
D79: 2010 | E79: 0 | F79: =F38-F59 -> 0 | G79: 0 | H79: 0 | I79: 0 | J79: 0 | K79: 0 | L79: 0 | M79: 0 | N79: 0 | O79: 0 | P79: 0 | Q79: 0 | R79: 0 | S79: =S38-S59 -> 2010 | T79: 0 | U79: 0 | V79: 0 | W79: 0 | X79: 0 | Y79: 0 | Z79: 0 | AA79: 0 | AB79: 0 | AC79: 0 | AD79: 0 | AE79: 0 | AF79: 0 | AG79: =AG38-AG59 -> 0
D80: 2011 | E80: 0 | F80: =F39-F60 -> 0 | G80: 0 | H80: 0 | I80: 0 | J80: 0 | K80: 0 | L80: 0 | M80: 0 | N80: 0 | O80: 0 | P80: 0 | Q80: 0 | R80: 0 | S80: =S39-S60 -> 2011 | T80: 0 | U80: 0 | V80: 0 | W80: 0 | X80: 0 | Y80: 0 | Z80: 0 | AA80: 0 | AB80: 0 | AC80: 0 | AD80: 0 | AE80: 0 | AF80: 0 | AG80: =AG39-AG60 -> 0
D81: 2012 | E81: 0 | F81: =F40-F61 -> 0 | G81: 0 | H81: 0 | I81: 0 | J81: 0 | K81: 0 | L81: 0 | M81: 0 | N81: 0 | O81: 0 | P81: 0 | Q81: 0 | R81: 0 | S81: =S40-S61 -> 2012 | T81: 0 | U81: 0 | V81: 0 | W81: 0 | X81: 0 | Y81: 0 | Z81: 0 | AA81: 0 | AB81: 0 | AC81: 0 | AD81: 0 | AE81: 0 | AF81: 0 | AG81: =AG40-AG61 -> 0
D82: 2013 | E82: 0 | F82: =F41-F62 -> 0 | G82: 0 | H82: 0 | I82: 0 | J82: 0 | K82: 0 | L82: 0 | M82: 0 | N82: 0 | O82: 0 | P82: 0 | Q82: 0 | R82: 0 | S82: =S41-S62 -> 2013 | T82: 0 | U82: 0 | V82: 0 | W82: 0 | X82: 0 | Y82: 0 | Z82: 0 | AA82: 0 | AB82: 0 | AC82: 0 | AD82: 0 | AE82: 0 | AF82: 0 | AG82: =AG41-AG62 -> 0
D83: 2015 | E83: 0 | F83: =F42-F63 -> 0 | G83: 0 | H83: 0 | I83: 0 | J83: 0 | K83: 0 | L83: 0 | M83: 0 | N83: 0 | O83: 0 | P83: 0 | Q83: 0 | R83: 0 | S83: =S42-S63 -> 2015 | T83: 0 | U83: 0 | V83: 0 | W83: 0 | X83: 0 | Y83: 0 | Z83: 0 | AA83: 0 | AB83: 0 | AC83: 0 | AD83: 0 | AE83: 0 | AF83: 0 | AG83: =AG42-AG63 -> 0
D84: 2016 | E84: 0 | F84: =F43-F64 -> 0 | G84: 0 | H84: 0 | I84: 0 | J84: 0 | K84: 0 | L84: 0 | M84: 0 | N84: 0 | O84: 0 | P84: 0 | Q84: 0 | R84: 0 | S84: =S43-S64 -> 2016 | T84: 0 | U84: 0 | V84: 0 | W84: 0 | X84: 0 | Y84: 0 | Z84: 0 | AA84: 0 | AB84: 0 | AC84: 0 | AD84: 0 | AE84: 0 | AF84: 0 | AG84: =AG43-AG64 -> 0
D85: 2017 | E85: 0 | F85: =F44-F65 -> 0 | G85: 0 | H85: 0 | I85: 0 | J85: 0 | K85: 0 | L85: 0 | M85: 0 | N85: 0 | O85: 0 | P85: 0 | Q85: 0 | R85: 0 | S85: =S44-S65 -> 2017 | T85: 0 | U85: 0 | V85: 0 | W85: 0 | X85: 0 | Y85: 0 | Z85: 0 | AA85: 0 | AB85: 0 | AC85: 0 | AD85: 0 | AE85: 0 | AF85: 0 | AG85: =AG44-AG65 -> 0
D86: 2018 | E86: 0 | F86: =F45-F66 -> 0 | G86: 0 | H86: 0 | I86: 0 | J86: 0 | K86: 0 | L86: 0 | M86: 0 | N86: 0 | O86: 0 | P86: 0 | Q86: 0 | R86: 0 | S86: =S45-S66 -> 2018 | T86: 0 | U86: 0 | V86: 0 | W86: 0 | X86: 0 | Y86: 0 | Z86: 0 | AA86: 0 | AB86: 0 | AC86: 0 | AD86: 0 | AE86: 0 | AF86: 0 | AG86: =AG45-AG66 -> 0
D87: 2020 | E87: 0 | F87: =F46-F67 -> 0 | G87: 0 | H87: 0 | I87: 0 | J87: 0 | K87: 0 | L87: 0 | M87: 0 | N87: 0 | O87: 0 | P87: 0 | Q87: 0 | R87: 0 | S87: =S46-S67 -> 2020 | T87: 0 | U87: 0 | V87: 0 | W87: 0 | X87: 0 | Y87: 0 | Z87: 0 | AA87: 0 | AB87: 0 | AC87: 0 | AD87: 0 | AE87: 0 | AF87: 0 | AG87: =AG46-AG67 -> 0
D88: 2025 | E88: 0 | F88: =F47-F68 -> 0 | G88: 0 | H88: 0 | I88: 0 | J88: 0 | K88: 0 | L88: 0 | M88: 0 | N88: 0 | O88: 0 | P88: 0 | Q88: 0 | R88: 0 | S88: =S47-S68 -> 2025 | T88: 0 | U88: 0 | V88: 0 | W88: 0 | X88: 0 | Y88: 0 | Z88: 0 | AA88: 0 | AB88: 0 | AC88: 0 | AD88: 0 | AE88: 0 | AF88: 0 | AG88: =AG47-AG68 -> 0
D89: 2030 | E89: 0 | F89: =F48-F69 -> 0 | G89: 0 | H89: 0 | I89: 0 | J89: 0 | K89: 0 | L89: 0 | M89: 0 | N89: 0 | O89: 0 | P89: 0 | Q89: 0 | R89: 0 | S89: =S48-S69 -> 2030 | T89: 0 | U89: 0 | V89: 0 | W89: 0 | X89: 0 | Y89: 0 | Z89: 0 | AA89: 0 | AB89: 0 | AC89: 0 | AD89: 0 | AE89: 0 | AF89: 0 | AG89: =AG48-AG69 -> 0
D90: 2035 | E90: 0 | F90: =F49-F70 -> 0 | G90: 0 | H90: 0 | I90: 0 | J90: 0 | K90: 0 | L90: 0 | M90: 0 | N90: 0 | O90: 0 | P90: 0 | Q90: 0 | R90: 0 | S90: =S49-S70 -> 2035 | T90: 0 | U90: 0 | V90: 0 | W90: 0 | X90: 0 | Y90: 0 | Z90: 0 | AA90: 0 | AB90: 0 | AC90: 0 | AD90: 0 | AE90: 0 | AF90: 0 | AG90: =AG49-AG70 -> 0
D91: 2040 | E91: 0 | F91: =F50-F71 -> 0 | G91: 0 | H91: 0 | I91: 0 | J91: 0 | K91: 0 | L91: 0 | M91: 0 | N91: 0 | O91: 0 | P91: 0 | Q91: 0 | R91: 0 | S91: =S50-S71 -> 2040 | T91: 0 | U91: 0 | V91: 0 | W91: 0 | X91: 0 | Y91: 0 | Z91: 0 | AA91: 0 | AB91: 0 | AC91: 0 | AD91: 0 | AE91: 0 | AF91: 0 | AG91: =AG50-AG71 -> 0
D92: 2045 | E92: 0 | F92: =F51-F72 -> 0 | G92: 0 | H92: 0 | I92: 0 | J92: 0 | K92: 0 | L92: 0 | M92: 0 | N92: 0 | O92: 0 | P92: 0 | Q92: 0 | R92: 0 | S92: =S51-S72 -> 2045 | T92: 0 | U92: 0 | V92: 0 | W92: 0 | X92: 0 | Y92: 0 | Z92: 0 | AA92: 0 | AB92: 0 | AC92: 0 | AD92: 0 | AE92: 0 | AF92: 0 | AG92: =AG51-AG72 -> 0
D93: 2050 | E93: 0 | F93: =F52-F73 -> 0 | G93: 0 | H93: 0 | I93: 0 | J93: 0 | K93: 0 | L93: 0 | M93: 0 | N93: 0 | O93: 0 | P93: 0 | Q93: 0 | R93: 0 | S93: =S52-S73 -> 2050 | T93: 0 | U93: 0 | V93: 0 | W93: 0 | X93: 0 | Y93: 0 | Z93: 0 | AA93: 0 | AB93: 0 | AC93: 0 | AD93: 0 | AE93: 0 | AF93: 0 | AG93: =AG52-AG73 -> 0

Sheet 6. UD1 Assumptions
A1: UD1 ASSUMPTIONS | E1: Excel Toolkit for Mitigation Analysis for Low-Carbon Development Planning | P1: XLMT-Liquid Wastes v17.1
A2: Users can input values in the 'User-specified' columns for different scenarios. Then, proceed to 'Query' for results.
E4: BAU | T4: SCENARIO 1 - INCREASED SEWER CONNECTIONS
B5: Population | E5: % CHANGE IN POPULATION CONNEECTED TO SANITATION SYSTEMS BELOW | T5: % POPULATION CONNEECTED TO SANITATION SYSTEMS BELOW
E6: Sewered Plaines Wilhems | G6: Absorption pit | I6: Septic tank | K6: Pit latrine | M6: Sewered PL and Pte aux Sables | O6: 5 CHA estates | Q6: Grand Baie | T6: Sewered Plaines Wilhems | V6: Absorption pit | X6: Septic tank | Z6: Pit latrine | AB6: Sewered PL and Pte aux Sables | AD6: 5 CHA estates | AF6: Grand Baie
B7: Default | C7: Users-specified | E7: Default | F7: User-specified | G7: Default | H7: User-specified | I7: Default | J7: User-specified | K7: Default | L7: User-specified | M7: Default | N7: User-specified | O7: Default | P7: User-specified | Q7: Default | R7: User-specified | T7: Default | U7: User-specified | V7: Default | W7: User-specified | X7: Default | Y7: User-specified | Z7: Default | AA7: User-specified | AB7: Default | AC7: User-specified | AD7: Default | AE7: User-specified | AF7: Default | AG7: User-specified
B8: Population | C8: Population
A9: YEAR | D9: YEAR | E9: x% | F9: x% | G9: x% | H9: x% | I9: x% | J9: x% | K9: x% | L9: x% | M9: x% | N9: x% | O9: x% | P9: x% | Q9: x% | R9: x% | S9: YEAR | T9: x% | U9: x% | V9: x% | W9: x% | X9: x% | Y9: x% | Z9: x% | AA9: x% | AB9: x% | AC9: x% | AD9: x% | AE9: x% | AF9: x% | AG9: x%
A10: 2006 | B10: =E34+G34+I34+K34+M34+O34+Q34 -> 1303680 | C10: =F34+H34+J34+L34+N34+P34+R34 -> 1303680 | D10: 2006 | S10: 2006
A11: 2007 | B11: =E35+G35+I35+K35+M35+O35+Q35 -> 1317503 | C11: 1317503 | D11: 2007 | E11: =('4. Data'!D5-'4. Data'!D4)/'4. Data'!D4 -> 0.04691387752 | F11: 0.04691387752 | G11: =('4. Data'!E5-'4. Data'!E4)/'4. Data'!E4 -> 0.00615038911 | H11: 0.00615038911 | I11: =('4. Data'!F5-'4. Data'!F4)/'4. Data'!F4 -> 0.006140225618 | J11: 0.006140225618 | K11: =('4. Data'!G5-'4. Data'!G4)/'4. Data'!G4 -> 0.006142589372 | L11: 0.006142589372 | M11: =('4. Data'!H5-'4. Data'!H4)/'4. Data'!H4 -> 0.02842527696 | N11: 0.02842527696 | O11: =('4. Data'!I5-'4. Data'!I4)/'4. Data'!I4 -> 0.1691983122 | P11: 0.1691983122 | Q11: =('4. Data'!J5-'4. Data'!J4)/'4. Data'!J4 -> -0.6221264368 | R11: -0.6221264368 | S11: 2007 | T11: 0.04691387752 | U11: =('4. Data'!D5-'4. Data'!D4)/'4. Data'!D4 -> 0.04691387752 | V11: 0.00615038911 | W11: =('4. Data'!E5-'4. Data'!E4)/'4. Data'!E4 -> 0.00615038911 | X11: 0.006140225618 | Y11: =('4. Data'!F5-'4. Data'!F4)/'4. Data'!F4 -> 0.006140225618 | Z11: 0.006142589372 | AA11: =('4. Data'!G5-'4. Data'!G4)/'4. Data'!G4 -> 0.006142589372 | AB11: 0.02842527696 | AC11: =('4. Data'!H5-'4. Data'!H4)/'4. Data'!H4 -> 0.02842527696 | AD11: 0.1691983122 | AE11: =('4. Data'!I5-'4. Data'!I4)/'4. Data'!I4 -> 0.1691983122 | AF11: -0.6221264368 | AG11: =('4. Data'!J5-'4. Data'!J4)/'4. Data'!J4 -> -0.6221264368
A12: 2008 | B12: 1335233 | C12: 1335233 | D12: 2008 | E12: =('4. Data'!D6-'4. Data'!D5)/'4. Data'!D5 -> 0.03492160846 | F12: 0.03492160846 | G12: =('4. Data'!E6-'4. Data'!E5)/'4. Data'!E5 -> 0.006475769041 | H12: 0.006475769041 | I12: =('4. Data'!F6-'4. Data'!F5)/'4. Data'!F5 -> 0.006481218658 | J12: 0.006481218658 | K12: =('4. Data'!G6-'4. Data'!G5)/'4. Data'!G5 -> 0.006464211164 | L12: 0.006464211164 | M12: =('4. Data'!H6-'4. Data'!H5)/'4. Data'!H5 -> 0.03492187371 | N12: 0.03492187371 | O12: =('4. Data'!I6-'4. Data'!I5)/'4. Data'!I5 -> 0.03500541321 | P12: 0.03500541321 | Q12: =('4. Data'!J6-'4. Data'!J5)/'4. Data'!J5 -> 0.03498098859 | R12: 0.03498098859 | S12: 2008 | T12: 0.03492160846 | U12: =('4. Data'!D6-'4. Data'!D5)/'4. Data'!D5 -> 0.03492160846 | V12: 0.006475769041 | W12: =('4. Data'!E6-'4. Data'!E5)/'4. Data'!E5 -> 0.006475769041 | X12: 0.006481218658 | Y12: =('4. Data'!F6-'4. Data'!F5)/'4. Data'!F5 -> 0.006481218658 | Z12: 0.006464211164 | AA12: =('4. Data'!G6-'4. Data'!G5)/'4. Data'!G5 -> 0.006464211164 | AB12: 0.03492187371 | AC12: =('4. Data'!H6-'4. Data'!H5)/'4. Data'!H5 -> 0.03492187371 | AD12: 0.03500541321 | AE12: =('4. Data'!I6-'4. Data'!I5)/'4. Data'!I5 -> 0.03500541321 | AF12: 0.03498098859 | AG12: =('4. Data'!J6-'4. Data'!J5)/'4. Data'!J5 -> 0.03498098859
A13: 2009 | B13: 1351292 | C13: 1351292 | D13: 2009 | E13: =('4. Data'!D7-'4. Data'!D6)/'4. Data'!D6 -> 0.03275057412 | F13: 0.03275057412 | G13: =('4. Data'!E7-'4. Data'!E6)/'4. Data'!E6 -> 0.005097206414 | H13: 0.005097206414 | I13: =('4. Data'!F7-'4. Data'!F6)/'4. Data'!F6 -> 0.00508813161 | J13: 0.00508813161 | K13: =('4. Data'!G7-'4. Data'!G6)/'4. Data'!G6 -> 0.005106933387 | L13: 0.005106933387 | M13: =('4. Data'!H7-'4. Data'!H6)/'4. Data'!H6 -> 0.03275040759 | N13: 0.03275040759 | O13: =('4. Data'!I7-'4. Data'!I6)/'4. Data'!I6 -> 0.03277545328 | P13: 0.03277545328 | Q13: =('4. Data'!J7-'4. Data'!J6)/'4. Data'!J6 -> 0.03269654666 | R13: 0.03269654666 | S13: 2009 | T13: 0.03275057412 | U13: =('4. Data'!D7-'4. Data'!D6)/'4. Data'!D6 -> 0.03275057412 | V13: 0.005097206414 | W13: =('4. Data'!E7-'4. Data'!E6)/'4. Data'!E6 -> 0.005097206414 | X13: 0.00508813161 | Y13: =('4. Data'!F7-'4. Data'!F6)/'4. Data'!F6 -> 0.00508813161 | Z13: 0.005106933387 | AA13: =('4. Data'!G7-'4. Data'!G6)/'4. Data'!G6 -> 0.005106933387 | AB13: 0.03275040759 | AC13: =('4. Data'!H7-'4. Data'!H6)/'4. Data'!H6 -> 0.03275040759 | AD13: 0.03277545328 | AE13: =('4. Data'!I7-'4. Data'!I6)/'4. Data'!I6 -> 0.03277545328 | AF13: 0.03269654666 | AG13: =('4. Data'!J7-'4. Data'!J6)/'4. Data'!J6 -> 0.03269654666
A14: 2010 | B14: 1366853 | C14: 1366853 | D14: 2010 | E14: =('4. Data'!D8-'4. Data'!D7)/'4. Data'!D7 -> 0.03157570063 | F14: 0.03157570063 | G14: =('4. Data'!E8-'4. Data'!E7)/'4. Data'!E7 -> 0.004622270775 | H14: 0.004622270775 | I14: =('4. Data'!F8-'4. Data'!F7)/'4. Data'!F7 -> 0.00462979201 | J14: 0.00462979201 | K14: =('4. Data'!G8-'4. Data'!G7)/'4. Data'!G7 -> 0.004615043266 | L14: 0.004615043266 | M14: =('4. Data'!H8-'4. Data'!H7)/'4. Data'!H7 -> 0.03157813545 | N14: 0.03157813545 | O14: =('4. Data'!I8-'4. Data'!I7)/'4. Data'!I7 -> 0.03151024083 | P14: 0.03151024083 | Q14: =('4. Data'!J8-'4. Data'!J7)/'4. Data'!J7 -> 0.03166133049 | R14: 0.03166133049 | S14: 2010 | T14: 0.03157570063 | U14: =('4. Data'!D8-'4. Data'!D7)/'4. Data'!D7 -> 0.03157570063 | V14: 0.004622270775 | W14: =('4. Data'!E8-'4. Data'!E7)/'4. Data'!E7 -> 0.004622270775 | X14: 0.00462979201 | Y14: =('4. Data'!F8-'4. Data'!F7)/'4. Data'!F7 -> 0.00462979201 | Z14: 0.004615043266 | AA14: =('4. Data'!G8-'4. Data'!G7)/'4. Data'!G7 -> 0.004615043266 | AB14: 0.03157813545 | AC14: =('4. Data'!H8-'4. Data'!H7)/'4. Data'!H7 -> 0.03157813545 | AD14: 0.03151024083 | AE14: =('4. Data'!I8-'4. Data'!I7)/'4. Data'!I7 -> 0.03151024083 | AF14: 0.03166133049 | AG14: =('4. Data'!J8-'4. Data'!J7)/'4. Data'!J7 -> 0.03166133049
A15: 2011 | B15: 1350803 | C15: 1350803 | D15: 2011 | E15: =('4. Data'!D9-'4. Data'!D8)/'4. Data'!D8 -> 0.0003824410867 | F15: 0.0003824410867 | G15: =('4. Data'!E9-'4. Data'!E8)/'4. Data'!E8 -> -0.01602104746 | H15: -0.01602104746 | I15: =('4. Data'!F9-'4. Data'!F8)/'4. Data'!F8 -> -0.01602485773 | J15: -0.01602485773 | K15: =('4. Data'!G9-'4. Data'!G8)/'4. Data'!G8 -> -0.01601219135 | L15: -0.01601219135 | M15: =('4. Data'!H9-'4. Data'!H8)/'4. Data'!H8 -> 0.0003838274073 | N15: 0.0003838274073 | O15: =('4. Data'!I9-'4. Data'!I8)/'4. Data'!I8 -> 0.0004363953742 | P15: 0.0004363953742 | Q15: =('4. Data'!J9-'4. Data'!J8)/'4. Data'!J8 -> 0.0003448275862 | R15: 0.0003448275862 | S15: 2011 | T15: 0.0003824410867 | U15: =('4. Data'!D9-'4. Data'!D8)/'4. Data'!D8 -> 0.0003824410867 | V15: -0.01602104746 | W15: =('4. Data'!E9-'4. Data'!E8)/'4. Data'!E8 -> -0.01602104746 | X15: -0.01602485773 | Y15: =('4. Data'!F9-'4. Data'!F8)/'4. Data'!F8 -> -0.01602485773 | Z15: -0.01601219135 | AA15: =('4. Data'!G9-'4. Data'!G8)/'4. Data'!G8 -> -0.01601219135 | AB15: 0.0003838274073 | AC15: =('4. Data'!H9-'4. Data'!H8)/'4. Data'!H8 -> 0.0003838274073 | AD15: 0.0004363953742 | AE15: =('4. Data'!I9-'4. Data'!I8)/'4. Data'!I8 -> 0.0004363953742 | AF15: 0.0003448275862 | AG15: =('4. Data'!J9-'4. Data'!J8)/'4. Data'!J8 -> 0.0003448275862
A16: 2012 | B16: 1360772 | C16: 1360772 | D16: 2012 | E16: =('4. Data'!D10-'4. Data'!D9)/'4. Data'!D9 -> 0.02795618206 | F16: 0.02795618206 | G16: =('4. Data'!E10-'4. Data'!E9)/'4. Data'!E9 -> 0 | H16: 0 | I16: =('4. Data'!F10-'4. Data'!F9)/'4. Data'!F9 -> 0 | J16: 0 | K16: =('4. Data'!G10-'4. Data'!G9)/'4. Data'!G9 -> 0 | L16: 0 | M16: =('4. Data'!H10-'4. Data'!H9)/'4. Data'!H9 -> 0.02795383879 | N16: 0.02795383879 | O16: =('4. Data'!I10-'4. Data'!I9)/'4. Data'!I9 -> 0.02791712105 | P16: 0.02791712105 | Q16: =('4. Data'!J10-'4. Data'!J9)/'4. Data'!J9 -> 0.02792140641 | R16: 0.02792140641 | S16: 2012 | T16: 0.02795618206 | U16: =('4. Data'!D10-'4. Data'!D9)/'4. Data'!D9 -> 0.02795618206 | V16: 0 | W16: =('4. Data'!E10-'4. Data'!E9)/'4. Data'!E9 -> 0 | X16: 0 | Y16: =('4. Data'!F10-'4. Data'!F9)/'4. Data'!F9 -> 0 | Z16: 0 | AA16: =('4. Data'!G10-'4. Data'!G9)/'4. Data'!G9 -> 0 | AB16: 0.02795383879 | AC16: =('4. Data'!H10-'4. Data'!H9)/'4. Data'!H9 -> 0.02795383879 | AD16: 0.02791712105 | AE16: =('4. Data'!I10-'4. Data'!I9)/'4. Data'!I9 -> 0.02791712105 | AF16: 0.02792140641 | AG16: =('4. Data'!J10-'4. Data'!J9)/'4. Data'!J9 -> 0.02792140641
A17: 2013 | B17: 1367017 | C17: 1367017 | D17: 2013 | E17: =('4. Data'!D11-'4. Data'!D10)/'4. Data'!D10 -> 0.02676313476 | F17: 0.02676313476 | G17: =('4. Data'!E11-'4. Data'!E10)/'4. Data'!E10 -> -0.003586988814 | H17: -0.003586988814 | I17: =('4. Data'!F11-'4. Data'!F10)/'4. Data'!F10 -> -0.003583593528 | J17: -0.003583593528 | K17: =('4. Data'!G11-'4. Data'!G10)/'4. Data'!G10 -> -0.003591228425 | L17: -0.003591228425 | M17: =('4. Data'!H11-'4. Data'!H10)/'4. Data'!H10 -> 0.02676225654 | N17: 0.02676225654 | O17: =('4. Data'!I11-'4. Data'!I10)/'4. Data'!I10 -> 0.02673456397 | P17: 0.02673456397 | Q17: =('4. Data'!J11-'4. Data'!J10)/'4. Data'!J10 -> 0.02682763246 | R17: 0.02682763246 | S17: 2013 | T17: 0.02676313476 | U17: =('4. Data'!D11-'4. Data'!D10)/'4. Data'!D10 -> 0.02676313476 | V17: -0.003586988814 | W17: =('4. Data'!E11-'4. Data'!E10)/'4. Data'!E10 -> -0.003586988814 | X17: -0.003583593528 | Y17: =('4. Data'!F11-'4. Data'!F10)/'4. Data'!F10 -> -0.003583593528 | Z17: -0.003591228425 | AA17: =('4. Data'!G11-'4. Data'!G10)/'4. Data'!G10 -> -0.003591228425 | AB17: 0.02676225654 | AC17: =('4. Data'!H11-'4. Data'!H10)/'4. Data'!H10 -> 0.02676225654 | AD17: 0.02673456397 | AE17: =('4. Data'!I11-'4. Data'!I10)/'4. Data'!I10 -> 0.02673456397 | AF17: 0.02682763246 | AG17: =('4. Data'!J11-'4. Data'!J10)/'4. Data'!J10 -> 0.02682763246
A18: 2015 | B18: 1380057.714 | C18: 1380057.714 | D18: 2015 | E18: =('4. Data'!D12-'4. Data'!D11)/'4. Data'!D11/2 -> 0.02676313476 | F18: 0.02676313476 | G18: =('4. Data'!E12-'4. Data'!E11)/'4. Data'!E11/2 -> -0.003586988814 | H18: -0.003586988814 | I18: =('4. Data'!F12-'4. Data'!F11)/'4. Data'!F11/2 -> -0.003583593528 | J18: -0.003583593528 | K18: =('4. Data'!G12-'4. Data'!G11)/'4. Data'!G11/2 -> -0.003591228425 | L18: -0.003591228425 | M18: =('4. Data'!H12-'4. Data'!H11)/'4. Data'!H11/2 -> 0.02676225654 | N18: 0.02676225654 | O18: =('4. Data'!I12-'4. Data'!I11)/'4. Data'!I11/2 -> 0.02673456397 | P18: 0.02673456397 | Q18: =('4. Data'!J12-'4. Data'!J11)/'4. Data'!J11/2 -> 0.02682763246 | R18: 0.02682763246 | S18: 2015 | T18: 0.02676313476 | U18: =('4. Data'!D12-'4. Data'!D11)/'4. Data'!D11/2 -> 0.02676313476 | V18: -0.003586988814 | W18: =('4. Data'!E12-'4. Data'!E11)/'4. Data'!E11/2 -> -0.003586988814 | X18: -0.003583593528 | Y18: =('4. Data'!F12-'4. Data'!F11)/'4. Data'!F11/2 -> -0.003583593528 | Z18: -0.003591228425 | AA18: =('4. Data'!G12-'4. Data'!G11)/'4. Data'!G11/2 -> -0.003591228425 | AB18: 0.02676225654 | AC18: =('4. Data'!H12-'4. Data'!H11)/'4. Data'!H11/2 -> 0.02676225654 | AD18: 0.02673456397 | AE18: =('4. Data'!I12-'4. Data'!I11)/'4. Data'!I11/2 -> 0.02673456397 | AF18: 0.02682763246 | AG18: =('4. Data'!J12-'4. Data'!J11)/'4. Data'!J11/2 -> 0.02682763246
A19: 2016 | B19: 1387142.747 | C19: 1387142.747 | D19: 2016 | E19: =('4. Data'!D13-'4. Data'!D12)/'4. Data'!D12 -> 0.02676313476 | F19: 0.02676313476 | G19: =('4. Data'!E13-'4. Data'!E12)/'4. Data'!E12 -> -0.003586988814 | H19: -0.003586988814 | I19: =('4. Data'!F13-'4. Data'!F12)/'4. Data'!F12 -> -0.003583593528 | J19: -0.003583593528 | K19: =('4. Data'!G13-'4. Data'!G12)/'4. Data'!G12 -> -0.003591228425 | L19: -0.003591228425 | M19: =('4. Data'!H13-'4. Data'!H12)/'4. Data'!H12 -> 0.02676225654 | N19: 0.02676225654 | O19: =('4. Data'!I13-'4. Data'!I12)/'4. Data'!I12 -> 0.02673456397 | P19: 0.02673456397 | Q19: =('4. Data'!J13-'4. Data'!J12)/'4. Data'!J12 -> 0.02682763246 | R19: 0.02682763246 | S19: 2016 | T19: 0.02676313476 | U19: =('4. Data'!D13-'4. Data'!D12)/'4. Data'!D12 -> 0.02676313476 | V19: -0.003586988814 | W19: =('4. Data'!E13-'4. Data'!E12)/'4. Data'!E12 -> -0.003586988814 | X19: -0.003583593528 | Y19: =('4. Data'!F13-'4. Data'!F12)/'4. Data'!F12 -> -0.003583593528 | Z19: -0.003591228425 | AA19: =('4. Data'!G13-'4. Data'!G12)/'4. Data'!G12 -> -0.003591228425 | AB19: 0.02676225654 | AC19: =('4. Data'!H13-'4. Data'!H12)/'4. Data'!H12 -> 0.02676225654 | AD19: 0.02673456397 | AE19: =('4. Data'!I13-'4. Data'!I12)/'4. Data'!I12 -> 0.02673456397 | AF19: 0.02682763246 | AG19: =('4. Data'!J13-'4. Data'!J12)/'4. Data'!J12 -> 0.02682763246
A20: 2017 | B20: 1394524.457 | C20: 1394524.457 | D20: 2017 | E20: =('4. Data'!D14-'4. Data'!D13)/'4. Data'!D13 -> 0.02676313476 | F20: 0.02676313476 | G20: =('4. Data'!E14-'4. Data'!E13)/'4. Data'!E13 -> -0.003586988814 | H20: -0.003586988814 | I20: =('4. Data'!F14-'4. Data'!F13)/'4. Data'!F13 -> -0.003583593528 | J20: -0.003583593528 | K20: =('4. Data'!G14-'4. Data'!G13)/'4. Data'!G13 -> -0.003591228425 | L20: -0.003591228425 | M20: =('4. Data'!H14-'4. Data'!H13)/'4. Data'!H13 -> 0.02676225654 | N20: 0.02676225654 | O20: =('4. Data'!I14-'4. Data'!I13)/'4. Data'!I13 -> 0.02673456397 | P20: 0.02673456397 | Q20: =('4. Data'!J14-'4. Data'!J13)/'4. Data'!J13 -> 0.02682763246 | R20: 0.02682763246 | S20: 2017 | T20: 0.02676313476 | U20: =('4. Data'!D14-'4. Data'!D13)/'4. Data'!D13 -> 0.02676313476 | V20: -0.003586988814 | W20: =('4. Data'!E14-'4. Data'!E13)/'4. Data'!E13 -> -0.003586988814 | X20: -0.003583593528 | Y20: =('4. Data'!F14-'4. Data'!F13)/'4. Data'!F13 -> -0.003583593528 | Z20: -0.003591228425 | AA20: =('4. Data'!G14-'4. Data'!G13)/'4. Data'!G13 -> -0.003591228425 | AB20: 0.02676225654 | AC20: =('4. Data'!H14-'4. Data'!H13)/'4. Data'!H13 -> 0.02676225654 | AD20: 0.02673456397 | AE20: =('4. Data'!I14-'4. Data'!I13)/'4. Data'!I13 -> 0.02673456397 | AF20: 0.02682763246 | AG20: =('4. Data'!J14-'4. Data'!J13)/'4. Data'!J13 -> 0.02682763246
A21: 2018 | B21: 1396445.943 | C21: 1396445.943 | D21: 2018 | E21: =('4. Data'!D15-'4. Data'!D14)/'4. Data'!D14 -> 0.006690783691 | F21: 0.006690783691 | G21: =('4. Data'!E15-'4. Data'!E14)/'4. Data'!E14 -> -0.0008967472034 | H21: -0.0008967472034 | I21: =('4. Data'!F15-'4. Data'!F14)/'4. Data'!F14 -> -0.0008958983821 | J21: -0.0008958983821 | K21: =('4. Data'!G15-'4. Data'!G14)/'4. Data'!G14 -> -0.0008978071061 | L21: -0.0008978071061 | M21: =('4. Data'!H15-'4. Data'!H14)/'4. Data'!H14 -> 0.006690564135 | N21: 0.006690564135 | O21: =('4. Data'!I15-'4. Data'!I14)/'4. Data'!I14 -> 0.006683640993 | P21: 0.006683640993 | Q21: =('4. Data'!J15-'4. Data'!J14)/'4. Data'!J14 -> 0.006706908115 | R21: 0.006706908115 | S21: 2018 | T21: 0.006690783691 | U21: =('4. Data'!D15-'4. Data'!D14)/'4. Data'!D14 -> 0.006690783691 | V21: -0.0008967472034 | W21: =('4. Data'!E15-'4. Data'!E14)/'4. Data'!E14 -> -0.0008967472034 | X21: -0.0008958983821 | Y21: =('4. Data'!F15-'4. Data'!F14)/'4. Data'!F14 -> -0.0008958983821 | Z21: -0.0008978071061 | AA21: =('4. Data'!G15-'4. Data'!G14)/'4. Data'!G14 -> -0.0008978071061 | AB21: 0.006690564135 | AC21: =('4. Data'!H15-'4. Data'!H14)/'4. Data'!H14 -> 0.006690564135 | AD21: 0.006683640993 | AE21: =('4. Data'!I15-'4. Data'!I14)/'4. Data'!I14 -> 0.006683640993 | AF21: 0.006706908115 | AG21: =('4. Data'!J15-'4. Data'!J14)/'4. Data'!J14 -> 0.006706908115
A22: 2020 | B22: 1400327.913 | C22: 1400327.913 | D22: 2020 | E22: =('4. Data'!D16-'4. Data'!D15)/'4. Data'!D15/2 -> 0.006690783691 | F22: 0.006690783691 | G22: =('4. Data'!E16-'4. Data'!E15)/'4. Data'!E15/2 -> -0.0008967472034 | H22: -0.0008967472034 | I22: =('4. Data'!F16-'4. Data'!F15)/'4. Data'!F15/2 -> -0.0008958983821 | J22: -0.0008958983821 | K22: =('4. Data'!G16-'4. Data'!G15)/'4. Data'!G15/2 -> -0.0008978071061 | L22: -0.0008978071061 | M22: =('4. Data'!H16-'4. Data'!H15)/'4. Data'!H15/2 -> 0.006690564135 | N22: 0.006690564135 | O22: =('4. Data'!I16-'4. Data'!I15)/'4. Data'!I15/2 -> 0.006683640993 | P22: 0.006683640993 | Q22: =('4. Data'!J16-'4. Data'!J15)/'4. Data'!J15/2 -> 0.006706908115 | R22: 0.006706908115 | S22: 2020 | T22: 0.006690783691 | U22: =('4. Data'!D16-'4. Data'!D15)/'4. Data'!D15/2 -> 0.006690783691 | V22: -0.0008967472034 | W22: =('4. Data'!E16-'4. Data'!E15)/'4. Data'!E15/2 -> -0.0008967472034 | X22: -0.0008958983821 | Y22: =('4. Data'!F16-'4. Data'!F15)/'4. Data'!F15/2 -> -0.0008958983821 | Z22: -0.0008978071061 | AA22: =('4. Data'!G16-'4. Data'!G15)/'4. Data'!G15/2 -> -0.0008978071061 | AB22: 0.006690564135 | AC22: =('4. Data'!H16-'4. Data'!H15)/'4. Data'!H15/2 -> 0.006690564135 | AD22: 0.006683640993 | AE22: =('4. Data'!I16-'4. Data'!I15)/'4. Data'!I15/2 -> 0.006683640993 | AF22: 0.006706908115 | AG22: =('4. Data'!J16-'4. Data'!J15)/'4. Data'!J15/2 -> 0.006706908115
A23: 2025 | B23: 1410451.683 | C23: 1410451.683 | D23: 2025 | E23: =('4. Data'!D17-'4. Data'!D16)/'4. Data'!D16/5 -> 0.006690783691 | F23: 0.006690783691 | G23: =('4. Data'!E17-'4. Data'!E16)/'4. Data'!E16/5 -> -0.0008967472034 | H23: -0.0008967472034 | I23: =('4. Data'!F17-'4. Data'!F16)/'4. Data'!F16/5 -> -0.0003583593528 | J23: -0.0003583593528 | K23: =('4. Data'!G17-'4. Data'!G16)/'4. Data'!G16/5 -> -0.0008978071061 | L23: -0.0008978071061 | M23: =('4. Data'!H17-'4. Data'!H16)/'4. Data'!H16/5 -> 0.006690564135 | N23: 0.006690564135 | O23: =('4. Data'!I17-'4. Data'!I16)/'4. Data'!I16/5 -> 0.006683640993 | P23: 0.006683640993 | Q23: =('4. Data'!J17-'4. Data'!J16)/'4. Data'!J16/5 -> 0.006706908115 | R23: 0.006706908115 | S23: 2025 | T23: 0.006690783691 | U23: =('4. Data'!D17-'4. Data'!D16)/'4. Data'!D16/5 -> 0.006690783691 | V23: -0.0008967472034 | W23: =('4. Data'!E17-'4. Data'!E16)/'4. Data'!E16/5 -> -0.0008967472034 | X23: -0.0003583593528 | Y23: =('4. Data'!F17-'4. Data'!F16)/'4. Data'!F16/5 -> -0.0003583593528 | Z23: -0.0008978071061 | AA23: =('4. Data'!G17-'4. Data'!G16)/'4. Data'!G16/5 -> -0.0008978071061 | AB23: 0.006690564135 | AC23: =('4. Data'!H17-'4. Data'!H16)/'4. Data'!H16/5 -> 0.006690564135 | AD23: 0.006683640993 | AE23: =('4. Data'!I17-'4. Data'!I16)/'4. Data'!I16/5 -> 0.006683640993 | AF23: 0.006706908115 | AG23: =('4. Data'!J17-'4. Data'!J16)/'4. Data'!J16/5 -> 0.006706908115
A24: 2030 | B24: 1421070.924 | C24: 1421070.924 | D24: 2030 | E24: =('4. Data'!D18-'4. Data'!D17)/'4. Data'!D17/5 -> 0.006690783691 | F24: 0.006690783691 | G24: =('4. Data'!E18-'4. Data'!E17)/'4. Data'!E17/5 -> -0.0008967472034 | H24: -0.0008967472034 | I24: =('4. Data'!F18-'4. Data'!F17)/'4. Data'!F17/5 -> -0.0003583593528 | J24: -0.0003583593528 | K24: =('4. Data'!G18-'4. Data'!G17)/'4. Data'!G17/5 -> -0.0008978071061 | L24: -0.0008978071061 | M24: =('4. Data'!H18-'4. Data'!H17)/'4. Data'!H17/5 -> 0.006690564135 | N24: 0.006690564135 | O24: =('4. Data'!I18-'4. Data'!I17)/'4. Data'!I17/5 -> 0.006683640993 | P24: 0.006683640993 | Q24: =('4. Data'!J18-'4. Data'!J17)/'4. Data'!J17/5 -> 0.006706908115 | R24: 0.006706908115 | S24: 2030 | T24: 0.006690783691 | U24: =('4. Data'!D18-'4. Data'!D17)/'4. Data'!D17/5 -> 0.006690783691 | V24: -0.0008967472034 | W24: =('4. Data'!E18-'4. Data'!E17)/'4. Data'!E17/5 -> -0.0008967472034 | X24: -0.0003583593528 | Y24: =('4. Data'!F18-'4. Data'!F17)/'4. Data'!F17/5 -> -0.0003583593528 | Z24: -0.0008978071061 | AA24: =('4. Data'!G18-'4. Data'!G17)/'4. Data'!G17/5 -> -0.0008978071061 | AB24: 0.006690564135 | AC24: =('4. Data'!H18-'4. Data'!H17)/'4. Data'!H17/5 -> 0.006690564135 | AD24: 0.006683640993 | AE24: =('4. Data'!I18-'4. Data'!I17)/'4. Data'!I17/5 -> 0.006683640993 | AF24: 0.006706908115 | AG24: =('4. Data'!J18-'4. Data'!J17)/'4. Data'!J17/5 -> 0.006706908115
A25: 2035 | B25: 1432201.522 | C25: 1432201.522 | D25: 2035 | E25: =('4. Data'!D19-'4. Data'!D18)/'4. Data'!D18/5 -> 0.006690783691 | F25: 0.006690783691 | G25: =('4. Data'!E19-'4. Data'!E18)/'4. Data'!E18/5 -> -0.0008967472034 | H25: -0.0008967472034 | I25: =('4. Data'!F19-'4. Data'!F18)/'4. Data'!F18/5 -> -0.0003583593528 | J25: -0.0003583593528 | K25: =('4. Data'!G19-'4. Data'!G18)/'4. Data'!G18/5 -> -0.0008978071061 | L25: -0.0008978071061 | M25: =('4. Data'!H19-'4. Data'!H18)/'4. Data'!H18/5 -> 0.006690564135 | N25: 0.006690564135 | O25: =('4. Data'!I19-'4. Data'!I18)/'4. Data'!I18/5 -> 0.006683640993 | P25: 0.006683640993 | Q25: =('4. Data'!J19-'4. Data'!J18)/'4. Data'!J18/5 -> 0.006706908115 | R25: 0.006706908115 | S25: 2035 | T25: 0.006690783691 | U25: =('4. Data'!D19-'4. Data'!D18)/'4. Data'!D18/5 -> 0.006690783691 | V25: -0.0008967472034 | W25: =('4. Data'!E19-'4. Data'!E18)/'4. Data'!E18/5 -> -0.0008967472034 | X25: -0.0003583593528 | Y25: =('4. Data'!F19-'4. Data'!F18)/'4. Data'!F18/5 -> -0.0003583593528 | Z25: -0.0008978071061 | AA25: =('4. Data'!G19-'4. Data'!G18)/'4. Data'!G18/5 -> -0.0008978071061 | AB25: 0.006690564135 | AC25: =('4. Data'!H19-'4. Data'!H18)/'4. Data'!H18/5 -> 0.006690564135 | AD25: 0.006683640993 | AE25: =('4. Data'!I19-'4. Data'!I18)/'4. Data'!I18/5 -> 0.006683640993 | AF25: 0.006706908115 | AG25: =('4. Data'!J19-'4. Data'!J18)/'4. Data'!J18/5 -> 0.006706908115
A26: 5 | B26: 1443859.897 | C26: 1443859.897 | D26: 2040 | E26: =('4. Data'!D20-'4. Data'!D19)/'4. Data'!D19/5 -> 0.006690783691 | F26: 0.006690783691 | G26: =('4. Data'!E20-'4. Data'!E19)/'4. Data'!E19/5 -> -0.0008967472034 | H26: -0.0008967472034 | I26: =('4. Data'!F20-'4. Data'!F19)/'4. Data'!F19/5 -> -0.0003583593528 | J26: -0.0003583593528 | K26: =('4. Data'!G20-'4. Data'!G19)/'4. Data'!G19/5 -> -0.0008978071061 | L26: -0.0008978071061 | M26: =('4. Data'!H20-'4. Data'!H19)/'4. Data'!H19/5 -> 0.006690564135 | N26: 0.006690564135 | O26: =('4. Data'!I20-'4. Data'!I19)/'4. Data'!I19/5 -> 0.006683640993 | P26: 0.006683640993 | Q26: =('4. Data'!J20-'4. Data'!J19)/'4. Data'!J19/5 -> 0.006706908115 | R26: 0.006706908115 | S26: 2040 | T26: 0.006690783691 | U26: =('4. Data'!D20-'4. Data'!D19)/'4. Data'!D19/5 -> 0.006690783691 | V26: -0.0008967472034 | W26: =('4. Data'!E20-'4. Data'!E19)/'4. Data'!E19/5 -> -0.0008967472034 | X26: -0.0003583593528 | Y26: =('4. Data'!F20-'4. Data'!F19)/'4. Data'!F19/5 -> -0.0003583593528 | Z26: -0.0008978071061 | AA26: =('4. Data'!G20-'4. Data'!G19)/'4. Data'!G19/5 -> -0.0008978071061 | AB26: 0.006690564135 | AC26: =('4. Data'!H20-'4. Data'!H19)/'4. Data'!H19/5 -> 0.006690564135 | AD26: 0.006683640993 | AE26: =('4. Data'!I20-'4. Data'!I19)/'4. Data'!I19/5 -> 0.006683640993 | AF26: 0.006706908115 | AG26: =('4. Data'!J20-'4. Data'!J19)/'4. Data'!J19/5 -> 0.006706908115
A27: 2045 | B27: =E51+G51+I51+K51+M51+O51+Q51 -> 1456063.023 | C27: 1456063.023 | D27: 2045 | E27: =('4. Data'!D21-'4. Data'!D20)/'4. Data'!D20/5 -> 0.006690783691 | F27: 0.006690783691 | G27: =('4. Data'!E21-'4. Data'!E20)/'4. Data'!E20/5 -> -0.0008967472034 | H27: -0.0008967472034 | I27: =('4. Data'!F21-'4. Data'!F20)/'4. Data'!F20/5 -> -0.0003583593528 | J27: -0.0003583593528 | K27: =('4. Data'!G21-'4. Data'!G20)/'4. Data'!G20/5 -> -0.0008978071061 | L27: -0.0008978071061 | M27: =('4. Data'!H21-'4. Data'!H20)/'4. Data'!H20/5 -> 0.006690564135 | N27: 0.006690564135 | O27: =('4. Data'!I21-'4. Data'!I20)/'4. Data'!I20/5 -> 0.006683640993 | P27: 0.006683640993 | Q27: =('4. Data'!J21-'4. Data'!J20)/'4. Data'!J20/5 -> 0.006706908115 | R27: 0.006706908115 | S27: 2045 | T27: 0.006690783691 | U27: =('4. Data'!D21-'4. Data'!D20)/'4. Data'!D20/5 -> 0.006690783691 | V27: -0.0008967472034 | W27: =('4. Data'!E21-'4. Data'!E20)/'4. Data'!E20/5 -> -0.0008967472034 | X27: -0.0003583593528 | Y27: =('4. Data'!F21-'4. Data'!F20)/'4. Data'!F20/5 -> -0.0003583593528 | Z27: -0.0008978071061 | AA27: =('4. Data'!G21-'4. Data'!G20)/'4. Data'!G20/5 -> -0.0008978071061 | AB27: 0.006690564135 | AC27: =('4. Data'!H21-'4. Data'!H20)/'4. Data'!H20/5 -> 0.006690564135 | AD27: 0.006683640993 | AE27: =('4. Data'!I21-'4. Data'!I20)/'4. Data'!I20/5 -> 0.006683640993 | AF27: 0.006706908115 | AG27: =('4. Data'!J21-'4. Data'!J20)/'4. Data'!J20/5 -> 0.006706908115
A28: 2050 | B28: 1468828.442 | C28: 1468828.442 | D28: 2050 | E28: =('4. Data'!D22-'4. Data'!D21)/'4. Data'!D21/5 -> 0.006690783691 | F28: 0.006690783691 | G28: =('4. Data'!E22-'4. Data'!E21)/'4. Data'!E21/5 -> -0.0008967472034 | H28: -0.0008967472034 | I28: =('4. Data'!F22-'4. Data'!F21)/'4. Data'!F21/5 -> -0.0003583593528 | J28: -0.0003583593528 | K28: =('4. Data'!G22-'4. Data'!G21)/'4. Data'!G21/5 -> -0.0008978071061 | L28: -0.0008978071061 | M28: =('4. Data'!H22-'4. Data'!H21)/'4. Data'!H21/5 -> 0.006690564135 | N28: 0.006690564135 | O28: =('4. Data'!I22-'4. Data'!I21)/'4. Data'!I21/5 -> 0.006683640993 | P28: 0.006683640993 | Q28: =('4. Data'!J22-'4. Data'!J21)/'4. Data'!J21/5 -> 0.006706908115 | R28: 0.006706908115 | S28: 2050 | T28: 0.006690783691 | U28: =('4. Data'!D22-'4. Data'!D21)/'4. Data'!D21/5 -> 0.006690783691 | V28: -0.0008967472034 | W28: =('4. Data'!E22-'4. Data'!E21)/'4. Data'!E21/5 -> -0.0008967472034 | X28: -0.0003583593528 | Y28: =('4. Data'!F22-'4. Data'!F21)/'4. Data'!F21/5 -> -0.0003583593528 | Z28: -0.0008978071061 | AA28: =('4. Data'!G22-'4. Data'!G21)/'4. Data'!G21/5 -> -0.0008978071061 | AB28: 0.006690564135 | AC28: =('4. Data'!H22-'4. Data'!H21)/'4. Data'!H21/5 -> 0.006690564135 | AD28: 0.006683640993 | AE28: =('4. Data'!I22-'4. Data'!I21)/'4. Data'!I21/5 -> 0.006683640993 | AF28: 0.006706908115 | AG28: =('4. Data'!J22-'4. Data'!J21)/'4. Data'!J21/5 -> 0.006706908115
B31: Population | D31: POPULATION CONNECTED TO SANITATION SYSTEM
E32: Sewered Plaines Wilhems | G32: Absorption pit | I32: Septic tank | K32: Pit latrine | M32: Sewered PL and Pte aux Sables | O32: 5 CHA estates | Q32: Grand Baie | T32: Sewered Plaines Wilhems | V32: Absorption pit | X32: Septic tank | Z32: Pit latrine | AB32: Sewered PL and Pte aux Sables | AD32: 5 CHA estates | AF32: Grand Baie
A33: Year | B33: Default | C33: Users-specified | D33: Year | E33: Default | F33: User-specified | G33: Default | H33: User-specified | I33: Default | J33: User-specified | K33: Default | L33: User-specified | M33: Default | N33: User-specified | O33: Default | P33: User-specified | Q33: Default | R33: User-specified | S33: Year | T33: Default | U33: User-specified | V33: Default | W33: User-specified | X33: Default | Y33: User-specified | Z33: Default | AA33: User-specified | AB33: Default | AC33: User-specified | AD33: Default | AE33: User-specified | AF33: Default | AG33: User-specified
A34: 2006 | B34: =E34+G34+I34+K34+M34+O34+Q34 -> 1303680 | C34: =F34+H34+J34+L34+N34+P34+R34 -> 1303680 | D34: 2006 | E34: 124590 | F34: ='4. Data'!$D$4 -> 124590 | G34: 859783 | H34: ='4. Data'!$E$4 -> 859783 | I34: 84036 | J34: ='4. Data'!$F$4 -> 84036 | K34: 44281 | L34: ='4. Data'!$G$4 -> 44281 | M34: 176920 | N34: ='4. Data'!$H$4 -> 176920 | O34: 7110 | P34: ='4. Data'!$I$4 -> 7110 | Q34: 6960 | R34: ='4. Data'!$J$4 -> 6960 | S34: 2006 | T34: 124590 | U34: ='4. Data'!$D$4 -> 124590 | V34: 859783 | W34: ='4. Data'!$E$4 -> 859783 | X34: 84036 | Y34: ='4. Data'!$F$4 -> 84036 | Z34: 44281 | AA34: ='4. Data'!$G$4 -> 44281 | AB34: 176920 | AC34: ='4. Data'!$H$4 -> 176920 | AD34: 7110 | AE34: ='4. Data'!$I$4 -> 7110 | AF34: 6960 | AG34: ='4. Data'!$J$4 -> 6960
A35: 2007 | B35: =E35+G35+I35+K35+M35+O35+Q35 -> 1317503 | C35: 1317503 | D35: 2007 | E35: =E34*(1+E11) -> 130435 | F35: =F34*(1+F11) -> 130435 | G35: 865071 | H35: 865071 | I35: 84552 | J35: 84552 | K35: 44553 | L35: 44553 | M35: 181949 | N35: 181949 | O35: 8313 | P35: 8313 | Q35: 2630 | R35: 2630 | S35: 2007 | T35: =T34*(1+T11) -> 130435 | U35: 130435 | V35: =V34*(1+V11) -> 865071 | W35: 865071 | X35: 84552 | Y35: 84552 | Z35: 44553 | AA35: 44553 | AB35: 181949 | AC35: 181949 | AD35: 8313 | AE35: 8313 | AF35: 2630 | AG35: 2630
A36: 2008 | B36: 1335233 | C36: 1335233 | D36: 2008 | E36: 134990 | F36: 134990 | G36: 870673 | H36: 870673 | I36: 85100 | J36: 85100 | K36: 44841 | L36: 44841 | M36: 188303 | N36: 188303 | O36: 8604 | P36: 8604 | Q36: 2722 | R36: 2722 | S36: 2008 | T36: 134990 | U36: 134990 | V36: 870673 | W36: 870673 | X36: 85100 | Y36: 85100 | Z36: 44841 | AA36: 44841 | AB36: 188303 | AC36: 188303 | AD36: 8604 | AE36: 8604 | AF36: 2722 | AG36: 2722
A37: 2009 | B37: 1351292 | C37: 1351292 | D37: 2009 | E37: 139411 | F37: 139411 | G37: 875111 | H37: 875111 | I37: 85533 | J37: 85533 | K37: 45070 | L37: 45070 | M37: 194470 | N37: 194470 | O37: 8886 | P37: 8886 | Q37: 2811 | R37: 2811 | S37: 2009 | T37: 139411 | U37: 139411 | V37: 875111 | W37: 875111 | X37: 85533 | Y37: 85533 | Z37: 45070 | AA37: 45070 | AB37: 194470 | AC37: 194470 | AD37: 8886 | AE37: 8886 | AF37: 2811 | AG37: 2811
A38: 2010 | B38: 1366853 | C38: 1366853 | D38: 2010 | E38: 143813 | F38: 143813 | G38: 879156 | H38: 879156 | I38: 85929 | J38: 85929 | K38: 45278 | L38: 45278 | M38: 200611 | N38: 200611 | O38: 9166 | P38: 9166 | Q38: 2900 | R38: 2900 | S38: 2010 | T38: 143813 | U38: 143813 | V38: 879156 | W38: 879156 | X38: 85929 | Y38: 85929 | Z38: 45278 | AA38: 45278 | AB38: 200611 | AC38: 200611 | AD38: 9166 | AE38: 9166 | AF38: 2900 | AG38: 2900
A39: 2011 | B39: 1350803 | C39: 1350803 | D39: 2011 | E39: 143868 | F39: 143868 | G39: 865071 | H39: 865071 | I39: 84552 | J39: 84552 | K39: 44553 | L39: 44553 | M39: 200688 | N39: 200688 | O39: 9170 | P39: 9170 | Q39: 2901 | R39: 2901 | S39: 2011 | T39: 143868 | U39: 143868 | V39: 865071 | W39: 865071 | X39: 84552 | Y39: 84552 | Z39: 44553 | AA39: 44553 | AB39: 200688 | AC39: 200688 | AD39: 9170 | AE39: 9170 | AF39: 2901 | AG39: 2901
A40: 2012 | B40: 1360772 | C40: 1360772 | D40: 2012 | E40: 147890 | F40: 147890 | G40: 865071 | H40: 865071 | I40: 84552 | J40: 84552 | K40: 44553 | L40: 44553 | M40: 206298 | N40: 206298 | O40: 9426 | P40: 9426 | Q40: 2982 | R40: 2982 | S40: 2012 | T40: 147890 | U40: 147890 | V40: 865071 | W40: 865071 | X40: 84552 | Y40: 84552 | Z40: 44553 | AA40: 44553 | AB40: 206298 | AC40: 206298 | AD40: 9426 | AE40: 9426 | AF40: 2982 | AG40: 2982
A41: 2013 | B41: 1367017 | C41: 1367017 | D41: 2013 | E41: 151848 | F41: 151848 | G41: 861968 | H41: 861968 | I41: 84249 | J41: 84249 | K41: 44393 | L41: 44393 | M41: 211819 | N41: 211819 | O41: 9678 | P41: 9678 | Q41: 3062 | R41: 3062 | S41: 2013 | T41: 151848 | U41: 151848 | V41: 861968 | W41: 861968 | X41: 84249 | Y41: 84249 | Z41: 44393 | AA41: 44393 | AB41: 211819 | AC41: 211819 | AD41: 9678 | AE41: 9678 | AF41: 3062 | AG41: 3062
A42: 2015 | B42: 1380057.714 | C42: 1380057.714 | D42: 2015 | E42: =E41*(1+2*E18) -> 159975.857 | F42: =F41*(1+2*F18) -> 159975.857 | G42: 855784.2609 | H42: 855784.2609 | I42: 83645.17166 | J42: 83645.17166 | K42: 44074.14919 | L42: 44074.14919 | M42: 223156.5088 | N42: 223156.5088 | O42: 10195.47422 | P42: 10195.47422 | Q42: 3226.292421 | R42: 3226.292421 | S42: 2015 | T42: =T41*(1+2*T18) -> 159975.857 | U42: =U41*(1+2*U18) -> 159975.857 | V42: =V41*(1+2*V18) -> 855784.2609 | W42: 855784.2609 | X42: 83645.17166 | Y42: 83645.17166 | Z42: 44074.14919 | AA42: 44074.14919 | AB42: 223156.5088 | AC42: 223156.5088 | AD42: 10195.47422 | AE42: 10195.47422 | AF42: 3226.292421 | AG42: 3226.292421
A43: 2016 | B43: 1387142.747 | C43: 1387142.747 | D43: 2016 | E43: =E42*(1+E19) -> 164257.3124 | F43: =F42*(1+F19) -> 164257.3124 | G43: 852714.5723 | H43: 852714.5723 | I43: 83345.42136 | J43: 83345.42136 | K43: 43915.86886 | L43: 43915.86886 | M43: 229128.6806 | N43: 229128.6806 | O43: 10468.04578 | P43: 10468.04578 | Q43: 3312.846208 | R43: 3312.846208 | S43: 2016 | T43: =T42*(1+T19) -> 164257.3124 | U43: 164257.3124 | V43: =V42*(1+V19) -> 852714.5723 | W43: 852714.5723 | X43: 83345.42136 | Y43: 83345.42136 | Z43: 43915.86886 | AA43: 43915.86886 | AB43: 229128.6806 | AC43: 229128.6806 | AD43: 10468.04578 | AE43: 10468.04578 | AF43: 3312.846208 | AG43: 3312.846208
A44: 2017 | B44: 1394524.457 | C44: 1394524.457 | D44: 2017 | E44: =E43*(1+E20) -> 168653.353 | F44: 168653.353 | G44: 849655.8947 | H44: 849655.8947 | I44: 83046.74525 | J44: 83046.74525 | K44: 43758.15694 | L44: 43758.15694 | M44: 235260.6811 | N44: 235260.6811 | O44: 10747.90442 | P44: 10747.90442 | Q44: 3401.722029 | R44: 3401.722029 | S44: 2017 | T44: 168653.353 | U44: 168653.353 | V44: 849655.8947 | W44: 849655.8947 | X44: 83046.74525 | Y44: 83046.74525 | Z44: 43758.15694 | AA44: 43758.15694 | AB44: 235260.6811 | AC44: 235260.6811 | AD44: 10747.90442 | AE44: 10747.90442 | AF44: 3401.722029 | AG44: 3401.722029
A45: 2018 | B45: 1396445.943 | C45: 1396445.943 | D45: 2018 | E45: =E44*(1+E21) -> 169781.7761 | F45: 169781.7761 | G45: 848893.9681 | H45: 848893.9681 | I45: 82972.3438 | J45: 82972.3438 | K45: 43718.87055 | L45: 43718.87055 | M45: 236834.7078 | N45: 236834.7078 | O45: 10819.73955 | P45: 10819.73955 | Q45: 3424.537066 | R45: 3424.537066 | S45: 2018 | T45: 169781.7761 | U45: 169781.7761 | V45: 848893.9681 | W45: 848893.9681 | X45: 82972.3438 | Y45: 82972.3438 | Z45: 43718.87055 | AA45: 43718.87055 | AB45: 236834.7078 | AC45: 236834.7078 | AD45: 10819.73955 | AE45: 10819.73955 | AF45: 3424.537066 | AG45: 3424.537066
A46: 2020 | B46: 1400327.913 | C46: 1400327.913 | D46: 2020 | E46: =E45*(1+2*E22) -> 172053.7224 | F46: =F45*(1+2*F22) -> 172053.7224 | G46: 847371.4815 | H46: 847371.4815 | I46: 82823.67423 | J46: 82823.67423 | K46: 43640.36833 | L46: 43640.36833 | M46: 240003.8234 | N46: 240003.8234 | O46: 10964.37006 | P46: 10964.37006 | Q46: 3470.473177 | R46: 3470.473177 | S46: 2020 | T46: =T45*(1+2*T22) -> 172053.7224 | U46: =U45*(1+2*U22) -> 172053.7224 | V46: =V45*(1+2*V22) -> 847371.4815 | W46: 847371.4815 | X46: 82823.67423 | Y46: 82823.67423 | Z46: 43640.36833 | AA46: 43640.36833 | AB46: 240003.8234 | AC46: 240003.8234 | AD46: 10964.37006 | AE46: 10964.37006 | AF46: 3470.473177 | AG46: 3470.473177
A47: 2025 | B47: 1410451.683 | C47: 1410451.683 | D47: 2025 | E47: =E46*(1+5*E23) -> 177809.5936 | F47: =F46*(1+5*F23) -> 177809.5936 | G47: 843572.0915 | H47: 843572.0915 | I47: 82675.27104 | J47: 82675.27104 | K47: 43444.46517 | L47: 43444.46517 | M47: 248032.6283 | N47: 248032.6283 | O47: 11330.77963 | P47: 11330.77963 | Q47: 3586.8539 | R47: 3586.8539 | S47: 2025 | T47: =T46*(1+5*T23) -> 177809.5936 | U47: 177809.5936 | V47: =V46*(1+5*V23) -> 843572.0915 | W47: 843572.0915 | X47: 82675.27104 | Y47: 82675.27104 | Z47: 43444.46517 | AA47: 43444.46517 | AB47: 248032.6283 | AC47: 248032.6283 | AD47: 11330.77963 | AE47: 11330.77963 | AF47: 3586.8539 | AG47: 3586.8539
A48: 2030 | B48: 1421070.924 | C48: 1421070.924 | D48: 2030 | E48: 183758.0212 | F48: 183758.0212 | G48: 839789.7369 | H48: 839789.7369 | I48: 82527.13375 | J48: 82527.13375 | K48: 43249.44142 | L48: 43249.44142 | M48: 256330.0193 | N48: 256330.0193 | O48: 11709.43394 | P48: 11709.43394 | Q48: 3707.137398 | R48: 3707.137398 | S48: 2030 | T48: 183758.0212 | U48: 183758.0212 | V48: 839789.7369 | W48: 839789.7369 | X48: 82527.13375 | Y48: 82527.13375 | Z48: 43249.44142 | AA48: 43249.44142 | AB48: 256330.0193 | AC48: 256330.0193 | AD48: 11709.43394 | AE48: 11709.43394 | AF48: 3707.137398 | AG48: 3707.137398
A49: 2035 | B49: 1432201.522 | C49: 1432201.522 | D49: 2035 | E49: 189905.4471 | F49: 189905.4471 | G49: 836024.3414 | H49: 836024.3414 | I49: 82379.2619 | J49: 82379.2619 | K49: 43055.29314 | L49: 43055.29314 | M49: 264904.9815 | N49: 264904.9815 | O49: 12100.74221 | P49: 12100.74221 | Q49: 3831.454548 | R49: 3831.454548 | S49: 2035 | T49: 189905.4471 | U49: 189905.4471 | V49: 836024.3414 | W49: 836024.3414 | X49: 82379.2619 | Y49: 82379.2619 | Z49: 43055.29314 | AA49: 43055.29314 | AB49: 264904.9815 | AC49: 264904.9815 | AD49: 12100.74221 | AE49: 12100.74221 | AF49: 3831.454548 | AG49: 3831.454548
A50: 2040 | B50: 1443859.897 | C50: 1443859.897 | D50: 2040 | E50: 196258.5284 | F50: 196258.5284 | G50: 832275.829 | H50: 832275.829 | I50: 82231.65501 | J50: 82231.65501 | K50: 42862.0164 | L50: 42862.0164 | M50: 273766.8003 | N50: 273766.8003 | O50: 12505.12729 | P50: 12505.12729 | Q50: 3959.940616 | R50: 3959.940616 | S50: 2040 | T50: 196258.5284 | U50: 196258.5284 | V50: 832275.829 | W50: 832275.829 | X50: 82231.65501 | Y50: 82231.65501 | Z50: 42862.0164 | AA50: 42862.0164 | AB50: 273766.8003 | AC50: 273766.8003 | AD50: 12505.12729 | AE50: 12505.12729 | AF50: 3959.940616 | AG50: 3959.940616
A51: 2045 | B51: 1456063.023 | C51: 1456063.023 | D51: 2045 | E51: 202824.1452 | F51: 202824.1452 | G51: 828544.1239 | H51: 828544.1239 | I51: 82084.31259 | J51: 82084.31259 | K51: 42669.60728 | L51: 42669.60728 | M51: 282925.072 | N51: 282925.072 | O51: 12923.0262 | P51: 12923.0262 | Q51: 4092.735405 | R51: 4092.735405 | S51: 2045 | T51: 202824.1452 | U51: 202824.1452 | V51: 828544.1239 | W51: 828544.1239 | X51: 82084.31259 | Y51: 82084.31259 | Z51: 42669.60728 | AA51: 42669.60728 | AB51: 282925.072 | AC51: 282925.072 | AD51: 12923.0262 | AE51: 12923.0262 | AF51: 4092.735405 | AG51: 4092.735405
A52: 2050 | B52: 1468828.442 | C52: 1468828.442 | D52: 2050 | E52: 209609.4076 | F52: 209609.4076 | G52: 824829.1507 | H52: 824829.1507 | I52: 81937.23419 | J52: 81937.23419 | K52: 42478.0619 | L52: 42478.0619 | M52: 292389.7137 | N52: 292389.7137 | O52: 13354.89054 | P52: 13354.89054 | Q52: 4229.983406 | R52: 4229.983406 | S52: 2050 | T52: 209609.4076 | U52: 209609.4076 | V52: 824829.1507 | W52: 824829.1507 | X52: 81937.23419 | Y52: 81937.23419 | Z52: 42478.0619 | AA52: 42478.0619 | AB52: 292389.7137 | AC52: 292389.7137 | AD52: 13354.89054 | AE52: 13354.89054 | AF52: 4229.983406 | AG52: 4229.983406
C55: checks | E55: 124590 | F55: 124590 | G55: 859783 | H55: 859783 | I55: 84036 | J55: 84036 | K55: 44281 | L55: 44281 | M55: 176920 | N55: 176920 | O55: 7110 | P55: 7110 | Q55: 6960 | R55: 6960 | T55: 124590 | U55: 124590 | V55: 859783 | W55: 859783 | X55: 84036 | Y55: 84036 | Z55: 44281 | AA55: 44281 | AB55: 176920 | AC55: 176920 | AD55: 7110 | AE55: 7110 | AF55: 6960 | AG55: 6960
E56: 130435 | F56: 130435 | G56: 865071 | H56: 865071 | I56: 84552 | J56: 84552 | K56: 44553 | L56: 44553 | M56: 181949 | N56: 181949 | O56: 8313 | P56: 8313 | Q56: 2630 | R56: 2630 | T56: 130435 | U56: 130435 | V56: 865071 | W56: 865071 | X56: 84552 | Y56: 84552 | Z56: 44553 | AA56: 44553 | AB56: 181949 | AC56: 181949 | AD56: 8313 | AE56: 8313 | AF56: 2630 | AG56: 2630
E57: 134990 | F57: 134990 | G57: 870673 | H57: 870673 | I57: 85100 | J57: 85100 | K57: 44841 | L57: 44841 | M57: 188303 | N57: 188303 | O57: 8604 | P57: 8604 | Q57: 2722 | R57: 2722 | T57: 134990 | U57: 134990 | V57: 870673 | W57: 870673 | X57: 85100 | Y57: 85100 | Z57: 44841 | AA57: 44841 | AB57: 188303 | AC57: 188303 | AD57: 8604 | AE57: 8604 | AF57: 2722 | AG57: 2722
E58: 139411 | F58: 139411 | G58: 875111 | H58: 875111 | I58: 85533 | J58: 85533 | K58: 45070 | L58: 45070 | M58: 194470 | N58: 194470 | O58: 8886 | P58: 8886 | Q58: 2811 | R58: 2811 | T58: 139411 | U58: 139411 | V58: 875111 | W58: 875111 | X58: 85533 | Y58: 85533 | Z58: 45070 | AA58: 45070 | AB58: 194470 | AC58: 194470 | AD58: 8886 | AE58: 8886 | AF58: 2811 | AG58: 2811
E59: 143813 | F59: 143813 | G59: 879156 | H59: 879156 | I59: 85929 | J59: 85929 | K59: 45278 | L59: 45278 | M59: 200611 | N59: 200611 | O59: 9166 | P59: 9166 | Q59: 2900 | R59: 2900 | T59: 143813 | U59: 143813 | V59: 879156 | W59: 879156 | X59: 85929 | Y59: 85929 | Z59: 45278 | AA59: 45278 | AB59: 200611 | AC59: 200611 | AD59: 9166 | AE59: 9166 | AF59: 2900 | AG59: 2900
E60: 143868 | F60: 143868 | G60: 865071 | H60: 865071 | I60: 84552 | J60: 84552 | K60: 44553 | L60: 44553 | M60: 200688 | N60: 200688 | O60: 9170 | P60: 9170 | Q60: 2901 | R60: 2901 | T60: 143868 | U60: 143868 | V60: 865071 | W60: 865071 | X60: 84552 | Y60: 84552 | Z60: 44553 | AA60: 44553 | AB60: 200688 | AC60: 200688 | AD60: 9170 | AE60: 9170 | AF60: 2901 | AG60: 2901
E61: 147890 | F61: 147890 | G61: 865071 | H61: 865071 | I61: 84552 | J61: 84552 | K61: 44553 | L61: 44553 | M61: 206298 | N61: 206298 | O61: 9426 | P61: 9426 | Q61: 2982 | R61: 2982 | T61: 147890 | U61: 147890 | V61: 865071 | W61: 865071 | X61: 84552 | Y61: 84552 | Z61: 44553 | AA61: 44553 | AB61: 206298 | AC61: 206298 | AD61: 9426 | AE61: 9426 | AF61: 2982 | AG61: 2982
E62: 151848 | F62: 151848 | G62: 861968 | H62: 861968 | I62: 84249 | J62: 84249 | K62: 44393 | L62: 44393 | M62: 211819 | N62: 211819 | O62: 9678 | P62: 9678 | Q62: 3062 | R62: 3062 | T62: 151848 | U62: 151848 | V62: 861968 | W62: 861968 | X62: 84249 | Y62: 84249 | Z62: 44393 | AA62: 44393 | AB62: 211819 | AC62: 211819 | AD62: 9678 | AE62: 9678 | AF62: 3062 | AG62: 3062
E63: 159975.857 | F63: 159975.857 | G63: 855784.2609 | H63: 855784.2609 | I63: 83645.17166 | J63: 83645.17166 | K63: 44074.14919 | L63: 44074.14919 | M63: 223156.5088 | N63: 223156.5088 | O63: 10195.47422 | P63: 10195.47422 | Q63: 3226.292421 | R63: 3226.292421 | T63: 159975.857 | U63: 159975.857 | V63: 855784.2609 | W63: 855784.2609 | X63: 83645.17166 | Y63: 83645.17166 | Z63: 44074.14919 | AA63: 44074.14919 | AB63: 223156.5088 | AC63: 223156.5088 | AD63: 10195.47422 | AE63: 10195.47422 | AF63: 3226.292421 | AG63: 3226.292421
E64: 164257.3124 | F64: 164257.3124 | G64: 852714.5723 | H64: 852714.5723 | I64: 83345.42136 | J64: 83345.42136 | K64: 43915.86886 | L64: 43915.86886 | M64: 229128.6806 | N64: 229128.6806 | O64: 10468.04578 | P64: 10468.04578 | Q64: 3312.846208 | R64: 3312.846208 | T64: 164257.3124 | U64: 164257.3124 | V64: 852714.5723 | W64: 852714.5723 | X64: 83345.42136 | Y64: 83345.42136 | Z64: 43915.86886 | AA64: 43915.86886 | AB64: 229128.6806 | AC64: 229128.6806 | AD64: 10468.04578 | AE64: 10468.04578 | AF64: 3312.846208 | AG64: 3312.846208
E65: 168653.353 | F65: 168653.353 | G65: 849655.8947 | H65: 849655.8947 | I65: 83046.74525 | J65: 83046.74525 | K65: 43758.15694 | L65: 43758.15694 | M65: 235260.6811 | N65: 235260.6811 | O65: 10747.90442 | P65: 10747.90442 | Q65: 3401.722029 | R65: 3401.722029 | T65: 168653.353 | U65: 168653.353 | V65: 849655.8947 | W65: 849655.8947 | X65: 83046.74525 | Y65: 83046.74525 | Z65: 43758.15694 | AA65: 43758.15694 | AB65: 235260.6811 | AC65: 235260.6811 | AD65: 10747.90442 | AE65: 10747.90442 | AF65: 3401.722029 | AG65: 3401.722029
E66: 169781.7761 | F66: 169781.7761 | G66: 848893.9681 | H66: 848893.9681 | I66: 82972.3438 | J66: 82972.3438 | K66: 43718.87055 | L66: 43718.87055 | M66: 236834.7078 | N66: 236834.7078 | O66: 10819.73955 | P66: 10819.73955 | Q66: 3424.537066 | R66: 3424.537066 | T66: 169781.7761 | U66: 169781.7761 | V66: 848893.9681 | W66: 848893.9681 | X66: 82972.3438 | Y66: 82972.3438 | Z66: 43718.87055 | AA66: 43718.87055 | AB66: 236834.7078 | AC66: 236834.7078 | AD66: 10819.73955 | AE66: 10819.73955 | AF66: 3424.537066 | AG66: 3424.537066
E67: 172053.7224 | F67: 172053.7224 | G67: 847371.4815 | H67: 847371.4815 | I67: 82823.67423 | J67: 82823.67423 | K67: 43640.36833 | L67: 43640.36833 | M67: 240003.8234 | N67: 240003.8234 | O67: 10964.37006 | P67: 10964.37006 | Q67: 3470.473177 | R67: 3470.473177 | T67: 172053.7224 | U67: 172053.7224 | V67: 847371.4815 | W67: 847371.4815 | X67: 82823.67423 | Y67: 82823.67423 | Z67: 43640.36833 | AA67: 43640.36833 | AB67: 240003.8234 | AC67: 240003.8234 | AD67: 10964.37006 | AE67: 10964.37006 | AF67: 3470.473177 | AG67: 3470.473177
E68: 177809.5936 | F68: 177809.5936 | G68: 843572.0915 | H68: 843572.0915 | I68: 82675.27104 | J68: 82675.27104 | K68: 43444.46517 | L68: 43444.46517 | M68: 248032.6283 | N68: 248032.6283 | O68: 11330.77963 | P68: 11330.77963 | Q68: 3586.8539 | R68: 3586.8539 | T68: 177809.5936 | U68: 177809.5936 | V68: 843572.0915 | W68: 843572.0915 | X68: 82675.27104 | Y68: 82675.27104 | Z68: 43444.46517 | AA68: 43444.46517 | AB68: 248032.6283 | AC68: 248032.6283 | AD68: 11330.77963 | AE68: 11330.77963 | AF68: 3586.8539 | AG68: 3586.8539
E69: 183758.0212 | F69: 183758.0212 | G69: 839789.7369 | H69: 839789.7369 | I69: 82527.13375 | J69: 82527.13375 | K69: 43249.44142 | L69: 43249.44142 | M69: 256330.0193 | N69: 256330.0193 | O69: 11709.43394 | P69: 11709.43394 | Q69: 3707.137398 | R69: 3707.137398 | T69: 183758.0212 | U69: 183758.0212 | V69: 839789.7369 | W69: 839789.7369 | X69: 82527.13375 | Y69: 82527.13375 | Z69: 43249.44142 | AA69: 43249.44142 | AB69: 256330.0193 | AC69: 256330.0193 | AD69: 11709.43394 | AE69: 11709.43394 | AF69: 3707.137398 | AG69: 3707.137398
E70: 189905.4471 | F70: 189905.4471 | G70: 836024.3414 | H70: 836024.3414 | I70: 82379.2619 | J70: 82379.2619 | K70: 43055.29314 | L70: 43055.29314 | M70: 264904.9815 | N70: 264904.9815 | O70: 12100.74221 | P70: 12100.74221 | Q70: 3831.454548 | R70: 3831.454548 | T70: 189905.4471 | U70: 189905.4471 | V70: 836024.3414 | W70: 836024.3414 | X70: 82379.2619 | Y70: 82379.2619 | Z70: 43055.29314 | AA70: 43055.29314 | AB70: 264904.9815 | AC70: 264904.9815 | AD70: 12100.74221 | AE70: 12100.74221 | AF70: 3831.454548 | AG70: 3831.454548
E71: 196258.5284 | F71: 196258.5284 | G71: 832275.829 | H71: 832275.829 | I71: 82231.65501 | J71: 82231.65501 | K71: 42862.0164 | L71: 42862.0164 | M71: 273766.8003 | N71: 273766.8003 | O71: 12505.12729 | P71: 12505.12729 | Q71: 3959.940616 | R71: 3959.940616 | T71: 196258.5284 | U71: 196258.5284 | V71: 832275.829 | W71: 832275.829 | X71: 82231.65501 | Y71: 82231.65501 | Z71: 42862.0164 | AA71: 42862.0164 | AB71: 273766.8003 | AC71: 273766.8003 | AD71: 12505.12729 | AE71: 12505.12729 | AF71: 3959.940616 | AG71: 3959.940616
E72: 202824.1452 | F72: 202824.1452 | G72: 828544.1239 | H72: 828544.1239 | I72: 82084.31259 | J72: 82084.31259 | K72: 42669.60728 | L72: 42669.60728 | M72: 282925.072 | N72: 282925.072 | O72: 12923.0262 | P72: 12923.0262 | Q72: 4092.735405 | R72: 4092.735405 | T72: 202824.1452 | U72: 202824.1452 | V72: 828544.1239 | W72: 828544.1239 | X72: 82084.31259 | Y72: 82084.31259 | Z72: 42669.60728 | AA72: 42669.60728 | AB72: 282925.072 | AC72: 282925.072 | AD72: 12923.0262 | AE72: 12923.0262 | AF72: 4092.735405 | AG72: 4092.735405
E73: 209609.4076 | F73: 209609.4076 | G73: 824829.1507 | H73: 824829.1507 | I73: 81937.23419 | J73: 81937.23419 | K73: 42478.0619 | L73: 42478.0619 | M73: 292389.7137 | N73: 292389.7137 | O73: 13354.89054 | P73: 13354.89054 | Q73: 4229.983406 | R73: 4229.983406 | T73: 209609.4076 | U73: 209609.4076 | V73: 824829.1507 | W73: 824829.1507 | X73: 81937.23419 | Y73: 81937.23419 | Z73: 42478.0619 | AA73: 42478.0619 | AB73: 292389.7137 | AC73: 292389.7137 | AD73: 13354.89054 | AE73: 13354.89054 | AF73: 4229.983406 | AG73: 4229.983406
D75: 2006 | E75: =E34-E55 -> 0 | F75: =F34-F55 -> 0 | G75: 0 | H75: 0 | I75: 0 | J75: 0 | K75: 0 | L75: 0 | M75: 0 | N75: 0 | O75: 0 | P75: 0 | Q75: 0 | R75: 0 | S75: =S34-S55 -> 2006 | T75: 0 | U75: 0 | V75: 0 | W75: 0 | X75: 0 | Y75: 0 | Z75: 0 | AA75: 0 | AB75: 0 | AC75: 0 | AD75: 0 | AE75: 0 | AF75: 0 | AG75: =AG34-AG55 -> 0
D76: 2007 | E76: 0 | F76: =F35-F56 -> 0 | G76: 0 | H76: 0 | I76: 0 | J76: 0 | K76: 0 | L76: 0 | M76: 0 | N76: 0 | O76: 0 | P76: 0 | Q76: 0 | R76: 0 | S76: =S35-S56 -> 2007 | T76: 0 | U76: 0 | V76: 0 | W76: 0 | X76: 0 | Y76: 0 | Z76: 0 | AA76: 0 | AB76: 0 | AC76: 0 | AD76: 0 | AE76: 0 | AF76: 0 | AG76: 0
D77: 2008 | E77: 0 | F77: =F36-F57 -> 0 | G77: 0 | H77: 0 | I77: 0 | J77: 0 | K77: 0 | L77: 0 | M77: 0 | N77: 0 | O77: 0 | P77: 0 | Q77: 0 | R77: 0 | S77: =S36-S57 -> 2008 | T77: 0 | U77: 0 | V77: 0 | W77: 0 | X77: 0 | Y77: 0 | Z77: 0 | AA77: 0 | AB77: 0 | AC77: 0 | AD77: 0 | AE77: 0 | AF77: 0 | AG77: 0
D78: 2009 | E78: 0 | F78: =F37-F58 -> 0 | G78: 0 | H78: 0 | I78: 0 | J78: 0 | K78: 0 | L78: 0 | M78: 0 | N78: 0 | O78: 0 | P78: 0 | Q78: 0 | R78: 0 | S78: =S37-S58 -> 2009 | T78: 0 | U78: 0 | V78: 0 | W78: 0 | X78: 0 | Y78: 0 | Z78: 0 | AA78: 0 | AB78: 0 | AC78: 0 | AD78: 0 | AE78: 0 | AF78: 0 | AG78: 0
D79: 2010 | E79: 0 | F79: =F38-F59 -> 0 | G79: 0 | H79: 0 | I79: 0 | J79: 0 | K79: 0 | L79: 0 | M79: 0 | N79: 0 | O79: 0 | P79: 0 | Q79: 0 | R79: 0 | S79: =S38-S59 -> 2010 | T79: 0 | U79: 0 | V79: 0 | W79: 0 | X79: 0 | Y79: 0 | Z79: 0 | AA79: 0 | AB79: 0 | AC79: 0 | AD79: 0 | AE79: 0 | AF79: 0 | AG79: 0
D80: 2011 | E80: 0 | F80: =F39-F60 -> 0 | G80: 0 | H80: 0 | I80: 0 | J80: 0 | K80: 0 | L80: 0 | M80: 0 | N80: 0 | O80: 0 | P80: 0 | Q80: 0 | R80: 0 | S80: =S39-S60 -> 2011 | T80: 0 | U80: 0 | V80: 0 | W80: 0 | X80: 0 | Y80: 0 | Z80: 0 | AA80: 0 | AB80: 0 | AC80: 0 | AD80: 0 | AE80: 0 | AF80: 0 | AG80: 0
D81: 2012 | E81: 0 | F81: =F40-F61 -> 0 | G81: 0 | H81: 0 | I81: 0 | J81: 0 | K81: 0 | L81: 0 | M81: 0 | N81: 0 | O81: 0 | P81: 0 | Q81: 0 | R81: 0 | S81: =S40-S61 -> 2012 | T81: 0 | U81: 0 | V81: 0 | W81: 0 | X81: 0 | Y81: 0 | Z81: 0 | AA81: 0 | AB81: 0 | AC81: 0 | AD81: 0 | AE81: 0 | AF81: 0 | AG81: 0
D82: 2013 | E82: 0 | F82: =F41-F62 -> 0 | G82: 0 | H82: 0 | I82: 0 | J82: 0 | K82: 0 | L82: 0 | M82: 0 | N82: 0 | O82: 0 | P82: 0 | Q82: 0 | R82: 0 | S82: =S41-S62 -> 2013 | T82: 0 | U82: 0 | V82: 0 | W82: 0 | X82: 0 | Y82: 0 | Z82: 0 | AA82: 0 | AB82: 0 | AC82: 0 | AD82: 0 | AE82: 0 | AF82: 0 | AG82: 0
D83: 2015 | E83: 0 | F83: =F42-F63 -> 0 | G83: 0 | H83: 0 | I83: 0 | J83: 0 | K83: 0 | L83: 0 | M83: 0 | N83: 0 | O83: 0 | P83: 0 | Q83: 0 | R83: 0 | S83: =S42-S63 -> 2015 | T83: 0 | U83: 0 | V83: 0 | W83: 0 | X83: 0 | Y83: 0 | Z83: 0 | AA83: 0 | AB83: 0 | AC83: 0 | AD83: 0 | AE83: 0 | AF83: 0 | AG83: 0
D84: 2016 | E84: 0 | F84: =F43-F64 -> 0 | G84: 0 | H84: 0 | I84: 0 | J84: 0 | K84: 0 | L84: 0 | M84: 0 | N84: 0 | O84: 0 | P84: 0 | Q84: 0 | R84: 0 | S84: =S43-S64 -> 2016 | T84: 0 | U84: 0 | V84: 0 | W84: 0 | X84: 0 | Y84: 0 | Z84: 0 | AA84: 0 | AB84: 0 | AC84: 0 | AD84: 0 | AE84: 0 | AF84: 0 | AG84: 0
D85: 2017 | E85: 0 | F85: =F44-F65 -> 0 | G85: 0 | H85: 0 | I85: 0 | J85: 0 | K85: 0 | L85: 0 | M85: 0 | N85: 0 | O85: 0 | P85: 0 | Q85: 0 | R85: 0 | S85: =S44-S65 -> 2017 | T85: 0 | U85: 0 | V85: 0 | W85: 0 | X85: 0 | Y85: 0 | Z85: 0 | AA85: 0 | AB85: 0 | AC85: 0 | AD85: 0 | AE85: 0 | AF85: 0 | AG85: 0
D86: 2018 | E86: 0 | F86: =F45-F66 -> 0 | G86: 0 | H86: 0 | I86: 0 | J86: 0 | K86: 0 | L86: 0 | M86: 0 | N86: 0 | O86: 0 | P86: 0 | Q86: 0 | R86: 0 | S86: =S45-S66 -> 2018 | T86: 0 | U86: 0 | V86: 0 | W86: 0 | X86: 0 | Y86: 0 | Z86: 0 | AA86: 0 | AB86: 0 | AC86: 0 | AD86: 0 | AE86: 0 | AF86: 0 | AG86: 0
D87: 2020 | E87: 0 | F87: =F46-F67 -> 0 | G87: 0 | H87: 0 | I87: 0 | J87: 0 | K87: 0 | L87: 0 | M87: 0 | N87: 0 | O87: 0 | P87: 0 | Q87: 0 | R87: 0 | S87: =S46-S67 -> 2020 | T87: 0 | U87: 0 | V87: 0 | W87: 0 | X87: 0 | Y87: 0 | Z87: 0 | AA87: 0 | AB87: 0 | AC87: 0 | AD87: 0 | AE87: 0 | AF87: 0 | AG87: 0
D88: 2025 | E88: 0 | F88: =F47-F68 -> 0 | G88: 0 | H88: 0 | I88: 0 | J88: 0 | K88: 0 | L88: 0 | M88: 0 | N88: 0 | O88: 0 | P88: 0 | Q88: 0 | R88: 0 | S88: =S47-S68 -> 2025 | T88: 0 | U88: 0 | V88: 0 | W88: 0 | X88: 0 | Y88: 0 | Z88: 0 | AA88: 0 | AB88: 0 | AC88: 0 | AD88: 0 | AE88: 0 | AF88: 0 | AG88: 0
D89: 2030 | E89: 0 | F89: =F48-F69 -> 0 | G89: 0 | H89: 0 | I89: 0 | J89: 0 | K89: 0 | L89: 0 | M89: 0 | N89: 0 | O89: 0 | P89: 0 | Q89: 0 | R89: 0 | S89: =S48-S69 -> 2030 | T89: 0 | U89: 0 | V89: 0 | W89: 0 | X89: 0 | Y89: 0 | Z89: 0 | AA89: 0 | AB89: 0 | AC89: 0 | AD89: 0 | AE89: 0 | AF89: 0 | AG89: 0
D90: 2035 | E90: 0 | F90: =F49-F70 -> 0 | G90: 0 | H90: 0 | I90: 0 | J90: 0 | K90: 0 | L90: 0 | M90: 0 | N90: 0 | O90: 0 | P90: 0 | Q90: 0 | R90: 0 | S90: =S49-S70 -> 2035 | T90: 0 | U90: 0 | V90: 0 | W90: 0 | X90: 0 | Y90: 0 | Z90: 0 | AA90: 0 | AB90: 0 | AC90: 0 | AD90: 0 | AE90: 0 | AF90: 0 | AG90: 0
D91: 2040 | E91: 0 | F91: =F50-F71 -> 0 | G91: 0 | H91: 0 | I91: 0 | J91: 0 | K91: 0 | L91: 0 | M91: 0 | N91: 0 | O91: 0 | P91: 0 | Q91: 0 | R91: 0 | S91: =S50-S71 -> 2040 | T91: 0 | U91: 0 | V91: 0 | W91: 0 | X91: 0 | Y91: 0 | Z91: 0 | AA91: 0 | AB91: 0 | AC91: 0 | AD91: 0 | AE91: 0 | AF91: 0 | AG91: 0
D92: 2045 | E92: 0 | F92: =F51-F72 -> 0 | G92: 0 | H92: 0 | I92: 0 | J92: 0 | K92: 0 | L92: 0 | M92: 0 | N92: 0 | O92: 0 | P92: 0 | Q92: 0 | R92: 0 | S92: =S51-S72 -> 2045 | T92: 0 | U92: 0 | V92: 0 | W92: 0 | X92: 0 | Y92: 0 | Z92: 0 | AA92: 0 | AB92: 0 | AC92: 0 | AD92: 0 | AE92: 0 | AF92: 0 | AG92: 0
D93: 2050 | E93: 0 | F93: =F52-F73 -> 0 | G93: 0 | H93: 0 | I93: 0 | J93: 0 | K93: 0 | L93: 0 | M93: 0 | N93: 0 | O93: 0 | P93: 0 | Q93: 0 | R93: 0 | S93: =S52-S73 -> 2050 | T93: 0 | U93: 0 | V93: 0 | W93: 0 | X93: 0 | Y93: 0 | Z93: 0 | AA93: 0 | AB93: 0 | AC93: 0 | AD93: 0 | AE93: 0 | AF93: 0 | AG93: 0

Sheet 6. UD2 Assumptions
A1: UD2 ASSUMPTIONS | E1: Excel Toolkit for Mitigation Analysis for Low-Carbon Development Planning | P1: XLMT-Liquid Wastes v17.1
A2: Users can input values in the 'User-specified' columns for different scenarios. Then, proceed to 'Query' for results.
E4: BAU | T4: SCENARIO 1 - INCREASED SEWER CONNECTIONS
B5: Population | E5: % POPULATION CONNEECTED TO SANITATION SYSTEMS BELOW | T5: % POPULATION CONNEECTED TO SANITATION SYSTEMS BELOW
E6: Sewered Plaines Wilhems | G6: Absorption pit | I6: Septic tank | K6: Pit latrine | M6: Sewered PL and Pte aux Sables | O6: 5 CHA estates | Q6: Grand Baie | T6: Sewered Plaines Wilhems | V6: Absorption pit | X6: Septic tank | Z6: Pit latrine | AB6: Sewered PL and Pte aux Sables | AD6: 5 CHA estates | AF6: Grand Baie
B7: Default | C7: Users-specified | E7: Default | F7: User-specified | G7: Default | H7: User-specified | I7: Default | J7: User-specified | K7: Default | L7: User-specified | M7: Default | N7: User-specified | O7: Default | P7: User-specified | Q7: Default | R7: User-specified | T7: Default | U7: User-specified | V7: Default | W7: User-specified | X7: Default | Y7: User-specified | Z7: Default | AA7: User-specified | AB7: Default | AC7: User-specified | AD7: Default | AE7: User-specified | AF7: Default | AG7: User-specified
B8: Population | C8: Population
A9: YEAR | D9: YEAR | E9: x% | F9: x% | G9: x% | H9: x% | I9: x% | J9: x% | K9: x% | L9: x% | M9: x% | N9: x% | O9: x% | P9: x% | Q9: x% | R9: x% | S9: YEAR | T9: x% | U9: x% | V9: x% | W9: x% | X9: x% | Y9: x% | Z9: x% | AA9: x% | AB9: x% | AC9: x% | AD9: x% | AE9: x% | AF9: x% | AG9: x%
A10: 2006 | B10: =E34+G34+I34+K34+M34+O34+Q34 -> 1303680 | C10: =F34+H34+J34+L34+N34+P34+R34 -> 1303680 | D10: 2006 | S10: 2006
A11: 2007 | B11: =E35+G35+I35+K35+M35+O35+Q35 -> 1317503 | C11: 1317503 | D11: 2007 | E11: =('4. Data'!D5-'4. Data'!D4)/'4. Data'!D4 -> 0.04691387752 | F11: 0.04691387752 | G11: =('4. Data'!E5-'4. Data'!E4)/'4. Data'!E4 -> 0.00615038911 | H11: 0.00615038911 | I11: =('4. Data'!F5-'4. Data'!F4)/'4. Data'!F4 -> 0.006140225618 | J11: 0.006140225618 | K11: =('4. Data'!G5-'4. Data'!G4)/'4. Data'!G4 -> 0.006142589372 | L11: 0.006142589372 | M11: =('4. Data'!H5-'4. Data'!H4)/'4. Data'!H4 -> 0.02842527696 | N11: 0.02842527696 | O11: =('4. Data'!I5-'4. Data'!I4)/'4. Data'!I4 -> 0.1691983122 | P11: 0.1691983122 | Q11: =('4. Data'!J5-'4. Data'!J4)/'4. Data'!J4 -> -0.6221264368 | R11: -0.6221264368 | S11: 2007 | T11: 0.04691387752 | U11: =('4. Data'!D5-'4. Data'!D4)/'4. Data'!D4 -> 0.04691387752 | V11: 0.00615038911 | W11: =('4. Data'!E5-'4. Data'!E4)/'4. Data'!E4 -> 0.00615038911 | X11: 0.006140225618 | Y11: =('4. Data'!F5-'4. Data'!F4)/'4. Data'!F4 -> 0.006140225618 | Z11: 0.006142589372 | AA11: =('4. Data'!G5-'4. Data'!G4)/'4. Data'!G4 -> 0.006142589372 | AB11: 0.02842527696 | AC11: =('4. Data'!H5-'4. Data'!H4)/'4. Data'!H4 -> 0.02842527696 | AD11: 0.1691983122 | AE11: =('4. Data'!I5-'4. Data'!I4)/'4. Data'!I4 -> 0.1691983122 | AF11: -0.6221264368 | AG11: =('4. Data'!J5-'4. Data'!J4)/'4. Data'!J4 -> -0.6221264368
A12: 2008 | B12: 1335233 | C12: 1335233 | D12: 2008 | E12: =('4. Data'!D6-'4. Data'!D5)/'4. Data'!D5 -> 0.03492160846 | F12: 0.03492160846 | G12: =('4. Data'!E6-'4. Data'!E5)/'4. Data'!E5 -> 0.006475769041 | H12: 0.006475769041 | I12: =('4. Data'!F6-'4. Data'!F5)/'4. Data'!F5 -> 0.006481218658 | J12: 0.006481218658 | K12: =('4. Data'!G6-'4. Data'!G5)/'4. Data'!G5 -> 0.006464211164 | L12: 0.006464211164 | M12: =('4. Data'!H6-'4. Data'!H5)/'4. Data'!H5 -> 0.03492187371 | N12: 0.03492187371 | O12: =('4. Data'!I6-'4. Data'!I5)/'4. Data'!I5 -> 0.03500541321 | P12: 0.03500541321 | Q12: =('4. Data'!J6-'4. Data'!J5)/'4. Data'!J5 -> 0.03498098859 | R12: 0.03498098859 | S12: 2008 | T12: 0.03492160846 | U12: =('4. Data'!D6-'4. Data'!D5)/'4. Data'!D5 -> 0.03492160846 | V12: 0.006475769041 | W12: =('4. Data'!E6-'4. Data'!E5)/'4. Data'!E5 -> 0.006475769041 | X12: 0.006481218658 | Y12: =('4. Data'!F6-'4. Data'!F5)/'4. Data'!F5 -> 0.006481218658 | Z12: 0.006464211164 | AA12: =('4. Data'!G6-'4. Data'!G5)/'4. Data'!G5 -> 0.006464211164 | AB12: 0.03492187371 | AC12: =('4. Data'!H6-'4. Data'!H5)/'4. Data'!H5 -> 0.03492187371 | AD12: 0.03500541321 | AE12: =('4. Data'!I6-'4. Data'!I5)/'4. Data'!I5 -> 0.03500541321 | AF12: 0.03498098859 | AG12: =('4. Data'!J6-'4. Data'!J5)/'4. Data'!J5 -> 0.03498098859
A13: 2009 | B13: 1351292 | C13: 1351292 | D13: 2009 | E13: =('4. Data'!D7-'4. Data'!D6)/'4. Data'!D6 -> 0.03275057412 | F13: 0.03275057412 | G13: =('4. Data'!E7-'4. Data'!E6)/'4. Data'!E6 -> 0.005097206414 | H13: 0.005097206414 | I13: =('4. Data'!F7-'4. Data'!F6)/'4. Data'!F6 -> 0.00508813161 | J13: 0.00508813161 | K13: =('4. Data'!G7-'4. Data'!G6)/'4. Data'!G6 -> 0.005106933387 | L13: 0.005106933387 | M13: =('4. Data'!H7-'4. Data'!H6)/'4. Data'!H6 -> 0.03275040759 | N13: 0.03275040759 | O13: =('4. Data'!I7-'4. Data'!I6)/'4. Data'!I6 -> 0.03277545328 | P13: 0.03277545328 | Q13: =('4. Data'!J7-'4. Data'!J6)/'4. Data'!J6 -> 0.03269654666 | R13: 0.03269654666 | S13: 2009 | T13: 0.03275057412 | U13: =('4. Data'!D7-'4. Data'!D6)/'4. Data'!D6 -> 0.03275057412 | V13: 0.005097206414 | W13: =('4. Data'!E7-'4. Data'!E6)/'4. Data'!E6 -> 0.005097206414 | X13: 0.00508813161 | Y13: =('4. Data'!F7-'4. Data'!F6)/'4. Data'!F6 -> 0.00508813161 | Z13: 0.005106933387 | AA13: =('4. Data'!G7-'4. Data'!G6)/'4. Data'!G6 -> 0.005106933387 | AB13: 0.03275040759 | AC13: =('4. Data'!H7-'4. Data'!H6)/'4. Data'!H6 -> 0.03275040759 | AD13: 0.03277545328 | AE13: =('4. Data'!I7-'4. Data'!I6)/'4. Data'!I6 -> 0.03277545328 | AF13: 0.03269654666 | AG13: =('4. Data'!J7-'4. Data'!J6)/'4. Data'!J6 -> 0.03269654666
A14: 2010 | B14: 1366853 | C14: 1366853 | D14: 2010 | E14: =('4. Data'!D8-'4. Data'!D7)/'4. Data'!D7 -> 0.03157570063 | F14: 0.03157570063 | G14: =('4. Data'!E8-'4. Data'!E7)/'4. Data'!E7 -> 0.004622270775 | H14: 0.004622270775 | I14: =('4. Data'!F8-'4. Data'!F7)/'4. Data'!F7 -> 0.00462979201 | J14: 0.00462979201 | K14: =('4. Data'!G8-'4. Data'!G7)/'4. Data'!G7 -> 0.004615043266 | L14: 0.004615043266 | M14: =('4. Data'!H8-'4. Data'!H7)/'4. Data'!H7 -> 0.03157813545 | N14: 0.03157813545 | O14: =('4. Data'!I8-'4. Data'!I7)/'4. Data'!I7 -> 0.03151024083 | P14: 0.03151024083 | Q14: =('4. Data'!J8-'4. Data'!J7)/'4. Data'!J7 -> 0.03166133049 | R14: 0.03166133049 | S14: 2010 | T14: 0.03157570063 | U14: =('4. Data'!D8-'4. Data'!D7)/'4. Data'!D7 -> 0.03157570063 | V14: 0.004622270775 | W14: =('4. Data'!E8-'4. Data'!E7)/'4. Data'!E7 -> 0.004622270775 | X14: 0.00462979201 | Y14: =('4. Data'!F8-'4. Data'!F7)/'4. Data'!F7 -> 0.00462979201 | Z14: 0.004615043266 | AA14: =('4. Data'!G8-'4. Data'!G7)/'4. Data'!G7 -> 0.004615043266 | AB14: 0.03157813545 | AC14: =('4. Data'!H8-'4. Data'!H7)/'4. Data'!H7 -> 0.03157813545 | AD14: 0.03151024083 | AE14: =('4. Data'!I8-'4. Data'!I7)/'4. Data'!I7 -> 0.03151024083 | AF14: 0.03166133049 | AG14: =('4. Data'!J8-'4. Data'!J7)/'4. Data'!J7 -> 0.03166133049
A15: 2011 | B15: 1350803 | C15: 1350803 | D15: 2011 | E15: =('4. Data'!D9-'4. Data'!D8)/'4. Data'!D8 -> 0.0003824410867 | F15: 0.0003824410867 | G15: =('4. Data'!E9-'4. Data'!E8)/'4. Data'!E8 -> -0.01602104746 | H15: -0.01602104746 | I15: =('4. Data'!F9-'4. Data'!F8)/'4. Data'!F8 -> -0.01602485773 | J15: -0.01602485773 | K15: =('4. Data'!G9-'4. Data'!G8)/'4. Data'!G8 -> -0.01601219135 | L15: -0.01601219135 | M15: =('4. Data'!H9-'4. Data'!H8)/'4. Data'!H8 -> 0.0003838274073 | N15: 0.0003838274073 | O15: =('4. Data'!I9-'4. Data'!I8)/'4. Data'!I8 -> 0.0004363953742 | P15: 0.0004363953742 | Q15: =('4. Data'!J9-'4. Data'!J8)/'4. Data'!J8 -> 0.0003448275862 | R15: 0.0003448275862 | S15: 2011 | T15: 0.0003824410867 | U15: =('4. Data'!D9-'4. Data'!D8)/'4. Data'!D8 -> 0.0003824410867 | V15: -0.01602104746 | W15: =('4. Data'!E9-'4. Data'!E8)/'4. Data'!E8 -> -0.01602104746 | X15: -0.01602485773 | Y15: =('4. Data'!F9-'4. Data'!F8)/'4. Data'!F8 -> -0.01602485773 | Z15: -0.01601219135 | AA15: =('4. Data'!G9-'4. Data'!G8)/'4. Data'!G8 -> -0.01601219135 | AB15: 0.0003838274073 | AC15: =('4. Data'!H9-'4. Data'!H8)/'4. Data'!H8 -> 0.0003838274073 | AD15: 0.0004363953742 | AE15: =('4. Data'!I9-'4. Data'!I8)/'4. Data'!I8 -> 0.0004363953742 | AF15: 0.0003448275862 | AG15: =('4. Data'!J9-'4. Data'!J8)/'4. Data'!J8 -> 0.0003448275862
A16: 2012 | B16: 1360772 | C16: 1360772 | D16: 2012 | E16: =('4. Data'!D10-'4. Data'!D9)/'4. Data'!D9 -> 0.02795618206 | F16: 0.02795618206 | G16: =('4. Data'!E10-'4. Data'!E9)/'4. Data'!E9 -> 0 | H16: 0 | I16: =('4. Data'!F10-'4. Data'!F9)/'4. Data'!F9 -> 0 | J16: 0 | K16: =('4. Data'!G10-'4. Data'!G9)/'4. Data'!G9 -> 0 | L16: 0 | M16: =('4. Data'!H10-'4. Data'!H9)/'4. Data'!H9 -> 0.02795383879 | N16: 0.02795383879 | O16: =('4. Data'!I10-'4. Data'!I9)/'4. Data'!I9 -> 0.02791712105 | P16: 0.02791712105 | Q16: =('4. Data'!J10-'4. Data'!J9)/'4. Data'!J9 -> 0.02792140641 | R16: 0.02792140641 | S16: 2012 | T16: 0.02795618206 | U16: =('4. Data'!D10-'4. Data'!D9)/'4. Data'!D9 -> 0.02795618206 | V16: 0 | W16: =('4. Data'!E10-'4. Data'!E9)/'4. Data'!E9 -> 0 | X16: 0 | Y16: =('4. Data'!F10-'4. Data'!F9)/'4. Data'!F9 -> 0 | Z16: 0 | AA16: =('4. Data'!G10-'4. Data'!G9)/'4. Data'!G9 -> 0 | AB16: 0.02795383879 | AC16: =('4. Data'!H10-'4. Data'!H9)/'4. Data'!H9 -> 0.02795383879 | AD16: 0.02791712105 | AE16: =('4. Data'!I10-'4. Data'!I9)/'4. Data'!I9 -> 0.02791712105 | AF16: 0.02792140641 | AG16: =('4. Data'!J10-'4. Data'!J9)/'4. Data'!J9 -> 0.02792140641
A17: 2013 | B17: 1367017 | C17: 1367017 | D17: 2013 | E17: =('4. Data'!D11-'4. Data'!D10)/'4. Data'!D10 -> 0.02676313476 | F17: 0.02676313476 | G17: =('4. Data'!E11-'4. Data'!E10)/'4. Data'!E10 -> -0.003586988814 | H17: -0.003586988814 | I17: =('4. Data'!F11-'4. Data'!F10)/'4. Data'!F10 -> -0.003583593528 | J17: -0.003583593528 | K17: =('4. Data'!G11-'4. Data'!G10)/'4. Data'!G10 -> -0.003591228425 | L17: -0.003591228425 | M17: =('4. Data'!H11-'4. Data'!H10)/'4. Data'!H10 -> 0.02676225654 | N17: 0.02676225654 | O17: =('4. Data'!I11-'4. Data'!I10)/'4. Data'!I10 -> 0.02673456397 | P17: 0.02673456397 | Q17: =('4. Data'!J11-'4. Data'!J10)/'4. Data'!J10 -> 0.02682763246 | R17: 0.02682763246 | S17: 2013 | T17: 0.02676313476 | U17: =('4. Data'!D11-'4. Data'!D10)/'4. Data'!D10 -> 0.02676313476 | V17: -0.003586988814 | W17: =('4. Data'!E11-'4. Data'!E10)/'4. Data'!E10 -> -0.003586988814 | X17: -0.003583593528 | Y17: =('4. Data'!F11-'4. Data'!F10)/'4. Data'!F10 -> -0.003583593528 | Z17: -0.003591228425 | AA17: =('4. Data'!G11-'4. Data'!G10)/'4. Data'!G10 -> -0.003591228425 | AB17: 0.02676225654 | AC17: =('4. Data'!H11-'4. Data'!H10)/'4. Data'!H10 -> 0.02676225654 | AD17: 0.02673456397 | AE17: =('4. Data'!I11-'4. Data'!I10)/'4. Data'!I10 -> 0.02673456397 | AF17: 0.02682763246 | AG17: =('4. Data'!J11-'4. Data'!J10)/'4. Data'!J10 -> 0.02682763246
A18: 2015 | B18: 1380057.714 | C18: 1380057.714 | D18: 2015 | E18: =('4. Data'!D12-'4. Data'!D11)/'4. Data'!D11/2 -> 0.02676313476 | F18: 0.02676313476 | G18: =('4. Data'!E12-'4. Data'!E11)/'4. Data'!E11/2 -> -0.003586988814 | H18: -0.003586988814 | I18: =('4. Data'!F12-'4. Data'!F11)/'4. Data'!F11/2 -> -0.003583593528 | J18: -0.003583593528 | K18: =('4. Data'!G12-'4. Data'!G11)/'4. Data'!G11/2 -> -0.003591228425 | L18: -0.003591228425 | M18: =('4. Data'!H12-'4. Data'!H11)/'4. Data'!H11/2 -> 0.02676225654 | N18: 0.02676225654 | O18: =('4. Data'!I12-'4. Data'!I11)/'4. Data'!I11/2 -> 0.02673456397 | P18: 0.02673456397 | Q18: =('4. Data'!J12-'4. Data'!J11)/'4. Data'!J11/2 -> 0.02682763246 | R18: 0.02682763246 | S18: 2015 | T18: 0.02676313476 | U18: =('4. Data'!D12-'4. Data'!D11)/'4. Data'!D11/2 -> 0.02676313476 | V18: -0.003586988814 | W18: =('4. Data'!E12-'4. Data'!E11)/'4. Data'!E11/2 -> -0.003586988814 | X18: -0.003583593528 | Y18: =('4. Data'!F12-'4. Data'!F11)/'4. Data'!F11/2 -> -0.003583593528 | Z18: -0.003591228425 | AA18: =('4. Data'!G12-'4. Data'!G11)/'4. Data'!G11/2 -> -0.003591228425 | AB18: 0.02676225654 | AC18: =('4. Data'!H12-'4. Data'!H11)/'4. Data'!H11/2 -> 0.02676225654 | AD18: 0.02673456397 | AE18: =('4. Data'!I12-'4. Data'!I11)/'4. Data'!I11/2 -> 0.02673456397 | AF18: 0.02682763246 | AG18: =('4. Data'!J12-'4. Data'!J11)/'4. Data'!J11/2 -> 0.02682763246
A19: 2016 | B19: 1387142.747 | C19: 1387142.747 | D19: 2016 | E19: =('4. Data'!D13-'4. Data'!D12)/'4. Data'!D12 -> 0.02676313476 | F19: 0.02676313476 | G19: =('4. Data'!E13-'4. Data'!E12)/'4. Data'!E12 -> -0.003586988814 | H19: -0.003586988814 | I19: =('4. Data'!F13-'4. Data'!F12)/'4. Data'!F12 -> -0.003583593528 | J19: -0.003583593528 | K19: =('4. Data'!G13-'4. Data'!G12)/'4. Data'!G12 -> -0.003591228425 | L19: -0.003591228425 | M19: =('4. Data'!H13-'4. Data'!H12)/'4. Data'!H12 -> 0.02676225654 | N19: 0.02676225654 | O19: =('4. Data'!I13-'4. Data'!I12)/'4. Data'!I12 -> 0.02673456397 | P19: 0.02673456397 | Q19: =('4. Data'!J13-'4. Data'!J12)/'4. Data'!J12 -> 0.02682763246 | R19: 0.02682763246 | S19: 2016 | T19: 0.02676313476 | U19: =('4. Data'!D13-'4. Data'!D12)/'4. Data'!D12 -> 0.02676313476 | V19: -0.003586988814 | W19: =('4. Data'!E13-'4. Data'!E12)/'4. Data'!E12 -> -0.003586988814 | X19: -0.003583593528 | Y19: =('4. Data'!F13-'4. Data'!F12)/'4. Data'!F12 -> -0.003583593528 | Z19: -0.003591228425 | AA19: =('4. Data'!G13-'4. Data'!G12)/'4. Data'!G12 -> -0.003591228425 | AB19: 0.02676225654 | AC19: =('4. Data'!H13-'4. Data'!H12)/'4. Data'!H12 -> 0.02676225654 | AD19: 0.02673456397 | AE19: =('4. Data'!I13-'4. Data'!I12)/'4. Data'!I12 -> 0.02673456397 | AF19: 0.02682763246 | AG19: =('4. Data'!J13-'4. Data'!J12)/'4. Data'!J12 -> 0.02682763246
A20: 2017 | B20: 1394524.457 | C20: 1394524.457 | D20: 2017 | E20: =('4. Data'!D14-'4. Data'!D13)/'4. Data'!D13 -> 0.02676313476 | F20: 0.02676313476 | G20: =('4. Data'!E14-'4. Data'!E13)/'4. Data'!E13 -> -0.003586988814 | H20: -0.003586988814 | I20: =('4. Data'!F14-'4. Data'!F13)/'4. Data'!F13 -> -0.003583593528 | J20: -0.003583593528 | K20: =('4. Data'!G14-'4. Data'!G13)/'4. Data'!G13 -> -0.003591228425 | L20: -0.003591228425 | M20: =('4. Data'!H14-'4. Data'!H13)/'4. Data'!H13 -> 0.02676225654 | N20: 0.02676225654 | O20: =('4. Data'!I14-'4. Data'!I13)/'4. Data'!I13 -> 0.02673456397 | P20: 0.02673456397 | Q20: =('4. Data'!J14-'4. Data'!J13)/'4. Data'!J13 -> 0.02682763246 | R20: 0.02682763246 | S20: 2017 | T20: 0.02676313476 | U20: =('4. Data'!D14-'4. Data'!D13)/'4. Data'!D13 -> 0.02676313476 | V20: -0.003586988814 | W20: =('4. Data'!E14-'4. Data'!E13)/'4. Data'!E13 -> -0.003586988814 | X20: -0.003583593528 | Y20: =('4. Data'!F14-'4. Data'!F13)/'4. Data'!F13 -> -0.003583593528 | Z20: -0.003591228425 | AA20: =('4. Data'!G14-'4. Data'!G13)/'4. Data'!G13 -> -0.003591228425 | AB20: 0.02676225654 | AC20: =('4. Data'!H14-'4. Data'!H13)/'4. Data'!H13 -> 0.02676225654 | AD20: 0.02673456397 | AE20: =('4. Data'!I14-'4. Data'!I13)/'4. Data'!I13 -> 0.02673456397 | AF20: 0.02682763246 | AG20: =('4. Data'!J14-'4. Data'!J13)/'4. Data'!J13 -> 0.02682763246
A21: 2018 | B21: 1396445.943 | C21: 1396445.943 | D21: 2018 | E21: =('4. Data'!D15-'4. Data'!D14)/'4. Data'!D14 -> 0.006690783691 | F21: 0.006690783691 | G21: =('4. Data'!E15-'4. Data'!E14)/'4. Data'!E14 -> -0.0008967472034 | H21: -0.0008967472034 | I21: =('4. Data'!F15-'4. Data'!F14)/'4. Data'!F14 -> -0.0008958983821 | J21: -0.0008958983821 | K21: =('4. Data'!G15-'4. Data'!G14)/'4. Data'!G14 -> -0.0008978071061 | L21: -0.0008978071061 | M21: =('4. Data'!H15-'4. Data'!H14)/'4. Data'!H14 -> 0.006690564135 | N21: 0.006690564135 | O21: =('4. Data'!I15-'4. Data'!I14)/'4. Data'!I14 -> 0.006683640993 | P21: 0.006683640993 | Q21: =('4. Data'!J15-'4. Data'!J14)/'4. Data'!J14 -> 0.006706908115 | R21: 0.006706908115 | S21: 2018 | T21: 0.006690783691 | U21: =('4. Data'!D15-'4. Data'!D14)/'4. Data'!D14 -> 0.006690783691 | V21: -0.0008967472034 | W21: =('4. Data'!E15-'4. Data'!E14)/'4. Data'!E14 -> -0.0008967472034 | X21: -0.0008958983821 | Y21: =('4. Data'!F15-'4. Data'!F14)/'4. Data'!F14 -> -0.0008958983821 | Z21: -0.0008978071061 | AA21: =('4. Data'!G15-'4. Data'!G14)/'4. Data'!G14 -> -0.0008978071061 | AB21: 0.006690564135 | AC21: =('4. Data'!H15-'4. Data'!H14)/'4. Data'!H14 -> 0.006690564135 | AD21: 0.006683640993 | AE21: =('4. Data'!I15-'4. Data'!I14)/'4. Data'!I14 -> 0.006683640993 | AF21: 0.006706908115 | AG21: =('4. Data'!J15-'4. Data'!J14)/'4. Data'!J14 -> 0.006706908115
A22: 2020 | B22: 1400327.913 | C22: 1400327.913 | D22: 2020 | E22: =('4. Data'!D16-'4. Data'!D15)/'4. Data'!D15/2 -> 0.006690783691 | F22: 0.006690783691 | G22: =('4. Data'!E16-'4. Data'!E15)/'4. Data'!E15/2 -> -0.0008967472034 | H22: -0.0008967472034 | I22: =('4. Data'!F16-'4. Data'!F15)/'4. Data'!F15/2 -> -0.0008958983821 | J22: -0.0008958983821 | K22: =('4. Data'!G16-'4. Data'!G15)/'4. Data'!G15/2 -> -0.0008978071061 | L22: -0.0008978071061 | M22: =('4. Data'!H16-'4. Data'!H15)/'4. Data'!H15/2 -> 0.006690564135 | N22: 0.006690564135 | O22: =('4. Data'!I16-'4. Data'!I15)/'4. Data'!I15/2 -> 0.006683640993 | P22: 0.006683640993 | Q22: =('4. Data'!J16-'4. Data'!J15)/'4. Data'!J15/2 -> 0.006706908115 | R22: 0.006706908115 | S22: 2020 | T22: 0.006690783691 | U22: =('4. Data'!D16-'4. Data'!D15)/'4. Data'!D15/2 -> 0.006690783691 | V22: -0.0008967472034 | W22: =('4. Data'!E16-'4. Data'!E15)/'4. Data'!E15/2 -> -0.0008967472034 | X22: -0.0008958983821 | Y22: =('4. Data'!F16-'4. Data'!F15)/'4. Data'!F15/2 -> -0.0008958983821 | Z22: -0.0008978071061 | AA22: =('4. Data'!G16-'4. Data'!G15)/'4. Data'!G15/2 -> -0.0008978071061 | AB22: 0.006690564135 | AC22: =('4. Data'!H16-'4. Data'!H15)/'4. Data'!H15/2 -> 0.006690564135 | AD22: 0.006683640993 | AE22: =('4. Data'!I16-'4. Data'!I15)/'4. Data'!I15/2 -> 0.006683640993 | AF22: 0.006706908115 | AG22: =('4. Data'!J16-'4. Data'!J15)/'4. Data'!J15/2 -> 0.006706908115
A23: 2025 | B23: 1410451.683 | C23: 1410451.683 | D23: 2025 | E23: =('4. Data'!D17-'4. Data'!D16)/'4. Data'!D16/5 -> 0.006690783691 | F23: 0.006690783691 | G23: =('4. Data'!E17-'4. Data'!E16)/'4. Data'!E16/5 -> -0.0008967472034 | H23: -0.0008967472034 | I23: =('4. Data'!F17-'4. Data'!F16)/'4. Data'!F16/5 -> -0.0003583593528 | J23: -0.0003583593528 | K23: =('4. Data'!G17-'4. Data'!G16)/'4. Data'!G16/5 -> -0.0008978071061 | L23: -0.0008978071061 | M23: =('4. Data'!H17-'4. Data'!H16)/'4. Data'!H16/5 -> 0.006690564135 | N23: 0.006690564135 | O23: =('4. Data'!I17-'4. Data'!I16)/'4. Data'!I16/5 -> 0.006683640993 | P23: 0.006683640993 | Q23: =('4. Data'!J17-'4. Data'!J16)/'4. Data'!J16/5 -> 0.006706908115 | R23: 0.006706908115 | S23: 2025 | T23: 0.006690783691 | U23: =('4. Data'!D17-'4. Data'!D16)/'4. Data'!D16/5 -> 0.006690783691 | V23: -0.0008967472034 | W23: =('4. Data'!E17-'4. Data'!E16)/'4. Data'!E16/5 -> -0.0008967472034 | X23: -0.0003583593528 | Y23: =('4. Data'!F17-'4. Data'!F16)/'4. Data'!F16/5 -> -0.0003583593528 | Z23: -0.0008978071061 | AA23: =('4. Data'!G17-'4. Data'!G16)/'4. Data'!G16/5 -> -0.0008978071061 | AB23: 0.006690564135 | AC23: =('4. Data'!H17-'4. Data'!H16)/'4. Data'!H16/5 -> 0.006690564135 | AD23: 0.006683640993 | AE23: =('4. Data'!I17-'4. Data'!I16)/'4. Data'!I16/5 -> 0.006683640993 | AF23: 0.006706908115 | AG23: =('4. Data'!J17-'4. Data'!J16)/'4. Data'!J16/5 -> 0.006706908115
A24: 2030 | B24: 1421070.924 | C24: 1421070.924 | D24: 2030 | E24: =('4. Data'!D18-'4. Data'!D17)/'4. Data'!D17/5 -> 0.006690783691 | F24: 0.006690783691 | G24: =('4. Data'!E18-'4. Data'!E17)/'4. Data'!E17/5 -> -0.0008967472034 | H24: -0.0008967472034 | I24: =('4. Data'!F18-'4. Data'!F17)/'4. Data'!F17/5 -> -0.0003583593528 | J24: -0.0003583593528 | K24: =('4. Data'!G18-'4. Data'!G17)/'4. Data'!G17/5 -> -0.0008978071061 | L24: -0.0008978071061 | M24: =('4. Data'!H18-'4. Data'!H17)/'4. Data'!H17/5 -> 0.006690564135 | N24: 0.006690564135 | O24: =('4. Data'!I18-'4. Data'!I17)/'4. Data'!I17/5 -> 0.006683640993 | P24: 0.006683640993 | Q24: =('4. Data'!J18-'4. Data'!J17)/'4. Data'!J17/5 -> 0.006706908115 | R24: 0.006706908115 | S24: 2030 | T24: 0.006690783691 | U24: =('4. Data'!D18-'4. Data'!D17)/'4. Data'!D17/5 -> 0.006690783691 | V24: -0.0008967472034 | W24: =('4. Data'!E18-'4. Data'!E17)/'4. Data'!E17/5 -> -0.0008967472034 | X24: -0.0003583593528 | Y24: =('4. Data'!F18-'4. Data'!F17)/'4. Data'!F17/5 -> -0.0003583593528 | Z24: -0.0008978071061 | AA24: =('4. Data'!G18-'4. Data'!G17)/'4. Data'!G17/5 -> -0.0008978071061 | AB24: 0.006690564135 | AC24: =('4. Data'!H18-'4. Data'!H17)/'4. Data'!H17/5 -> 0.006690564135 | AD24: 0.006683640993 | AE24: =('4. Data'!I18-'4. Data'!I17)/'4. Data'!I17/5 -> 0.006683640993 | AF24: 0.006706908115 | AG24: =('4. Data'!J18-'4. Data'!J17)/'4. Data'!J17/5 -> 0.006706908115
A25: 2035 | B25: 1432201.522 | C25: 1432201.522 | D25: 2035 | E25: =('4. Data'!D19-'4. Data'!D18)/'4. Data'!D18/5 -> 0.006690783691 | F25: 0.006690783691 | G25: =('4. Data'!E19-'4. Data'!E18)/'4. Data'!E18/5 -> -0.0008967472034 | H25: -0.0008967472034 | I25: =('4. Data'!F19-'4. Data'!F18)/'4. Data'!F18/5 -> -0.0003583593528 | J25: -0.0003583593528 | K25: =('4. Data'!G19-'4. Data'!G18)/'4. Data'!G18/5 -> -0.0008978071061 | L25: -0.0008978071061 | M25: =('4. Data'!H19-'4. Data'!H18)/'4. Data'!H18/5 -> 0.006690564135 | N25: 0.006690564135 | O25: =('4. Data'!I19-'4. Data'!I18)/'4. Data'!I18/5 -> 0.006683640993 | P25: 0.006683640993 | Q25: =('4. Data'!J19-'4. Data'!J18)/'4. Data'!J18/5 -> 0.006706908115 | R25: 0.006706908115 | S25: 2035 | T25: 0.006690783691 | U25: =('4. Data'!D19-'4. Data'!D18)/'4. Data'!D18/5 -> 0.006690783691 | V25: -0.0008967472034 | W25: =('4. Data'!E19-'4. Data'!E18)/'4. Data'!E18/5 -> -0.0008967472034 | X25: -0.0003583593528 | Y25: =('4. Data'!F19-'4. Data'!F18)/'4. Data'!F18/5 -> -0.0003583593528 | Z25: -0.0008978071061 | AA25: =('4. Data'!G19-'4. Data'!G18)/'4. Data'!G18/5 -> -0.0008978071061 | AB25: 0.006690564135 | AC25: =('4. Data'!H19-'4. Data'!H18)/'4. Data'!H18/5 -> 0.006690564135 | AD25: 0.006683640993 | AE25: =('4. Data'!I19-'4. Data'!I18)/'4. Data'!I18/5 -> 0.006683640993 | AF25: 0.006706908115 | AG25: =('4. Data'!J19-'4. Data'!J18)/'4. Data'!J18/5 -> 0.006706908115
A26: 5 | B26: 1443859.897 | C26: 1443859.897 | D26: 2040 | E26: =('4. Data'!D20-'4. Data'!D19)/'4. Data'!D19/5 -> 0.006690783691 | F26: 0.006690783691 | G26: =('4. Data'!E20-'4. Data'!E19)/'4. Data'!E19/5 -> -0.0008967472034 | H26: -0.0008967472034 | I26: =('4. Data'!F20-'4. Data'!F19)/'4. Data'!F19/5 -> -0.0003583593528 | J26: -0.0003583593528 | K26: =('4. Data'!G20-'4. Data'!G19)/'4. Data'!G19/5 -> -0.0008978071061 | L26: -0.0008978071061 | M26: =('4. Data'!H20-'4. Data'!H19)/'4. Data'!H19/5 -> 0.006690564135 | N26: 0.006690564135 | O26: =('4. Data'!I20-'4. Data'!I19)/'4. Data'!I19/5 -> 0.006683640993 | P26: 0.006683640993 | Q26: =('4. Data'!J20-'4. Data'!J19)/'4. Data'!J19/5 -> 0.006706908115 | R26: 0.006706908115 | S26: 2040 | T26: 0.006690783691 | U26: =('4. Data'!D20-'4. Data'!D19)/'4. Data'!D19/5 -> 0.006690783691 | V26: -0.0008967472034 | W26: =('4. Data'!E20-'4. Data'!E19)/'4. Data'!E19/5 -> -0.0008967472034 | X26: -0.0003583593528 | Y26: =('4. Data'!F20-'4. Data'!F19)/'4. Data'!F19/5 -> -0.0003583593528 | Z26: -0.0008978071061 | AA26: =('4. Data'!G20-'4. Data'!G19)/'4. Data'!G19/5 -> -0.0008978071061 | AB26: 0.006690564135 | AC26: =('4. Data'!H20-'4. Data'!H19)/'4. Data'!H19/5 -> 0.006690564135 | AD26: 0.006683640993 | AE26: =('4. Data'!I20-'4. Data'!I19)/'4. Data'!I19/5 -> 0.006683640993 | AF26: 0.006706908115 | AG26: =('4. Data'!J20-'4. Data'!J19)/'4. Data'!J19/5 -> 0.006706908115
A27: 2045 | B27: =E51+G51+I51+K51+M51+O51+Q51 -> 1456063.023 | C27: 1456063.023 | D27: 2045 | E27: =('4. Data'!D21-'4. Data'!D20)/'4. Data'!D20/5 -> 0.006690783691 | F27: 0.006690783691 | G27: =('4. Data'!E21-'4. Data'!E20)/'4. Data'!E20/5 -> -0.0008967472034 | H27: -0.0008967472034 | I27: =('4. Data'!F21-'4. Data'!F20)/'4. Data'!F20/5 -> -0.0003583593528 | J27: -0.0003583593528 | K27: =('4. Data'!G21-'4. Data'!G20)/'4. Data'!G20/5 -> -0.0008978071061 | L27: -0.0008978071061 | M27: =('4. Data'!H21-'4. Data'!H20)/'4. Data'!H20/5 -> 0.006690564135 | N27: 0.006690564135 | O27: =('4. Data'!I21-'4. Data'!I20)/'4. Data'!I20/5 -> 0.006683640993 | P27: 0.006683640993 | Q27: =('4. Data'!J21-'4. Data'!J20)/'4. Data'!J20/5 -> 0.006706908115 | R27: 0.006706908115 | S27: 2045 | T27: 0.006690783691 | U27: =('4. Data'!D21-'4. Data'!D20)/'4. Data'!D20/5 -> 0.006690783691 | V27: -0.0008967472034 | W27: =('4. Data'!E21-'4. Data'!E20)/'4. Data'!E20/5 -> -0.0008967472034 | X27: -0.0003583593528 | Y27: =('4. Data'!F21-'4. Data'!F20)/'4. Data'!F20/5 -> -0.0003583593528 | Z27: -0.0008978071061 | AA27: =('4. Data'!G21-'4. Data'!G20)/'4. Data'!G20/5 -> -0.0008978071061 | AB27: 0.006690564135 | AC27: =('4. Data'!H21-'4. Data'!H20)/'4. Data'!H20/5 -> 0.006690564135 | AD27: 0.006683640993 | AE27: =('4. Data'!I21-'4. Data'!I20)/'4. Data'!I20/5 -> 0.006683640993 | AF27: 0.006706908115 | AG27: =('4. Data'!J21-'4. Data'!J20)/'4. Data'!J20/5 -> 0.006706908115
A28: 2050 | B28: 1468828.442 | C28: 1468828.442 | D28: 2050 | E28: =('4. Data'!D22-'4. Data'!D21)/'4. Data'!D21/5 -> 0.006690783691 | F28: 0.006690783691 | G28: =('4. Data'!E22-'4. Data'!E21)/'4. Data'!E21/5 -> -0.0008967472034 | H28: -0.0008967472034 | I28: =('4. Data'!F22-'4. Data'!F21)/'4. Data'!F21/5 -> -0.0003583593528 | J28: -0.0003583593528 | K28: =('4. Data'!G22-'4. Data'!G21)/'4. Data'!G21/5 -> -0.0008978071061 | L28: -0.0008978071061 | M28: =('4. Data'!H22-'4. Data'!H21)/'4. Data'!H21/5 -> 0.006690564135 | N28: 0.006690564135 | O28: =('4. Data'!I22-'4. Data'!I21)/'4. Data'!I21/5 -> 0.006683640993 | P28: 0.006683640993 | Q28: =('4. Data'!J22-'4. Data'!J21)/'4. Data'!J21/5 -> 0.006706908115 | R28: 0.006706908115 | S28: 2050 | T28: 0.006690783691 | U28: =('4. Data'!D22-'4. Data'!D21)/'4. Data'!D21/5 -> 0.006690783691 | V28: -0.0008967472034 | W28: =('4. Data'!E22-'4. Data'!E21)/'4. Data'!E21/5 -> -0.0008967472034 | X28: -0.0003583593528 | Y28: =('4. Data'!F22-'4. Data'!F21)/'4. Data'!F21/5 -> -0.0003583593528 | Z28: -0.0008978071061 | AA28: =('4. Data'!G22-'4. Data'!G21)/'4. Data'!G21/5 -> -0.0008978071061 | AB28: 0.006690564135 | AC28: =('4. Data'!H22-'4. Data'!H21)/'4. Data'!H21/5 -> 0.006690564135 | AD28: 0.006683640993 | AE28: =('4. Data'!I22-'4. Data'!I21)/'4. Data'!I21/5 -> 0.006683640993 | AF28: 0.006706908115 | AG28: =('4. Data'!J22-'4. Data'!J21)/'4. Data'!J21/5 -> 0.006706908115
B31: Population | D31: POPULATION CONNECTED TO SANITATION SYSTEM
E32: Sewered Plaines Wilhems | G32: Absorption pit | I32: Septic tank | K32: Pit latrine | M32: Sewered PL and Pte aux Sables | O32: 5 CHA estates | Q32: Grand Baie | T32: Sewered Plaines Wilhems | V32: Absorption pit | X32: Septic tank | Z32: Pit latrine | AB32: Sewered PL and Pte aux Sables | AD32: 5 CHA estates | AF32: Grand Baie
A33: Year | B33: Default | C33: Users-specified | D33: Year | E33: Default | F33: User-specified | G33: Default | H33: User-specified | I33: Default | J33: User-specified | K33: Default | L33: User-specified | M33: Default | N33: User-specified | O33: Default | P33: User-specified | Q33: Default | R33: User-specified | S33: Year | T33: Default | U33: User-specified | V33: Default | W33: User-specified | X33: Default | Y33: User-specified | Z33: Default | AA33: User-specified | AB33: Default | AC33: User-specified | AD33: Default | AE33: User-specified | AF33: Default | AG33: User-specified
A34: 2006 | B34: =E34+G34+I34+K34+M34+O34+Q34 -> 1303680 | C34: =F34+H34+J34+L34+N34+P34+R34 -> 1303680 | D34: 2006 | E34: 124590 | F34: ='4. Data'!$D$4 -> 124590 | G34: 859783 | H34: ='4. Data'!$E$4 -> 859783 | I34: 84036 | J34: ='4. Data'!$F$4 -> 84036 | K34: 44281 | L34: ='4. Data'!$G$4 -> 44281 | M34: 176920 | N34: ='4. Data'!$H$4 -> 176920 | O34: 7110 | P34: ='4. Data'!$I$4 -> 7110 | Q34: 6960 | R34: ='4. Data'!$J$4 -> 6960 | S34: 2006 | T34: 124590 | U34: ='4. Data'!$D$4 -> 124590 | V34: 859783 | W34: ='4. Data'!$E$4 -> 859783 | X34: 84036 | Y34: ='4. Data'!$F$4 -> 84036 | Z34: 44281 | AA34: ='4. Data'!$G$4 -> 44281 | AB34: 176920 | AC34: ='4. Data'!$H$4 -> 176920 | AD34: 7110 | AE34: ='4. Data'!$I$4 -> 7110 | AF34: 6960 | AG34: ='4. Data'!$J$4 -> 6960
A35: 2007 | B35: =E35+G35+I35+K35+M35+O35+Q35 -> 1317503 | C35: 1317503 | D35: 2007 | E35: =E34*(1+E11) -> 130435 | F35: =F34*(1+F11) -> 130435 | G35: 865071 | H35: 865071 | I35: 84552 | J35: 84552 | K35: 44553 | L35: 44553 | M35: 181949 | N35: 181949 | O35: 8313 | P35: 8313 | Q35: 2630 | R35: 2630 | S35: 2007 | T35: =T34*(1+T11) -> 130435 | U35: 130435 | V35: =V34*(1+V11) -> 865071 | W35: 865071 | X35: 84552 | Y35: 84552 | Z35: 44553 | AA35: 44553 | AB35: 181949 | AC35: 181949 | AD35: 8313 | AE35: 8313 | AF35: 2630 | AG35: 2630
A36: 2008 | B36: 1335233 | C36: 1335233 | D36: 2008 | E36: 134990 | F36: 134990 | G36: 870673 | H36: 870673 | I36: 85100 | J36: 85100 | K36: 44841 | L36: 44841 | M36: 188303 | N36: 188303 | O36: 8604 | P36: 8604 | Q36: 2722 | R36: 2722 | S36: 2008 | T36: 134990 | U36: 134990 | V36: 870673 | W36: 870673 | X36: 85100 | Y36: 85100 | Z36: 44841 | AA36: 44841 | AB36: 188303 | AC36: 188303 | AD36: 8604 | AE36: 8604 | AF36: 2722 | AG36: 2722
A37: 2009 | B37: 1351292 | C37: 1351292 | D37: 2009 | E37: 139411 | F37: 139411 | G37: 875111 | H37: 875111 | I37: 85533 | J37: 85533 | K37: 45070 | L37: 45070 | M37: 194470 | N37: 194470 | O37: 8886 | P37: 8886 | Q37: 2811 | R37: 2811 | S37: 2009 | T37: 139411 | U37: 139411 | V37: 875111 | W37: 875111 | X37: 85533 | Y37: 85533 | Z37: 45070 | AA37: 45070 | AB37: 194470 | AC37: 194470 | AD37: 8886 | AE37: 8886 | AF37: 2811 | AG37: 2811
A38: 2010 | B38: 1366853 | C38: 1366853 | D38: 2010 | E38: 143813 | F38: 143813 | G38: 879156 | H38: 879156 | I38: 85929 | J38: 85929 | K38: 45278 | L38: 45278 | M38: 200611 | N38: 200611 | O38: 9166 | P38: 9166 | Q38: 2900 | R38: 2900 | S38: 2010 | T38: 143813 | U38: 143813 | V38: 879156 | W38: 879156 | X38: 85929 | Y38: 85929 | Z38: 45278 | AA38: 45278 | AB38: 200611 | AC38: 200611 | AD38: 9166 | AE38: 9166 | AF38: 2900 | AG38: 2900
A39: 2011 | B39: 1350803 | C39: 1350803 | D39: 2011 | E39: 143868 | F39: 143868 | G39: 865071 | H39: 865071 | I39: 84552 | J39: 84552 | K39: 44553 | L39: 44553 | M39: 200688 | N39: 200688 | O39: 9170 | P39: 9170 | Q39: 2901 | R39: 2901 | S39: 2011 | T39: 143868 | U39: 143868 | V39: 865071 | W39: 865071 | X39: 84552 | Y39: 84552 | Z39: 44553 | AA39: 44553 | AB39: 200688 | AC39: 200688 | AD39: 9170 | AE39: 9170 | AF39: 2901 | AG39: 2901
A40: 2012 | B40: 1360772 | C40: 1360772 | D40: 2012 | E40: 147890 | F40: 147890 | G40: 865071 | H40: 865071 | I40: 84552 | J40: 84552 | K40: 44553 | L40: 44553 | M40: 206298 | N40: 206298 | O40: 9426 | P40: 9426 | Q40: 2982 | R40: 2982 | S40: 2012 | T40: 147890 | U40: 147890 | V40: 865071 | W40: 865071 | X40: 84552 | Y40: 84552 | Z40: 44553 | AA40: 44553 | AB40: 206298 | AC40: 206298 | AD40: 9426 | AE40: 9426 | AF40: 2982 | AG40: 2982
A41: 2013 | B41: 1367017 | C41: 1367017 | D41: 2013 | E41: 151848 | F41: 151848 | G41: 861968 | H41: 861968 | I41: 84249 | J41: 84249 | K41: 44393 | L41: 44393 | M41: 211819 | N41: 211819 | O41: 9678 | P41: 9678 | Q41: 3062 | R41: 3062 | S41: 2013 | T41: 151848 | U41: 151848 | V41: 861968 | W41: 861968 | X41: 84249 | Y41: 84249 | Z41: 44393 | AA41: 44393 | AB41: 211819 | AC41: 211819 | AD41: 9678 | AE41: 9678 | AF41: 3062 | AG41: 3062
A42: 2015 | B42: 1380057.714 | C42: 1380057.714 | D42: 2015 | E42: =E41*(1+2*E18) -> 159975.857 | F42: =F41*(1+2*F18) -> 159975.857 | G42: 855784.2609 | H42: 855784.2609 | I42: 83645.17166 | J42: 83645.17166 | K42: 44074.14919 | L42: 44074.14919 | M42: 223156.5088 | N42: 223156.5088 | O42: 10195.47422 | P42: 10195.47422 | Q42: 3226.292421 | R42: 3226.292421 | S42: 2015 | T42: =T41*(1+2*T18) -> 159975.857 | U42: =U41*(1+2*U18) -> 159975.857 | V42: =V41*(1+2*V18) -> 855784.2609 | W42: 855784.2609 | X42: 83645.17166 | Y42: 83645.17166 | Z42: 44074.14919 | AA42: 44074.14919 | AB42: 223156.5088 | AC42: 223156.5088 | AD42: 10195.47422 | AE42: 10195.47422 | AF42: 3226.292421 | AG42: 3226.292421
A43: 2016 | B43: 1387142.747 | C43: 1387142.747 | D43: 2016 | E43: =E42*(1+E19) -> 164257.3124 | F43: =F42*(1+F19) -> 164257.3124 | G43: 852714.5723 | H43: 852714.5723 | I43: 83345.42136 | J43: 83345.42136 | K43: 43915.86886 | L43: 43915.86886 | M43: 229128.6806 | N43: 229128.6806 | O43: 10468.04578 | P43: 10468.04578 | Q43: 3312.846208 | R43: 3312.846208 | S43: 2016 | T43: =T42*(1+T19) -> 164257.3124 | U43: 164257.3124 | V43: =V42*(1+V19) -> 852714.5723 | W43: 852714.5723 | X43: 83345.42136 | Y43: 83345.42136 | Z43: 43915.86886 | AA43: 43915.86886 | AB43: 229128.6806 | AC43: 229128.6806 | AD43: 10468.04578 | AE43: 10468.04578 | AF43: 3312.846208 | AG43: 3312.846208
A44: 2017 | B44: 1394524.457 | C44: 1394524.457 | D44: 2017 | E44: =E43*(1+E20) -> 168653.353 | F44: 168653.353 | G44: 849655.8947 | H44: 849655.8947 | I44: 83046.74525 | J44: 83046.74525 | K44: 43758.15694 | L44: 43758.15694 | M44: 235260.6811 | N44: 235260.6811 | O44: 10747.90442 | P44: 10747.90442 | Q44: 3401.722029 | R44: 3401.722029 | S44: 2017 | T44: 168653.353 | U44: 168653.353 | V44: 849655.8947 | W44: 849655.8947 | X44: 83046.74525 | Y44: 83046.74525 | Z44: 43758.15694 | AA44: 43758.15694 | AB44: 235260.6811 | AC44: 235260.6811 | AD44: 10747.90442 | AE44: 10747.90442 | AF44: 3401.722029 | AG44: 3401.722029
A45: 2018 | B45: 1396445.943 | C45: 1396445.943 | D45: 2018 | E45: =E44*(1+E21) -> 169781.7761 | F45: 169781.7761 | G45: 848893.9681 | H45: 848893.9681 | I45: 82972.3438 | J45: 82972.3438 | K45: 43718.87055 | L45: 43718.87055 | M45: 236834.7078 | N45: 236834.7078 | O45: 10819.73955 | P45: 10819.73955 | Q45: 3424.537066 | R45: 3424.537066 | S45: 2018 | T45: 169781.7761 | U45: 169781.7761 | V45: 848893.9681 | W45: 848893.9681 | X45: 82972.3438 | Y45: 82972.3438 | Z45: 43718.87055 | AA45: 43718.87055 | AB45: 236834.7078 | AC45: 236834.7078 | AD45: 10819.73955 | AE45: 10819.73955 | AF45: 3424.537066 | AG45: 3424.537066
A46: 2020 | B46: 1400327.913 | C46: 1400327.913 | D46: 2020 | E46: =E45*(1+2*E22) -> 172053.7224 | F46: =F45*(1+2*F22) -> 172053.7224 | G46: 847371.4815 | H46: 847371.4815 | I46: 82823.67423 | J46: 82823.67423 | K46: 43640.36833 | L46: 43640.36833 | M46: 240003.8234 | N46: 240003.8234 | O46: 10964.37006 | P46: 10964.37006 | Q46: 3470.473177 | R46: 3470.473177 | S46: 2020 | T46: =T45*(1+2*T22) -> 172053.7224 | U46: =U45*(1+2*U22) -> 172053.7224 | V46: =V45*(1+2*V22) -> 847371.4815 | W46: 847371.4815 | X46: 82823.67423 | Y46: 82823.67423 | Z46: 43640.36833 | AA46: 43640.36833 | AB46: 240003.8234 | AC46: 240003.8234 | AD46: 10964.37006 | AE46: 10964.37006 | AF46: 3470.473177 | AG46: 3470.473177
A47: 2025 | B47: 1410451.683 | C47: 1410451.683 | D47: 2025 | E47: =E46*(1+5*E23) -> 177809.5936 | F47: =F46*(1+5*F23) -> 177809.5936 | G47: 843572.0915 | H47: 843572.0915 | I47: 82675.27104 | J47: 82675.27104 | K47: 43444.46517 | L47: 43444.46517 | M47: 248032.6283 | N47: 248032.6283 | O47: 11330.77963 | P47: 11330.77963 | Q47: 3586.8539 | R47: 3586.8539 | S47: 2025 | T47: =T46*(1+5*T23) -> 177809.5936 | U47: 177809.5936 | V47: =V46*(1+5*V23) -> 843572.0915 | W47: 843572.0915 | X47: 82675.27104 | Y47: 82675.27104 | Z47: 43444.46517 | AA47: 43444.46517 | AB47: 248032.6283 | AC47: 248032.6283 | AD47: 11330.77963 | AE47: 11330.77963 | AF47: 3586.8539 | AG47: 3586.8539
A48: 2030 | B48: 1421070.924 | C48: 1421070.924 | D48: 2030 | E48: 183758.0212 | F48: 183758.0212 | G48: 839789.7369 | H48: 839789.7369 | I48: 82527.13375 | J48: 82527.13375 | K48: 43249.44142 | L48: 43249.44142 | M48: 256330.0193 | N48: 256330.0193 | O48: 11709.43394 | P48: 11709.43394 | Q48: 3707.137398 | R48: 3707.137398 | S48: 2030 | T48: 183758.0212 | U48: 183758.0212 | V48: 839789.7369 | W48: 839789.7369 | X48: 82527.13375 | Y48: 82527.13375 | Z48: 43249.44142 | AA48: 43249.44142 | AB48: 256330.0193 | AC48: 256330.0193 | AD48: 11709.43394 | AE48: 11709.43394 | AF48: 3707.137398 | AG48: 3707.137398
A49: 2035 | B49: 1432201.522 | C49: 1432201.522 | D49: 2035 | E49: 189905.4471 | F49: 189905.4471 | G49: 836024.3414 | H49: 836024.3414 | I49: 82379.2619 | J49: 82379.2619 | K49: 43055.29314 | L49: 43055.29314 | M49: 264904.9815 | N49: 264904.9815 | O49: 12100.74221 | P49: 12100.74221 | Q49: 3831.454548 | R49: 3831.454548 | S49: 2035 | T49: 189905.4471 | U49: 189905.4471 | V49: 836024.3414 | W49: 836024.3414 | X49: 82379.2619 | Y49: 82379.2619 | Z49: 43055.29314 | AA49: 43055.29314 | AB49: 264904.9815 | AC49: 264904.9815 | AD49: 12100.74221 | AE49: 12100.74221 | AF49: 3831.454548 | AG49: 3831.454548
A50: 2040 | B50: 1443859.897 | C50: 1443859.897 | D50: 2040 | E50: 196258.5284 | F50: 196258.5284 | G50: 832275.829 | H50: 832275.829 | I50: 82231.65501 | J50: 82231.65501 | K50: 42862.0164 | L50: 42862.0164 | M50: 273766.8003 | N50: 273766.8003 | O50: 12505.12729 | P50: 12505.12729 | Q50: 3959.940616 | R50: 3959.940616 | S50: 2040 | T50: 196258.5284 | U50: 196258.5284 | V50: 832275.829 | W50: 832275.829 | X50: 82231.65501 | Y50: 82231.65501 | Z50: 42862.0164 | AA50: 42862.0164 | AB50: 273766.8003 | AC50: 273766.8003 | AD50: 12505.12729 | AE50: 12505.12729 | AF50: 3959.940616 | AG50: 3959.940616
A51: 2045 | B51: 1456063.023 | C51: 1456063.023 | D51: 2045 | E51: 202824.1452 | F51: 202824.1452 | G51: 828544.1239 | H51: 828544.1239 | I51: 82084.31259 | J51: 82084.31259 | K51: 42669.60728 | L51: 42669.60728 | M51: 282925.072 | N51: 282925.072 | O51: 12923.0262 | P51: 12923.0262 | Q51: 4092.735405 | R51: 4092.735405 | S51: 2045 | T51: 202824.1452 | U51: 202824.1452 | V51: 828544.1239 | W51: 828544.1239 | X51: 82084.31259 | Y51: 82084.31259 | Z51: 42669.60728 | AA51: 42669.60728 | AB51: 282925.072 | AC51: 282925.072 | AD51: 12923.0262 | AE51: 12923.0262 | AF51: 4092.735405 | AG51: 4092.735405
A52: 2050 | B52: 1468828.442 | C52: 1468828.442 | D52: 2050 | E52: 209609.4076 | F52: 209609.4076 | G52: 824829.1507 | H52: 824829.1507 | I52: 81937.23419 | J52: 81937.23419 | K52: 42478.0619 | L52: 42478.0619 | M52: 292389.7137 | N52: 292389.7137 | O52: 13354.89054 | P52: 13354.89054 | Q52: 4229.983406 | R52: 4229.983406 | S52: 2050 | T52: 209609.4076 | U52: 209609.4076 | V52: 824829.1507 | W52: 824829.1507 | X52: 81937.23419 | Y52: 81937.23419 | Z52: 42478.0619 | AA52: 42478.0619 | AB52: 292389.7137 | AC52: 292389.7137 | AD52: 13354.89054 | AE52: 13354.89054 | AF52: 4229.983406 | AG52: 4229.983406
C55: checks | E55: 124590 | F55: 124590 | G55: 859783 | H55: 859783 | I55: 84036 | J55: 84036 | K55: 44281 | L55: 44281 | M55: 176920 | N55: 176920 | O55: 7110 | P55: 7110 | Q55: 6960 | R55: 6960 | T55: 124590 | U55: 124590 | V55: 859783 | W55: 859783 | X55: 84036 | Y55: 84036 | Z55: 44281 | AA55: 44281 | AB55: 176920 | AC55: 176920 | AD55: 7110 | AE55: 7110 | AF55: 6960 | AG55: 6960
E56: 130435 | F56: 130435 | G56: 865071 | H56: 865071 | I56: 84552 | J56: 84552 | K56: 44553 | L56: 44553 | M56: 181949 | N56: 181949 | O56: 8313 | P56: 8313 | Q56: 2630 | R56: 2630 | T56: 130435 | U56: 130435 | V56: 865071 | W56: 865071 | X56: 84552 | Y56: 84552 | Z56: 44553 | AA56: 44553 | AB56: 181949 | AC56: 181949 | AD56: 8313 | AE56: 8313 | AF56: 2630 | AG56: 2630
E57: 134990 | F57: 134990 | G57: 870673 | H57: 870673 | I57: 85100 | J57: 85100 | K57: 44841 | L57: 44841 | M57: 188303 | N57: 188303 | O57: 8604 | P57: 8604 | Q57: 2722 | R57: 2722 | T57: 134990 | U57: 134990 | V57: 870673 | W57: 870673 | X57: 85100 | Y57: 85100 | Z57: 44841 | AA57: 44841 | AB57: 188303 | AC57: 188303 | AD57: 8604 | AE57: 8604 | AF57: 2722 | AG57: 2722
E58: 139411 | F58: 139411 | G58: 875111 | H58: 875111 | I58: 85533 | J58: 85533 | K58: 45070 | L58: 45070 | M58: 194470 | N58: 194470 | O58: 8886 | P58: 8886 | Q58: 2811 | R58: 2811 | T58: 139411 | U58: 139411 | V58: 875111 | W58: 875111 | X58: 85533 | Y58: 85533 | Z58: 45070 | AA58: 45070 | AB58: 194470 | AC58: 194470 | AD58: 8886 | AE58: 8886 | AF58: 2811 | AG58: 2811
E59: 143813 | F59: 143813 | G59: 879156 | H59: 879156 | I59: 85929 | J59: 85929 | K59: 45278 | L59: 45278 | M59: 200611 | N59: 200611 | O59: 9166 | P59: 9166 | Q59: 2900 | R59: 2900 | T59: 143813 | U59: 143813 | V59: 879156 | W59: 879156 | X59: 85929 | Y59: 85929 | Z59: 45278 | AA59: 45278 | AB59: 200611 | AC59: 200611 | AD59: 9166 | AE59: 9166 | AF59: 2900 | AG59: 2900
E60: 143868 | F60: 143868 | G60: 865071 | H60: 865071 | I60: 84552 | J60: 84552 | K60: 44553 | L60: 44553 | M60: 200688 | N60: 200688 | O60: 9170 | P60: 9170 | Q60: 2901 | R60: 2901 | T60: 143868 | U60: 143868 | V60: 865071 | W60: 865071 | X60: 84552 | Y60: 84552 | Z60: 44553 | AA60: 44553 | AB60: 200688 | AC60: 200688 | AD60: 9170 | AE60: 9170 | AF60: 2901 | AG60: 2901
E61: 147890 | F61: 147890 | G61: 865071 | H61: 865071 | I61: 84552 | J61: 84552 | K61: 44553 | L61: 44553 | M61: 206298 | N61: 206298 | O61: 9426 | P61: 9426 | Q61: 2982 | R61: 2982 | T61: 147890 | U61: 147890 | V61: 865071 | W61: 865071 | X61: 84552 | Y61: 84552 | Z61: 44553 | AA61: 44553 | AB61: 206298 | AC61: 206298 | AD61: 9426 | AE61: 9426 | AF61: 2982 | AG61: 2982
E62: 151848 | F62: 151848 | G62: 861968 | H62: 861968 | I62: 84249 | J62: 84249 | K62: 44393 | L62: 44393 | M62: 211819 | N62: 211819 | O62: 9678 | P62: 9678 | Q62: 3062 | R62: 3062 | T62: 151848 | U62: 151848 | V62: 861968 | W62: 861968 | X62: 84249 | Y62: 84249 | Z62: 44393 | AA62: 44393 | AB62: 211819 | AC62: 211819 | AD62: 9678 | AE62: 9678 | AF62: 3062 | AG62: 3062
E63: 159975.857 | F63: 159975.857 | G63: 855784.2609 | H63: 855784.2609 | I63: 83645.17166 | J63: 83645.17166 | K63: 44074.14919 | L63: 44074.14919 | M63: 223156.5088 | N63: 223156.5088 | O63: 10195.47422 | P63: 10195.47422 | Q63: 3226.292421 | R63: 3226.292421 | T63: 159975.857 | U63: 159975.857 | V63: 855784.2609 | W63: 855784.2609 | X63: 83645.17166 | Y63: 83645.17166 | Z63: 44074.14919 | AA63: 44074.14919 | AB63: 223156.5088 | AC63: 223156.5088 | AD63: 10195.47422 | AE63: 10195.47422 | AF63: 3226.292421 | AG63: 3226.292421
E64: 164257.3124 | F64: 164257.3124 | G64: 852714.5723 | H64: 852714.5723 | I64: 83345.42136 | J64: 83345.42136 | K64: 43915.86886 | L64: 43915.86886 | M64: 229128.6806 | N64: 229128.6806 | O64: 10468.04578 | P64: 10468.04578 | Q64: 3312.846208 | R64: 3312.846208 | T64: 164257.3124 | U64: 164257.3124 | V64: 852714.5723 | W64: 852714.5723 | X64: 83345.42136 | Y64: 83345.42136 | Z64: 43915.86886 | AA64: 43915.86886 | AB64: 229128.6806 | AC64: 229128.6806 | AD64: 10468.04578 | AE64: 10468.04578 | AF64: 3312.846208 | AG64: 3312.846208
E65: 168653.353 | F65: 168653.353 | G65: 849655.8947 | H65: 849655.8947 | I65: 83046.74525 | J65: 83046.74525 | K65: 43758.15694 | L65: 43758.15694 | M65: 235260.6811 | N65: 235260.6811 | O65: 10747.90442 | P65: 10747.90442 | Q65: 3401.722029 | R65: 3401.722029 | T65: 168653.353 | U65: 168653.353 | V65: 849655.8947 | W65: 849655.8947 | X65: 83046.74525 | Y65: 83046.74525 | Z65: 43758.15694 | AA65: 43758.15694 | AB65: 235260.6811 | AC65: 235260.6811 | AD65: 10747.90442 | AE65: 10747.90442 | AF65: 3401.722029 | AG65: 3401.722029
E66: 169781.7761 | F66: 169781.7761 | G66: 848893.9681 | H66: 848893.9681 | I66: 82972.3438 | J66: 82972.3438 | K66: 43718.87055 | L66: 43718.87055 | M66: 236834.7078 | N66: 236834.7078 | O66: 10819.73955 | P66: 10819.73955 | Q66: 3424.537066 | R66: 3424.537066 | T66: 169781.7761 | U66: 169781.7761 | V66: 848893.9681 | W66: 848893.9681 | X66: 82972.3438 | Y66: 82972.3438 | Z66: 43718.87055 | AA66: 43718.87055 | AB66: 236834.7078 | AC66: 236834.7078 | AD66: 10819.73955 | AE66: 10819.73955 | AF66: 3424.537066 | AG66: 3424.537066
E67: 172053.7224 | F67: 172053.7224 | G67: 847371.4815 | H67: 847371.4815 | I67: 82823.67423 | J67: 82823.67423 | K67: 43640.36833 | L67: 43640.36833 | M67: 240003.8234 | N67: 240003.8234 | O67: 10964.37006 | P67: 10964.37006 | Q67: 3470.473177 | R67: 3470.473177 | T67: 172053.7224 | U67: 172053.7224 | V67: 847371.4815 | W67: 847371.4815 | X67: 82823.67423 | Y67: 82823.67423 | Z67: 43640.36833 | AA67: 43640.36833 | AB67: 240003.8234 | AC67: 240003.8234 | AD67: 10964.37006 | AE67: 10964.37006 | AF67: 3470.473177 | AG67: 3470.473177
E68: 177809.5936 | F68: 177809.5936 | G68: 843572.0915 | H68: 843572.0915 | I68: 82675.27104 | J68: 82675.27104 | K68: 43444.46517 | L68: 43444.46517 | M68: 248032.6283 | N68: 248032.6283 | O68: 11330.77963 | P68: 11330.77963 | Q68: 3586.8539 | R68: 3586.8539 | T68: 177809.5936 | U68: 177809.5936 | V68: 843572.0915 | W68: 843572.0915 | X68: 82675.27104 | Y68: 82675.27104 | Z68: 43444.46517 | AA68: 43444.46517 | AB68: 248032.6283 | AC68: 248032.6283 | AD68: 11330.77963 | AE68: 11330.77963 | AF68: 3586.8539 | AG68: 3586.8539
E69: 183758.0212 | F69: 183758.0212 | G69: 839789.7369 | H69: 839789.7369 | I69: 82527.13375 | J69: 82527.13375 | K69: 43249.44142 | L69: 43249.44142 | M69: 256330.0193 | N69: 256330.0193 | O69: 11709.43394 | P69: 11709.43394 | Q69: 3707.137398 | R69: 3707.137398 | T69: 183758.0212 | U69: 183758.0212 | V69: 839789.7369 | W69: 839789.7369 | X69: 82527.13375 | Y69: 82527.13375 | Z69: 43249.44142 | AA69: 43249.44142 | AB69: 256330.0193 | AC69: 256330.0193 | AD69: 11709.43394 | AE69: 11709.43394 | AF69: 3707.137398 | AG69: 3707.137398
E70: 189905.4471 | F70: 189905.4471 | G70: 836024.3414 | H70: 836024.3414 | I70: 82379.2619 | J70: 82379.2619 | K70: 43055.29314 | L70: 43055.29314 | M70: 264904.9815 | N70: 264904.9815 | O70: 12100.74221 | P70: 12100.74221 | Q70: 3831.454548 | R70: 3831.454548 | T70: 189905.4471 | U70: 189905.4471 | V70: 836024.3414 | W70: 836024.3414 | X70: 82379.2619 | Y70: 82379.2619 | Z70: 43055.29314 | AA70: 43055.29314 | AB70: 264904.9815 | AC70: 264904.9815 | AD70: 12100.74221 | AE70: 12100.74221 | AF70: 3831.454548 | AG70: 3831.454548
E71: 196258.5284 | F71: 196258.5284 | G71: 832275.829 | H71: 832275.829 | I71: 82231.65501 | J71: 82231.65501 | K71: 42862.0164 | L71: 42862.0164 | M71: 273766.8003 | N71: 273766.8003 | O71: 12505.12729 | P71: 12505.12729 | Q71: 3959.940616 | R71: 3959.940616 | T71: 196258.5284 | U71: 196258.5284 | V71: 832275.829 | W71: 832275.829 | X71: 82231.65501 | Y71: 82231.65501 | Z71: 42862.0164 | AA71: 42862.0164 | AB71: 273766.8003 | AC71: 273766.8003 | AD71: 12505.12729 | AE71: 12505.12729 | AF71: 3959.940616 | AG71: 3959.940616
E72: 202824.1452 | F72: 202824.1452 | G72: 828544.1239 | H72: 828544.1239 | I72: 82084.31259 | J72: 82084.31259 | K72: 42669.60728 | L72: 42669.60728 | M72: 282925.072 | N72: 282925.072 | O72: 12923.0262 | P72: 12923.0262 | Q72: 4092.735405 | R72: 4092.735405 | T72: 202824.1452 | U72: 202824.1452 | V72: 828544.1239 | W72: 828544.1239 | X72: 82084.31259 | Y72: 82084.31259 | Z72: 42669.60728 | AA72: 42669.60728 | AB72: 282925.072 | AC72: 282925.072 | AD72: 12923.0262 | AE72: 12923.0262 | AF72: 4092.735405 | AG72: 4092.735405
E73: 209609.4076 | F73: 209609.4076 | G73: 824829.1507 | H73: 824829.1507 | I73: 81937.23419 | J73: 81937.23419 | K73: 42478.0619 | L73: 42478.0619 | M73: 292389.7137 | N73: 292389.7137 | O73: 13354.89054 | P73: 13354.89054 | Q73: 4229.983406 | R73: 4229.983406 | T73: 209609.4076 | U73: 209609.4076 | V73: 824829.1507 | W73: 824829.1507 | X73: 81937.23419 | Y73: 81937.23419 | Z73: 42478.0619 | AA73: 42478.0619 | AB73: 292389.7137 | AC73: 292389.7137 | AD73: 13354.89054 | AE73: 13354.89054 | AF73: 4229.983406 | AG73: 4229.983406
D75: 2006 | E75: =E34-E55 -> 0 | F75: =F34-F55 -> 0 | G75: 0 | H75: 0 | I75: 0 | J75: 0 | K75: 0 | L75: 0 | M75: 0 | N75: 0 | O75: 0 | P75: 0 | Q75: 0 | R75: 0 | S75: =S34-S55 -> 2006 | T75: 0 | U75: 0 | V75: 0 | W75: 0 | X75: 0 | Y75: 0 | Z75: 0 | AA75: 0 | AB75: 0 | AC75: 0 | AD75: 0 | AE75: 0 | AF75: 0 | AG75: =AG34-AG55 -> 0
D76: 2007 | E76: 0 | F76: =F35-F56 -> 0 | G76: 0 | H76: 0 | I76: 0 | J76: 0 | K76: 0 | L76: 0 | M76: 0 | N76: 0 | O76: 0 | P76: 0 | Q76: 0 | R76: 0 | S76: =S35-S56 -> 2007 | T76: 0 | U76: 0 | V76: 0 | W76: 0 | X76: 0 | Y76: 0 | Z76: 0 | AA76: 0 | AB76: 0 | AC76: 0 | AD76: 0 | AE76: 0 | AF76: 0 | AG76: 0
D77: 2008 | E77: 0 | F77: =F36-F57 -> 0 | G77: 0 | H77: 0 | I77: 0 | J77: 0 | K77: 0 | L77: 0 | M77: 0 | N77: 0 | O77: 0 | P77: 0 | Q77: 0 | R77: 0 | S77: =S36-S57 -> 2008 | T77: 0 | U77: 0 | V77: 0 | W77: 0 | X77: 0 | Y77: 0 | Z77: 0 | AA77: 0 | AB77: 0 | AC77: 0 | AD77: 0 | AE77: 0 | AF77: 0 | AG77: 0
D78: 2009 | E78: 0 | F78: =F37-F58 -> 0 | G78: 0 | H78: 0 | I78: 0 | J78: 0 | K78: 0 | L78: 0 | M78: 0 | N78: 0 | O78: 0 | P78: 0 | Q78: 0 | R78: 0 | S78: =S37-S58 -> 2009 | T78: 0 | U78: 0 | V78: 0 | W78: 0 | X78: 0 | Y78: 0 | Z78: 0 | AA78: 0 | AB78: 0 | AC78: 0 | AD78: 0 | AE78: 0 | AF78: 0 | AG78: 0
D79: 2010 | E79: 0 | F79: =F38-F59 -> 0 | G79: 0 | H79: 0 | I79: 0 | J79: 0 | K79: 0 | L79: 0 | M79: 0 | N79: 0 | O79: 0 | P79: 0 | Q79: 0 | R79: 0 | S79: =S38-S59 -> 2010 | T79: 0 | U79: 0 | V79: 0 | W79: 0 | X79: 0 | Y79: 0 | Z79: 0 | AA79: 0 | AB79: 0 | AC79: 0 | AD79: 0 | AE79: 0 | AF79: 0 | AG79: 0
D80: 2011 | E80: 0 | F80: =F39-F60 -> 0 | G80: 0 | H80: 0 | I80: 0 | J80: 0 | K80: 0 | L80: 0 | M80: 0 | N80: 0 | O80: 0 | P80: 0 | Q80: 0 | R80: 0 | S80: =S39-S60 -> 2011 | T80: 0 | U80: 0 | V80: 0 | W80: 0 | X80: 0 | Y80: 0 | Z80: 0 | AA80: 0 | AB80: 0 | AC80: 0 | AD80: 0 | AE80: 0 | AF80: 0 | AG80: 0
D81: 2012 | E81: 0 | F81: =F40-F61 -> 0 | G81: 0 | H81: 0 | I81: 0 | J81: 0 | K81: 0 | L81: 0 | M81: 0 | N81: 0 | O81: 0 | P81: 0 | Q81: 0 | R81: 0 | S81: =S40-S61 -> 2012 | T81: 0 | U81: 0 | V81: 0 | W81: 0 | X81: 0 | Y81: 0 | Z81: 0 | AA81: 0 | AB81: 0 | AC81: 0 | AD81: 0 | AE81: 0 | AF81: 0 | AG81: 0
D82: 2013 | E82: 0 | F82: =F41-F62 -> 0 | G82: 0 | H82: 0 | I82: 0 | J82: 0 | K82: 0 | L82: 0 | M82: 0 | N82: 0 | O82: 0 | P82: 0 | Q82: 0 | R82: 0 | S82: =S41-S62 -> 2013 | T82: 0 | U82: 0 | V82: 0 | W82: 0 | X82: 0 | Y82: 0 | Z82: 0 | AA82: 0 | AB82: 0 | AC82: 0 | AD82: 0 | AE82: 0 | AF82: 0 | AG82: 0
D83: 2015 | E83: 0 | F83: =F42-F63 -> 0 | G83: 0 | H83: 0 | I83: 0 | J83: 0 | K83: 0 | L83: 0 | M83: 0 | N83: 0 | O83: 0 | P83: 0 | Q83: 0 | R83: 0 | S83: =S42-S63 -> 2015 | T83: 0 | U83: 0 | V83: 0 | W83: 0 | X83: 0 | Y83: 0 | Z83: 0 | AA83: 0 | AB83: 0 | AC83: 0 | AD83: 0 | AE83: 0 | AF83: 0 | AG83: 0
D84: 2016 | E84: 0 | F84: =F43-F64 -> 0 | G84: 0 | H84: 0 | I84: 0 | J84: 0 | K84: 0 | L84: 0 | M84: 0 | N84: 0 | O84: 0 | P84: 0 | Q84: 0 | R84: 0 | S84: =S43-S64 -> 2016 | T84: 0 | U84: 0 | V84: 0 | W84: 0 | X84: 0 | Y84: 0 | Z84: 0 | AA84: 0 | AB84: 0 | AC84: 0 | AD84: 0 | AE84: 0 | AF84: 0 | AG84: 0
D85: 2017 | E85: 0 | F85: =F44-F65 -> 0 | G85: 0 | H85: 0 | I85: 0 | J85: 0 | K85: 0 | L85: 0 | M85: 0 | N85: 0 | O85: 0 | P85: 0 | Q85: 0 | R85: 0 | S85: =S44-S65 -> 2017 | T85: 0 | U85: 0 | V85: 0 | W85: 0 | X85: 0 | Y85: 0 | Z85: 0 | AA85: 0 | AB85: 0 | AC85: 0 | AD85: 0 | AE85: 0 | AF85: 0 | AG85: 0
D86: 2018 | E86: 0 | F86: =F45-F66 -> 0 | G86: 0 | H86: 0 | I86: 0 | J86: 0 | K86: 0 | L86: 0 | M86: 0 | N86: 0 | O86: 0 | P86: 0 | Q86: 0 | R86: 0 | S86: =S45-S66 -> 2018 | T86: 0 | U86: 0 | V86: 0 | W86: 0 | X86: 0 | Y86: 0 | Z86: 0 | AA86: 0 | AB86: 0 | AC86: 0 | AD86: 0 | AE86: 0 | AF86: 0 | AG86: 0
D87: 2020 | E87: 0 | F87: =F46-F67 -> 0 | G87: 0 | H87: 0 | I87: 0 | J87: 0 | K87: 0 | L87: 0 | M87: 0 | N87: 0 | O87: 0 | P87: 0 | Q87: 0 | R87: 0 | S87: =S46-S67 -> 2020 | T87: 0 | U87: 0 | V87: 0 | W87: 0 | X87: 0 | Y87: 0 | Z87: 0 | AA87: 0 | AB87: 0 | AC87: 0 | AD87: 0 | AE87: 0 | AF87: 0 | AG87: 0
D88: 2025 | E88: 0 | F88: =F47-F68 -> 0 | G88: 0 | H88: 0 | I88: 0 | J88: 0 | K88: 0 | L88: 0 | M88: 0 | N88: 0 | O88: 0 | P88: 0 | Q88: 0 | R88: 0 | S88: =S47-S68 -> 2025 | T88: 0 | U88: 0 | V88: 0 | W88: 0 | X88: 0 | Y88: 0 | Z88: 0 | AA88: 0 | AB88: 0 | AC88: 0 | AD88: 0 | AE88: 0 | AF88: 0 | AG88: 0
D89: 2030 | E89: 0 | F89: =F48-F69 -> 0 | G89: 0 | H89: 0 | I89: 0 | J89: 0 | K89: 0 | L89: 0 | M89: 0 | N89: 0 | O89: 0 | P89: 0 | Q89: 0 | R89: 0 | S89: =S48-S69 -> 2030 | T89: 0 | U89: 0 | V89: 0 | W89: 0 | X89: 0 | Y89: 0 | Z89: 0 | AA89: 0 | AB89: 0 | AC89: 0 | AD89: 0 | AE89: 0 | AF89: 0 | AG89: 0
D90: 2035 | E90: 0 | F90: =F49-F70 -> 0 | G90: 0 | H90: 0 | I90: 0 | J90: 0 | K90: 0 | L90: 0 | M90: 0 | N90: 0 | O90: 0 | P90: 0 | Q90: 0 | R90: 0 | S90: =S49-S70 -> 2035 | T90: 0 | U90: 0 | V90: 0 | W90: 0 | X90: 0 | Y90: 0 | Z90: 0 | AA90: 0 | AB90: 0 | AC90: 0 | AD90: 0 | AE90: 0 | AF90: 0 | AG90: 0
D91: 2040 | E91: 0 | F91: =F50-F71 -> 0 | G91: 0 | H91: 0 | I91: 0 | J91: 0 | K91: 0 | L91: 0 | M91: 0 | N91: 0 | O91: 0 | P91: 0 | Q91: 0 | R91: 0 | S91: =S50-S71 -> 2040 | T91: 0 | U91: 0 | V91: 0 | W91: 0 | X91: 0 | Y91: 0 | Z91: 0 | AA91: 0 | AB91: 0 | AC91: 0 | AD91: 0 | AE91: 0 | AF91: 0 | AG91: 0
D92: 2045 | E92: 0 | F92: =F51-F72 -> 0 | G92: 0 | H92: 0 | I92: 0 | J92: 0 | K92: 0 | L92: 0 | M92: 0 | N92: 0 | O92: 0 | P92: 0 | Q92: 0 | R92: 0 | S92: =S51-S72 -> 2045 | T92: 0 | U92: 0 | V92: 0 | W92: 0 | X92: 0 | Y92: 0 | Z92: 0 | AA92: 0 | AB92: 0 | AC92: 0 | AD92: 0 | AE92: 0 | AF92: 0 | AG92: 0
D93: 2050 | E93: 0 | F93: =F52-F73 -> 0 | G93: 0 | H93: 0 | I93: 0 | J93: 0 | K93: 0 | L93: 0 | M93: 0 | N93: 0 | O93: 0 | P93: 0 | Q93: 0 | R93: 0 | S93: =S52-S73 -> 2050 | T93: 0 | U93: 0 | V93: 0 | W93: 0 | X93: 0 | Y93: 0 | Z93: 0 | AA93: 0 | AB93: 0 | AC93: 0 | AD93: 0 | AE93: 0 | AF93: 0 | AG93: 0

Sheet 7. Calculations
A1: Calculations | E1: Excel Toolkit for Mitigation Analysis for Low-Carbon Development Planning | I1: XLMT-Liquid Wastes v17.1

Sheet ChartPlotLegend
A1: Time Series Plot | E1: Excel Toolkit for Mitigation Analysis for Low-Carbon Development Planning | I1: XLMT-Liquid Wastes v17.1
O2: Year | P2: TNC 13:BAU | Q2: TNC 25:SC1 | R2: Sparkline
G3: Legend Code | H3: Scenario | I3: Definition | O3: 2006 | P3: 146.3708688 | Q3: 146.3708688
G4: TNC 13: | H4: BAU | I4: Total GHG CO2 e | O4: 2007 | P4: 152.8623713 | Q4: 152.8623713
G5: TNC 25: | H5: SC1 | I5: Total GHG CO2 e | O5: 2008 | P5: 165.0660683 | Q5: 165.0660683
O6: 2009 | P6: 195.1523883 | Q6: 195.1523883
O7: 2010 | P7: 164.2804101 | Q7: 164.2804101
O8: 2011 | P8: 159.7239269 | Q8: 159.7239269
O9: 2012 | P9: 160.0436141 | Q9: 160.0436141
F10: Observations: | O10: 2013 | P10: 161.2495217 | Q10: 161.2495217
O11: 2015 | P11: 163.2153839 | Q11: 136.6736531
O12: 2016 | P12: 164.2584565 | Q12: 132.2279542
O13: 2017 | P13: 165.3390803 | Q13: 127.7195948
O14: 2018 | P14: 165.6277888 | Q14: 122.5903075
O15: 2020 | P15: 166.1851665 | Q15: 112.2338215
O16: 2025 | P16: 167.5256755 | Q16: 87.21120846
O17: 2030 | P17: 168.7848249 | Q17: 60.25732009
O18: 2035 | P18: 169.8458377 | Q18: 51.86202224
O19: 2040 | P19: 170.7004172 | Q19: 48.917484
O20: 2045 | P20: 171.5060386 | Q20: 45.81462284
O21: 2050 | P21: 172.2871614 | Q21: 41.72947803

Sheet RadarPlot
A1: Radar Plot | D1: Excel Toolkit for Mitigation Analysis for Low-Carbon Development Planning | E1: Excel Toolkit for Mitigation Analysis for Low-Carbon Development Planning | I1: XLMT-Liquid Wastes v17.1
N2: Year | O2: TNC 13:BAU | P2: TNC 25:SC1
G3: Legend Code | H3: Scenario | I3: Definition | N3: 2006 | O3: 146.3708688 | P3: 146.3708688
G4: TNC 13: | H4: BAU | I4: Total GHG CO2 e | N4: 2007 | O4: 152.8623713 | P4: 152.8623713
G5: TNC 25: | H5: SC1 | I5: Total GHG CO2 e | N5: 2008 | O5: 165.0660683 | P5: 165.0660683
G6: Ratio = | H6: (TNC 25:/TNC 13:) | N6: 2009 | O6: 195.1523883 | P6: 195.1523883
N7: 2010 | O7: 164.2804101 | P7: 164.2804101
N8: 2011 | O8: 159.7239269 | P8: 159.7239269
N9: 2012 | O9: 160.0436141 | P9: 160.0436141
F10: Observations: | N10: 2013 | O10: 161.2495217 | P10: 161.2495217
N11: 2015 | O11: 163.2153839 | P11: 136.6736531
N12: 2016 | O12: 164.2584565 | P12: 132.2279542
N13: 2017 | O13: 165.3390803 | P13: 127.7195948
N14: 2018 | O14: 165.6277888 | P14: 122.5903075
N15: 2020 | O15: 166.1851665 | P15: 112.2338215
N16: 2025 | O16: 167.5256755 | P16: 87.21120846
N17: 2030 | O17: 168.7848249 | P17: 60.25732009
N18: 2035 | O18: 169.8458377 | P18: 51.86202224
N19: 2040 | O19: 170.7004172 | P19: 48.917484
N20: 2045 | O20: 171.5060386 | P20: 45.81462284
N21: 2050 | O21: 172.2871614 | P21: 41.72947803

Sheet DiffPlot
A1: Percentage Change | E1: Excel Toolkit for Mitigation Analysis for Low-Carbon Development Planning | I1: XLMT-Liquid Wastes v17.1
N2: Year | O2: TNC 13:BAU | P2: TNC 25:SC1
G3: Legend Code | H3: Scenario | I3: Definition | N3: 2006 | O3: 146.3708688 | P3: 146.3708688
G4: TNC 13: | H4: BAU | I4: Total GHG CO2 e | N4: 2007 | O4: 152.8623713 | P4: 152.8623713
G5: TNC 25: | H5: SC1 | I5: Total GHG CO2 e | N5: 2008 | O5: 165.0660683 | P5: 165.0660683
G6: % Change = | H6: (TNC 25:-TNC 13:) x 100/TNC 13: | N6: 2009 | O6: 195.1523883 | P6: 195.1523883
N7: 2010 | O7: 164.2804101 | P7: 164.2804101
N8: 2011 | O8: 159.7239269 | P8: 159.7239269
N9: 2012 | O9: 160.0436141 | P9: 160.0436141
F10: Observations: | N10: 2013 | O10: 161.2495217 | P10: 161.2495217
N11: 2015 | O11: 163.2153839 | P11: 136.6736531
N12: 2016 | O12: 164.2584565 | P12: 132.2279542
N13: 2017 | O13: 165.3390803 | P13: 127.7195948
N14: 2018 | O14: 165.6277888 | P14: 122.5903075
N15: 2020 | O15: 166.1851665 | P15: 112.2338215
N16: 2025 | O16: 167.5256755 | P16: 87.21120846
N17: 2030 | O17: 168.7848249 | P17: 60.25732009
N18: 2035 | O18: 169.8458377 | P18: 51.86202224
N19: 2040 | O19: 170.7004172 | P19: 48.917484
N20: 2045 | O20: 171.5060386 | P20: 45.81462284
N21: 2050 | O21: 172.2871614 | P21: 41.72947803

Sheet Report
A1: Report | C1: Excel Toolkit for Mitigation Analysis for Low-Carbon Development Planning | N1: XLMT-Liquid Wastes v17.1
B4: User Name: | C4: RB
B7: Project Code: | C7: Proj
B10: Project Detail: | C10: TNC

Sheet ALL TNC PLOTS (hidden)
A1: Year | B1: Population | C1: Sewered Plaines Wilhems Population | D1: Population with Absorption pit | E1: Population with Septic tanks | F1: Population with pit latrines | G1: Sewered PL and Pte aux Sables | H1: 5 CHA estates | I1: Grand Baie sewerage connections | J1: CH4 Emissions Gg | K1: CH4 Emissions Gg CO2 e | L1: N2O Emissions Gg | M1: N2O Emissions Gg CO2 e | N1: Total GHG CO2 e | O1: Sewered Plaines Wilhems Population | P1: Population with Absorption pit | Q1: Population with Septic tanks | R1: Population with pit latrines | S1: Sewered PL and Pte aux Sables | T1: 5 CHA estates | U1: Grand Baie sewerage connections | V1: CH4 Emissions Gg | W1: CH4 Emissions Gg CO2 e | X1: N2O Emissions Gg | Y1: N2O Emissions Gg CO2 e | Z1: Total GHG CO2 e | AC1: Total GHG CO2 e | AD1: Total GHG CO2 e
A2: TNC | B2: BAU | C2: BAU | D2: BAU | E2: BAU | F2: BAU | G2: BAU | H2: BAU | I2: BAU | J2: BAU | K2: BAU | L2: BAU | M2: BAU | N2: BAU | O2: SC1 | P2: SC1 | Q2: SC1 | R2: SC1 | S2: SC1 | T2: SC1 | U2: SC1 | V2: SC1 | W2: SC1 | X2: SC1 | Y2: SC1 | Z2: SC1 | AC2: BAU | AD2: SC1
B3: 1 | C3: 2 | D3: 3 | E3: 4 | F3: 5 | G3: 6 | H3: 7 | I3: 8 | J3: 9 | K3: 10 | L3: 11 | M3: 12 | N3: 13 | O3: 14 | P3: 15 | Q3: 16 | R3: 17 | S3: 18 | T3: 19 | U3: 20 | V3: 21 | W3: 22 | X3: 23 | Y3: 24 | Z3: 25
A4: 2006 | B4: ='6. TNC Assumptions'!B10 -> 1303680 | C4: ='6. TNC Assumptions'!E34 -> 124590 | D4: ='6. TNC Assumptions'!G34 -> 859783 | E4: ='6. TNC Assumptions'!I34 -> 84036 | F4: ='6. TNC Assumptions'!K34 -> 44281 | G4: ='6. TNC Assumptions'!M34 -> 176920 | H4: ='6. TNC Assumptions'!O34 -> 7110 | I4: ='6. TNC Assumptions'!Q34 -> 6960 | J4: ='TNC BAU'!AA5 -> 5.055643448 | K4: ='TNC BAU'!AB5 -> 126.3910862 | L4: ='TNC BAU'!AC5 -> 0.06704625033 | M4: ='TNC BAU'!AD5 -> 19.9797826 | N4: ='TNC BAU'!AE5 -> 146.3708688 | O4: ='6. TNC Assumptions'!T34 -> 124590 | P4: ='6. TNC Assumptions'!V34 -> 859783 | Q4: ='6. TNC Assumptions'!X34 -> 84036 | R4: ='6. TNC Assumptions'!Z34 -> 44281 | S4: ='6. TNC Assumptions'!AB34 -> 176920 | T4: ='6. TNC Assumptions'!AD34 -> 7110 | U4: ='6. TNC Assumptions'!AF34 -> 6960 | V4: ='TNC SC1'!AB5 -> 5.055643448 | W4: ='TNC SC1'!AC5 -> 126.3910862 | X4: ='TNC SC1'!AD5 -> 0.06704625033 | Y4: ='TNC SC1'!AE5 -> 19.9797826 | Z4: ='TNC SC1'!AF5 -> 146.3708688 | AB4: 2006 | AC4: =N4 -> 146.3708688 | AD4: =Z4 -> 146.3708688
A5: 2007 | B5: ='6. TNC Assumptions'!B11 -> 1317503 | C5: ='6. TNC Assumptions'!E35 -> 130435 | D5: ='6. TNC Assumptions'!G35 -> 865071 | E5: ='6. TNC Assumptions'!I35 -> 84552 | F5: ='6. TNC Assumptions'!K35 -> 44553 | G5: ='6. TNC Assumptions'!M35 -> 181949 | H5: ='6. TNC Assumptions'!O35 -> 8313 | I5: ='6. TNC Assumptions'!Q35 -> 2630 | J5: ='TNC BAU'!AA6 -> 5.242343457 | K5: ='TNC BAU'!AB6 -> 131.0585864 | L5: ='TNC BAU'!AC6 -> 0.07316706346 | M5: ='TNC BAU'!AD6 -> 21.80378491 | N5: ='TNC BAU'!AE6 -> 152.8623713 | O5: ='6. TNC Assumptions'!T35 -> 130435 | P5: ='6. TNC Assumptions'!V35 -> 865071 | Q5: ='6. TNC Assumptions'!X35 -> 84552 | R5: ='6. TNC Assumptions'!Z35 -> 44553 | S5: ='6. TNC Assumptions'!AB35 -> 181949 | T5: ='6. TNC Assumptions'!AD35 -> 8313 | U5: ='6. TNC Assumptions'!AF35 -> 2630 | V5: ='TNC SC1'!AB6 -> 5.242343457 | W5: ='TNC SC1'!AC6 -> 131.0585864 | X5: ='TNC SC1'!AD6 -> 0.07316706346 | Y5: ='TNC SC1'!AE6 -> 21.80378491 | Z5: ='TNC SC1'!AF6 -> 152.8623713 | AB5: 2007 | AC5: 152.8623713 | AD5: 152.8623713
A6: 2008 | B6: ='6. TNC Assumptions'!B12 -> 1335233 | C6: ='6. TNC Assumptions'!E36 -> 134990 | D6: ='6. TNC Assumptions'!G36 -> 870673 | E6: ='6. TNC Assumptions'!I36 -> 85100 | F6: ='6. TNC Assumptions'!K36 -> 44841 | G6: ='6. TNC Assumptions'!M36 -> 188303 | H6: ='6. TNC Assumptions'!O36 -> 8604 | I6: ='6. TNC Assumptions'!Q36 -> 2722 | J6: ='TNC BAU'!AA7 -> 5.790437351 | K6: ='TNC BAU'!AB7 -> 144.7609338 | L6: ='TNC BAU'!AC7 -> 0.06813803524 | M6: ='TNC BAU'!AD7 -> 20.3051345 | N6: ='TNC BAU'!AE7 -> 165.0660683 | O6: ='6. TNC Assumptions'!T36 -> 134990 | P6: ='6. TNC Assumptions'!V36 -> 870673 | Q6: ='6. TNC Assumptions'!X36 -> 85100 | R6: ='6. TNC Assumptions'!Z36 -> 44841 | S6: ='6. TNC Assumptions'!AB36 -> 188303 | T6: ='6. TNC Assumptions'!AD36 -> 8604 | U6: ='6. TNC Assumptions'!AF36 -> 2722 | V6: ='TNC SC1'!AB7 -> 5.790437351 | W6: ='TNC SC1'!AC7 -> 144.7609338 | X6: ='TNC SC1'!AD7 -> 0.06813803524 | Y6: ='TNC SC1'!AE7 -> 20.3051345 | Z6: ='TNC SC1'!AF7 -> 165.0660683 | AB6: 2008 | AC6: 165.0660683 | AD6: 165.0660683
A7: 2009 | B7: ='6. TNC Assumptions'!B13 -> 1351292 | C7: ='6. TNC Assumptions'!E37 -> 139411 | D7: ='6. TNC Assumptions'!G37 -> 875111 | E7: ='6. TNC Assumptions'!I37 -> 85533 | F7: ='6. TNC Assumptions'!K37 -> 45070 | G7: ='6. TNC Assumptions'!M37 -> 194470 | H7: ='6. TNC Assumptions'!O37 -> 8886 | I7: ='6. TNC Assumptions'!Q37 -> 2811 | J7: ='TNC BAU'!AA8 -> 6.944316244 | K7: ='TNC BAU'!AB8 -> 173.6079061 | L7: ='TNC BAU'!AC8 -> 0.07229692026 | M7: ='TNC BAU'!AD8 -> 21.54448224 | N7: ='TNC BAU'!AE8 -> 195.1523883 | O7: ='6. TNC Assumptions'!T37 -> 139411 | P7: ='6. TNC Assumptions'!V37 -> 875111 | Q7: ='6. TNC Assumptions'!X37 -> 85533 | R7: ='6. TNC Assumptions'!Z37 -> 45070 | S7: ='6. TNC Assumptions'!AB37 -> 194470 | T7: ='6. TNC Assumptions'!AD37 -> 8886 | U7: ='6. TNC Assumptions'!AF37 -> 2811 | V7: ='TNC SC1'!AB8 -> 6.944316244 | W7: ='TNC SC1'!AC8 -> 173.6079061 | X7: ='TNC SC1'!AD8 -> 0.07229692026 | Y7: ='TNC SC1'!AE8 -> 21.54448224 | Z7: ='TNC SC1'!AF8 -> 195.1523883 | AB7: 2009 | AC7: 195.1523883 | AD7: 195.1523883
A8: 2010 | B8: ='6. TNC Assumptions'!B14 -> 1366853 | C8: ='6. TNC Assumptions'!E38 -> 143813 | D8: ='6. TNC Assumptions'!G38 -> 879156 | E8: ='6. TNC Assumptions'!I38 -> 85929 | F8: ='6. TNC Assumptions'!K38 -> 45278 | G8: ='6. TNC Assumptions'!M38 -> 200611 | H8: ='6. TNC Assumptions'!O38 -> 9166 | I8: ='6. TNC Assumptions'!Q38 -> 2900 | J8: ='TNC BAU'!AA9 -> 5.705396663 | K8: ='TNC BAU'!AB9 -> 142.6349166 | L8: ='TNC BAU'!AC9 -> 0.07263588429 | M8: ='TNC BAU'!AD9 -> 21.64549352 | N8: ='TNC BAU'!AE9 -> 164.2804101 | O8: ='6. TNC Assumptions'!T38 -> 143813 | P8: ='6. TNC Assumptions'!V38 -> 879156 | Q8: ='6. TNC Assumptions'!X38 -> 85929 | R8: ='6. TNC Assumptions'!Z38 -> 45278 | S8: ='6. TNC Assumptions'!AB38 -> 200611 | T8: ='6. TNC Assumptions'!AD38 -> 9166 | U8: ='6. TNC Assumptions'!AF38 -> 2900 | V8: ='TNC SC1'!AB9 -> 5.705396663 | W8: ='TNC SC1'!AC9 -> 142.6349166 | X8: ='TNC SC1'!AD9 -> 0.07263588429 | Y8: ='TNC SC1'!AE9 -> 21.64549352 | Z8: ='TNC SC1'!AF9 -> 164.2804101 | AB8: 2010 | AC8: 164.2804101 | AD8: 164.2804101
A9: 2011 | B9: ='6. TNC Assumptions'!B15 -> 1350803 | C9: ='6. TNC Assumptions'!E39 -> 143868 | D9: ='6. TNC Assumptions'!G39 -> 865071 | E9: ='6. TNC Assumptions'!I39 -> 84552 | F9: ='6. TNC Assumptions'!K39 -> 44553 | G9: ='6. TNC Assumptions'!M39 -> 200688 | H9: ='6. TNC Assumptions'!O39 -> 9170 | I9: ='6. TNC Assumptions'!Q39 -> 2901 | J9: ='TNC BAU'!AA10 -> 5.536862855 | K9: ='TNC BAU'!AB10 -> 138.4215714 | L9: ='TNC BAU'!AC10 -> 0.07148441454 | M9: ='TNC BAU'!AD10 -> 21.30235553 | N9: ='TNC BAU'!AE10 -> 159.7239269 | O9: ='6. TNC Assumptions'!T39 -> 143868 | P9: ='6. TNC Assumptions'!V39 -> 865071 | Q9: ='6. TNC Assumptions'!X39 -> 84552 | R9: ='6. TNC Assumptions'!Z39 -> 44553 | S9: ='6. TNC Assumptions'!AB39 -> 200688 | T9: ='6. TNC Assumptions'!AD39 -> 9170 | U9: ='6. TNC Assumptions'!AF39 -> 2901 | V9: ='TNC SC1'!AB10 -> 5.536862855 | W9: ='TNC SC1'!AC10 -> 138.4215714 | X9: ='TNC SC1'!AD10 -> 0.07148441454 | Y9: ='TNC SC1'!AE10 -> 21.30235553 | Z9: ='TNC SC1'!AF10 -> 159.7239269 | AB9: 2011 | AC9: 159.7239269 | AD9: 159.7239269
A10: 2012 | B10: ='6. TNC Assumptions'!B16 -> 1360772 | C10: ='6. TNC Assumptions'!E40 -> 147890 | D10: ='6. TNC Assumptions'!G40 -> 865071 | E10: ='6. TNC Assumptions'!I40 -> 84552 | F10: ='6. TNC Assumptions'!K40 -> 44553 | G10: ='6. TNC Assumptions'!M40 -> 206298 | H10: ='6. TNC Assumptions'!O40 -> 9426 | I10: ='6. TNC Assumptions'!Q40 -> 2982 | J10: ='TNC BAU'!AA11 -> 5.539882358 | K10: ='TNC BAU'!AB11 -> 138.497059 | L10: ='TNC BAU'!AC11 -> 0.07230387637 | M10: ='TNC BAU'!AD11 -> 21.54655516 | N10: ='TNC BAU'!AE11 -> 160.0436141 | O10: ='6. TNC Assumptions'!T40 -> 147890 | P10: ='6. TNC Assumptions'!V40 -> 865071 | Q10: ='6. TNC Assumptions'!X40 -> 84552 | R10: ='6. TNC Assumptions'!Z40 -> 44553 | S10: ='6. TNC Assumptions'!AB40 -> 206298 | T10: ='6. TNC Assumptions'!AD40 -> 9426 | U10: ='6. TNC Assumptions'!AF40 -> 2982 | V10: ='TNC SC1'!AB11 -> 5.539882358 | W10: ='TNC SC1'!AC11 -> 138.497059 | X10: ='TNC SC1'!AD11 -> 0.07230387637 | Y10: ='TNC SC1'!AE11 -> 21.54655516 | Z10: ='TNC SC1'!AF11 -> 160.0436141 | AB10: 2012 | AC10: 160.0436141 | AD10: 160.0436141
A11: 2013 | B11: ='6. TNC Assumptions'!B17 -> 1367017 | C11: ='6. TNC Assumptions'!E41 -> 151848 | D11: ='6. TNC Assumptions'!G41 -> 861968 | E11: ='6. TNC Assumptions'!I41 -> 84249 | F11: ='6. TNC Assumptions'!K41 -> 44393 | G11: ='6. TNC Assumptions'!M41 -> 211819 | H11: ='6. TNC Assumptions'!O41 -> 9678 | I11: ='6. TNC Assumptions'!Q41 -> 3062 | J11: ='TNC BAU'!AA12 -> 5.577829472 | K11: ='TNC BAU'!AB12 -> 139.4457368 | L11: ='TNC BAU'!AC12 -> 0.07316706346 | M11: ='TNC BAU'!AD12 -> 21.80378491 | N11: ='TNC BAU'!AE12 -> 161.2495217 | O11: ='6. TNC Assumptions'!T41 -> 151848 | P11: ='6. TNC Assumptions'!V41 -> 861968 | Q11: ='6. TNC Assumptions'!X41 -> 84249 | R11: ='6. TNC Assumptions'!Z41 -> 44393 | S11: ='6. TNC Assumptions'!AB41 -> 211819 | T11: ='6. TNC Assumptions'!AD41 -> 9678 | U11: ='6. TNC Assumptions'!AF41 -> 3062 | V11: ='TNC SC1'!AB12 -> 5.577829472 | W11: ='TNC SC1'!AC12 -> 139.4457368 | X11: ='TNC SC1'!AD12 -> 0.07316706346 | Y11: ='TNC SC1'!AE12 -> 21.80378491 | Z11: ='TNC SC1'!AF12 -> 161.2495217 | AB11: 2013 | AC11: 161.2495217 | AD11: 161.2495217
A12: 2015 | B12: ='6. TNC Assumptions'!B18 -> 1380057.714 | C12: ='6. TNC Assumptions'!E42 -> 159975.857 | D12: ='6. TNC Assumptions'!G42 -> 855784.2609 | E12: ='6. TNC Assumptions'!I42 -> 83645.17166 | F12: ='6. TNC Assumptions'!K42 -> 44074.14919 | G12: ='6. TNC Assumptions'!M42 -> 223156.5088 | H12: ='6. TNC Assumptions'!O42 -> 10195.47422 | I12: ='6. TNC Assumptions'!Q42 -> 3226.292421 | J12: ='TNC BAU'!AA13 -> 5.654609672 | K12: ='TNC BAU'!AB13 -> 141.3652418 | L12: ='TNC BAU'!AC13 -> 0.07332262464 | M12: ='TNC BAU'!AD13 -> 21.85014214 | N12: ='TNC BAU'!AE13 -> 163.2153839 | O12: ='6. TNC Assumptions'!T42 -> 159975.857 | P12: ='6. TNC Assumptions'!V42 -> 855784.2609 | Q12: ='6. TNC Assumptions'!X42 -> 83645.17166 | R12: ='6. TNC Assumptions'!Z42 -> 44074.14919 | S12: ='6. TNC Assumptions'!AB42 -> 223156.5088 | T12: ='6. TNC Assumptions'!AD42 -> 10195.47422 | U12: ='6. TNC Assumptions'!AF42 -> 3226.292421 | V12: ='TNC SC1'!AB13 -> 4.592940437 | W12: ='TNC SC1'!AC13 -> 114.8235109 | X12: ='TNC SC1'!AD13 -> 0.07332262464 | Y12: ='TNC SC1'!AE13 -> 21.85014214 | Z12: ='TNC SC1'!AF13 -> 136.6736531 | AB12: 2015 | AC12: 163.2153839 | AD12: 136.6736531
A13: 2016 | B13: ='6. TNC Assumptions'!B19 -> 1387142.747 | C13: ='6. TNC Assumptions'!E43 -> 164257.3124 | D13: ='6. TNC Assumptions'!G43 -> 852714.5723 | E13: ='6. TNC Assumptions'!I43 -> 83345.42136 | F13: ='6. TNC Assumptions'!K43 -> 43915.86886 | G13: ='6. TNC Assumptions'!M43 -> 229128.6806 | H13: ='6. TNC Assumptions'!O43 -> 10468.04578 | I13: ='6. TNC Assumptions'!Q43 -> 3312.846208 | J13: ='TNC BAU'!AA14 -> 5.695856715 | K13: ='TNC BAU'!AB14 -> 142.3964179 | L13: ='TNC BAU'!AC14 -> 0.07336254571 | M13: ='TNC BAU'!AD14 -> 21.86203862 | N13: ='TNC BAU'!AE14 -> 164.2584565 | O13: ='6. TNC Assumptions'!T43 -> 164257.3124 | P13: ='6. TNC Assumptions'!V43 -> 852714.5723 | Q13: ='6. TNC Assumptions'!X43 -> 83345.42136 | R13: ='6. TNC Assumptions'!Z43 -> 43915.86886 | S13: ='6. TNC Assumptions'!AB43 -> 229128.6806 | T13: ='6. TNC Assumptions'!AD43 -> 10468.04578 | U13: ='6. TNC Assumptions'!AF43 -> 3312.846208 | V13: ='TNC SC1'!AB14 -> 4.414636624 | W13: ='TNC SC1'!AC14 -> 110.3659156 | X13: ='TNC SC1'!AD14 -> 0.07336254571 | Y13: ='TNC SC1'!AE14 -> 21.86203862 | Z13: ='TNC SC1'!AF14 -> 132.2279542 | AB13: 2016 | AC13: 164.2584565 | AD13: 132.2279542
A14: 2017 | B14: ='6. TNC Assumptions'!B20 -> 1394524.457 | C14: ='6. TNC Assumptions'!E44 -> 168653.353 | D14: ='6. TNC Assumptions'!G44 -> 849655.8947 | E14: ='6. TNC Assumptions'!I44 -> 83046.74525 | F14: ='6. TNC Assumptions'!K44 -> 43758.15694 | G14: ='6. TNC Assumptions'!M44 -> 235260.6811 | H14: ='6. TNC Assumptions'!O44 -> 10747.90442 | I14: ='6. TNC Assumptions'!Q44 -> 3401.722029 | J14: ='TNC BAU'!AA15 -> 5.73860581 | K14: ='TNC BAU'!AB15 -> 143.4651452 | L14: ='TNC BAU'!AC15 -> 0.07340246679 | M14: ='TNC BAU'!AD15 -> 21.8739351 | N14: ='TNC BAU'!AE15 -> 165.3390803 | O14: ='6. TNC Assumptions'!T44 -> 168653.353 | P14: ='6. TNC Assumptions'!V44 -> 849655.8947 | Q14: ='6. TNC Assumptions'!X44 -> 83046.74525 | R14: ='6. TNC Assumptions'!Z44 -> 43758.15694 | S14: ='6. TNC Assumptions'!AB44 -> 235260.6811 | T14: ='6. TNC Assumptions'!AD44 -> 10747.90442 | U14: ='6. TNC Assumptions'!AF44 -> 3401.722029 | V14: ='TNC SC1'!AB15 -> 4.233826386 | W14: ='TNC SC1'!AC15 -> 105.8456596 | X14: ='TNC SC1'!AD15 -> 0.07340246679 | Y14: ='TNC SC1'!AE15 -> 21.8739351 | Z14: ='TNC SC1'!AF15 -> 127.7195948 | AB14: 2017 | AC14: 165.3390803 | AD14: 127.7195948
A15: 2018 | B15: ='6. TNC Assumptions'!B21 -> 1396445.943 | C15: ='6. TNC Assumptions'!E45 -> 169781.7761 | D15: ='6. TNC Assumptions'!G45 -> 848893.9681 | E15: ='6. TNC Assumptions'!I45 -> 82972.3438 | F15: ='6. TNC Assumptions'!K45 -> 43718.87055 | G15: ='6. TNC Assumptions'!M45 -> 236834.7078 | H15: ='6. TNC Assumptions'!O45 -> 10819.73955 | I15: ='6. TNC Assumptions'!Q45 -> 3424.537066 | J15: ='TNC BAU'!AA16 -> 5.749678289 | K15: ='TNC BAU'!AB16 -> 143.7419572 | L15: ='TNC BAU'!AC16 -> 0.07344238787 | M15: ='TNC BAU'!AD16 -> 21.88583158 | N15: ='TNC BAU'!AE16 -> 165.6277888 | O15: ='6. TNC Assumptions'!T45 -> 169781.7761 | P15: ='6. TNC Assumptions'!V45 -> 848893.9681 | Q15: ='6. TNC Assumptions'!X45 -> 82972.3438 | R15: ='6. TNC Assumptions'!Z45 -> 43718.87055 | S15: ='6. TNC Assumptions'!AB45 -> 236834.7078 | T15: ='6. TNC Assumptions'!AD45 -> 10819.73955 | U15: ='6. TNC Assumptions'!AF45 -> 3424.537066 | V15: ='TNC SC1'!AB16 -> 4.028179036 | W15: ='TNC SC1'!AC16 -> 100.7044759 | X15: ='TNC SC1'!AD16 -> 0.07344238787 | Y15: ='TNC SC1'!AE16 -> 21.88583158 | Z15: ='TNC SC1'!AF16 -> 122.5903075 | AB15: 2018 | AC15: 165.6277888 | AD15: 122.5903075
A16: 2020 | B16: ='6. TNC Assumptions'!B22 -> 1400328 | C16: ='6. TNC Assumptions'!E46 -> 172053.7224 | D16: ='6. TNC Assumptions'!G46 -> 847371.4815 | E16: ='6. TNC Assumptions'!I46 -> 82823.67423 | F16: ='6. TNC Assumptions'!K46 -> 43640.36833 | G16: ='6. TNC Assumptions'!M46 -> 240003.8234 | H16: ='6. TNC Assumptions'!O46 -> 10964.37006 | I16: ='6. TNC Assumptions'!Q46 -> 3470.473177 | J16: ='TNC BAU'!AA17 -> 5.772020827 | K16: ='TNC BAU'!AB17 -> 144.3005207 | L16: ='TNC BAU'!AC17 -> 0.07343840898 | M16: ='TNC BAU'!AD17 -> 21.88464588 | N16: ='TNC BAU'!AE17 -> 166.1851665 | O16: ='6. TNC Assumptions'!T46 -> 172053.7224 | P16: ='6. TNC Assumptions'!V46 -> 847371.4815 | Q16: ='6. TNC Assumptions'!X46 -> 82823.67423 | R16: ='6. TNC Assumptions'!Z46 -> 43640.36833 | S16: ='6. TNC Assumptions'!AB46 -> 240003.8234 | T16: ='6. TNC Assumptions'!AD46 -> 10964.37006 | U16: ='6. TNC Assumptions'!AF46 -> 3470.473177 | V16: ='TNC SC1'!AB17 -> 3.613967024 | W16: ='TNC SC1'!AC17 -> 90.3491756 | X16: ='TNC SC1'!AD17 -> 0.07343840898 | Y16: ='TNC SC1'!AE17 -> 21.88464588 | Z16: ='TNC SC1'!AF17 -> 112.2338215 | AB16: 2020 | AC16: 166.1851665 | AD16: 112.2338215
A17: 2025 | B17: ='6. TNC Assumptions'!B23 -> 1410451.683 | C17: ='6. TNC Assumptions'!E47 -> 177809.5936 | D17: ='6. TNC Assumptions'!G47 -> 843572.0915 | E17: ='6. TNC Assumptions'!I47 -> 82675.27104 | F17: ='6. TNC Assumptions'!K47 -> 43444.46517 | G17: ='6. TNC Assumptions'!M47 -> 248032.6283 | H17: ='6. TNC Assumptions'!O47 -> 11330.77963 | I17: ='6. TNC Assumptions'!Q47 -> 3586.8539 | J17: ='TNC BAU'!AA18 -> 5.829699384 | K17: ='TNC BAU'!AB18 -> 145.7424846 | L17: ='TNC BAU'!AC18 -> 0.07309795588 | M17: ='TNC BAU'!AD18 -> 21.78319085 | N17: ='TNC BAU'!AE18 -> 167.5256755 | O17: ='6. TNC Assumptions'!T47 -> 177809.5936 | P17: ='6. TNC Assumptions'!V47 -> 843572.0915 | Q17: ='6. TNC Assumptions'!X47 -> 82675.27104 | R17: ='6. TNC Assumptions'!Z47 -> 43444.46517 | S17: ='6. TNC Assumptions'!AB47 -> 248032.6283 | T17: ='6. TNC Assumptions'!AD47 -> 11330.77963 | U17: ='6. TNC Assumptions'!AF47 -> 3586.8539 | V17: ='TNC SC1'!AB18 -> 2.617120704 | W17: ='TNC SC1'!AC18 -> 65.4280176 | X17: ='TNC SC1'!AD18 -> 0.07309795588 | Y17: ='TNC SC1'!AE18 -> 21.78319085 | Z17: ='TNC SC1'!AF18 -> 87.21120846 | AB17: 2025 | AC17: 167.5256755 | AD17: 87.21120846
A18: 2030 | B18: ='6. TNC Assumptions'!B24 -> 1421070.924 | C18: ='6. TNC Assumptions'!E48 -> 183758.0212 | D18: ='6. TNC Assumptions'!G48 -> 839789.7369 | E18: ='6. TNC Assumptions'!I48 -> 82527.13375 | F18: ='6. TNC Assumptions'!K48 -> 43249.44142 | G18: ='6. TNC Assumptions'!M48 -> 256330.0193 | H18: ='6. TNC Assumptions'!O48 -> 11709.43394 | I18: ='6. TNC Assumptions'!Q48 -> 3707.137398 | J18: ='TNC BAU'!AA19 -> 5.889890614 | K18: ='TNC BAU'!AB19 -> 147.2472654 | L18: ='TNC BAU'!AC19 -> 0.07227368963 | M18: ='TNC BAU'!AD19 -> 21.53755951 | N18: ='TNC BAU'!AE19 -> 168.7848249 | O18: ='6. TNC Assumptions'!T48 -> 183758.0212 | P18: ='6. TNC Assumptions'!V48 -> 839789.7369 | Q18: ='6. TNC Assumptions'!X48 -> 82527.13375 | R18: ='6. TNC Assumptions'!Z48 -> 43249.44142 | S18: ='6. TNC Assumptions'!AB48 -> 256330.0193 | T18: ='6. TNC Assumptions'!AD48 -> 11709.43394 | U18: ='6. TNC Assumptions'!AF48 -> 3707.137398 | V18: ='TNC SC1'!AB19 -> 1.548790423 | W18: ='TNC SC1'!AC19 -> 38.71976058 | X18: ='TNC SC1'!AD19 -> 0.07227368963 | Y18: ='TNC SC1'!AE19 -> 21.53755951 | Z18: ='TNC SC1'!AF19 -> 60.25732009 | AB18: 2030 | AC18: 168.7848249 | AD18: 60.25732009
A19: 2035 | B19: ='6. TNC Assumptions'!B25 -> 1432201.522 | C19: ='6. TNC Assumptions'!E49 -> 189905.4471 | D19: ='6. TNC Assumptions'!G49 -> 836024.3414 | E19: ='6. TNC Assumptions'!I49 -> 82379.2619 | F19: ='6. TNC Assumptions'!K49 -> 43055.29314 | G19: ='6. TNC Assumptions'!M49 -> 264904.9815 | H19: ='6. TNC Assumptions'!O49 -> 12100.74221 | I19: ='6. TNC Assumptions'!Q49 -> 3831.454548 | J19: ='TNC BAU'!AA20 -> 5.95267601 | K19: ='TNC BAU'!AB20 -> 148.8169003 | L19: ='TNC BAU'!AC20 -> 0.07056690432 | M19: ='TNC BAU'!AD20 -> 21.02893749 | N19: ='TNC BAU'!AE20 -> 169.8458377 | O19: ='6. TNC Assumptions'!T49 -> 189905.4471 | P19: ='6. TNC Assumptions'!V49 -> 836024.3414 | Q19: ='6. TNC Assumptions'!X49 -> 82379.2619 | R19: ='6. TNC Assumptions'!Z49 -> 43055.29314 | S19: ='6. TNC Assumptions'!AB49 -> 264904.9815 | T19: ='6. TNC Assumptions'!AD49 -> 12100.74221 | U19: ='6. TNC Assumptions'!AF49 -> 3831.454548 | V19: ='TNC SC1'!AB20 -> 1.23332339 | W19: ='TNC SC1'!AC20 -> 30.83308476 | X19: ='TNC SC1'!AD20 -> 0.07056690432 | Y19: ='TNC SC1'!AE20 -> 21.02893749 | Z19: ='TNC SC1'!AF20 -> 51.86202224 | AB19: 2035 | AC19: 169.8458377 | AD19: 51.86202224
A20: 2040 | B20: ='6. TNC Assumptions'!B26 -> 1443859.897 | C20: ='6. TNC Assumptions'!E50 -> 196258.5284 | D20: ='6. TNC Assumptions'!G50 -> 832275.829 | E20: ='6. TNC Assumptions'!I50 -> 82231.65501 | F20: ='6. TNC Assumptions'!K50 -> 42862.0164 | G20: ='6. TNC Assumptions'!M50 -> 273766.8003 | H20: ='6. TNC Assumptions'!O50 -> 12505.12729 | I20: ='6. TNC Assumptions'!Q50 -> 3959.940616 | J20: ='TNC BAU'!AA21 -> 6.018139803 | K20: ='TNC BAU'!AB21 -> 150.4534951 | L20: ='TNC BAU'!AC21 -> 0.06794269156 | M20: ='TNC BAU'!AD21 -> 20.24692208 | N20: ='TNC BAU'!AE21 -> 170.7004172 | O20: ='6. TNC Assumptions'!T50 -> 196258.5284 | P20: ='6. TNC Assumptions'!V50 -> 832275.829 | Q20: ='6. TNC Assumptions'!X50 -> 82231.65501 | R20: ='6. TNC Assumptions'!Z50 -> 42862.0164 | S20: ='6. TNC Assumptions'!AB50 -> 273766.8003 | T20: ='6. TNC Assumptions'!AD50 -> 12505.12729 | U20: ='6. TNC Assumptions'!AF50 -> 3959.940616 | V20: ='TNC SC1'!AB21 -> 1.146822477 | W20: ='TNC SC1'!AC21 -> 28.67056192 | X20: ='TNC SC1'!AD21 -> 0.06794269156 | Y20: ='TNC SC1'!AE21 -> 20.24692208 | Z20: ='TNC SC1'!AF21 -> 48.917484 | AB20: 2040 | AC20: 170.7004172 | AD20: 48.917484
A21: 2045 | B21: ='6. TNC Assumptions'!B27 -> 1456063.023 | C21: ='6. TNC Assumptions'!E51 -> 202824.1452 | D21: ='6. TNC Assumptions'!G51 -> 828544.1239 | E21: ='6. TNC Assumptions'!I51 -> 82084.31259 | F21: ='6. TNC Assumptions'!K51 -> 42669.60728 | G21: ='6. TNC Assumptions'!M51 -> 282925.072 | H21: ='6. TNC Assumptions'!O51 -> 12923.0262 | I21: ='6. TNC Assumptions'!Q51 -> 4092.735405 | J21: ='TNC BAU'!AA22 -> 6.086369052 | K21: ='TNC BAU'!AB22 -> 152.1592263 | L21: ='TNC BAU'!AC22 -> 0.06492218908 | M21: ='TNC BAU'!AD22 -> 19.34681234 | N21: ='TNC BAU'!AE22 -> 171.5060386 | O21: ='6. TNC Assumptions'!T51 -> 202824.1452 | P21: ='6. TNC Assumptions'!V51 -> 828544.1239 | Q21: ='6. TNC Assumptions'!X51 -> 82084.31259 | R21: ='6. TNC Assumptions'!Z51 -> 42669.60728 | S21: ='6. TNC Assumptions'!AB51 -> 282925.072 | T21: ='6. TNC Assumptions'!AD51 -> 12923.0262 | U21: ='6. TNC Assumptions'!AF51 -> 4092.735405 | V21: ='TNC SC1'!AB22 -> 1.05871242 | W21: ='TNC SC1'!AC22 -> 26.4678105 | X21: ='TNC SC1'!AD22 -> 0.06492218908 | Y21: ='TNC SC1'!AE22 -> 19.34681234 | Z21: ='TNC SC1'!AF22 -> 45.81462284 | AB21: 2045 | AC21: 171.5060386 | AD21: 45.81462284
A22: 2050 | B22: ='6. TNC Assumptions'!B28 -> 1468828.442 | C22: ='6. TNC Assumptions'!E52 -> 209609.4076 | D22: ='6. TNC Assumptions'!G52 -> 824829.1507 | E22: ='6. TNC Assumptions'!I52 -> 81937.23419 | F22: ='6. TNC Assumptions'!K52 -> 42478.0619 | G22: ='6. TNC Assumptions'!M52 -> 292389.7137 | H22: ='6. TNC Assumptions'!O52 -> 13354.89054 | I22: ='6. TNC Assumptions'!Q52 -> 4229.983406 | J22: ='TNC BAU'!AA23 -> 6.157453739 | K22: ='TNC BAU'!AB23 -> 153.9363435 | L22: ='TNC BAU'!AC23 -> 0.06157992584 | M22: ='TNC BAU'!AD23 -> 18.3508179 | N22: ='TNC BAU'!AE23 -> 172.2871614 | O22: ='6. TNC Assumptions'!T52 -> 209609.4076 | P22: ='6. TNC Assumptions'!V52 -> 824829.1507 | Q22: ='6. TNC Assumptions'!X52 -> 81937.23419 | R22: ='6. TNC Assumptions'!Z52 -> 42478.0619 | S22: ='6. TNC Assumptions'!AB52 -> 292389.7137 | T22: ='6. TNC Assumptions'!AD52 -> 13354.89054 | U22: ='6. TNC Assumptions'!AF52 -> 4229.983406 | V22: ='TNC SC1'!AB23 -> 0.9351464053 | W22: ='TNC SC1'!AC23 -> 23.37866013 | X22: ='TNC SC1'!AD23 -> 0.06157992584 | Y22: ='TNC SC1'!AE23 -> 18.3508179 | Z22: ='TNC SC1'!AF23 -> 41.72947803 | AB22: 2050 | AC22: 172.2871614 | AD22: 41.72947803
AC25: Total GHG CO2 e | AD25: Total GHG CO2 e
AC26: BAU | AD26: SC1
AB27: 2010 | AC27: 164.2804101 | AD27: 164.2804101
AB28: 2011 | AC28: 159.7239269 | AD28: 159.7239269
AB29: 2012 | AC29: 160.0436141 | AD29: 160.0436141
AB30: 2013 | AC30: 161.2495217 | AD30: 161.2495217
AB31: 2015 | AC31: 163.2153839 | AD31: 136.6736531
AB32: 2016 | AC32: 164.2584565 | AD32: 132.2279542
AB33: 2017 | AC33: 165.3390803 | AD33: 127.7195948
AB34: 2018 | AC34: 165.6277888 | AD34: 122.5903075
AB35: 2020 | AC35: 166.1851665 | AD35: 112.2338215
AB36: 2025 | AC36: 167.5256755 | AD36: 87.21120846
AB37: 2030 | AC37: 168.7848249 | AD37: 60.25732009
AB38: 2035 | AC38: 169.8458377 | AD38: 51.86202224
AB39: 2040 | AC39: 170.7004172 | AD39: 48.917484
AB40: 2045 | AC40: 171.5060386 | AD40: 45.81462284
AB41: 2050 | AC41: 172.2871614 | AD41: 41.72947803

Sheet ALL UD1 PLOTS (hidden)
A1: Year | B1: Population | C1: Sewered Plaines Wilhems Population | D1: Population with Absorption pit | E1: Population with Septic tanks | F1: Population with pit latrines | G1: Sewered PL and Pte aux Sables | H1: 5 CHA estates | I1: Grand Baie sewerage connections | J1: CH4 Emissions Gg | K1: CH4 Emissions Gg CO2 e | L1: N2O Emissions Gg | M1: N2O Emissions Gg CO2 e | N1: Total GHG CO2 e | O1: Sewered Plaines Wilhems Population | P1: Population with Absorption pit | Q1: Population with Septic tanks | R1: Population with pit latrines | S1: Sewered PL and Pte aux Sables | T1: 5 CHA estates | U1: Grand Baie sewerage connections | V1: CH4 Emissions Gg | W1: CH4 Emissions Gg CO2 e | X1: N2O Emissions Gg | Y1: N2O Emissions Gg CO2 e | Z1: Total GHG CO2 e | AC1: Total GHG CO2 e | AD1: Total GHG CO2 e
A2: UD1 | B2: BAU | C2: BAU | D2: BAU | E2: BAU | F2: BAU | G2: BAU | H2: BAU | I2: BAU | J2: BAU | K2: BAU | L2: BAU | M2: BAU | N2: BAU | O2: SC1 | P2: SC1 | Q2: SC1 | R2: SC1 | S2: SC1 | T2: SC1 | U2: SC1 | V2: SC1 | W2: SC1 | X2: SC1 | Y2: SC1 | Z2: SC1 | AC2: BAU | AD2: SC1
B3: 1 | C3: 2 | D3: 3 | E3: 4 | F3: 5 | G3: 6 | H3: 7 | I3: 8 | J3: 9 | K3: 10 | L3: 11 | M3: 12 | N3: 13 | O3: 14 | P3: 15 | Q3: 16 | R3: 17 | S3: 18 | T3: 19 | U3: 20 | V3: 21 | W3: 22 | X3: 23 | Y3: 24 | Z3: 25
A4: 2006 | B4: ='6. UD1 Assumptions'!B10 -> 1303680 | C4: ='6. UD1 Assumptions'!E34 -> 124590 | D4: ='6. UD1 Assumptions'!G34 -> 859783 | E4: ='6. UD1 Assumptions'!I34 -> 84036 | F4: ='6. UD1 Assumptions'!K34 -> 44281 | G4: ='6. UD1 Assumptions'!M34 -> 176920 | H4: ='6. UD1 Assumptions'!O34 -> 7110 | I4: ='6. UD1 Assumptions'!Q34 -> 6960 | J4: ='UD1 BAU'!AA5 -> 5.055643448 | K4: ='UD1 BAU'!AB5 -> 126.3910862 | L4: ='UD1 BAU'!AC5 -> 0.06704625033 | M4: ='UD1 BAU'!AD5 -> 19.9797826 | N4: ='UD1 BAU'!AE5 -> 146.3708688 | O4: ='6. UD1 Assumptions'!T34 -> 124590 | P4: ='6. UD1 Assumptions'!V34 -> 859783 | Q4: ='6. UD1 Assumptions'!X34 -> 84036 | R4: ='6. UD1 Assumptions'!Z34 -> 44281 | S4: ='6. UD1 Assumptions'!AB34 -> 176920 | T4: ='6. UD1 Assumptions'!AD34 -> 7110 | U4: ='6. UD1 Assumptions'!AF34 -> 6960 | V4: ='UD1 SC1'!AA5 -> 5.055643448 | W4: ='UD1 SC1'!AB5 -> 126.3910862 | X4: ='UD1 SC1'!AC5 -> 0.06704625033 | Y4: ='UD1 SC1'!AD5 -> 19.9797826 | Z4: ='UD1 SC1'!AE5 -> 146.3708688 | AB4: 2006 | AC4: =N4 -> 146.3708688 | AD4: =Z4 -> 146.3708688 | AF4: 146.3708688 | AG4: 146.3708688
